Workbook

Sheet Print & Input
A1: DUKE ENERGY KENTUCKY, INC. | B1: company_name | C1: WorkingCap | D1: No
A2: ELECTRIC COST OF SERVICE STUDY | B2: coss_type | C2: Pages | D2: 18
A3: CASE NO: 2017-00321 | B3: case_name | C3: Pages2 | D3: 15
A4: TWELVE MONTHS ENDING DECEMBER 31, 2018 | B4: test_period | C4: WPpages | D4: 73
A5: DATA: 12 MONTHS ACTUAL & 0 MONTHS ESTIMATED | B5: data_filing
A6: JAMES E. ZIOLKOWSKI | B6: witness
A7: JAMES A. RIDDLE | B7: witness1
A8: TYPE OF FILING: "X" ORIGINAL UPDATED REVISED | B8: type
A9: ALLOCATION FACTORS FOR COST OF SERVICE STUDY | B9: alloc_factors
A10: TWELVE MONTHS ENDING DECEMBER 31, 2018 | B10: time_period
A11: TOTAL KW (12 COIN PEAK) | B11: Allocator
A14: FR-16(7)(v) - Reference | C14: FR-16(7)(v)-1 | D14: FR-16(7)(v)-2 | E14: FR-16(7)(v)-3 | F14: FR-16(7)(v)-4 | G14: FR-16(7)(v)-5 | H14: FR-16(7)(v)-6 | I14: FR-16(7)(v)-7 | J14: FR-16(7)(v)-8 | K14: FR-16(7)(v)-9 | L14: FR-16(7)(v)-10 | M14: FR-16(7)(v)-11 | N14: FR-16(7)(v)-12 | O14: FR-16(7)(v)-13 | P14: FR-16(7)(v)-14 | Q14: FR-16(7)(v)-15 | R14: FR-16(7)(v)-16 | S14: FR-16(7)(v)-17 | T14: FR-16(7)(v)-18 | U14: FR-16(7)(v)-19 | V14: FR-16(7)(v)-20 | W14: FR-16(7)(v)-21 | X14: FR-16(7)(v)-22 | Y14: FR-16(7)(v)-23 | Z14: FR-16(7)(v)-24 | AA14: FR-16(7)(v)-25
E15: Production | F15: Production | G15: Production | I15: Transmission | J15: Transmission | K15: Transmission | M15: Distribution | N15: Distribution | O15: Distribution | P15: Total
D16: Production | E16: Demand | F16: Energy | G16: Customer | H16: Transmission | I16: Demand | J16: Energy | K16: Customer | L16: Distribution | M16: Demand | N16: Energy | O16: Customer | P16: Class | Q16: Res | R16: DS | S16: GSFL | T16: EH | U16: SP | V16: DTS | W16: DTP | X16: DP | Y16: TT | Z16: LT | AA16: Other
A17: Schedule Name | B17: Range name | C17: Functional | D17: Classified | E17: Allocated | F17: Allocated | G17: Allocated | H17: Classified | I17: Allocated | J17: Allocated | K17: Allocated | L17: Classified | M17: Allocated | N17: Allocated | O17: Allocated | P17: Allocated | Q17: Classified | R17: Classified | S17: Classified | T17: Classified | U17: Classified | V17: Classified | W17: Classified | X17: Classified | Y17: Classified | Z17: Classified | AA17: Classified
A19: Schedule 1 - Summary | B19: FR_16(7)(v)_Summary_1
A20: Schedule 2 - Gross Plant | B20: FR_16(7)(v)_Gross_Plant_2
A21: Schedule 3 - Accum Deprec | B21: FR_16(7)(v)_Depreciation_Reserve_3
A22: Schedule 4 - Net Plant | B22: FR_16(7)(v)_Net_Plant_4
A23: Schedule 5 - Subtractive Adjustments | B23: FR_16(7)(v)_RB_Subtractive_Adj_5
A24: Schedule 5.1 - Additive Adjustments | B24: FR_16(7)(v)_RB_Additive_Adj_5.1
A25: Schedule 5.2 - Total Rate Base | B25: FR_16(7)(v)_RB_Total_5.2
A26: Schedule 6 - O & M Expenses | B26: FR_16(7)(v)_OMEXP_6
A27: Schedule 6.1 - O & M Expenses | B27: FR_16(7)(v)_OMEXP_6.1
A28: Schedule 7 - Depreciation Exp | B28: FR_16(7)(v)_Depreciation_Expense_7
A29: Schedule 8 - Oth Tax & Misc Exp | B29: FR_16(7)(v)_Taxes_Other_Than_Income_8
A30: Schedule 9 - Income Tax - Fed | B30: FR_16(7)(v)_FIT_Return_9
A31: Schedule 9.1 - Income Tax - State | B31: FR_16(7)(v)_SIT_Return_9
A32: Schedule 10 - Oth Revenues COS Calc | B32: FR_16(7)(v)_COS_Compute_10
A33: Schedule 11 - Rate of Return & Tax Rates | B33: FR_16(7)(v)_RofR_11
A34: Schedule 12 - Allocation Factors | B34: FR_16(7)(v)_Alloc1
A35: Schedule 13 - Income Tax Calculation | B35: FR_16(7)(v)_FIT_Revenue_13
F555: 0

Sheet Rev req link
C2: COSS | D2: Rev Req Model | E2: Difference
B3: Gross Plant (Sch. B-1) | C3: ='FR-16(7)(v)-1 Functional'!F123 -> 1730844119 | D3: =[3]!PLANT_IN_SERVICE -> 1730844119 | E3: =D3-C3 -> 0 | F3: Linked To Sch. B-1
B4: Depreciation (Sch B-1) | C4: ='FR-16(7)(v)-1 Functional'!F200 -> 846148393.5 | D4: =-[3]SCH_B1!$I$20 -> 846148393 | E4: =D4-C4 -> -0.4607999325 | F4: Linked To Sch. B-1
B5: Net Plant | C5: =C3+C4 -> 2576992512 | D5: =D3+D4 -> 2576992512 | E5: =E3-E4 -> 0.4607999325
B7: CWIP | C7: ='FR-16(7)(v)-1 Functional'!F375 -> 0 | D7: 0 | E7: =D7-C7 -> 0
B9: Schedule B-5
B10: Cash WC | C10: ='FR-16(7)(v)-1 Functional'!F408 -> 14215407 | D10: =[3]SCH_B1!$I$26 -> 14215407 | E10: =D10-C10 -> 0 | F10: Linked To Sch. B-1
B11: Fuel Stock | C11: ='FR-16(7)(v)-1 Functional'!F396 -> 19946203 | D11: =[3]SCH_B5s!$O$27 -> 19946203 | E11: 0 | F11: Linked To Sch. B-5
B12: Emission Allowances | C12: ='FR-16(7)(v)-1 Functional'!F397 -> 0 | D12: =[3]SCH_B5s!$O$33 -> 0 | E12: 0 | F12: Linked To Sch. B-5
B13: Prepayments | C13: ='FR-16(7)(v)-1 Functional'!F405 -> 0 | D13: =[3]SCH_B5s!$O$37 -> 0 | E13: 0 | F13: Linked To Sch. B-5
B14: Mat & Supp | C14: ='FR-16(7)(v)-1 Functional'!F395 -> 20474771 | D14: =[3]SCH_B5s!$O$35 -> 20474771 | E14: 0 | F14: Linked To Sch. B-5
B15: Tot Working Capital | C15: =SUM(C10:C14) -> 54636381 | D15: =SUM(D10:D14) -> 54636381 | E15: 0
A17: Rate Base Deductions | B17: Schedule B-6
A18: Customer Advances | B18: Customer Advances - Acct 252 | C18: 0 | D18: 0 | E18: =D18-C18 -> 0
B19: Customer Service Deposits | C19: ='FR-16(7)(v)-1 Functional'!F319 -> 0 | D19: 0 | E19: =D19-C19 -> 0
A20: Post Retirement Benefits | B20: ITC Acct 255 | C20: 0 | D20: 0 | E20: 0
A21: ITC | B21: Acct 281 | C21: ='FR-16(7)(v)-1 Functional'!F318 -> 190426 | D21: =-'[3]WPB-6''s'!$T$113 -> 190426 | E21: 0
B22: Acct 282 | C22: ='FR-16(7)(v)-1 Functional'!F301 -> 229710241 | D22: =-'[3]WPB-6''s'!$T$114+-'[3]WPB-6''s'!$T$115 -> 229710241 | E22: 0 | F22: Linked To Sch. B-6
B23: Acct 283 | C23: ='FR-16(7)(v)-1 Functional'!F315 -> 20284879 | D23: =-'[3]WPB-6''s'!$T$116 -> 20284880 | E23: 1 | F23: Linked To Sch. B-6
B24: Total Rate Base Reductions | C24: =SUM(C18:C23) -> 250185546 | D24: =SUM(D18:D23) -> 250185547 | E24: 1
A26: Rate Base Additions | B26: Acct 190 | C26: ='FR-16(7)(v)-1 Functional'!F361 -> -8773995 | D26: =-'[3]WPB-6''s'!$T$112 -> -8773995 | E26: =D26-C26 -> 0 | F26: Linked To Sch. B-6
B27: Other Rate Base Adj. | C27: ='FR-16(7)(v)-1 Functional'!F364 -> 0 | D27: 0 | E27: =D27-C27 -> 0 | F27: Linked To Sch. B-6
B28: Total Rate Base Additions | C28: =C26+C27 -> -8773995 | D28: =SUM(D26:D27) -> -8773995 | E28: =D28-C28 -> 0
A30: Jurisdictional Rate Base | B30: Total Rate Base | C30: =C5+C7+C15-C24+C28 -> 2372669352 | D30: =D5+D7+D15-D24+D28 -> 2372669351 | E30: =D30-C30 -> -1.460800171
B32: Schedule C-2
A33: O&M Expenses | B33: Prod O&M | C33: ='FR-16(7)(v)-1 Functional'!F459 -> 155140247 | D33: =[3]SCH_C2!$N$27 -> 155140247 | E33: =D33-C33 -> 0 | F33: Linked To Sch. C-2
B34: Trans | C34: ='FR-16(7)(v)-1 Functional'!F466 -> 19932973 | D34: =[3]SCH_C2!$N$29 -> 19932973 | E34: =D34-C34 -> 0 | F34: Linked To Sch. C-2
B35: Regional Market | C35: ='FR-16(7)(v)-1 Functional'!F470 -> 1716657 | D35: =[3]SCH_C2!$N$30 -> 1716657 | E35: 0 | F35: Linked To Sch. C-2
B36: Dist | C36: ='FR-16(7)(v)-1 Functional'!F492 -> 14150408 | D36: =[3]SCH_C2!$N$31 -> 14150408 | E36: 0 | F36: Linked To Sch. C-2
B37: Cust Acct | C37: ='FR-16(7)(v)-1 Functional'!F503 -> 3023359 | D37: =[3]SCH_C2!$N$32+[3]SCH_C1!$G$20 -> 3023359 | E37: 0 | F37: Linked To Sch. C-2
B38: Cust serv | C38: ='FR-16(7)(v)-1 Functional'!F518 -> 1081198 | D38: =[3]SCH_C2!$N$33 -> 1081198 | E38: 0 | F38: Linked To Sch. C-2
B39: Sales | C39: ='FR-16(7)(v)-1 Functional'!F522 -> 673076 | D39: =[3]SCH_C2!$N$34 -> 673076 | E39: 0 | F39: Linked To Sch. C-2
B40: A&G & AMORT OF DEF EXP | C40: ='FR-16(7)(v)-1 Functional'!F547 -> 24934291 | D40: =[3]SCH_C2!$N$35+[3]SCH_C2!$N$36 -> 24934291 | E40: 0 | F40: Linked To Sch. C-2
B41: Total O&M | C41: =SUM(C33:C40) -> 220652209 | D41: =SUM(D33:D40) -> 220652209 | E41: =D41-C41 -> 0
A42: Depreciation | B42: Total Deprec Exp | C42: ='FR-16(7)(v)-1 Functional'!F582 -> 50969314 | D42: =[3]SCH_C2!$N$39 -> 50969314 | E42: 0 | F42: Linked To Sch. C-2
A43: Property Tax | B43: Property Tax | C43: ='FR-16(7)(v)-1 Functional'!F598 -> 10714923 | D43: ='[3]SCH_C2.1 - Forecasted Period'!$G$326 -> 10714923 | E43: 0
A44: Misc taxes | B44: Misc Taxes | C44: ='FR-16(7)(v)-1 Functional'!F605 -> 2014584 | D44: =[3]SCH_C2!$N$44-D43 -> 2014584 | E44: 0
A45: total prop & misc taxes | B45: Total Prop & Misc Taxes | C45: =C43+C44 -> 12729507 | D45: =D43+D44 -> 12729507 | E45: 0
B46: Misc. Expenses | C46: ='FR-16(7)(v)-1 Functional'!F610 -> 97098 | D46: =[3]SCH_C1!$G$22 -> 97098 | E46: 0
B47: Total O&M, Depr & MISC TAX | C47: =C41+C42+C45+C46 -> 284448128 | D47: =D41+D42+D45+D46 -> 284448128 | E47: =D47-C47 -> 0
B49: Schedule E-1
B50: Tax Calculation
B51: Interest Deduction | C51: ='FR-16(7)(v)-1 Functional'!F632 -> 14435959 | D51: =-[3]SCH_E1!$Q$23 -> 14435959 | E51: =D51-C51 -> 0
B52: Other Deductions | C52: ='FR-16(7)(v)-1 Functional'!F639 -> 63629568 | D52: =-[3]SCH_E1!$Q$29-[3]SCH_E1!$Q$34-[3]SCH_E1!$Q$25 -> 63629568 | E52: =D52-C52 -> 0
B54: State Tax Calc
B55: Total State Inc Tax Payable | C55: ='FR-16(7)(v)-1 Functional'!F720 -> 2708398 | D55: =[3]SCH_E1!$Q$102 -> 2708396 | E55: =D55-C55 -> -2
B56: State prov Acct 410.1 & 411.1 - Net | C56: ='FR-16(7)(v)-1 Functional'!F701 -> 577601.691 | D56: =[3]SCH_E1!$Q$107 -> 577601.691 | E56: =D56-C56 -> 0
B57: Total SIT Adj | C57: =SUM(C55:C56) -> 3285999.691 | D57: =SUM(D55:D56) -> 3285997.691 | E57: =SUM(E55:E56) -> -2
B59: Fed Tax Calc
B60: Total Fed Inc Tax Payable | C60: ='FR-16(7)(v)-1 Functional'!F674 -> -2701260 | D60: =[3]SCH_E1!$Q$121 -> -2701262 | E60: =D60-C60 -> -2
B61: FIT prov Acct 410.1 & 411.1 - Net | C61: ='FR-16(7)(v)-1 Functional'!F649 -> 22543844.31 | D61: =[3]SCH_C2!$N$53 -> 22543844.31 | E61: =D61-C61 -> 0
B62: ITC Amort & Other Credits | C62: =-'FR-16(7)(v)-1 Functional'!F662 -> 11316 | D62: =-[3]SCH_E1!$Q$128 -> 11316 | E62: =D62-C62 -> 0
B63: Total FIT Adj | C63: =SUM(C60:C62) -> 19853900.31 | D63: =SUM(D60:D62) -> 19853898.31 | E63: =SUM(E60:E62) -> -2
B65: Total Income Taxes | C65: =C63+C57 -> 23139900 | D65: =D63+D57 -> 23139896 | E65: =D65-C65 -> -4
B67: Other Operating Revenues | C67: ='FR-16(7)(v)-1 Functional'!F750 -> 4545168 | D67: =[3]SCH_C2!$N$19 -> 4545168 | E67: =D67-C67 -> 0
B69: Revenue Tax | C69: ='FR-16(7)(v)-1 Functional'!F767 -> 0
B70: Deficiency @ROR | C70: ='FR-16(7)(v)-1 Functional'!F43 -> 48646222 | D70: =[3]SCH_A!$I$31 -> 48646222 | E70: =D70-C70 -> 0
B72: Incr Uncollectible Exp | C72: 0 | D72: 0 | E72: =D72-C72 -> 0
B75: Present Revenue (Sch M) vs Sch C-2 | C75: ='FR-16(7)(v)-1 Functional'!F867 -> 304312778 | D75: =[3]SCH_C2!$N$17+[3]SCH_C2!$N$18 -> 304312778 | E75: =D75-C75 -> 0
F564: 0

Sheet CustomerCharge
A1: =co_name -> DUKE ENERGY KENTUCKY, INC.
A2: =case_name -> CASE NO: 2017-00321
A3: CUSTOMER CHARGE ANALYSIS / MINIMUM BILL RATIONALE
A4: =test_period -> TWELVE MONTHS ENDING DECEMBER 31, 2018
A7: =data_filing -> DATA: 12 MONTHS ACTUAL & 0 MONTHS ESTIMATED | L7: WP FR-16(7)(v)
A8: =type -> TYPE OF FILING: "X" ORIGINAL UPDATED REVISED | L8: PAGE 1 of 1
A9: WORK PAPER REFERENCE NO(S).: FR-16(12)(v)-5, FR-16(12)(v)-9, FR-16(12)(v)-13 | L9: WITNESS RESPONSIBLE:
L10: =Witness1 -> JAMES A. RIDDLE
D13: DS | E13: GSFL | F13: EH | G13: SP | H13: DT SEC | I13: DT PRI | J13: DP | K13: TT | M13: OTHER
A14: LINE | C14: RS | D14: SECONDARY | E14: SECONDARY | F14: SECONDARY | G14: SECONDARY | H14: SECONDARY | I14: PRIMARY | J14: PRIMARY | K14: TRANSMISSION | L14: LT | M14: WATER
A15: NO. | B15: DESCRIPTION | C15: RESIDENTIAL | D15: DISTRIBUTION | E15: DISTRIBUTION | F15: DISTRIBUTION | G15: DISTRIBUTION | H15: DISTRIBUTION | I15: DISTRIBUTION | J15: DISTRIBUTION | K15: TIME OF DAY | L15: LIGHTING | M15: PUMPING
A17: 1 | B17: Capitalization Allocated to Electric Operations | C17: ='FR-16(7)(v)-5 PROD Cust'!G431+'FR-16(7)(v)-9 TRANS Cust'!G431+'FR-16(7)(v)-13 DIST Cust'!G431 -> 50666514 | D17: ='FR-16(7)(v)-5 PROD Cust'!H431+'FR-16(7)(v)-9 TRANS Cust'!H431+'FR-16(7)(v)-13 DIST Cust'!H431 -> 11437339 | E17: ='FR-16(7)(v)-5 PROD Cust'!I431+'FR-16(7)(v)-9 TRANS Cust'!I431+'FR-16(7)(v)-13 DIST Cust'!I431 -> 56341 | F17: ='FR-16(7)(v)-5 PROD Cust'!J431+'FR-16(7)(v)-9 TRANS Cust'!J431+'FR-16(7)(v)-13 DIST Cust'!J431 -> 118636 | G17: ='FR-16(7)(v)-5 PROD Cust'!K431+'FR-16(7)(v)-9 TRANS Cust'!K431+'FR-16(7)(v)-13 DIST Cust'!K431 -> 12320 | H17: ='FR-16(7)(v)-5 PROD Cust'!L431+'FR-16(7)(v)-9 TRANS Cust'!L431+'FR-16(7)(v)-13 DIST Cust'!L431 -> 491825 | I17: ='FR-16(7)(v)-5 PROD Cust'!M431+'FR-16(7)(v)-9 TRANS Cust'!M431+'FR-16(7)(v)-13 DIST Cust'!M431 -> 64936 | J17: ='FR-16(7)(v)-5 PROD Cust'!N431+'FR-16(7)(v)-9 TRANS Cust'!N431+'FR-16(7)(v)-13 DIST Cust'!N431 -> 35682 | K17: ='FR-16(7)(v)-5 PROD Cust'!O431+'FR-16(7)(v)-9 TRANS Cust'!O431+'FR-16(7)(v)-13 DIST Cust'!O431 -> 66866 | L17: ='FR-16(7)(v)-5 PROD Cust'!P431+'FR-16(7)(v)-9 TRANS Cust'!P431+'FR-16(7)(v)-13 DIST Cust'!P431 -> 1366351 | M17: ='FR-16(7)(v)-5 PROD Cust'!Q431+'FR-16(7)(v)-9 TRANS Cust'!Q431+'FR-16(7)(v)-13 DIST Cust'!Q431 -> 487313
A19: 2 | B19: Operating Expense | C19: ='FR-16(7)(v)-5 PROD Cust'!G26+'FR-16(7)(v)-9 TRANS Cust'!G26+'FR-16(7)(v)-13 DIST Cust'!G26 -> 13995393 | D19: ='FR-16(7)(v)-5 PROD Cust'!H26+'FR-16(7)(v)-9 TRANS Cust'!H26+'FR-16(7)(v)-13 DIST Cust'!H26 -> 3259008 | E19: ='FR-16(7)(v)-5 PROD Cust'!I26+'FR-16(7)(v)-9 TRANS Cust'!I26+'FR-16(7)(v)-13 DIST Cust'!I26 -> 17120 | F19: ='FR-16(7)(v)-5 PROD Cust'!J26+'FR-16(7)(v)-9 TRANS Cust'!J26+'FR-16(7)(v)-13 DIST Cust'!J26 -> 27538 | G19: ='FR-16(7)(v)-5 PROD Cust'!K26+'FR-16(7)(v)-9 TRANS Cust'!K26+'FR-16(7)(v)-13 DIST Cust'!K26 -> 3588 | H19: ='FR-16(7)(v)-5 PROD Cust'!L26+'FR-16(7)(v)-9 TRANS Cust'!L26+'FR-16(7)(v)-13 DIST Cust'!L26 -> 212109 | I19: ='FR-16(7)(v)-5 PROD Cust'!M26+'FR-16(7)(v)-9 TRANS Cust'!M26+'FR-16(7)(v)-13 DIST Cust'!M26 -> 64837 | J19: ='FR-16(7)(v)-5 PROD Cust'!N26+'FR-16(7)(v)-9 TRANS Cust'!N26+'FR-16(7)(v)-13 DIST Cust'!N26 -> 11995 | K19: ='FR-16(7)(v)-5 PROD Cust'!O26+'FR-16(7)(v)-9 TRANS Cust'!O26+'FR-16(7)(v)-13 DIST Cust'!O26 -> 40912 | L19: ='FR-16(7)(v)-5 PROD Cust'!P26+'FR-16(7)(v)-9 TRANS Cust'!P26+'FR-16(7)(v)-13 DIST Cust'!P26 -> 832725 | M19: ='FR-16(7)(v)-5 PROD Cust'!Q26+'FR-16(7)(v)-9 TRANS Cust'!Q26+'FR-16(7)(v)-13 DIST Cust'!Q26 -> 156276
A21: 3 | B21: ="Return @ "&TEXT(RofR,"0.00%") -> Return @ 7.08% | C21: ='FR-16(7)(v)-5 PROD Cust'!G28+'FR-16(7)(v)-9 TRANS Cust'!G28+'FR-16(7)(v)-13 DIST Cust'!G28 -> 3588710 | D21: ='FR-16(7)(v)-5 PROD Cust'!H28+'FR-16(7)(v)-9 TRANS Cust'!H28+'FR-16(7)(v)-13 DIST Cust'!H28 -> 810107 | E21: ='FR-16(7)(v)-5 PROD Cust'!I28+'FR-16(7)(v)-9 TRANS Cust'!I28+'FR-16(7)(v)-13 DIST Cust'!I28 -> 3990 | F21: ='FR-16(7)(v)-5 PROD Cust'!J28+'FR-16(7)(v)-9 TRANS Cust'!J28+'FR-16(7)(v)-13 DIST Cust'!J28 -> 8402 | G21: ='FR-16(7)(v)-5 PROD Cust'!K28+'FR-16(7)(v)-9 TRANS Cust'!K28+'FR-16(7)(v)-13 DIST Cust'!K28 -> 872 | H21: ='FR-16(7)(v)-5 PROD Cust'!L28+'FR-16(7)(v)-9 TRANS Cust'!L28+'FR-16(7)(v)-13 DIST Cust'!L28 -> 34836 | I21: ='FR-16(7)(v)-5 PROD Cust'!M28+'FR-16(7)(v)-9 TRANS Cust'!M28+'FR-16(7)(v)-13 DIST Cust'!M28 -> 4600 | J21: ='FR-16(7)(v)-5 PROD Cust'!N28+'FR-16(7)(v)-9 TRANS Cust'!N28+'FR-16(7)(v)-13 DIST Cust'!N28 -> 2528 | K21: ='FR-16(7)(v)-5 PROD Cust'!O28+'FR-16(7)(v)-9 TRANS Cust'!O28+'FR-16(7)(v)-13 DIST Cust'!O28 -> 4736 | L21: ='FR-16(7)(v)-5 PROD Cust'!P28+'FR-16(7)(v)-9 TRANS Cust'!P28+'FR-16(7)(v)-13 DIST Cust'!P28 -> 96779 | M21: ='FR-16(7)(v)-5 PROD Cust'!Q28+'FR-16(7)(v)-9 TRANS Cust'!Q28+'FR-16(7)(v)-13 DIST Cust'!Q28 -> 34517
A23: 4 | B23: Operating Expense Plus Return | C23: =C19+C21 -> 17584103 | D23: =D19+D21 -> 4069115 | E23: =E19+E21 -> 21110 | F23: 35940 | G23: 4460 | H23: 246945 | I23: 69437 | J23: 14523 | K23: 45648 | L23: =L19+L21 -> 929504 | M23: =M19+M21 -> 190793
A25: 5 | B25: Less: Revenue Credits | C25: =-'FR-16(7)(v)-5 PROD Cust'!G29-'FR-16(7)(v)-9 TRANS Cust'!G29-'FR-16(7)(v)-13 DIST Cust'!G29 -> 363066 | D25: =-'FR-16(7)(v)-5 PROD Cust'!H29-'FR-16(7)(v)-9 TRANS Cust'!H29-'FR-16(7)(v)-13 DIST Cust'!H29 -> 85000 | E25: =-'FR-16(7)(v)-5 PROD Cust'!I29-'FR-16(7)(v)-9 TRANS Cust'!I29-'FR-16(7)(v)-13 DIST Cust'!I29 -> 408 | F25: =-'FR-16(7)(v)-5 PROD Cust'!J29-'FR-16(7)(v)-9 TRANS Cust'!J29-'FR-16(7)(v)-13 DIST Cust'!J29 -> 899 | G25: =-'FR-16(7)(v)-5 PROD Cust'!K29-'FR-16(7)(v)-9 TRANS Cust'!K29-'FR-16(7)(v)-13 DIST Cust'!K29 -> 89 | H25: =-'FR-16(7)(v)-5 PROD Cust'!L29-'FR-16(7)(v)-9 TRANS Cust'!L29-'FR-16(7)(v)-13 DIST Cust'!L29 -> 3789 | I25: =-'FR-16(7)(v)-5 PROD Cust'!M29-'FR-16(7)(v)-9 TRANS Cust'!M29-'FR-16(7)(v)-13 DIST Cust'!M29 -> 587 | J25: =-'FR-16(7)(v)-5 PROD Cust'!N29-'FR-16(7)(v)-9 TRANS Cust'!N29-'FR-16(7)(v)-13 DIST Cust'!N29 -> 269 | K25: =-'FR-16(7)(v)-5 PROD Cust'!O29-'FR-16(7)(v)-9 TRANS Cust'!O29-'FR-16(7)(v)-13 DIST Cust'!O29 -> 532 | L25: =-'FR-16(7)(v)-5 PROD Cust'!P29-'FR-16(7)(v)-9 TRANS Cust'!P29-'FR-16(7)(v)-13 DIST Cust'!P29 -> 11725 | M25: =-'FR-16(7)(v)-5 PROD Cust'!Q29-'FR-16(7)(v)-9 TRANS Cust'!Q29-'FR-16(7)(v)-13 DIST Cust'!Q29 -> 3541
A27: 6 | B27: Customer Cost Component (Revenue Requirement) | C27: =C23-C25 -> 17221037 | D27: =D23-D25 -> 3984115 | E27: =E23-E25 -> 20702 | F27: 35041 | G27: 4371 | H27: 243156 | I27: 68850 | J27: 14254 | K27: 45116 | L27: =L23-L25 -> 917779 | M27: =M23-M25 -> 187252
A29: 7 | B29: Total Customers | C29: ='WP FR-16(7)(v) AVG CUST'!$O11 -> 126269 | D29: ='WP FR-16(7)(v) AVG CUST'!$O12 -> 12827 | E29: ='WP FR-16(7)(v) AVG CUST'!$O20 -> 171 | F29: ='WP FR-16(7)(v) AVG CUST'!$O18 -> 104 | G29: ='WP FR-16(7)(v) AVG CUST'!$O19 -> 16 | H29: ='WP FR-16(7)(v) AVG CUST'!$O14 -> 150 | I29: ='WP FR-16(7)(v) AVG CUST'!$O16 -> 37 | J29: ='WP FR-16(7)(v) AVG CUST'!$O21 -> 10 | K29: ='WP FR-16(7)(v) AVG CUST'!$O23 -> 11 | L29: ='WP FR-16(7)(v) AVG CUST'!$O25 -> 394 | M29: ='WP FR-16(7)(v) AVG CUST'!$O22 -> 11
A31: 8 | B31: Annual Revenue / Customer | C31: =ROUND(C27/C29,2) -> 136.38 | D31: =ROUND(D27/D29,2) -> 310.6 | E31: =ROUND(E27/E29,2) -> 121.06 | F31: 336.93 | G31: 273.19 | H31: 1621.04 | I31: 1860.81 | J31: 1425.4 | K31: 4101.45 | L31: =ROUND(L27/L29,2) -> 2329.39 | M31: =ROUND(M27/M29,2) -> 17022.91
A33: 9 | B33: Monthly Revenue / Customer | C33: =ROUND(C31/12,2) -> 11.37 | D33: =ROUND(D31/12,2) -> 25.88 | E33: =ROUND(E31/12,2) -> 10.09 | F33: 28.08 | G33: 22.77 | H33: 135.09 | I33: 155.07 | J33: 118.78 | K33: 341.79 | L33: =ROUND(L31/12,2) -> 194.12 | M33: =ROUND(M31/12,2) -> 1418.58

Sheet FR-16(7)(v)-1 Functional
A1: =co_name -> DUKE ENERGY KENTUCKY, INC. | J1: FR-16(7)(v)-1
A2: FUNCTIONAL ELECTRIC COST OF SERVICE | J2: WITNESS RESPONSIBLE:
A3: =case_name -> CASE NO: 2017-00321 | J3: =Witness -> JAMES E. ZIOLKOWSKI
A4: =data_filing -> DATA: 12 MONTHS ACTUAL & 0 MONTHS ESTIMATED | J4: ="PAGE "&Pages-17&" OF "&Pages -> PAGE 1 OF 18
A5: =type -> TYPE OF FILING: "X" ORIGINAL UPDATED REVISED
A8: LINE | F8: TOTAL | G8: FUNCTIONAL | J8: TOTAL | K8: ALL
A9: NO. | B9: SUMMARY OF RESULTS | D9: ALLO | F9: ELECTRIC | G9: PRODUCTION | H9: TRANSMISSION | I9: DISTRIBUTION | J9: AT ISSUE | K9: OTHER
C10: Schedule 1 | G10: 3 | H10: 4 | I10: 5
A11: 1 | B11: NET INCOME COMPUTATION
A12: 2 | C12: GROSS ELECTRIC PLANT IN SERVICE | F12: =F123 -> 1730844119 | G12: =G123 -> 1178879930 | H12: =H123 -> 68978819 | I12: =I123 -> 482985370 | J12: =SUM(G12:I12) -> 1730844119 | K12: =F12-J12 -> 0
A13: 3 | C13: TOTAL DEPRECIATION RESERVE | F13: =-F200 -> -846148393.5 | G13: =-G200 -> -660179904.5 | H13: =-H200 -> -21686845 | I13: =-I200 -> -170934727 | J13: =SUM(G13:I13) -> -852801476.5 | K13: =F13-J13 -> 6653083
A14: 4 | C14: TOTAL RATE BASE ADJUSTMENTS | F14: =F421 -> -204323160 | G14: =G421 -> -70398024 | H14: =H421 -> -10015697 | I14: =I421 -> -123909439 | J14: =SUM(G14:I14) -> -204323160 | K14: =F14-J14 -> 0
A15: 5 | C15: TOTAL RATE BASE | F15: =SUM(F12:F14) -> 680372565.5 | G15: 448302001.5 | H15: 37276277 | I15: 188141204 | J15: 673719482.5 | K15: 6653083
A16: 6
A17: 7 | B17: OPERATING EXPENSES
A18: 8 | C18: TOTAL O&M EXPENSE | F18: =F549 -> 220652209 | G18: =G549 -> 170336881 | H18: =H549 -> 22973313 | I18: =I549 -> 27342015 | J18: =SUM(G18:I18) -> 220652209 | K18: =F18-J18 -> 0
A19: 9 | C19: TOTAL DEPRECIATION EXPENSE | F19: =F582 -> 50969314 | G19: =G582 -> 33884948 | H19: =H582 -> 1996775 | I19: =I582 -> 15087591 | J19: =SUM(G19:I19) -> 50969314 | K19: 0
A20: 10 | C20: TOTAL OTHER TAX & MISC EXPENSE | F20: =F612 -> 12826605 | G20: =G612 -> 7522053 | H20: =H612 -> 684423 | I20: =I612 -> 4620129 | J20: =SUM(G20:I20) -> 12826605 | K20: 0
A21: 11 | C21: TOTAL OP EXP EXCLUDING INC & REV TAX | F21: =SUM(F17:F20) -> 284448128 | G21: =SUM(G17:G20) -> 211743882 | H21: =SUM(H17:H20) -> 25654511 | I21: =SUM(I17:I20) -> 47049735 | J21: =SUM(J17:J20) -> 284448128 | K21: 0
A22: 12 | C22: NET FED INCOME TAX EXP ALLOWABLE | F22: =F676 -> 19831268.31 | G22: =G676 -> 16729702 | H22: =H676 -> 3334105 | I22: =I676 -> -232885 | J22: =SUM(G22:I22) -> 19830922 | K22: 346.3089849
A23: 13 | C23: NET STATE INCOME TAX EXP ALLOWABLE | F23: =F722 -> 3285999.691 | G23: =G722 -> 2073644.691 | H23: =H722 -> 358579 | I23: =I722 -> 853757 | J23: =SUM(G23:I23) -> 3285980.691 | K23: 19
A24: 14 | C24: AFUDC OFFSET | D24: CW29 | F24: =-[3]SCH_D2.21!$U$48 -> 0 | G24: =F24-SUM(H24:I24) -> 0 | H24: =ROUND(F24*VLOOKUP(D24,ALLOCTABLE_FUNCTIONAL,$H$10,FALSE),0) -> 0 | I24: =ROUND(F24*VLOOKUP(D24,ALLOCTABLE_FUNCTIONAL,$I$10,FALSE),0) -> 0 | J24: =SUM(G24:I24) -> 0 | K24: =F24-J24 -> 0
A25: 15 | C25: REVENUE TAX | F25: =F767 -> 0 | G25: =G767 -> 0 | H25: =H767 -> 0 | I25: =I767 -> 0 | J25: =SUM(G25:I25) -> 0 | K25: 0
A26: 16 | C26: TOTAL OPERATING EXPENSE | F26: =SUM(F21:F25) -> 307565396 | G26: =SUM(G21:G25) -> 230547228.7 | H26: =SUM(H21:H25) -> 29347195 | I26: =SUM(I21:I25) -> 47670607 | J26: =SUM(J21:J25) -> 307565030.7 | K26: 365.3089849
A27: 17
A28: 18 | B28: RETURN ON CAPITALIZATION | F28: =F433 -> 49938772 | G28: =G433 -> 32905157 | H28: =H433 -> 2736145 | I28: =I433 -> 14297470 | J28: =SUM(G28:I28) -> 49938772 | K28: =F28-J28 -> 0
A29: 19 | B29: TOTAL OTHER OPERATING REVENUES | F29: =-F750 -> -4545168 | G29: =-G750 -> -14388 | H29: =-H750 -> -2936589 | I29: =-I750 -> -1594191 | J29: =SUM(G29:I29) -> -4545168 | K29: 0
A30: 20 | C30: TOTAL ELECTRIC COST OF SERVICE | F30: =SUM(F26:F29) -> 352959000 | G30: =SUM(G26:G29) -> 263437997.7 | H30: =SUM(H26:H29) -> 29146751 | I30: =SUM(I26:I29) -> 60373886 | J30: =SUM(J26:J29) -> 352958634.7 | K30: 365.3089849
A31: 21 | B31: ADJUSTMENT FOR INTERCLASS SUBSIDIZATION | D31: =1-'WP FR-16(7)(v) Rate Incr'!I11 -> 0.9 | F31: =SUM(G31:I31) -> 0 | G31: ='WP FR-16(7)(v) Rate Incr'!Q27 -> 0 | H31: ='WP FR-16(7)(v) Rate Incr'!R27 -> 0 | I31: ='WP FR-16(7)(v) Rate Incr'!S27 -> 0 | J31: =SUM(G31:I31) -> 0 | K31: 0
A32: 22 | B32: REQUESTED REVENUES (COST OF SERVICE ADJUSTED FOR SUBSIDIES) | F32: =F31+F30 -> 352959000 | G32: =G31+G30 -> 263437997.7 | H32: =H31+H30 -> 29146751 | I32: =I31+I30 -> 60373886 | J32: =SUM(G32:I32) -> 352958634.7 | K32: 365.3089849
A33: 23 | B33: PROPOSED REVENUES | F33: =F868 -> 304312778 | G33: =G868 -> 178680291 | H33: =H868 -> 16082930 | I33: =I868 -> 109549557 | J33: =J868 -> 304312778 | K33: 0
A34: 24 | B34: DIFFERENCE (REQUESTED LESS PROPOSED) | F34: =F32-F33 -> 48646222 | G34: 84757706.69 | H34: 13063821 | I34: -49175671 | J34: 48645856.69 | K34: 365.3089849
A35: 25
A36: 26 | B36: TOTAL RETURN EARNED | F36: =F777+F28 -> 20008883 | G36: =G777+G28 -> -19242405.69 | H36: =H777+H28 -> -5301452 | I36: =I777+I28 -> 44553106 | J36: =J777+J28 -> 20009248.31 | K36: =F36-J36 -> -365.3089849
A37: 27 | B37: RATE OF RETURN EARNED | F37: =IF(F431=0,0,ROUND(F36/F431,5)) -> 0.02838 | G37: -0.04142 | H37: -0.13724 | I37: 0.22072 | J37: 0.02838 | K37: 0
A38: 28 | B38: TOTAL RATE OF RETURN ALLOWABLE | F38: =$F$811 -> 0.07083 | G38: =F811 -> 0.07083 | H38: =F811 -> 0.07083 | I38: =F811 -> 0.07083 | J38: =F811 -> 0.07083 | K38: =F811 -> 0.07083
A39: 29 | B39: RETURN EARNED ON COMMON EQUITY | F39: =IF(Equity=0,0,(F37-$F$806-$F$807-$F$809)*TotalCap/Equity) -> 0.01617801046 | G39: =IF(Equity=0,0,(G37-$F$806-$F$807-$F$809)*TotalCap/Equity) -> -0.1265811716 | H39: =IF(Equity=0,0,(H37-F806-F807-F809)*TotalCap/Equity) -> -0.3225580315 | I39: =IF(Equity=0,0,(I37-F806-F807-F809)*TotalCap/Equity) -> 0.4095634126 | J39: =IF(Equity=0,0,(J37-F806-F807-F809)*TotalCap/Equity) -> 0.01617801046 | K39: =IF(Equity=0,0,(K37-F806-F807-F809)*TotalCap/Equity) -> -0.04186648218
A40: 30 | B40: ALLOWED RETURN ON COMMON EQUITY | F40: =IF(Equity=0,0,(F38-$F$806-$F$807-$F$809)*TotalCap/Equity) -> 0.1029993182 | G40: =IF(Equity=0,0,(G38-F806-F807-F809)*TotalCap/Equity) -> 0.1029993182 | H40: =IF(Equity=0,0,(H38-F806-F807-F809)*TotalCap/Equity) -> 0.1029993182 | I40: =IF(Equity=0,0,(I38-F806-F807-F809)*TotalCap/Equity) -> 0.1029993182 | J40: =IF(Equity=0,0,(J38-F806-F807-F809)*TotalCap/Equity) -> 0.1029993182 | K40: =IF(Equity=0,0,(K38-F806-F807-F809)*TotalCap/Equity) -> 0.1029993182
A41: 31
A42: 32 | B42: PRESENT REVENUES | F42: =F867 -> 304312778 | G42: =G867 -> 227130233 | H42: =H867 -> 25129629 | I42: =I867 -> 52052916 | J42: =J867 -> 304312778 | K42: =F42-J42 -> 0
A43: 33 | B43: REVENUE INCREASE JUSTIFIED | F43: =F30-F42 -> 48646222 | G43: =G30-G42 -> 36307764.69 | H43: 4017122 | I43: 8320970 | J43: 48645856.69 | K43: 365.3089849
A44: 34 | C44: PER UNIT PRES REV | F44: =IF(F42=0,0,ROUND(F43/F42,5)) -> 0.15986 | G44: =IF(G42=0,0,ROUND(G43/G42,5)) -> 0.15985 | H44: =IF(H42=0,0,ROUND(H43/H42,5)) -> 0.15986 | I44: =IF(I42=0,0,ROUND(I43/I42,5)) -> 0.15986 | J44: 0.15985 | K44: 0
A45: 35 | B45: REVENUE INCREASE REQUESTED | F45: =F33-F42 -> 0 | G45: -48449942 | H45: -9046699 | I45: 57496641 | J45: 0 | K45: 0
A46: 36 | C46: PER UNIT PRES REV | F46: =IF(F42=0,0,ROUND(F45/F42,5)) -> 0 | G46: =IF(G42=0,0,ROUND(G45/G42,5)) -> -0.21331 | H46: =IF(H42=0,0,ROUND(H45/H42,5)) -> -0.36 | I46: =IF(I42=0,0,ROUND(I45/I42,5)) -> 1.10458 | J46: 0 | K46: 0
A48: =co_name -> DUKE ENERGY KENTUCKY, INC. | J48: =J1 -> FR-16(7)(v)-1
A49: =$A$2 -> FUNCTIONAL ELECTRIC COST OF SERVICE | J49: =J2 -> WITNESS RESPONSIBLE:
A50: =case_name -> CASE NO: 2017-00321 | J50: =Witness -> JAMES E. ZIOLKOWSKI
A51: =data_filing -> DATA: 12 MONTHS ACTUAL & 0 MONTHS ESTIMATED | J51: ="PAGE "&Pages-16&" OF "&Pages -> PAGE 2 OF 18
A52: =type -> TYPE OF FILING: "X" ORIGINAL UPDATED REVISED
A55: LINE | F55: TOTAL | G55: FUNCTIONAL | J55: TOTAL | K55: ALL
A56: NO. | B56: GROSS ELECTRIC PLANT IN SERVICE | D56: ALLO | F56: =$F$9 -> ELECTRIC | G56: =G9 -> PRODUCTION | H56: TRANSMISSION | I56: DISTRIBUTION | J56: AT ISSUE | K56: OTHER
C57: Schedule 2 | G57: 3 | H57: 4 | I57: 5
A58: 1 | B58: PRODUCTION PLANT
A59: 2 | C59: PRODUCTION STEAM | D59: K201 | F59: ='[3]SCH B-2.1'!$I$307 -> 799630884 | G59: =F59-SUM(H59:I59) -> 799630884 | H59: =ROUND(F59*VLOOKUP(D59,ALLOCTABLE_FUNCTIONAL,$H$10,FALSE),0) -> 0 | I59: =ROUND(F59*VLOOKUP(D59,ALLOCTABLE_FUNCTIONAL,$I$10,FALSE),0) -> 0 | J59: =SUM(G59:I59) -> 799630884 | K59: =F59-J59 -> 0
A60: 3 | C60: PRODUCTION OTHER | D60: K201 | F60: ='[3]SCH B-2.1'!$I$348 -> 334147228 | G60: =F60-SUM(H60:I60) -> 334147228 | H60: =ROUND(F60*VLOOKUP(D60,ALLOCTABLE_FUNCTIONAL,$H$10,FALSE),0) -> 0 | I60: =ROUND(F60*VLOOKUP(D60,ALLOCTABLE_FUNCTIONAL,$I$10,FALSE),0) -> 0 | J60: =SUM(G60:I60) -> 334147228 | K60: =F60-J60 -> 0
A61: 4 | C61: ADJUSTMENT | D61: K201 | F61: 0 | G61: =F61-SUM(H61:I61) -> 0 | H61: =ROUND(F61*VLOOKUP(D61,ALLOCTABLE_FUNCTIONAL,$H$10,FALSE),0) -> 0 | I61: =ROUND(F61*VLOOKUP(D61,ALLOCTABLE_FUNCTIONAL,$I$10,FALSE),0) -> 0 | J61: =SUM(G61:I61) -> 0 | K61: =F61-J61 -> 0
A62: 5 | C62: PRODUCTION PLANT IN SERVICE | F62: =SUM(F59:F61) -> 1133778112 | G62: 1133778112 | H62: 0 | I62: 0 | J62: 1133778112 | K62: 0
A63: 6
A64: 7 | B64: TRANSMISSION PLANT
A65: 8 | C65: MAIN STEP-UP TRANSFORMERS | D65: K202 | F65: 0 | G65: =F65-SUM(H65:I65) -> 0 | H65: =ROUND(F65*VLOOKUP(D65,ALLOCTABLE_FUNCTIONAL,$H$10,FALSE),0) -> 0 | I65: =ROUND(F65*VLOOKUP(D65,ALLOCTABLE_FUNCTIONAL,$I$10,FALSE),0) -> 0 | J65: =SUM(G65:I65) -> 0 | K65: =F65-J65 -> 0
A66: 9 | C66: OTHER TRANSMISSION | D66: K202 | F66: ='[3]SCH B-2.1'!$I$387 -> 65749235 | G66: =F66-SUM(H66:I66) -> 0 | H66: =ROUND(F66*VLOOKUP(D66,ALLOCTABLE_FUNCTIONAL,$H$10,FALSE),0) -> 65749235 | I66: =ROUND(F66*VLOOKUP(D66,ALLOCTABLE_FUNCTIONAL,$I$10,FALSE),0) -> 0 | J66: =SUM(G66:I66) -> 65749235 | K66: =F66-J66 -> 0
A67: 10 | C67: ADJUSTMENT | D67: K202 | F67: 0 | G67: =F67-SUM(H67:I67) -> 0 | H67: =ROUND(F67*VLOOKUP(D67,ALLOCTABLE_FUNCTIONAL,$H$10,FALSE),0) -> 0 | I67: =ROUND(F67*VLOOKUP(D67,ALLOCTABLE_FUNCTIONAL,$I$10,FALSE),0) -> 0 | J67: =SUM(G67:I67) -> 0 | K67: =F67-J67 -> 0
A68: 11 | C68: TRANSMISSION PLANT IN SERVICE | F68: =SUM(F65:F67) -> 65749235 | G68: 0 | H68: 65749235 | I68: 0 | J68: 65749235 | K68: 0
A69: 12
A70: 13 | B70: TOTAL PROD & TRANS PLANT | F70: =F68+F62 -> 1199527347 | G70: 1133778112 | H70: 65749235 | I70: 0 | J70: 1199527347 | K70: 0
A71: 14
A72: 15 | B72: DISTRIBUTION PLANT
A73: 16 | C73: SUBSTATIONS | D73: K215 | F73: ='[3]SCH B-2.1'!$I$412+'[3]SCH B-2.1'!$I$414+'[3]SCH B-2.1'!$I$415+'[3]SCH B-2.1'!$I$416 -> 70429035 | G73: =F73-SUM(H73:I73) -> 0 | H73: =ROUND(F73*VLOOKUP(D73,ALLOCTABLE_FUNCTIONAL,$H$10,FALSE),0) -> 0 | I73: =ROUND(F73*VLOOKUP(D73,ALLOCTABLE_FUNCTIONAL,$I$10,FALSE),0) -> 70429035 | J73: =SUM(G73:I73) -> 70429035 | K73: =F73-J73 -> 0
A74: 17 | C74: POLES, TOWERS & FIXTURES - PRIMARY - DEMAND | D74: K205 | F74: ='WP FR-16(7)(v) MinSizPrimPole1'!F16 -> 31596514 | G74: =F74-SUM(H74:I74) -> 0 | H74: =ROUND(F74*VLOOKUP(D74,ALLOCTABLE_FUNCTIONAL,$H$10,FALSE),0) -> 0 | I74: =ROUND(F74*VLOOKUP(D74,ALLOCTABLE_FUNCTIONAL,$I$10,FALSE),0) -> 31596514 | J74: =SUM(G74:I74) -> 31596514 | K74: =F74-J74 -> 0
A75: 18 | C75: POLES, TOWERS & FIXTURES - PRIMARY - CUSTOMER | D75: K405 | F75: ='WP FR-16(7)(v) MinSizPrimPole1'!G16 -> 14541160 | G75: =F75-SUM(H75:I75) -> 0 | H75: =ROUND(F75*VLOOKUP(D75,ALLOCTABLE_FUNCTIONAL,$H$10,FALSE),0) -> 0 | I75: =ROUND(F75*VLOOKUP(D75,ALLOCTABLE_FUNCTIONAL,$I$10,FALSE),0) -> 14541160 | J75: =SUM(G75:I75) -> 14541160 | K75: =F75-J75 -> 0
A76: 19 | C76: POLES, TOWERS & FIXTURES - SECONDARY - DEMAND | D76: K206 | F76: ='WP FR-16(7)(v) MinSizSecPole1'!F16 -> 13601159 | G76: 0 | H76: 0 | I76: 13601159 | J76: 13601159 | K76: 0
A77: 20 | C77: POLES, TOWERS & FIXTURES - SECONDARY - CUSTOMER | D77: K405 | F77: ='WP FR-16(7)(v) MinSizSecPole1'!G16 -> 3463460 | G77: 0 | H77: 0 | I77: 3463460 | J77: 3463460 | K77: 0
A78: 21 | C78: CONDUCTORS - OVERHEAD / PRIMARY - DEMAND | D78: K205 | F78: ='WP FR-16(7)(v) MinSizOHPRIM1'!F16 -> 61772302 | G78: 0 | H78: 0 | I78: 61772302 | J78: 61772302 | K78: 0
A79: 22 | C79: CONDUCTORS - OVERHEAD / PRIMARY - CUSTOMER | D79: K405 | F79: ='WP FR-16(7)(v) MinSizOHPRIM1'!G16 -> 18008163 | G79: 0 | H79: 0 | I79: 18008163 | J79: 18008163 | K79: 0
A80: 23 | C80: CONDUCTORS - OVERHEAD / SECONDARY - DEMAND | D80: K206 | F80: ='WP FR-16(7)(v) MinSizOHSEC1'!F16 -> 28743644 | G80: 0 | H80: 0 | I80: 28743644 | J80: 28743644 | K80: 0
A81: 24 | C81: CONDUCTORS - OVERHEAD / SECONDARY - CUSTOMER | D81: K405 | F81: ='WP FR-16(7)(v) MinSizOHSEC1'!G16 -> 7099753 | G81: 0 | H81: 0 | I81: 7099753 | J81: 7099753 | K81: 0
A82: 25 | C82: CONDUCTORS - UNDERGROUND / PRIMARY - DEMAND | D82: K205 | F82: ='WP FR-16(7)(v) MinSizUGPRIM1'!F16 -> 50721079 | G82: 0 | H82: 0 | I82: 50721079 | J82: 50721079 | K82: 0
A83: 26 | C83: CONDUCTORS - UNDERGROUND / PRIMARY - CUSTOMER | D83: K405 | F83: ='WP FR-16(7)(v) MinSizUGPRIM1'!G16 -> 14638113 | G83: 0 | H83: 0 | I83: 14638113 | J83: 14638113 | K83: 0
A84: 27 | C84: CONDUCTORS - UNDERGROUND / SECONDARY - DEMAND | D84: K206 | F84: ='WP FR-16(7)(v) MinSizUGSEC1'!F16 -> 8531757 | G84: 0 | H84: 0 | I84: 8531757 | J84: 8531757 | K84: 0
A85: 28 | C85: CONDUCTORS - UNDERGROUND / SECONDARY - CUSTOMER | D85: K405 | F85: ='WP FR-16(7)(v) MinSizUGSEC1'!G16 -> 4855066 | G85: 0 | H85: 0 | I85: 4855066 | J85: 4855066 | K85: 0
A86: 29 | C86: TRANSFORMERS DEMAND RELATED | D86: K215 | F86: ='WP FR-16(7)(v) Min Siz Trans 1'!F17 -> 38104430 | G86: =F86-SUM(H86:I86) -> 0 | H86: =ROUND(F86*VLOOKUP(D86,ALLOCTABLE_FUNCTIONAL,$H$10,FALSE),0) -> 0 | I86: =ROUND(F86*VLOOKUP(D86,ALLOCTABLE_FUNCTIONAL,$I$10,FALSE),0) -> 38104430 | J86: =SUM(G86:I86) -> 38104430 | K86: =F86-J86 -> 0
A87: 30 | C87: TRANSFORMERS CUSTOMER RELATED | D87: K405 | F87: ='WP FR-16(7)(v) Min Siz Trans 1'!G17 -> 18249717 | G87: 0 | H87: 0 | I87: 18249717 | J87: 18249717 | K87: 0
A88: 31 | C88: SERVICES | D88: K217 | F88: =SUM('[3]SCH B-2.1'!$I$424:$I$425) -> 18185218 | G88: 0 | H88: 0 | I88: 18185218 | J88: 18185218 | K88: 0
A89: 32 | C89: METERS | D89: K407 | F89: ='[3]SCH B-2.1'!$I$426+'[3]SCH B-2.1'!$I$428+'[3]SCH B-2.1'!$I$429+'[3]SCH B-2.1'!$I$431 -> 23526206 | G89: 0 | H89: 59521 | I89: 23466685 | J89: 23526206 | K89: 0
A90: 33 | C90: STREET LIGHTS | D90: K401 | F90: ='[3]SCH B-2.1'!$I$430+'[3]SCH B-2.1'!$I$432+'[3]SCH B-2.1'!$I$433+'[3]SCH B-2.1'!$I$434+'[3]SCH B-2.1'!$I$435 -> 6420933 | G90: 0 | H90: 0 | I90: 6420933 | J90: =SUM(G90:I90) -> 6420933 | K90: 0
A91: 34 | C91: ADJUSTMENT | D91: K209 | F91: 0 | G91: 0 | H91: 0 | I91: 0 | J91: 0 | K91: 0
A92: 35 | C92: CONSTRUCTION NOT CLASSIFIED | D92: K209 | F92: ='[3]SCH B-2.1'!$I$436 -> 38933705 | G92: 0 | H92: 5451 | I92: 38928254 | J92: 38933705 | K92: 0
A93: 36 | C93: RWIP | D93: K215 | F93: 0 | G93: =F93-SUM(H93:I93) -> 0 | H93: =ROUND(F93*VLOOKUP(D93,ALLOCTABLE_FUNCTIONAL,$H$10,FALSE),0) -> 0 | I93: =ROUND(F93*VLOOKUP(D93,ALLOCTABLE_FUNCTIONAL,$I$10,FALSE),0) -> 0 | J93: =SUM(G93:I93) -> 0 | K93: =F93-J93 -> 0
A94: 37 | C94: DISTRIBUTION PLANT IN SERVICE | F94: =SUM(F73:F93) -> 471421414 | G94: =SUM(G73:G92) -> 0 | H94: 64972 | I94: 471356442 | J94: 471421414 | K94: 0
A95: 38
A96: 39 | B96: TOTAL TRANS & DIST PLANT | F96: =F94+F68 -> 537170649 | G96: 0 | H96: 65814207 | I96: 471356442 | J96: 537170649 | K96: 0
A97: 40 | B97: TOTAL GROSS PTD PLANT | F97: =F94+F70 -> 1670948761 | G97: 1133778112 | H97: 65814207 | I97: 471356442 | J97: 1670948761 | K97: 0
A98: 41
A99: 42 | B99: GENERAL & INTANGIBLE PLANT
A100: 43 | C100: PRODUCTION - DEMAND | D100: K201 | F100: ='WP FR-16(7)(v) A&G WP'!D12 -> 8795876 | G100: =F100-SUM(H100:I100) -> 8795876 | H100: =ROUND(F100*VLOOKUP(D100,ALLOCTABLE_FUNCTIONAL,$H$10,FALSE),0) -> 0 | I100: =ROUND(F100*VLOOKUP(D100,ALLOCTABLE_FUNCTIONAL,$I$10,FALSE),0) -> 0 | J100: =SUM(G100:I100) -> 8795876 | K100: =F100-J100 -> 0
A101: 44 | C101: PRODUCTION - ENERGY | D101: K301 | F101: ='WP FR-16(7)(v) A&G WP'!D13 -> 7707827 | G101: 7707827 | H101: 0 | I101: 0 | J101: 7707827 | K101: 0
A102: 45 | C102: TRANSMISSION | D102: K202 | F102: ='WP FR-16(7)(v) A&G WP'!D14 -> 1502812 | G102: 0 | H102: 1502812 | I102: 0 | J102: 1502812 | K102: 0
A103: 46 | C103: DISTRIBUTION - DEMAND | D103: K201 | F103: =ROUND('WP FR-16(7)(v) A&G WP'!D15*NPdemand,0) -> 4997840 | G103: 4997840 | H103: 0 | I103: 0 | J103: 4997840 | K103: 0
A104: 47 | C104: DISTRIBUTION - CUSTOMER | D104: K405 | F104: =ROUND('WP FR-16(7)(v) A&G WP'!D15-F103,0) -> 1665946 | G104: =F104-SUM(H104:I104) -> 0 | H104: =ROUND(F104*VLOOKUP(D104,ALLOCTABLE_FUNCTIONAL,$H$10,FALSE),0) -> 0 | I104: =ROUND(F104*VLOOKUP(D104,ALLOCTABLE_FUNCTIONAL,$I$10,FALSE),0) -> 1665946 | J104: =SUM(G104:I104) -> 1665946 | K104: =F104-J104 -> 0
A105: 48 | C105: CUSTOMER ACCOUNTING | D105: A308 | F105: ='WP FR-16(7)(v) A&G WP'!D16 -> 3597716 | G105: =F105-SUM(H105:I105) -> 0 | H105: 5864 | I105: 3591852 | J105: =SUM(G105:I105) -> 3597716 | K105: =F105-J105 -> 0
A106: 49 | C106: CUSTOMER SERVICE & INFORMATION | D106: A310 | F106: ='WP FR-16(7)(v) A&G WP'!D17 -> 286100 | G106: 0 | H106: 0 | I106: 286100 | J106: 286100 | K106: 0
A107: 50 | C107: SALES | D107: A312 | F107: ='WP FR-16(7)(v) A&G WP'!D18 -> 0 | G107: =F107-SUM(H107:I107) -> 0 | H107: 0 | I107: 0 | J107: =SUM(G107:I107) -> 0 | K107: =F107-J107 -> 0
A108: 51 | C108: ADJUSTMENT | D108: A315 | F108: 0 | G108: 0 | H108: 0 | I108: 0 | J108: 0 | K108: 0
A109: 52 | C109: GEN & INTANG PLANT IN SERVICE | F109: =SUM(F100:F108) -> 28554117 | G109: 21501543 | H109: 1508676 | I109: 5543898 | J109: 28554117 | K109: 0
A110: 53
A111: 54 | B111: COMMON & OTHER PLANT
A112: 55 | C112: PRODUCTION - DEMAND | D112: K201 | F112: ='WP FR-16(7)(v) A&G WP'!F12 -> 9654427 | G112: =F112-SUM(H112:I112) -> 9654427 | H112: =ROUND(F112*VLOOKUP(D112,ALLOCTABLE_FUNCTIONAL,$H$10,FALSE),0) -> 0 | I112: =ROUND(F112*VLOOKUP(D112,ALLOCTABLE_FUNCTIONAL,$I$10,FALSE),0) -> 0 | J112: =SUM(G112:I112) -> 9654427 | K112: =F112-J112 -> 0
A113: 56 | C113: PRODUCTION - ENERGY | D113: K301 | F113: ='WP FR-16(7)(v) A&G WP'!F13 -> 8460177 | G113: 8460177 | H113: 0 | I113: 0 | J113: 8460177 | K113: 0
A114: 57 | C114: TRANSMISSION | D114: K202 | F114: ='WP FR-16(7)(v) A&G WP'!F14 -> 1649499 | G114: =F114-SUM(H114:I114) -> 0 | H114: 1649499 | I114: 0 | J114: =SUM(G114:I114) -> 1649499 | K114: =F114-J114 -> 0
A115: 58 | C115: DISTRIBUTION - DEMAND | D115: K201 | F115: =ROUND('WP FR-16(7)(v) A&G WP'!F15*NPdemand,0) -> 5485671 | G115: 5485671 | H115: 0 | I115: 0 | J115: 5485671 | K115: 0
A116: 59 | C116: DISTRIBUTION - CUSTOMER | D116: K405 | F116: =ROUND('WP FR-16(7)(v) A&G WP'!F15-F115,0) -> 1828557 | G116: =F116-SUM(H116:I116) -> 0 | H116: =ROUND(F116*VLOOKUP(D116,ALLOCTABLE_FUNCTIONAL,$H$10,FALSE),0) -> 0 | I116: =ROUND(F116*VLOOKUP(D116,ALLOCTABLE_FUNCTIONAL,$I$10,FALSE),0) -> 1828557 | J116: =SUM(G116:I116) -> 1828557 | K116: =F116-J116 -> 0
A117: 60 | C117: CUSTOMER ACCOUNTING | D117: A308 | F117: ='WP FR-16(7)(v) A&G WP'!F16 -> 3948884 | G117: 0 | H117: 6437 | I117: 3942447 | J117: 3948884 | K117: 0
A118: 61 | C118: CUSTOMER SERVICE & INFORMATION | D118: A310 | F118: ='WP FR-16(7)(v) A&G WP'!F17 -> 314026 | G118: 0 | H118: 0 | I118: 314026 | J118: 314026 | K118: 0
A119: 62 | C119: SALES | D119: A312 | F119: ='WP FR-16(7)(v) A&G WP'!F18 -> 0 | G119: =F119-SUM(H119:I119) -> 0 | H119: 0 | I119: 0 | J119: =SUM(G119:I119) -> 0 | K119: =F119-J119 -> 0
A120: 63 | C120: ADJUSTMENT | D120: A315 | F120: 0 | G120: 0 | H120: 0 | I120: 0 | J120: 0 | K120: 0
A121: 64 | C121: COMMON & OTHER PLANT IN SERVICE | F121: =SUM(F112:F120) -> 31341241 | G121: 23600275 | H121: 1655936 | I121: 6085030 | J121: 31341241 | K121: 0
A122: 65
A123: 66 | B123: GROSS ELECTRIC PLANT IN SERVICE | F123: =F97+F109+F121 -> 1730844119 | G123: 1178879930 | H123: 68978819 | I123: 482985370 | J123: 1730844119 | K123: 0
A125: =co_name -> DUKE ENERGY KENTUCKY, INC. | J125: =J1 -> FR-16(7)(v)-1
A126: =$A$2 -> FUNCTIONAL ELECTRIC COST OF SERVICE | J126: =J2 -> WITNESS RESPONSIBLE:
A127: =case_name -> CASE NO: 2017-00321 | J127: =Witness -> JAMES E. ZIOLKOWSKI
A128: =data_filing -> DATA: 12 MONTHS ACTUAL & 0 MONTHS ESTIMATED | J128: ="PAGE "&Pages-15&" OF "&Pages -> PAGE 3 OF 18
A129: =type -> TYPE OF FILING: "X" ORIGINAL UPDATED REVISED
A132: LINE | F132: TOTAL | G132: FUNCTIONAL | J132: TOTAL | K132: ALL
A133: NO. | B133: DEPRECIATION RESERVE | D133: ALLO | F133: =$F$9 -> ELECTRIC | G133: =G9 -> PRODUCTION | H133: TRANSMISSION | I133: DISTRIBUTION | J133: AT ISSUE | K133: OTHER
C134: Schedule 3 | G134: 3 | H134: 4 | I134: 5
A135: 1 | B135: PRODUCTION PLANT
A136: 2 | C136: PRODUCTION STEAM | D136: K201 | F136: ='[3]SCH B-3'!$K$319 -> 451443084 | G136: =F136-SUM(H136:I136) -> 451443084 | H136: =ROUND(F136*VLOOKUP(D136,ALLOCTABLE_FUNCTIONAL,$H$10,FALSE),0) -> 0 | I136: =ROUND(F136*VLOOKUP(D136,ALLOCTABLE_FUNCTIONAL,$I$10,FALSE),0) -> 0 | J136: =SUM(G136:I136) -> 451443084 | K136: =F136-J136 -> 0
A137: 3 | C137: PRODUCTION OTHER | D137: K201 | F137: ='[3]SCH B-3'!$K$362 -> 169211512 | G137: =F137-SUM(H137:I137) -> 169211512 | H137: =ROUND(F137*VLOOKUP(D137,ALLOCTABLE_FUNCTIONAL,$H$10,FALSE),0) -> 0 | I137: =ROUND(F137*VLOOKUP(D137,ALLOCTABLE_FUNCTIONAL,$I$10,FALSE),0) -> 0 | J137: =SUM(G137:I137) -> 169211512 | K137: =F137-J137 -> 0
A138: 4 | C138: ADJUSTMENT | D138: K201 | F138: =[3]SCH_D2.24!$U$51 -> 5973380 | G138: =F138-SUM(H138:I138) -> 5973380 | H138: =ROUND(F138*VLOOKUP(D138,ALLOCTABLE_FUNCTIONAL,$H$10,FALSE),0) -> 0 | I138: =ROUND(F138*VLOOKUP(D138,ALLOCTABLE_FUNCTIONAL,$I$10,FALSE),0) -> 0 | J138: =SUM(G138:I138) -> 5973380 | K138: =F138-J138 -> 0
A139: 5 | C139: TOTAL PROD DEPREC RESERVE | F139: =SUM(F136:F138) -> 626627976 | G139: 626627976 | H139: 0 | I139: 0 | J139: 626627976 | K139: 0
A140: 6
A141: 7 | B141: TRANSMISSION PLANT
A142: 8 | C142: MAIN STEP-UP TRANSFORMERS | D142: K202 | F142: 0 | G142: =F142-SUM(H142:I142) -> 0 | H142: =ROUND(F142*VLOOKUP(D142,ALLOCTABLE_FUNCTIONAL,$H$10,FALSE),0) -> 0 | I142: =ROUND(F142*VLOOKUP(D142,ALLOCTABLE_FUNCTIONAL,$I$10,FALSE),0) -> 0 | J142: =SUM(G142:I142) -> 0 | K142: =F142-J142 -> 0
A143: 9 | C143: OTHER TRANSMISSION | D143: K202 | F143: ='[3]SCH B-3'!$K$402 -> 18887171 | G143: =F143-SUM(H143:I143) -> 0 | H143: =ROUND(F143*VLOOKUP(D143,ALLOCTABLE_FUNCTIONAL,$H$10,FALSE),0) -> 18887171 | I143: =ROUND(F143*VLOOKUP(D143,ALLOCTABLE_FUNCTIONAL,$I$10,FALSE),0) -> 0 | J143: =SUM(G143:I143) -> 18887171 | K143: =F143-J143 -> 0
A144: 10 | C144: ADJUSTMENT | D144: K202 | F144: =[3]SCH_D2.24!$V$51 -> 475730 | G144: =F144-SUM(H144:I144) -> 0 | H144: =ROUND(F144*VLOOKUP(D144,ALLOCTABLE_FUNCTIONAL,$H$10,FALSE),0) -> 475730 | I144: =ROUND(F144*VLOOKUP(D144,ALLOCTABLE_FUNCTIONAL,$I$10,FALSE),0) -> 0 | J144: =SUM(G144:I144) -> 475730 | K144: =F144-J144 -> 0
A145: 11 | C145: TOTAL TRANS DEPREC RESERVE | F145: =SUM(F142:F144) -> 19362901 | G145: 0 | H145: 19362901 | I145: 0 | J145: 19362901 | K145: 0
A146: 12
A147: 13 | C147: TOTAL PROD & TRANS DEPREC RESERVE | F147: =F145+F139 -> 645990877 | G147: =G145+G139 -> 626627976 | H147: =H145+H139 -> 19362901 | I147: =I145+I139 -> 0 | J147: =J145+J139 -> 645990877 | K147: =F147-J147 -> 0
A148: 14
A149: 15 | B149: DISTRIBUTION PLANT
A150: 16 | C150: SUBSTATIONS | D150: K215 | F150: ='[3]SCH B-3'!$K$428+'[3]SCH B-3'!$K$430+'[3]SCH B-3'!$K$431+'[3]SCH B-3'!$K$432 -> 21980974 | G150: =F150-SUM(H150:I150) -> 0 | H150: =ROUND(F150*VLOOKUP(D150,ALLOCTABLE_FUNCTIONAL,$H$10,FALSE),0) -> 0 | I150: =ROUND(F150*VLOOKUP(D150,ALLOCTABLE_FUNCTIONAL,$I$10,FALSE),0) -> 21980974 | J150: =SUM(G150:I150) -> 21980974 | K150: =F150-J150 -> 0
A151: 17 | C151: POLES, TOWERS & FIXTURES - PRIMARY - DEMAND | D151: K205 | F151: ='WP FR-16(7)(v) MinSizPrimPole1'!F22 -> 16525048 | G151: =F151-SUM(H151:I151) -> 0 | H151: =ROUND(F151*VLOOKUP(D151,ALLOCTABLE_FUNCTIONAL,$H$10,FALSE),0) -> 0 | I151: =ROUND(F151*VLOOKUP(D151,ALLOCTABLE_FUNCTIONAL,$I$10,FALSE),0) -> 16525048 | J151: =SUM(G151:I151) -> 16525048 | K151: =F151-J151 -> 0
A152: 18 | C152: POLES, TOWERS & FIXTURES - PRIMARY - CUSTOMER | D152: K405 | F152: ='WP FR-16(7)(v) MinSizPrimPole1'!G22 -> 7605060 | G152: =F152-SUM(H152:I152) -> 0 | H152: =ROUND(F152*VLOOKUP(D152,ALLOCTABLE_FUNCTIONAL,$H$10,FALSE),0) -> 0 | I152: =ROUND(F152*VLOOKUP(D152,ALLOCTABLE_FUNCTIONAL,$I$10,FALSE),0) -> 7605060 | J152: =SUM(G152:I152) -> 7605060 | K152: =F152-J152 -> 0
A153: 19 | C153: POLES, TOWERS & FIXTURES - SECONDARY - DEMAND | D153: K206 | F153: ='WP FR-16(7)(v) MinSizSecPole1'!F22 -> 7113437 | G153: 0 | H153: 0 | I153: 7113437 | J153: 7113437 | K153: 0
A154: 20 | C154: POLES, TOWERS & FIXTURES - SECONDARY - CUSTOMER | D154: K405 | F154: ='WP FR-16(7)(v) MinSizSecPole1'!G22 -> 1811397 | G154: 0 | H154: 0 | I154: 1811397 | J154: 1811397 | K154: 0
A155: 21 | C155: CONDUCTORS - OVERHEAD / PRIMARY - DEMAND | D155: K205 | F155: ='WP FR-16(7)(v) MinSizOHPRIM1'!F22 -> 18811048 | G155: 0 | H155: 0 | I155: 18811048 | J155: 18811048 | K155: 0
A156: 22 | C156: CONDUCTORS - OVERHEAD / PRIMARY - CUSTOMER | D156: K405 | F156: ='WP FR-16(7)(v) MinSizOHPRIM1'!G22 -> 5483889 | G156: 0 | H156: 0 | I156: 5483889 | J156: 5483889 | K156: 0
A157: 23 | C157: CONDUCTORS - OVERHEAD / SECONDARY - DEMAND | D157: K206 | F157: ='WP FR-16(7)(v) MinSizOHSEC1'!F22 -> 8753083 | G157: 0 | H157: 0 | I157: 8753083 | J157: 8753083 | K157: 0
A158: 24 | C158: CONDUCTORS - OVERHEAD / SECONDARY - CUSTOMER | D158: K405 | F158: ='WP FR-16(7)(v) MinSizOHSEC1'!G22 -> 2162034 | G158: 0 | H158: 0 | I158: 2162034 | J158: 2162034 | K158: 0
A159: 25 | C159: CONDUCTORS - UNDERGROUND / PRIMARY - DEMAND | D159: K205 | F159: ='WP FR-16(7)(v) MinSizUGPRIM1'!F22 -> 15203495 | G159: 0 | H159: 0 | I159: 15203495 | J159: 15203495 | K159: 0
A160: 26 | C160: CONDUCTORS - UNDERGROUND / PRIMARY - CUSTOMER | D160: K405 | F160: ='WP FR-16(7)(v) MinSizUGPRIM1'!G22 -> 4387731 | G160: 0 | H160: 0 | I160: 4387731 | J160: 4387731 | K160: 0
A161: 27 | C161: CONDUCTORS - UNDERGROUND / SECONDARY - DEMAND | D161: K206 | F161: ='WP FR-16(7)(v) MinSizUGSEC1'!F22 -> 2557369 | G161: 0 | H161: 0 | I161: 2557369 | J161: 2557369 | K161: 0
A162: 28 | C162: CONDUCTORS - UNDERGROUND / SECONDARY - CUSTOMER | D162: K405 | F162: ='WP FR-16(7)(v) MinSizUGSEC1'!G22 -> 1455292 | G162: 0 | H162: 0 | I162: 1455292 | J162: 1455292 | K162: 0
A163: 29 | C163: TRANSFORMERS DEMAND RELATED | D163: K215 | F163: ='WP FR-16(7)(v) Min Siz Trans 1'!F23 -> 19933975 | G163: =F163-SUM(H163:I163) -> 0 | H163: =ROUND(F163*VLOOKUP(D163,ALLOCTABLE_FUNCTIONAL,$H$10,FALSE),0) -> 0 | I163: =ROUND(F163*VLOOKUP(D163,ALLOCTABLE_FUNCTIONAL,$I$10,FALSE),0) -> 19933975 | J163: =SUM(G163:I163) -> 19933975 | K163: =F163-J163 -> 0
A164: 30 | C164: TRANSFORMERS CUSTOMER RELATED | D164: K405 | F164: ='WP FR-16(7)(v) Min Siz Trans 1'!G23 -> 9547168 | G164: 0 | H164: 0 | I164: 9547168 | J164: 9547168 | K164: 0
A165: 31 | C165: SERVICES | D165: K217 | F165: ='[3]SCH B-3'!$K$440+'[3]SCH B-3'!$K$441 -> 10951271 | G165: 0 | H165: 0 | I165: 10951271 | J165: 10951271 | K165: 0
A166: 32 | C166: METERS | D166: K407 | F166: ='[3]SCH B-3'!$K$442+'[3]SCH B-3'!$K$444+'[3]SCH B-3'!$K$445+'[3]SCH B-3'!$K$447 -> 887250 | G166: 0 | H166: 2245 | I166: 885005 | J166: 887250 | K166: 0
A167: 33 | C167: STREET LIGHTS | D167: K401 | F167: ='[3]SCH B-3'!$K$446+'[3]SCH B-3'!$K$448+'[3]SCH B-3'!$K$449+'[3]SCH B-3'!$K$450+'[3]SCH B-3'!$K$451 -> 4860343 | G167: 0 | H167: 0 | I167: 4860343 | J167: 4860343 | K167: 0
A168: 34 | C168: ADJUSTMENT | D168: K209 | F168: =[3]SCH_D2.24!$W$51 -> 2311379 | G168: 0 | H168: 324 | I168: 2311055 | J168: 2311379 | K168: 0
A169: 35 | C169: CONSTRUCTION NOT CLASSIFIED | D169: K209 | F169: ='[3]SCH B-3'!$K$452 -> 534286 | G169: 0 | H169: 75 | I169: 534211 | J169: 534286 | K169: 0
A170: 36 | C170: RWIP | D170: K215 | F170: ='[3]SCH B-3'!$K$453 -> -6653083 | G170: =F170-SUM(H170:I170) -> 0 | H170: =ROUND(F170*VLOOKUP(D170,ALLOCTABLE_FUNCTIONAL,$H$10,FALSE),0) -> 0 | I170: =ROUND(F170*VLOOKUP(D170,ALLOCTABLE_FUNCTIONAL,$I$10,FALSE),0) -> -6653083 | J170: =SUM(G170:I170) -> -6653083 | K170: =F170-J170 -> 0
A171: 37 | C171: TOTAL DIST DEPREC RESERVE | F171: =SUM(F149:F170) -> 156222446 | G171: =SUM(G149:G169) -> 0 | H171: =SUM(H149:H169) -> 2644 | I171: =SUM(I149:I169) -> 162872885 | J171: =SUM(J149:J169) -> 162875529 | K171: =SUM(K149:K169) -> 0
A172: 38
A173: 39 | C173: TOTAL TRANS & DIST DEPREC RESERVE | F173: =F171+F145 -> 175585347 | G173: =G171+G145 -> 0 | H173: =H171+H145 -> 19365545 | I173: =I171+I145 -> 162872885 | J173: =J171+J145 -> 182238430 | K173: =F173-J173 -> -6653083
A174: 40 | C174: TOTAL GROSS PTD PLANT DEPREC RESERVE | F174: =F147+F171 -> 802213323 | G174: =G147+G171 -> 626627976 | H174: =H147+H171 -> 19365545 | I174: =I147+I171 -> 162872885 | J174: =J147+J171 -> 808866406 | K174: =F174-J174 -> -6653083
A175: 41
A176: 42 | B176: GENERAL & INTANGIBLE PLANT
A177: 43 | C177: PRODUCTION - DEMAND | D177: K201 | F177: ='WP FR-16(7)(v) A&G WP'!E12 -> 4910013 | G177: =F177-SUM(H177:I177) -> 4910013 | H177: =ROUND(F177*VLOOKUP(D177,ALLOCTABLE_FUNCTIONAL,$H$10,FALSE),0) -> 0 | I177: =ROUND(F177*VLOOKUP(D177,ALLOCTABLE_FUNCTIONAL,$I$10,FALSE),0) -> 0 | J177: =SUM(G177:I177) -> 4910013 | K177: =F177-J177 -> 0
A178: 44 | C178: PRODUCTION - ENERGY | D178: K301 | F178: ='WP FR-16(7)(v) A&G WP'!E13 -> 4302645 | G178: 4302645 | H178: 0 | I178: 0 | J178: 4302645 | K178: 0
A179: 45 | C179: TRANSMISSION | D179: K202 | F179: ='WP FR-16(7)(v) A&G WP'!E14 -> 838896 | G179: 0 | H179: 838896 | I179: 0 | J179: 838896 | K179: 0
A180: 46 | C180: DISTRIBUTION - DEMAND | D180: K201 | F180: =ROUND('WP FR-16(7)(v) A&G WP'!E15*NPdemand,0) -> 2789882 | G180: 2789882 | H180: 0 | I180: 0 | J180: 2789882 | K180: 0
A181: 47 | C181: DISTRIBUTION - CUSTOMER | D181: K405 | F181: =ROUND('WP FR-16(7)(v) A&G WP'!E15-F180,0) -> 929961 | G181: =F181-SUM(H181:I181) -> 0 | H181: 0 | I181: 929961 | J181: =SUM(G181:I181) -> 929961 | K181: =F181-J181 -> 0
A182: 48 | C182: CUSTOMER ACCOUNTING | D182: A308 | F182: ='WP FR-16(7)(v) A&G WP'!E16 -> 2008309 | G182: 0 | H182: 3274 | I182: 2005035 | J182: 2008309 | K182: 0
A183: 49 | C183: CUSTOMER SERVICE & INFORMATION | D183: A310 | F183: ='WP FR-16(7)(v) A&G WP'!E17 -> 159706 | G183: =F183-SUM(H183:I183) -> 0 | H183: =ROUND(F183*VLOOKUP(D183,ALLOCTABLE_FUNCTIONAL,H10,FALSE),0) -> 0 | I183: =ROUND(F183*VLOOKUP(D183,ALLOCTABLE_FUNCTIONAL,I10,FALSE),0) -> 159706 | J183: =SUM(G183:I183) -> 159706 | K183: =F183-J183 -> 0
A184: 50 | C184: SALES | D184: A312 | F184: ='WP FR-16(7)(v) A&G WP'!E18 -> 0 | G184: =F184-SUM(H184:I184) -> 0 | H184: =ROUND(F184*VLOOKUP(D184,ALLOCTABLE_FUNCTIONAL,H10,FALSE),0) -> 0 | I184: =ROUND(F184*VLOOKUP(D184,ALLOCTABLE_FUNCTIONAL,I10,FALSE),0) -> 0 | J184: =SUM(G184:I184) -> 0 | K184: =F184-J184 -> 0
A185: 51 | C185: ADJUSTMENT | D185: A315 | F185: =[3]SCH_D2.24!$X51 -> -2605588 | G185: -1529897 | H185: =ROUND(F185*VLOOKUP(D185,ALLOCTABLE_FUNCTIONAL,$H$10,FALSE),0) -> -137705 | I185: =ROUND(F185*VLOOKUP(D185,ALLOCTABLE_FUNCTIONAL,$I$10,FALSE),0) -> -937986 | J185: -2605588 | K185: 0
A186: 52 | C186: GENERAL & INTANG PLANT | F186: =SUM(F176:F185) -> 13333824 | G186: 10472643 | H186: 704465 | I186: 2156716 | J186: 13333824 | K186: 0
A187: 53
A188: 54 | B188: COMMON & OTHER PLANT
A189: 55 | C189: PRODUCTION - DEMAND | D189: K201 | F189: ='WP FR-16(7)(v) A&G WP'!G12 -> 9493775.461 | G189: =F189-SUM(H189:I189) -> 9493775.461 | H189: =ROUND(F189*VLOOKUP(D189,ALLOCTABLE_FUNCTIONAL,$H$10,FALSE),0) -> 0 | I189: =ROUND(F189*VLOOKUP(D189,ALLOCTABLE_FUNCTIONAL,$I$10,FALSE),0) -> 0 | J189: =SUM(G189:I189) -> 9493775.461 | K189: =F189-J189 -> 0
A190: 56 | C190: PRODUCTION - ENERGY | D190: K301 | F190: ='WP FR-16(7)(v) A&G WP'!G13 -> 8319397 | G190: 8319397 | H190: 0 | I190: 0 | J190: 8319397 | K190: 0
A191: 57 | C191: TRANSMISSION | D191: K202 | F191: ='WP FR-16(7)(v) A&G WP'!G14 -> 1622051 | G191: 0 | H191: 1622051 | I191: 0 | J191: 1622051 | K191: 0
A192: 58 | C192: DISTRIBUTION - DEMAND | D192: K201 | F192: =ROUND('WP FR-16(7)(v) A&G WP'!G15*NPdemand,0) -> 5394388 | G192: 5394388 | H192: 0 | I192: 0 | J192: 5394388 | K192: 0
A193: 59 | C193: DISTRIBUTION - CUSTOMER | D193: K405 | F193: =ROUND('WP FR-16(7)(v) A&G WP'!G15-F192,0) -> 1798129 | G193: =F193-SUM(H193:I193) -> 0 | H193: 0 | I193: 1798129 | J193: =SUM(G193:I193) -> 1798129 | K193: =F193-J193 -> 0
A194: 60 | C194: CUSTOMER ACCOUNTING | D194: A308 | F194: ='WP FR-16(7)(v) A&G WP'!G16 -> 3883173 | G194: 0 | H194: 6330 | I194: 3876843 | J194: 3883173 | K194: 0
A195: 61 | C195: CUSTOMER SERVICE & INFORMATION | D195: A310 | F195: ='WP FR-16(7)(v) A&G WP'!G17 -> 308800 | G195: =F195-SUM(H195:I195) -> 0 | H195: =ROUND(F195*VLOOKUP(D195,ALLOCTABLE_FUNCTIONAL,H10,FALSE),0) -> 0 | I195: =ROUND(F195*VLOOKUP(D195,ALLOCTABLE_FUNCTIONAL,I10,FALSE),0) -> 308800 | J195: =SUM(G195:I195) -> 308800 | K195: =F195-J195 -> 0
A196: 62 | C196: SALES | D196: A312 | F196: ='WP FR-16(7)(v) A&G WP'!G18 -> 0 | G196: =F196-SUM(H196:I196) -> 0 | H196: =ROUND(F196*VLOOKUP(D196,ALLOCTABLE_FUNCTIONAL,H10,FALSE),0) -> 0 | I196: =ROUND(F196*VLOOKUP(D196,ALLOCTABLE_FUNCTIONAL,I10,FALSE),0) -> 0 | J196: =SUM(G196:I196) -> 0 | K196: =F196-J196 -> 0
A197: 63 | C197: ADJUSTMENT | D197: A315 | F197: =[3]SCH_D2.24!$Y$51 -> -218467 | G197: -128275 | H197: =ROUND(F197*VLOOKUP(D197,ALLOCTABLE_FUNCTIONAL,$H$10,FALSE),0) -> -11546 | I197: =ROUND(F197*VLOOKUP(D197,ALLOCTABLE_FUNCTIONAL,$I$10,FALSE),0) -> -78646 | J197: -218467 | K197: 0
A198: 64 | C198: COMMON & OTHER PLANT IN SERVICE | F198: =SUM(F189:F197) -> 30601246.46 | G198: =SUM(G188:G197) -> 23079285.46 | H198: =SUM(H188:H197) -> 1616835 | I198: =SUM(I188:I197) -> 5905126 | J198: =SUM(J188:J197) -> 30601246.46 | K198: =SUM(K188:K197) -> 0
A199: 65
A200: 66 | B200: TOTAL DEPRECIATION RESERVE | F200: =F198+F186+F171+F145+F139 -> 846148393.5 | G200: 660179904.5 | H200: 21686845 | I200: 170934727 | J200: 852801476.5 | K200: 0
A202: =co_name -> DUKE ENERGY KENTUCKY, INC. | J202: =J1 -> FR-16(7)(v)-1
A203: =$A$2 -> FUNCTIONAL ELECTRIC COST OF SERVICE | J203: =J2 -> WITNESS RESPONSIBLE:
A204: =case_name -> CASE NO: 2017-00321 | J204: =Witness -> JAMES E. ZIOLKOWSKI
A205: =data_filing -> DATA: 12 MONTHS ACTUAL & 0 MONTHS ESTIMATED | J205: ="PAGE "&Pages-14&" OF "&Pages -> PAGE 4 OF 18
A206: =type -> TYPE OF FILING: "X" ORIGINAL UPDATED REVISED
A209: LINE | F209: TOTAL | G209: FUNCTIONAL | J209: TOTAL | K209: ALL
A210: NO. | B210: ="NET ELECTRIC PLANT" -> NET ELECTRIC PLANT | D210: ALLO | F210: =$F$9 -> ELECTRIC | G210: =G9 -> PRODUCTION | H210: TRANSMISSION | I210: DISTRIBUTION | J210: AT ISSUE | K210: OTHER
C211: Schedule 4 | G211: 3 | H211: 4 | I211: 5
... 725 more rows

Sheet FR-16(7)(v)-2 PROD Classified
A1: =co_name -> DUKE ENERGY KENTUCKY, INC. | J1: FR-16(7)(v)-2
A2: PRODUCTION CLASSIFIED - ELECTRIC COST OF SERVICE | J2: WITNESS RESPONSIBLE:
A3: =case_name -> CASE NO: 2017-00321 | J3: =Witness -> JAMES E. ZIOLKOWSKI
A4: =data_filing -> DATA: 12 MONTHS ACTUAL & 0 MONTHS ESTIMATED | J4: ="PAGE "&Pages-17&" OF "&Pages -> PAGE 1 OF 18
A5: =type -> TYPE OF FILING: "X" ORIGINAL UPDATED REVISED
A8: LINE | F8: TOTAL | G8: CLASSIFIED | J8: TOTAL | K8: ALL
A9: NO. | B9: SUMMARY OF RESULTS | D9: ALLO | F9: PRODUCTION | G9: DEMAND | H9: ENERGY | I9: CUSTOMER | J9: AT ISSUE | K9: OTHER
C10: Schedule 1 | G10: 3 | H10: 4 | I10: 5
A11: 1 | B11: NET INCOME COMPUTATION
A12: 2 | C12: ='FR-16(7)(v)-1 Functional'!C12 -> GROSS ELECTRIC PLANT IN SERVICE | F12: =F123 -> 1178879930 | G12: =G123 -> 1162711926 | H12: =H123 -> 16168004 | I12: =I123 -> 0 | J12: =SUM(G12:I12) -> 1178879930 | K12: =F12-J12 -> 0
A13: 3 | C13: ='FR-16(7)(v)-1 Functional'!C13 -> TOTAL DEPRECIATION RESERVE | F13: =-F200 -> -660179904.5 | G13: =-G200 -> -648320190.5 | H13: =-H200 -> -11859714 | I13: =-I200 -> 0 | J13: =SUM(G13:I13) -> -660179904.5 | K13: =F13-J13 -> 0
A14: 4 | C14: ='FR-16(7)(v)-1 Functional'!C14 -> TOTAL RATE BASE ADJUSTMENTS | F14: =F421 -> -84613431 | G14: =G421 -> -104860896 | H14: =H421 -> 20247465 | I14: =I421 -> 0 | J14: =SUM(G14:I14) -> -84613431 | K14: =F14-J14 -> 0
A15: 5 | C15: ='FR-16(7)(v)-1 Functional'!C15 -> TOTAL RATE BASE | F15: =SUM(F12:F14) -> 434086594.5 | G15: 409530839.5 | H15: 24555755 | I15: 0 | J15: 434086594.5 | K15: 0
A16: 6
A17: 7 | B17: OPERATING EXPENSES
A18: 8 | C18: ='FR-16(7)(v)-1 Functional'!C18 -> TOTAL O&M EXPENSE | F18: =F549 -> 170336881 | G18: =G549 -> 8465910 | H18: =H549 -> 161870971 | I18: =I549 -> 0 | J18: =SUM(G18:I18) -> 170336881 | K18: =F18-J18 -> 0
A19: 9 | C19: ='FR-16(7)(v)-1 Functional'!C19 -> TOTAL DEPRECIATION EXPENSE | F19: =F582 -> 33884948 | G19: =G582 -> 33043451 | H19: =H582 -> 841497 | I19: =I582 -> 0 | J19: =SUM(G19:I19) -> 33884948 | K19: 0
A20: 10 | C20: ='FR-16(7)(v)-1 Functional'!C20 -> TOTAL OTHER TAX & MISC EXPENSE | F20: =F612 -> 7522053 | G20: =G612 -> 6899819 | H20: =H612 -> 622234 | I20: =I612 -> 0 | J20: =SUM(G20:I20) -> 7522053 | K20: 0
A21: 11 | C21: ='FR-16(7)(v)-1 Functional'!C21 -> TOTAL OP EXP EXCLUDING INC & REV TAX | F21: =SUM(F17:F20) -> 211743882 | G21: =SUM(G17:G20) -> 48409180 | H21: =SUM(H17:H20) -> 163334702 | I21: =SUM(I17:I20) -> 0 | J21: =SUM(J17:J20) -> 211743882 | K21: 0
A22: 12 | C22: ='FR-16(7)(v)-1 Functional'!C22 -> NET FED INCOME TAX EXP ALLOWABLE | F22: =F676 -> 16729701 | G22: =G676 -> -9059190 | H22: =H676 -> 25788892 | I22: =I676 -> 0 | J22: =SUM(G22:I22) -> 16729702 | K22: -1
A23: 13 | C23: NET STATE INCOME TAX EXP ALLOWABLE | F23: =F722 -> 2073644.691 | G23: =G722 -> 405289.691 | H23: =H722 -> 1668355 | I23: =I722 -> 0 | J23: =SUM(G23:I23) -> 2073644.691 | K23: 0
A24: 14 | C24: AFUDC OFFSET | D24: ='FR-16(7)(v)-1 Functional'!D24 -> CW29 | F24: ='FR-16(7)(v)-1 Functional'!G24 -> 0 | G24: =ROUND(F24*VLOOKUP(D24,AllocTable_Classified_Production,$G$10,FALSE),0) -> 0 | H24: =ROUND(F24*VLOOKUP(D24,AllocTable_Classified_Production,$H$10,FALSE),0) -> 0 | I24: =ROUND(F24*VLOOKUP(D24,AllocTable_Classified_Production,$I$10,FALSE),0) -> 0 | J24: =SUM(G24:I24) -> 0 | K24: =F24-J24 -> 0
A25: 15 | C25: ='FR-16(7)(v)-1 Functional'!C25 -> REVENUE TAX | F25: =F767 -> 0 | G25: =G767 -> 0 | H25: =H767 -> 0 | I25: =I767 -> 0 | J25: =SUM(G25:I25) -> 0 | K25: 0
A26: 16 | C26: ='FR-16(7)(v)-1 Functional'!C26 -> TOTAL OPERATING EXPENSE | F26: =SUM(F21:F25) -> 230547227.7 | G26: =SUM(G21:G25) -> 39755279.69 | H26: =SUM(H21:H25) -> 190791949 | I26: =SUM(I21:I25) -> 0 | J26: =SUM(G26:I26) -> 230547228.7 | K26: -1
A27: 17
A28: 18 | B28: RETURN ON CAPITALIZATION | F28: =F433 -> 32905156 | G28: =G433 -> 31043711 | H28: =H433 -> 1861445 | I28: =I433 -> 0 | J28: =SUM(G28:I28) -> 32905156 | K28: =F28-J28 -> 0
A29: 19 | B29: TOTAL OTHER OPERATING REVENUES | F29: =-F750 -> -14388 | G29: =-G750 -> -7773 | H29: =-H750 -> -6615 | I29: =-I750 -> 0 | J29: =SUM(G29:I29) -> -14388 | K29: 0
A30: 20 | C30: ='FR-16(7)(v)-1 Functional'!C30 -> TOTAL ELECTRIC COST OF SERVICE | F30: =SUM(F26:F29) -> 263437995.7 | G30: =SUM(G26:G29) -> 70791217.69 | H30: =SUM(H26:H29) -> 192646779 | I30: =SUM(I26:I29) -> 0 | J30: =SUM(J26:J29) -> 263437996.7 | K30: -1
A31: 21 | B31: ADJUSTMENT FOR INTERCLASS SUBSIDIZATION | D31: =1-'WP FR-16(7)(v) Rate Incr'!I11 -> 0.9 | F31: ='WP FR-16(7)(v) Rate Incr'!Q27 -> 0 | G31: 0 | H31: 0 | I31: 0 | J31: =SUM(G31:I31) -> 0 | K31: 0
A32: 22 | B32: ='FR-16(7)(v)-1 Functional'!$B$32 -> REQUESTED REVENUES (COST OF SERVICE ADJUSTED FOR SUBSIDIES) | F32: =F31+F30 -> 263437995.7 | G32: =G31+G30 -> 70791217.69 | H32: =H31+H30 -> 192646779 | I32: =I31+I30 -> 0 | J32: =J31+J30 -> 263437996.7 | K32: -1
A33: 23 | B33: PROPOSED REVENUES | F33: =F868 -> 178680291 | G33: =G868 -> 96533814 | H33: =H868 -> 82146477 | I33: =I868 -> 0 | J33: =J868 -> 178680291 | K33: 0
A34: 24 | B34: DIFFERENCE (REQUESTED LESS PROPOSED) | F34: =F32-F33 -> 84757704.69 | G34: -25742596.31 | H34: 110500302 | I34: 0 | J34: 84757705.69 | K34: -1
A35: 25
A36: 26 | B36: TOTAL RETURN EARNED | F36: =F777+F28 -> -19242546.69 | G36: =G777+G28 -> 46882002.31 | H36: =H777+H28 -> -66124549 | I36: =I777+I28 -> 0 | J36: =J777+J28 -> -19242546.69 | K36: =F36-J36 -> 0
A37: 27 | B37: RATE OF RETURN EARNED | F37: =IF(F431=0,0,ROUND(F36/F431,5)) -> -0.04142 | G37: 0.10697 | H37: -2.51611 | I37: 0 | J37: -0.04142 | K37: 0
A38: 28 | B38: TOTAL RATE OF RETURN ALLOWABLE | F38: =$F$811 -> 0.0709 | G38: =F811 -> 0.0709 | H38: =F811 -> 0.0709 | I38: =F811 -> 0.0709 | J38: =F811 -> 0.0709 | K38: =F811 -> 0.0709
A39: 29 | B39: RETURN EARNED ON COMMON EQUITY | F39: =IF(Equity=0,0,(F37-$F$806-$F$807-$F$809)*TotalCap/Equity) -> -0.1266425294 | G39: =IF(Equity=0,0,(G37-$F$806-$F$807-$F$809)*TotalCap/Equity) -> 0.1768536744 | H39: =IF(Equity=0,0,(H37-F806-F807-F809)*TotalCap/Equity) -> -5.188028205 | I39: =IF(Equity=0,0,(I37-F806-F807-F809)*TotalCap/Equity) -> -0.04192783999 | J39: =IF(Equity=0,0,(J37-F806-F807-F809)*TotalCap/Equity) -> -0.1266425294 | K39: =IF(Equity=0,0,(K37-F806-F807-F809)*TotalCap/Equity) -> -0.04192783999
A40: 30 | B40: ALLOWED RETURN ON COMMON EQUITY | F40: =IF(Equity=0,0,(F38-$F$806-$F$807-$F$809)*TotalCap/Equity) -> 0.1030811286 | G40: =IF(Equity=0,0,(G38-F806-F807-F809)*TotalCap/Equity) -> 0.1030811286 | H40: =IF(Equity=0,0,(H38-F806-F807-F809)*TotalCap/Equity) -> 0.1030811286 | I40: =IF(Equity=0,0,(I38-F806-F807-F809)*TotalCap/Equity) -> 0.1030811286 | J40: =IF(Equity=0,0,(J38-F806-F807-F809)*TotalCap/Equity) -> 0.1030811286 | K40: =IF(Equity=0,0,(K38-F806-F807-F809)*TotalCap/Equity) -> 0.1030811286
A41: 31
A42: 32 | B42: PRESENT REVENUES | F42: =F867 -> 227130233 | G42: =G867 -> 61034574 | H42: =H867 -> 166095660 | I42: =I867 -> -1 | J42: =J867 -> 227130233 | K42: =F42-J42 -> 0
A43: 33 | B43: REVENUE INCREASE JUSTIFIED | F43: =F30-F42 -> 36307762.69 | G43: 9756643.691 | H43: 26551119 | I43: 1 | J43: 36307763.69 | K43: -1
A44: 34 | C44: PER UNIT PRES REV | F44: =IF(F42=0,0,ROUND(F43/F42,5)) -> 0.15985 | G44: 0.15985 | H44: 0.15985 | I44: -1 | J44: 0.15985 | K44: 0
A45: 35 | B45: REVENUE INCREASE REQUESTED | F45: =F33-F42 -> -48449942 | G45: 35499240 | H45: -83949183 | I45: 1 | J45: -48449942 | K45: 0
A46: 36 | C46: PER UNIT PRES REV | F46: =IF(F42=0,0,ROUND(F45/F42,5)) -> -0.21331 | G46: 0.58163 | H46: -0.50543 | I46: -1 | J46: -0.21331 | K46: 0
A48: =co_name -> DUKE ENERGY KENTUCKY, INC. | J48: =J1 -> FR-16(7)(v)-2
A49: =$A$2 -> PRODUCTION CLASSIFIED - ELECTRIC COST OF SERVICE | J49: =J2 -> WITNESS RESPONSIBLE:
A50: =case_name -> CASE NO: 2017-00321 | J50: =Witness -> JAMES E. ZIOLKOWSKI
A51: =data_filing -> DATA: 12 MONTHS ACTUAL & 0 MONTHS ESTIMATED | J51: ="PAGE "&Pages-16&" OF "&Pages -> PAGE 2 OF 18
A52: =type -> TYPE OF FILING: "X" ORIGINAL UPDATED REVISED
A55: LINE | F55: =$F$8 -> TOTAL | G55: CLASSIFIED | J55: TOTAL | K55: ALL
A56: NO. | B56: GROSS ELECTRIC PLANT IN SERVICE | D56: ALLO | F56: =$F$9 -> PRODUCTION | G56: =G9 -> DEMAND | H56: ENERGY | I56: CUSTOMER | J56: AT ISSUE | K56: OTHER
C57: Schedule 2 | G57: 3 | H57: 4 | I57: 5
A58: 1 | B58: PRODUCTION PLANT
A59: 2 | C59: PRODUCTION STEAM | D59: ='FR-16(7)(v)-1 Functional'!D59 -> K201 | F59: ='FR-16(7)(v)-1 Functional'!G59 -> 799630884 | G59: =ROUND(F59*VLOOKUP(D59,AllocTable_Classified_Production,$G$10,FALSE),0) -> 799630884 | H59: =ROUND(F59*VLOOKUP(D59,AllocTable_Classified_Production,$H$10,FALSE),0) -> 0 | I59: =ROUND(F59*VLOOKUP(D59,AllocTable_Classified_Production,$I$10,FALSE),0) -> 0 | J59: =SUM(G59:I59) -> 799630884 | K59: =F59-J59 -> 0
A60: 3 | C60: PRODUCTION OTHER | D60: ='FR-16(7)(v)-1 Functional'!D60 -> K201 | F60: ='FR-16(7)(v)-1 Functional'!G60 -> 334147228 | G60: =ROUND(F60*VLOOKUP(D60,AllocTable_Classified_Production,$G$10,FALSE),0) -> 334147228 | H60: =ROUND(F60*VLOOKUP(D60,AllocTable_Classified_Production,$H$10,FALSE),0) -> 0 | I60: =ROUND(F60*VLOOKUP(D60,AllocTable_Classified_Production,$I$10,FALSE),0) -> 0 | J60: =SUM(G60:I60) -> 334147228 | K60: =F60-J60 -> 0
A61: 4 | C61: ='FR-16(7)(v)-1 Functional'!C61 -> ADJUSTMENT | D61: ='FR-16(7)(v)-1 Functional'!D61 -> K201 | F61: ='FR-16(7)(v)-1 Functional'!G61 -> 0 | G61: =ROUND(F61*VLOOKUP(D61,AllocTable_Classified_Production,$G$10,FALSE),0) -> 0 | H61: =ROUND(F61*VLOOKUP(D61,AllocTable_Classified_Production,$H$10,FALSE),0) -> 0 | I61: =ROUND(F61*VLOOKUP(D61,AllocTable_Classified_Production,$I$10,FALSE),0) -> 0 | J61: =SUM(G61:I61) -> 0 | K61: =F61-J61 -> 0
A62: 5 | C62: ='FR-16(7)(v)-1 Functional'!C62 -> PRODUCTION PLANT IN SERVICE | F62: =SUM(F59:F61) -> 1133778112 | G62: 1133778112 | H62: 0 | I62: 0 | J62: 1133778112 | K62: 0
A63: 6
A64: 7 | B64: TRANSMISSION PLANT
A65: 8 | C65: MAIN STEP-UP TRANSFORMERS | D65: ='FR-16(7)(v)-1 Functional'!D65 -> K202 | F65: ='FR-16(7)(v)-1 Functional'!G65 -> 0 | G65: =ROUND(F65*VLOOKUP(D65,AllocTable_Classified_Production,$G$10,FALSE),0) -> 0 | H65: =ROUND(F65*VLOOKUP(D65,AllocTable_Classified_Production,$H$10,FALSE),0) -> 0 | I65: =ROUND(F65*VLOOKUP(D65,AllocTable_Classified_Production,$I$10,FALSE),0) -> 0 | J65: =SUM(G65:I65) -> 0 | K65: =F65-J65 -> 0
A66: 9 | C66: OTHER TRANSMISSION | D66: ='FR-16(7)(v)-1 Functional'!D66 -> K202 | F66: ='FR-16(7)(v)-1 Functional'!G66 -> 0 | G66: =ROUND(F66*VLOOKUP(D66,AllocTable_Classified_Production,$G$10,FALSE),0) -> 0 | H66: =ROUND(F66*VLOOKUP(D66,AllocTable_Classified_Production,$H$10,FALSE),0) -> 0 | I66: =ROUND(F66*VLOOKUP(D66,AllocTable_Classified_Production,$I$10,FALSE),0) -> 0 | J66: =SUM(G66:I66) -> 0 | K66: =F66-J66 -> 0
A67: 10 | C67: ADJUSTMENT | D67: ='FR-16(7)(v)-1 Functional'!D67 -> K202 | F67: ='FR-16(7)(v)-1 Functional'!G67 -> 0 | G67: =ROUND(F67*VLOOKUP(D67,AllocTable_Classified_Production,$G$10,FALSE),0) -> 0 | H67: =ROUND(F67*VLOOKUP(D67,AllocTable_Classified_Production,$H$10,FALSE),0) -> 0 | I67: =ROUND(F67*VLOOKUP(D67,AllocTable_Classified_Production,$I$10,FALSE),0) -> 0 | J67: =SUM(G67:I67) -> 0 | K67: =F67-J67 -> 0
A68: 11 | C68: ='FR-16(7)(v)-1 Functional'!C68 -> TRANSMISSION PLANT IN SERVICE | F68: =SUM(F65:F67) -> 0 | G68: 0 | H68: 0 | I68: 0 | J68: 0 | K68: 0
A69: 12
A70: 13 | B70: TOTAL PROD & TRANS PLANT | F70: =F68+F62 -> 1133778112 | G70: 1133778112 | H70: 0 | I70: 0 | J70: 1133778112 | K70: 0
A71: 14
A72: 15 | B72: DISTRIBUTION PLANT
A73: 16 | C73: ='FR-16(7)(v)-1 Functional'!C73 -> SUBSTATIONS | D73: ='FR-16(7)(v)-1 Functional'!D73 -> K215 | F73: ='FR-16(7)(v)-1 Functional'!G73 -> 0 | G73: =ROUND(F73*VLOOKUP(D73,AllocTable_Classified_Production,$G$10,FALSE),0) -> 0 | H73: =ROUND(F73*VLOOKUP(D73,AllocTable_Classified_Production,$H$10,FALSE),0) -> 0 | I73: =ROUND(F73*VLOOKUP(D73,AllocTable_Classified_Production,$I$10,FALSE),0) -> 0 | J73: =SUM(G73:I73) -> 0 | K73: =F73-J73 -> 0
A74: 17 | C74: ='FR-16(7)(v)-1 Functional'!C74 -> POLES, TOWERS & FIXTURES - PRIMARY - DEMAND | D74: ='FR-16(7)(v)-1 Functional'!D74 -> K205 | F74: ='FR-16(7)(v)-1 Functional'!G74 -> 0 | G74: =ROUND(F74*VLOOKUP(D74,AllocTable_Classified_Production,$G$10,FALSE),0) -> 0 | H74: =ROUND(F74*VLOOKUP(D74,AllocTable_Classified_Production,$H$10,FALSE),0) -> 0 | I74: =ROUND(F74*VLOOKUP(D74,AllocTable_Classified_Production,$I$10,FALSE),0) -> 0 | J74: =SUM(G74:I74) -> 0 | K74: =F74-J74 -> 0
A75: 18 | C75: ='FR-16(7)(v)-1 Functional'!C75 -> POLES, TOWERS & FIXTURES - PRIMARY - CUSTOMER | D75: ='FR-16(7)(v)-1 Functional'!D75 -> K405 | F75: ='FR-16(7)(v)-1 Functional'!G75 -> 0 | G75: =ROUND(F75*VLOOKUP(D75,AllocTable_Classified_Production,$G$10,FALSE),0) -> 0 | H75: =ROUND(F75*VLOOKUP(D75,AllocTable_Classified_Production,$H$10,FALSE),0) -> 0 | I75: =ROUND(F75*VLOOKUP(D75,AllocTable_Classified_Production,$I$10,FALSE),0) -> 0 | J75: =SUM(G75:I75) -> 0 | K75: =F75-J75 -> 0
A76: 19 | C76: ='FR-16(7)(v)-1 Functional'!C76 -> POLES, TOWERS & FIXTURES - SECONDARY - DEMAND | D76: ='FR-16(7)(v)-1 Functional'!D76 -> K206 | F76: ='FR-16(7)(v)-1 Functional'!G76 -> 0 | G76: 0 | H76: 0 | I76: 0 | J76: 0 | K76: 0
A77: 20 | C77: ='FR-16(7)(v)-1 Functional'!C77 -> POLES, TOWERS & FIXTURES - SECONDARY - CUSTOMER | D77: ='FR-16(7)(v)-1 Functional'!D77 -> K405 | F77: ='FR-16(7)(v)-1 Functional'!G77 -> 0 | G77: 0 | H77: 0 | I77: 0 | J77: 0 | K77: 0
A78: 21 | C78: ='FR-16(7)(v)-1 Functional'!C78 -> CONDUCTORS - OVERHEAD / PRIMARY - DEMAND | D78: ='FR-16(7)(v)-1 Functional'!D78 -> K205 | F78: ='FR-16(7)(v)-1 Functional'!G78 -> 0 | G78: 0 | H78: 0 | I78: 0 | J78: 0 | K78: 0
A79: 22 | C79: ='FR-16(7)(v)-1 Functional'!C79 -> CONDUCTORS - OVERHEAD / PRIMARY - CUSTOMER | D79: ='FR-16(7)(v)-1 Functional'!D79 -> K405 | F79: ='FR-16(7)(v)-1 Functional'!G79 -> 0 | G79: 0 | H79: 0 | I79: 0 | J79: 0 | K79: 0
A80: 23 | C80: ='FR-16(7)(v)-1 Functional'!C80 -> CONDUCTORS - OVERHEAD / SECONDARY - DEMAND | D80: ='FR-16(7)(v)-1 Functional'!D80 -> K206 | F80: ='FR-16(7)(v)-1 Functional'!G80 -> 0 | G80: 0 | H80: 0 | I80: 0 | J80: 0 | K80: 0
A81: 24 | C81: ='FR-16(7)(v)-1 Functional'!C81 -> CONDUCTORS - OVERHEAD / SECONDARY - CUSTOMER | D81: ='FR-16(7)(v)-1 Functional'!D81 -> K405 | F81: ='FR-16(7)(v)-1 Functional'!G81 -> 0 | G81: 0 | H81: 0 | I81: 0 | J81: 0 | K81: 0
A82: 25 | C82: ='FR-16(7)(v)-1 Functional'!C82 -> CONDUCTORS - UNDERGROUND / PRIMARY - DEMAND | D82: ='FR-16(7)(v)-1 Functional'!D82 -> K205 | F82: ='FR-16(7)(v)-1 Functional'!G82 -> 0 | G82: 0 | H82: 0 | I82: 0 | J82: 0 | K82: 0
A83: 26 | C83: ='FR-16(7)(v)-1 Functional'!C83 -> CONDUCTORS - UNDERGROUND / PRIMARY - CUSTOMER | D83: ='FR-16(7)(v)-1 Functional'!D83 -> K405 | F83: ='FR-16(7)(v)-1 Functional'!G83 -> 0 | G83: 0 | H83: 0 | I83: 0 | J83: 0 | K83: 0
A84: 27 | C84: ='FR-16(7)(v)-1 Functional'!C84 -> CONDUCTORS - UNDERGROUND / SECONDARY - DEMAND | D84: ='FR-16(7)(v)-1 Functional'!D84 -> K206 | F84: ='FR-16(7)(v)-1 Functional'!G84 -> 0 | G84: 0 | H84: 0 | I84: 0 | J84: 0 | K84: 0
A85: 28 | C85: ='FR-16(7)(v)-1 Functional'!C85 -> CONDUCTORS - UNDERGROUND / SECONDARY - CUSTOMER | D85: ='FR-16(7)(v)-1 Functional'!D85 -> K405 | F85: ='FR-16(7)(v)-1 Functional'!G85 -> 0 | G85: 0 | H85: 0 | I85: 0 | J85: 0 | K85: 0
A86: 29 | C86: ='FR-16(7)(v)-1 Functional'!C86 -> TRANSFORMERS DEMAND RELATED | D86: ='FR-16(7)(v)-1 Functional'!D86 -> K215 | F86: ='FR-16(7)(v)-1 Functional'!G86 -> 0 | G86: =ROUND(F86*VLOOKUP(D86,AllocTable_Classified_Production,$G$10,FALSE),0) -> 0 | H86: =ROUND(F86*VLOOKUP(D86,AllocTable_Classified_Production,$H$10,FALSE),0) -> 0 | I86: =ROUND(F86*VLOOKUP(D86,AllocTable_Classified_Production,$I$10,FALSE),0) -> 0 | J86: =SUM(G86:I86) -> 0 | K86: =F86-J86 -> 0
A87: 30 | C87: ='FR-16(7)(v)-1 Functional'!C87 -> TRANSFORMERS CUSTOMER RELATED | D87: ='FR-16(7)(v)-1 Functional'!D87 -> K405 | F87: ='FR-16(7)(v)-1 Functional'!G87 -> 0 | G87: 0 | H87: 0 | I87: 0 | J87: 0 | K87: 0
A88: 31 | C88: ='FR-16(7)(v)-1 Functional'!C88 -> SERVICES | D88: ='FR-16(7)(v)-1 Functional'!D88 -> K217 | F88: ='FR-16(7)(v)-1 Functional'!G88 -> 0 | G88: 0 | H88: 0 | I88: 0 | J88: 0 | K88: 0
A89: 32 | C89: ='FR-16(7)(v)-1 Functional'!C89 -> METERS | D89: ='FR-16(7)(v)-1 Functional'!D89 -> K407 | F89: ='FR-16(7)(v)-1 Functional'!G89 -> 0 | G89: 0 | H89: 0 | I89: 0 | J89: 0 | K89: 0
A90: 33 | C90: ='FR-16(7)(v)-1 Functional'!C90 -> STREET LIGHTS | D90: ='FR-16(7)(v)-1 Functional'!D90 -> K401 | F90: ='FR-16(7)(v)-1 Functional'!G90 -> 0 | G90: 0 | H90: 0 | I90: 0 | J90: 0 | K90: 0
A91: 34 | C91: ='FR-16(7)(v)-1 Functional'!C91 -> ADJUSTMENT | D91: ='FR-16(7)(v)-1 Functional'!D91 -> K209 | F91: ='FR-16(7)(v)-1 Functional'!G91 -> 0 | G91: 0 | H91: 0 | I91: 0 | J91: 0 | K91: 0
A92: 35 | C92: ='FR-16(7)(v)-1 Functional'!C92 -> CONSTRUCTION NOT CLASSIFIED | D92: ='FR-16(7)(v)-1 Functional'!D92 -> K209 | F92: ='FR-16(7)(v)-1 Functional'!G92 -> 0 | G92: 0 | H92: 0 | I92: 0 | J92: 0 | K92: 0
A93: 36 | C93: ='FR-16(7)(v)-1 Functional'!C93 -> RWIP | D93: ='FR-16(7)(v)-1 Functional'!D93 -> K215 | F93: ='FR-16(7)(v)-1 Functional'!G93 -> 0 | G93: =ROUND(F93*VLOOKUP(D93,AllocTable_Classified_Production,$G$10,FALSE),0) -> 0 | H93: =ROUND(F93*VLOOKUP(D93,AllocTable_Classified_Production,$H$10,FALSE),0) -> 0 | I93: =ROUND(F93*VLOOKUP(D93,AllocTable_Classified_Production,$I$10,FALSE),0) -> 0 | J93: =SUM(G93:I93) -> 0 | K93: =F93-J93 -> 0
A94: 37 | C94: ='FR-16(7)(v)-1 Functional'!C94 -> DISTRIBUTION PLANT IN SERVICE | F94: =SUM(F73:F93) -> 0 | G94: =SUM(G73:G92) -> 0 | H94: 0 | I94: 0 | J94: 0 | K94: 0
A95: 38
A96: 39 | B96: TOTAL TRANS & DIST PLANT | F96: =F94+F68 -> 0 | G96: 0 | H96: 0 | I96: 0 | J96: 0 | K96: 0
A97: 40 | B97: TOTAL GROSS PTD PLANT | F97: =F94+F70 -> 1133778112 | G97: 1133778112 | H97: 0 | I97: 0 | J97: 1133778112 | K97: 0
A98: 41
A99: 42 | B99: GENERAL & INTANGIBLE PLANT
A100: 43 | C100: ='FR-16(7)(v)-1 Functional'!C100 -> PRODUCTION - DEMAND | D100: ='FR-16(7)(v)-1 Functional'!D100 -> K201 | F100: ='FR-16(7)(v)-1 Functional'!G100 -> 8795876 | G100: =ROUND(F100*VLOOKUP(D100,AllocTable_Classified_Production,$G$10,FALSE),0) -> 8795876 | H100: =ROUND(F100*VLOOKUP(D100,AllocTable_Classified_Production,$H$10,FALSE),0) -> 0 | I100: =ROUND(F100*VLOOKUP(D100,AllocTable_Classified_Production,$I$10,FALSE),0) -> 0 | J100: =SUM(G100:I100) -> 8795876 | K100: =F100-J100 -> 0
A101: 44 | C101: ='FR-16(7)(v)-1 Functional'!C101 -> PRODUCTION - ENERGY | D101: ='FR-16(7)(v)-1 Functional'!D101 -> K301 | F101: ='FR-16(7)(v)-1 Functional'!G101 -> 7707827 | G101: 0 | H101: 7707827 | I101: 0 | J101: =SUM(G101:I101) -> 7707827 | K101: =F101-J101 -> 0
A102: 45 | C102: ='FR-16(7)(v)-1 Functional'!C102 -> TRANSMISSION | D102: ='FR-16(7)(v)-1 Functional'!D102 -> K202 | F102: ='FR-16(7)(v)-1 Functional'!G102 -> 0 | G102: 0 | H102: 0 | I102: 0 | J102: 0 | K102: 0
A103: 46 | C103: ='FR-16(7)(v)-1 Functional'!C103 -> DISTRIBUTION - DEMAND | D103: ='FR-16(7)(v)-1 Functional'!D103 -> K201 | F103: ='FR-16(7)(v)-1 Functional'!G103 -> 4997840 | G103: 4997840 | H103: 0 | I103: 0 | J103: 4997840 | K103: 0
A104: 47 | C104: ='FR-16(7)(v)-1 Functional'!C104 -> DISTRIBUTION - CUSTOMER | D104: ='FR-16(7)(v)-1 Functional'!D104 -> K405 | F104: ='FR-16(7)(v)-1 Functional'!G104 -> 0 | G104: 0 | H104: 0 | I104: 0 | J104: 0 | K104: 0
A105: 48 | C105: ='FR-16(7)(v)-1 Functional'!C105 -> CUSTOMER ACCOUNTING | D105: ='FR-16(7)(v)-1 Functional'!D105 -> A308 | F105: ='FR-16(7)(v)-1 Functional'!G105 -> 0 | G105: 0 | H105: 0 | I105: 0 | J105: 0 | K105: 0
A106: 49 | C106: ='FR-16(7)(v)-1 Functional'!C106 -> CUSTOMER SERVICE & INFORMATION | D106: ='FR-16(7)(v)-1 Functional'!D106 -> A310 | F106: ='FR-16(7)(v)-1 Functional'!G106 -> 0 | G106: 0 | H106: 0 | I106: 0 | J106: 0 | K106: 0
A107: 50 | C107: ='FR-16(7)(v)-1 Functional'!C107 -> SALES | D107: ='FR-16(7)(v)-1 Functional'!D107 -> A312 | F107: ='FR-16(7)(v)-1 Functional'!G107 -> 0 | G107: 0 | H107: 0 | I107: 0 | J107: 0 | K107: 0
A108: 51 | C108: ='FR-16(7)(v)-1 Functional'!C108 -> ADJUSTMENT | D108: ='FR-16(7)(v)-1 Functional'!D108 -> A315 | F108: ='FR-16(7)(v)-1 Functional'!G108 -> 0 | G108: 0 | H108: 0 | I108: 0 | J108: 0 | K108: 0
A109: 52 | C109: ='FR-16(7)(v)-1 Functional'!C109 -> GEN & INTANG PLANT IN SERVICE | F109: =SUM(F100:F108) -> 21501543 | G109: 13793716 | H109: 7707827 | I109: 0 | J109: 21501543 | K109: 0
A110: 53
A111: 54 | B111: COMMON & OTHER PLANT
A112: 55 | C112: ='FR-16(7)(v)-1 Functional'!C112 -> PRODUCTION - DEMAND | D112: ='FR-16(7)(v)-1 Functional'!D112 -> K201 | F112: ='FR-16(7)(v)-1 Functional'!G112 -> 9654427 | G112: =ROUND(F112*VLOOKUP(D112,AllocTable_Classified_Production,$G$10,FALSE),0) -> 9654427 | H112: =ROUND(F112*VLOOKUP(D112,AllocTable_Classified_Production,$H$10,FALSE),0) -> 0 | I112: =ROUND(F112*VLOOKUP(D112,AllocTable_Classified_Production,$I$10,FALSE),0) -> 0 | J112: =SUM(G112:I112) -> 9654427 | K112: =F112-J112 -> 0
A113: 56 | C113: ='FR-16(7)(v)-1 Functional'!C113 -> PRODUCTION - ENERGY | D113: ='FR-16(7)(v)-1 Functional'!D113 -> K301 | F113: ='FR-16(7)(v)-1 Functional'!G113 -> 8460177 | G113: =ROUND(F113*VLOOKUP(D113,AllocTable_Classified_Production,$G$10,FALSE),0) -> 0 | H113: =ROUND(F113*VLOOKUP(D113,AllocTable_Classified_Production,$H$10,FALSE),0) -> 8460177 | I113: =ROUND(F113*VLOOKUP(D113,AllocTable_Classified_Production,$I$10,FALSE),0) -> 0 | J113: =SUM(G113:I113) -> 8460177 | K113: =F113-J113 -> 0
A114: 57 | C114: ='FR-16(7)(v)-1 Functional'!C114 -> TRANSMISSION | D114: ='FR-16(7)(v)-1 Functional'!D114 -> K202 | F114: ='FR-16(7)(v)-1 Functional'!G114 -> 0 | G114: 0 | H114: 0 | I114: 0 | J114: 0 | K114: 0
A115: 58 | C115: ='FR-16(7)(v)-1 Functional'!C115 -> DISTRIBUTION - DEMAND | D115: ='FR-16(7)(v)-1 Functional'!D115 -> K201 | F115: ='FR-16(7)(v)-1 Functional'!G115 -> 5485671 | G115: 5485671 | H115: 0 | I115: 0 | J115: 5485671 | K115: 0
A116: 59 | C116: ='FR-16(7)(v)-1 Functional'!C116 -> DISTRIBUTION - CUSTOMER | D116: ='FR-16(7)(v)-1 Functional'!D116 -> K405 | F116: ='FR-16(7)(v)-1 Functional'!G116 -> 0 | G116: 0 | H116: 0 | I116: 0 | J116: 0 | K116: 0
A117: 60 | C117: ='FR-16(7)(v)-1 Functional'!C117 -> CUSTOMER ACCOUNTING | D117: ='FR-16(7)(v)-1 Functional'!D117 -> A308 | F117: ='FR-16(7)(v)-1 Functional'!G117 -> 0 | G117: 0 | H117: 0 | I117: 0 | J117: 0 | K117: 0
A118: 61 | C118: ='FR-16(7)(v)-1 Functional'!C118 -> CUSTOMER SERVICE & INFORMATION | D118: ='FR-16(7)(v)-1 Functional'!D118 -> A310 | F118: ='FR-16(7)(v)-1 Functional'!G118 -> 0 | G118: 0 | H118: 0 | I118: 0 | J118: 0 | K118: 0
A119: 62 | C119: ='FR-16(7)(v)-1 Functional'!C119 -> SALES | D119: ='FR-16(7)(v)-1 Functional'!D119 -> A312 | F119: ='FR-16(7)(v)-1 Functional'!G119 -> 0 | G119: 0 | H119: 0 | I119: 0 | J119: 0 | K119: 0
A120: 63 | C120: ='FR-16(7)(v)-1 Functional'!C120 -> ADJUSTMENT | D120: ='FR-16(7)(v)-1 Functional'!D120 -> A315 | F120: ='FR-16(7)(v)-1 Functional'!G120 -> 0 | G120: 0 | H120: 0 | I120: 0 | J120: 0 | K120: 0
A121: 64 | C121: ='FR-16(7)(v)-1 Functional'!C121 -> COMMON & OTHER PLANT IN SERVICE | F121: =SUM(F112:F120) -> 23600275 | G121: 15140098 | H121: 8460177 | I121: 0 | J121: 23600275 | K121: 0
A122: 65
A123: 66 | B123: GROSS ELECTRIC PLANT IN SERVICE | F123: =F97+F109+F121 -> 1178879930 | G123: 1162711926 | H123: 16168004 | I123: 0 | J123: 1178879930 | K123: 0
A125: =co_name -> DUKE ENERGY KENTUCKY, INC. | J125: =J1 -> FR-16(7)(v)-2
A126: =$A$2 -> PRODUCTION CLASSIFIED - ELECTRIC COST OF SERVICE | J126: =J2 -> WITNESS RESPONSIBLE:
A127: =case_name -> CASE NO: 2017-00321 | J127: =Witness -> JAMES E. ZIOLKOWSKI
A128: =data_filing -> DATA: 12 MONTHS ACTUAL & 0 MONTHS ESTIMATED | J128: ="PAGE "&Pages-15&" OF "&Pages -> PAGE 3 OF 18
A129: =type -> TYPE OF FILING: "X" ORIGINAL UPDATED REVISED
A132: LINE | F132: =$F$8 -> TOTAL | G132: CLASSIFIED | J132: TOTAL | K132: ALL
A133: NO. | B133: DEPRECIATION RESERVE | D133: ALLO | F133: =$F$9 -> PRODUCTION | G133: =G9 -> DEMAND | H133: ENERGY | I133: CUSTOMER | J133: AT ISSUE | K133: OTHER
C134: Schedule 3 | G134: 3 | H134: 4 | I134: 5
A135: 1 | B135: PRODUCTION PLANT
A136: 2 | C136: ='FR-16(7)(v)-1 Functional'!C136 -> PRODUCTION STEAM | D136: ='FR-16(7)(v)-1 Functional'!D136 -> K201 | F136: ='FR-16(7)(v)-1 Functional'!G136 -> 451443084 | G136: =F136-SUM(H136:I136) -> 451443084 | H136: =ROUND(F136*VLOOKUP(D136,AllocTable_Classified_Production,$H$10,FALSE),0) -> 0 | I136: =ROUND(F136*VLOOKUP(D136,AllocTable_Classified_Production,$I$10,FALSE),0) -> 0 | J136: =SUM(G136:I136) -> 451443084 | K136: =F136-J136 -> 0
A137: 3 | C137: ='FR-16(7)(v)-1 Functional'!C137 -> PRODUCTION OTHER | D137: ='FR-16(7)(v)-1 Functional'!D137 -> K201 | F137: ='FR-16(7)(v)-1 Functional'!G137 -> 169211512 | G137: =F137-SUM(H137:I137) -> 169211512 | H137: =ROUND(F137*VLOOKUP(D137,AllocTable_Classified_Production,$H$10,FALSE),0) -> 0 | I137: =ROUND(F137*VLOOKUP(D137,AllocTable_Classified_Production,$I$10,FALSE),0) -> 0 | J137: =SUM(G137:I137) -> 169211512 | K137: =F137-J137 -> 0
A138: 4 | C138: ='FR-16(7)(v)-1 Functional'!C138 -> ADJUSTMENT | D138: ='FR-16(7)(v)-1 Functional'!D138 -> K201 | F138: ='FR-16(7)(v)-1 Functional'!G138 -> 5973380 | G138: =F138-SUM(H138:I138) -> 5973380 | H138: =ROUND(F138*VLOOKUP(D138,AllocTable_Classified_Production,$H$10,FALSE),0) -> 0 | I138: =ROUND(F138*VLOOKUP(D138,AllocTable_Classified_Production,$I$10,FALSE),0) -> 0 | J138: =SUM(G138:I138) -> 5973380 | K138: =F138-J138 -> 0
A139: 5 | C139: ='FR-16(7)(v)-1 Functional'!C139 -> TOTAL PROD DEPREC RESERVE | F139: =SUM(F136:F138) -> 626627976 | G139: 626627976 | H139: 0 | I139: 0 | J139: 626627976 | K139: 0
A140: 6
A141: 7 | B141: TRANSMISSION PLANT
A142: 8 | C142: ='FR-16(7)(v)-1 Functional'!C142 -> MAIN STEP-UP TRANSFORMERS | D142: ='FR-16(7)(v)-1 Functional'!D142 -> K202 | F142: ='FR-16(7)(v)-1 Functional'!G142 -> 0 | G142: =F142-SUM(H142:I142) -> 0 | H142: =ROUND(F142*VLOOKUP(D142,AllocTable_Classified_Production,$H$10,FALSE),0) -> 0 | I142: =ROUND(F142*VLOOKUP(D142,AllocTable_Classified_Production,$I$10,FALSE),0) -> 0 | J142: =SUM(G142:I142) -> 0 | K142: =F142-J142 -> 0
A143: 9 | C143: ='FR-16(7)(v)-1 Functional'!C143 -> OTHER TRANSMISSION | D143: ='FR-16(7)(v)-1 Functional'!D143 -> K202 | F143: ='FR-16(7)(v)-1 Functional'!G143 -> 0 | G143: =F143-SUM(H143:I143) -> 0 | H143: =ROUND(F143*VLOOKUP(D143,AllocTable_Classified_Production,$H$10,FALSE),0) -> 0 | I143: =ROUND(F143*VLOOKUP(D143,AllocTable_Classified_Production,$I$10,FALSE),0) -> 0 | J143: =SUM(G143:I143) -> 0 | K143: =F143-J143 -> 0
A144: 10 | C144: ='FR-16(7)(v)-1 Functional'!C144 -> ADJUSTMENT | D144: ='FR-16(7)(v)-1 Functional'!D144 -> K202 | F144: ='FR-16(7)(v)-1 Functional'!G144 -> 0 | G144: =F144-SUM(H144:I144) -> 0 | H144: =ROUND(F144*VLOOKUP(D144,AllocTable_Classified_Production,$H$10,FALSE),0) -> 0 | I144: =ROUND(F144*VLOOKUP(D144,AllocTable_Classified_Production,$I$10,FALSE),0) -> 0 | J144: =SUM(G144:I144) -> 0 | K144: =F144-J144 -> 0
A145: 11 | C145: ='FR-16(7)(v)-1 Functional'!C145 -> TOTAL TRANS DEPREC RESERVE | F145: =SUM(F142:F144) -> 0 | G145: 0 | H145: 0 | I145: 0 | J145: 0 | K145: 0
A146: 12
A147: 13 | C147: ='FR-16(7)(v)-1 Functional'!C147 -> TOTAL PROD & TRANS DEPREC RESERVE | F147: =F145+F139 -> 626627976 | G147: =G145+G139 -> 626627976 | H147: =H145+H139 -> 0 | I147: =I145+I139 -> 0 | J147: =J145+J139 -> 626627976 | K147: =F147-J147 -> 0
A148: 14
A149: 15 | B149: DISTRIBUTION PLANT
A150: 16 | C150: ='FR-16(7)(v)-1 Functional'!C150 -> SUBSTATIONS | D150: ='FR-16(7)(v)-1 Functional'!D150 -> K215 | F150: ='FR-16(7)(v)-1 Functional'!G150 -> 0 | G150: =F150-SUM(H150:I150) -> 0 | H150: =ROUND(F150*VLOOKUP(D150,AllocTable_Classified_Production,$H$10,FALSE),0) -> 0 | I150: =ROUND(F150*VLOOKUP(D150,AllocTable_Classified_Production,$I$10,FALSE),0) -> 0 | J150: =SUM(G150:I150) -> 0 | K150: =F150-J150 -> 0
A151: 17 | C151: ='FR-16(7)(v)-1 Functional'!C151 -> POLES, TOWERS & FIXTURES - PRIMARY - DEMAND | D151: ='FR-16(7)(v)-1 Functional'!D151 -> K205 | F151: ='FR-16(7)(v)-1 Functional'!G151 -> 0 | G151: =F151-SUM(H151:I151) -> 0 | H151: =ROUND(F151*VLOOKUP(D151,AllocTable_Classified_Production,$H$10,FALSE),0) -> 0 | I151: =ROUND(F151*VLOOKUP(D151,AllocTable_Classified_Production,$I$10,FALSE),0) -> 0 | J151: =SUM(G151:I151) -> 0 | K151: =F151-J151 -> 0
A152: 18 | C152: ='FR-16(7)(v)-1 Functional'!C152 -> POLES, TOWERS & FIXTURES - PRIMARY - CUSTOMER | D152: ='FR-16(7)(v)-1 Functional'!D152 -> K405 | F152: ='FR-16(7)(v)-1 Functional'!G152 -> 0 | G152: =F152-SUM(H152:I152) -> 0 | H152: =ROUND(F152*VLOOKUP(D152,AllocTable_Classified_Production,$H$10,FALSE),0) -> 0 | I152: =ROUND(F152*VLOOKUP(D152,AllocTable_Classified_Production,$I$10,FALSE),0) -> 0 | J152: =SUM(G152:I152) -> 0 | K152: =F152-J152 -> 0
A153: 19 | C153: ='FR-16(7)(v)-1 Functional'!C153 -> POLES, TOWERS & FIXTURES - SECONDARY - DEMAND | D153: ='FR-16(7)(v)-1 Functional'!D153 -> K206 | F153: ='FR-16(7)(v)-1 Functional'!G153 -> 0 | G153: 0 | H153: 0 | I153: 0 | J153: 0 | K153: 0
A154: 20 | C154: ='FR-16(7)(v)-1 Functional'!C154 -> POLES, TOWERS & FIXTURES - SECONDARY - CUSTOMER | D154: ='FR-16(7)(v)-1 Functional'!D154 -> K405 | F154: ='FR-16(7)(v)-1 Functional'!G154 -> 0 | G154: 0 | H154: 0 | I154: 0 | J154: 0 | K154: 0
A155: 21 | C155: ='FR-16(7)(v)-1 Functional'!C155 -> CONDUCTORS - OVERHEAD / PRIMARY - DEMAND | D155: ='FR-16(7)(v)-1 Functional'!D155 -> K205 | F155: ='FR-16(7)(v)-1 Functional'!G155 -> 0 | G155: 0 | H155: 0 | I155: 0 | J155: 0 | K155: 0
A156: 22 | C156: ='FR-16(7)(v)-1 Functional'!C156 -> CONDUCTORS - OVERHEAD / PRIMARY - CUSTOMER | D156: ='FR-16(7)(v)-1 Functional'!D156 -> K405 | F156: ='FR-16(7)(v)-1 Functional'!G156 -> 0 | G156: 0 | H156: 0 | I156: 0 | J156: 0 | K156: 0
A157: 23 | C157: ='FR-16(7)(v)-1 Functional'!C157 -> CONDUCTORS - OVERHEAD / SECONDARY - DEMAND | D157: ='FR-16(7)(v)-1 Functional'!D157 -> K206 | F157: ='FR-16(7)(v)-1 Functional'!G157 -> 0 | G157: 0 | H157: 0 | I157: 0 | J157: 0 | K157: 0
A158: 24 | C158: ='FR-16(7)(v)-1 Functional'!C158 -> CONDUCTORS - OVERHEAD / SECONDARY - CUSTOMER | D158: ='FR-16(7)(v)-1 Functional'!D158 -> K405 | F158: ='FR-16(7)(v)-1 Functional'!G158 -> 0 | G158: 0 | H158: 0 | I158: 0 | J158: 0 | K158: 0
A159: 25 | C159: ='FR-16(7)(v)-1 Functional'!C159 -> CONDUCTORS - UNDERGROUND / PRIMARY - DEMAND | D159: ='FR-16(7)(v)-1 Functional'!D159 -> K205 | F159: ='FR-16(7)(v)-1 Functional'!G159 -> 0 | G159: 0 | H159: 0 | I159: 0 | J159: 0 | K159: 0
A160: 26 | C160: ='FR-16(7)(v)-1 Functional'!C160 -> CONDUCTORS - UNDERGROUND / PRIMARY - CUSTOMER | D160: ='FR-16(7)(v)-1 Functional'!D160 -> K405 | F160: ='FR-16(7)(v)-1 Functional'!G160 -> 0 | G160: 0 | H160: 0 | I160: 0 | J160: 0 | K160: 0
A161: 27 | C161: ='FR-16(7)(v)-1 Functional'!C161 -> CONDUCTORS - UNDERGROUND / SECONDARY - DEMAND | D161: ='FR-16(7)(v)-1 Functional'!D161 -> K206 | F161: ='FR-16(7)(v)-1 Functional'!G161 -> 0 | G161: 0 | H161: 0 | I161: 0 | J161: 0 | K161: 0
A162: 28 | C162: ='FR-16(7)(v)-1 Functional'!C162 -> CONDUCTORS - UNDERGROUND / SECONDARY - CUSTOMER | D162: ='FR-16(7)(v)-1 Functional'!D162 -> K405 | F162: ='FR-16(7)(v)-1 Functional'!G162 -> 0 | G162: 0 | H162: 0 | I162: 0 | J162: 0 | K162: 0
A163: 29 | C163: ='FR-16(7)(v)-1 Functional'!C163 -> TRANSFORMERS DEMAND RELATED | D163: ='FR-16(7)(v)-1 Functional'!D163 -> K215 | F163: ='FR-16(7)(v)-1 Functional'!G163 -> 0 | G163: =F163-SUM(H163:I163) -> 0 | H163: =ROUND(F163*VLOOKUP(D163,AllocTable_Classified_Production,$H$10,FALSE),0) -> 0 | I163: =ROUND(F163*VLOOKUP(D163,AllocTable_Classified_Production,$I$10,FALSE),0) -> 0 | J163: =SUM(G163:I163) -> 0 | K163: =F163-J163 -> 0
A164: 30 | C164: ='FR-16(7)(v)-1 Functional'!C164 -> TRANSFORMERS CUSTOMER RELATED | D164: ='FR-16(7)(v)-1 Functional'!D164 -> K405 | F164: ='FR-16(7)(v)-1 Functional'!G164 -> 0 | G164: 0 | H164: 0 | I164: 0 | J164: 0 | K164: 0
A165: 31 | C165: ='FR-16(7)(v)-1 Functional'!C165 -> SERVICES | D165: ='FR-16(7)(v)-1 Functional'!D165 -> K217 | F165: ='FR-16(7)(v)-1 Functional'!G165 -> 0 | G165: 0 | H165: 0 | I165: 0 | J165: 0 | K165: 0
A166: 32 | C166: ='FR-16(7)(v)-1 Functional'!C166 -> METERS | D166: ='FR-16(7)(v)-1 Functional'!D166 -> K407 | F166: ='FR-16(7)(v)-1 Functional'!G166 -> 0 | G166: 0 | H166: 0 | I166: 0 | J166: 0 | K166: 0
A167: 33 | C167: ='FR-16(7)(v)-1 Functional'!C167 -> STREET LIGHTS | D167: ='FR-16(7)(v)-1 Functional'!D167 -> K401 | F167: ='FR-16(7)(v)-1 Functional'!G167 -> 0 | G167: 0 | H167: 0 | I167: 0 | J167: 0 | K167: 0
A168: 34 | C168: ='FR-16(7)(v)-1 Functional'!C168 -> ADJUSTMENT | D168: ='FR-16(7)(v)-1 Functional'!D168 -> K209 | F168: ='FR-16(7)(v)-1 Functional'!G168 -> 0 | G168: 0 | H168: 0 | I168: 0 | J168: 0 | K168: 0
A169: 35 | C169: ='FR-16(7)(v)-1 Functional'!C169 -> CONSTRUCTION NOT CLASSIFIED | D169: ='FR-16(7)(v)-1 Functional'!D169 -> K209 | F169: ='FR-16(7)(v)-1 Functional'!G169 -> 0 | G169: 0 | H169: 0 | I169: 0 | J169: 0 | K169: 0
A170: 36 | C170: ='FR-16(7)(v)-1 Functional'!C170 -> RWIP | D170: ='FR-16(7)(v)-1 Functional'!D170 -> K215 | F170: ='FR-16(7)(v)-1 Functional'!G170 -> 0 | G170: =F170-SUM(H170:I170) -> 0 | H170: =ROUND(F170*VLOOKUP(D170,AllocTable_Classified_Production,$H$10,FALSE),0) -> 0 | I170: =ROUND(F170*VLOOKUP(D170,AllocTable_Classified_Production,$I$10,FALSE),0) -> 0 | J170: =SUM(G170:I170) -> 0 | K170: =F170-J170 -> 0
A171: 37 | C171: ='FR-16(7)(v)-1 Functional'!C171 -> TOTAL DIST DEPREC RESERVE | F171: =SUM(F149:F170) -> 0 | G171: =SUM(G149:G169) -> 0 | H171: 0 | I171: 0 | J171: 0 | K171: 0
A172: 38
A173: 39 | C173: TOTAL TRANS & DIST DEPREC RESERVE | F173: =F171+F145 -> 0 | G173: =G171+G145 -> 0 | H173: =H171+H145 -> 0 | I173: =I171+I145 -> 0 | J173: =J171+J145 -> 0 | K173: =F173-J173 -> 0
A174: 40 | C174: TOTAL GROSS PTD PLANT DEPREC RESERVE | F174: =F147+F171 -> 626627976 | G174: =G147+G171 -> 626627976 | H174: =H147+H171 -> 0 | I174: =I147+I171 -> 0 | J174: =J147+J171 -> 626627976 | K174: =F174-J174 -> 0
A175: 41
A176: 42 | B176: GENERAL & INTANGIBLE PLANT
A177: 43 | C177: ='FR-16(7)(v)-1 Functional'!C177 -> PRODUCTION - DEMAND | D177: ='FR-16(7)(v)-1 Functional'!D177 -> K201 | F177: ='FR-16(7)(v)-1 Functional'!G177 -> 4910013 | G177: =F177-SUM(H177:I177) -> 4910013 | H177: =ROUND(F177*VLOOKUP(D177,AllocTable_Classified_Production,$H$10,FALSE),0) -> 0 | I177: =ROUND(F177*VLOOKUP(D177,AllocTable_Classified_Production,$I$10,FALSE),0) -> 0 | J177: =SUM(G177:I177) -> 4910013 | K177: =F177-J177 -> 0
A178: 44 | C178: ='FR-16(7)(v)-1 Functional'!C178 -> PRODUCTION - ENERGY | D178: ='FR-16(7)(v)-1 Functional'!D178 -> K301 | F178: ='FR-16(7)(v)-1 Functional'!G178 -> 4302645 | G178: =F178-SUM(H178:I178) -> 0 | H178: 4302645 | I178: 0 | J178: =SUM(G178:I178) -> 4302645 | K178: =F178-J178 -> 0
A179: 45 | C179: ='FR-16(7)(v)-1 Functional'!C179 -> TRANSMISSION | D179: ='FR-16(7)(v)-1 Functional'!D179 -> K202 | F179: ='FR-16(7)(v)-1 Functional'!G179 -> 0 | G179: 0 | H179: 0 | I179: 0 | J179: 0 | K179: 0
A180: 46 | C180: ='FR-16(7)(v)-1 Functional'!C180 -> DISTRIBUTION - DEMAND | D180: ='FR-16(7)(v)-1 Functional'!D180 -> K201 | F180: ='FR-16(7)(v)-1 Functional'!G180 -> 2789882 | G180: 2789882 | H180: 0 | I180: 0 | J180: 2789882 | K180: 0
A181: 47 | C181: ='FR-16(7)(v)-1 Functional'!C181 -> DISTRIBUTION - CUSTOMER | D181: ='FR-16(7)(v)-1 Functional'!D181 -> K405 | F181: ='FR-16(7)(v)-1 Functional'!G181 -> 0 | G181: 0 | H181: 0 | I181: 0 | J181: 0 | K181: 0
A182: 48 | C182: ='FR-16(7)(v)-1 Functional'!C182 -> CUSTOMER ACCOUNTING | D182: ='FR-16(7)(v)-1 Functional'!D182 -> A308 | F182: ='FR-16(7)(v)-1 Functional'!G182 -> 0 | G182: 0 | H182: 0 | I182: 0 | J182: 0 | K182: 0
A183: 49 | C183: ='FR-16(7)(v)-1 Functional'!C183 -> CUSTOMER SERVICE & INFORMATION | D183: ='FR-16(7)(v)-1 Functional'!D183 -> A310 | F183: ='FR-16(7)(v)-1 Functional'!G183 -> 0 | G183: 0 | H183: 0 | I183: 0 | J183: 0 | K183: 0
A184: 50 | C184: ='FR-16(7)(v)-1 Functional'!C184 -> SALES | D184: ='FR-16(7)(v)-1 Functional'!D184 -> A312 | F184: ='FR-16(7)(v)-1 Functional'!G184 -> 0 | G184: 0 | H184: 0 | I184: 0 | J184: 0 | K184: 0
A185: 51 | C185: ='FR-16(7)(v)-1 Functional'!C185 -> ADJUSTMENT | D185: ='FR-16(7)(v)-1 Functional'!D185 -> A315 | F185: ='FR-16(7)(v)-1 Functional'!G185 -> -1529897 | G185: -826542 | H185: -703355 | I185: 0 | J185: -1529897 | K185: 0
A186: 52 | C186: ='FR-16(7)(v)-1 Functional'!C186 -> GENERAL & INTANG PLANT | F186: =SUM(F176:F185) -> 10472643 | G186: 6873353 | H186: 3599290 | I186: 0 | J186: 10472643 | K186: 0
A187: 53
A188: 54 | B188: COMMON & OTHER PLANT
A189: 55 | C189: ='FR-16(7)(v)-1 Functional'!C189 -> PRODUCTION - DEMAND | D189: ='FR-16(7)(v)-1 Functional'!D189 -> K201 | F189: ='FR-16(7)(v)-1 Functional'!G189 -> 9493775.461 | G189: =F189-SUM(H189:I189) -> 9493775.461 | H189: =ROUND(F189*VLOOKUP(D189,AllocTable_Classified_Production,$H$10,FALSE),0) -> 0 | I189: =ROUND(F189*VLOOKUP(D189,AllocTable_Classified_Production,$I$10,FALSE),0) -> 0 | J189: =SUM(G189:I189) -> 9493775.461 | K189: =F189-J189 -> 0
A190: 56 | C190: ='FR-16(7)(v)-1 Functional'!C190 -> PRODUCTION - ENERGY | D190: ='FR-16(7)(v)-1 Functional'!D190 -> K301 | F190: ='FR-16(7)(v)-1 Functional'!G190 -> 8319397 | G190: =F190-SUM(H190:I190) -> 0 | H190: 8319397 | I190: 0 | J190: =SUM(G190:I190) -> 8319397 | K190: =F190-J190 -> 0
A191: 57 | C191: ='FR-16(7)(v)-1 Functional'!C191 -> TRANSMISSION | D191: ='FR-16(7)(v)-1 Functional'!D191 -> K202 | F191: ='FR-16(7)(v)-1 Functional'!G191 -> 0 | G191: 0 | H191: 0 | I191: 0 | J191: 0 | K191: 0
A192: 58 | C192: ='FR-16(7)(v)-1 Functional'!C192 -> DISTRIBUTION - DEMAND | D192: ='FR-16(7)(v)-1 Functional'!D192 -> K201 | F192: ='FR-16(7)(v)-1 Functional'!G192 -> 5394388 | G192: 5394388 | H192: 0 | I192: 0 | J192: 5394388 | K192: 0
A193: 59 | C193: ='FR-16(7)(v)-1 Functional'!C193 -> DISTRIBUTION - CUSTOMER | D193: ='FR-16(7)(v)-1 Functional'!D193 -> K405 | F193: ='FR-16(7)(v)-1 Functional'!G193 -> 0 | G193: 0 | H193: 0 | I193: 0 | J193: 0 | K193: 0
A194: 60 | C194: ='FR-16(7)(v)-1 Functional'!C194 -> CUSTOMER ACCOUNTING | D194: ='FR-16(7)(v)-1 Functional'!D194 -> A308 | F194: ='FR-16(7)(v)-1 Functional'!G194 -> 0 | G194: 0 | H194: 0 | I194: 0 | J194: 0 | K194: 0
A195: 61 | C195: ='FR-16(7)(v)-1 Functional'!C195 -> CUSTOMER SERVICE & INFORMATION | D195: ='FR-16(7)(v)-1 Functional'!D195 -> A310 | F195: ='FR-16(7)(v)-1 Functional'!G195 -> 0 | G195: 0 | H195: 0 | I195: 0 | J195: 0 | K195: 0
A196: 62 | C196: ='FR-16(7)(v)-1 Functional'!C196 -> SALES | D196: ='FR-16(7)(v)-1 Functional'!D196 -> A312 | F196: ='FR-16(7)(v)-1 Functional'!G196 -> 0 | G196: 0 | H196: 0 | I196: 0 | J196: 0 | K196: 0
A197: 63 | C197: ='FR-16(7)(v)-1 Functional'!C197 -> ADJUSTMENT | D197: ='FR-16(7)(v)-1 Functional'!D197 -> A315 | F197: ='FR-16(7)(v)-1 Functional'!G197 -> -128275 | G197: -69302 | H197: -58973 | I197: 0 | J197: -128275 | K197: 0
A198: 64 | C198: ='FR-16(7)(v)-1 Functional'!C198 -> COMMON & OTHER PLANT IN SERVICE | F198: =SUM(F189:F197) -> 23079285.46 | G198: =SUM(G188:G197) -> 14818861.46 | H198: =SUM(H188:H197) -> 8260424 | I198: =SUM(I188:I197) -> 0 | J198: =SUM(J188:J197) -> 23079285.46 | K198: =SUM(K188:K197) -> 0
A199: 65
A200: 66 | B200: TOTAL DEPRECIATION RESERVE | F200: =F198+F186+F171+F145+F139 -> 660179904.5 | G200: 648320190.5 | H200: 11859714 | I200: 0 | J200: 660179904.5 | K200: 0
A202: =co_name -> DUKE ENERGY KENTUCKY, INC. | J202: =J1 -> FR-16(7)(v)-2
A203: =$A$2 -> PRODUCTION CLASSIFIED - ELECTRIC COST OF SERVICE | J203: =J2 -> WITNESS RESPONSIBLE:
A204: =case_name -> CASE NO: 2017-00321 | J204: =Witness -> JAMES E. ZIOLKOWSKI
A205: =data_filing -> DATA: 12 MONTHS ACTUAL & 0 MONTHS ESTIMATED | J205: ="PAGE "&Pages-14&" OF "&Pages -> PAGE 4 OF 18
A206: =type -> TYPE OF FILING: "X" ORIGINAL UPDATED REVISED
A209: LINE | F209: =$F$8 -> TOTAL | G209: CLASSIFIED | J209: TOTAL | K209: ALL
A210: NO. | B210: ="NET ELECTRIC PLANT" -> NET ELECTRIC PLANT | D210: ALLO | F210: =$F$9 -> PRODUCTION | G210: =G9 -> DEMAND | H210: ENERGY | I210: CUSTOMER | J210: AT ISSUE | K210: OTHER
C211: Schedule 4 | G211: 3 | H211: 4 | I211: 5
... 725 more rows

Sheet FR-16(7)(v)-3 PROD Demand
A1: =co_name -> DUKE ENERGY KENTUCKY, INC. | R1: FR-16(7)(v)-3
A2: =F8&" "&F9&" ALLOCATED - ELECTRIC COST OF SERVICE" -> PRODUCTION DEMAND ALLOCATED - ELECTRIC COST OF SERVICE | R2: WITNESS RESPONSIBLE:
A3: =case_name -> CASE NO: 2017-00321 | R3: =Witness -> JAMES E. ZIOLKOWSKI
A4: =data_filing -> DATA: 12 MONTHS ACTUAL & 0 MONTHS ESTIMATED | R4: ="PAGE "&Pages-17&" OF "&Pages -> PAGE 1 OF 18
A5: =type -> TYPE OF FILING: "X" ORIGINAL UPDATED REVISED
F7: TOTAL | H7: DS | I7: GSFL | J7: EH | K7: SP | L7: DT SEC | M7: DT PRI | N7: DP | O7: TT | Q7: OTHER
A8: LINE | F8: PRODUCTION | G8: RS | H8: SECONDARY | I8: SECONDARY | J8: SECONDARY | K8: SECONDARY | L8: SECONDARY | M8: PRIMARY | N8: PRIMARY | O8: TRANSMISSION | P8: LT | Q8: WATER | R8: TOTAL | S8: ALL
A9: NO. | B9: SUMMARY OF RESULTS | D9: ALLO | F9: DEMAND | G9: RESIDENTIAL | H9: DISTRIBUTION | I9: DISTRIBUTION | J9: DISTRIBUTION | K9: DISTRIBUTION | L9: DISTRIBUTION | M9: DISTRIBUTION | N9: DISTRIBUTION | O9: TIME OF DAY | P9: LIGHTING | Q9: PUMPING | R9: AT ISSUE | S9: OTHER
C10: Schedule 1 | G10: 3 | H10: 4 | I10: 5 | J10: 6 | K10: 7 | L10: 8 | M10: 9 | N10: 10 | O10: 11 | P10: 12 | Q10: 13
A11: 1 | B11: NET INCOME COMPUTATION
A12: 2 | C12: ='FR-16(7)(v)-1 Functional'!C12 -> GROSS ELECTRIC PLANT IN SERVICE | F12: =F123 -> 1162711926 | G12: =G123 -> 485769418 | H12: =H123 -> 342104730 | I12: =I123 -> 1581288 | J12: =J123 -> 5569390 | K12: 81390 | L12: 161954144 | M12: 110969226 | N12: 4046236 | O12: 48926917 | P12: 1662679 | Q12: =Q123 -> 46508 | R12: =SUM(G12:Q12) -> 1162711926 | S12: =F12-R12 -> 0
A13: 3 | C13: ='FR-16(7)(v)-1 Functional'!C13 -> TOTAL DEPRECIATION RESERVE | F13: =-F200 -> -648320190.5 | G13: =-G200 -> -270355208.5 | H13: =-H200 -> -191011211 | I13: =-I200 -> -882899 | J13: =-J200 -> -3109618 | K13: -45446 | L13: -90425692 | M13: -61958706 | N13: -2259181 | O13: -27317917 | P13: -928343 | Q13: =-Q200 -> -25969 | R13: =SUM(G13:Q13) -> -648320190.5 | S13: =F13-R13 -> 0
A14: 4 | C14: ='FR-16(7)(v)-1 Functional'!C14 -> TOTAL RATE BASE ADJUSTMENTS | F14: =F421 -> -104860896 | G14: =G421 -> -46679026 | H14: =H421 -> -29403262 | I14: =I421 -> -136167 | J14: =J421 -> -478485 | K14: -7000 | L14: -13919294 | M14: -9537833 | N14: -347313 | O14: -4205357 | P14: -143166 | Q14: =Q421 -> -3993 | R14: =SUM(G14:Q14) -> -104860896 | S14: =F14-R14 -> 0
A15: 5 | C15: ='FR-16(7)(v)-1 Functional'!C15 -> TOTAL RATE BASE | F15: =SUM($F$12:F14) -> 409530839.5 | G15: =SUM(G12:G14) -> 168735183.5 | H15: =SUM(H12:H14) -> 121690257 | I15: =SUM(I12:I14) -> 562222 | J15: =SUM(J12:J14) -> 1981287 | K15: 28944 | L15: 57609158 | M15: 39472687 | N15: 1439742 | O15: 17403643 | P15: 591170 | Q15: =SUM(Q12:Q14) -> 16546 | R15: =SUM(R12:R14) -> 409530839.5 | S15: =F15-R15 -> 0
A16: 6
A17: 7 | B17: OPERATING EXPENSES
A18: 8 | C18: ='FR-16(7)(v)-1 Functional'!C18 -> TOTAL O&M EXPENSE | F18: =F549 -> 8465910 | G18: =G549 -> 8008823 | H18: =H549 -> 230994 | I18: =I549 -> 1070 | J18: =J549 -> 3763 | K18: 51 | L18: 109357 | M18: 74928 | N18: 2731 | O18: 33043 | P18: 1121 | Q18: =Q549 -> 29 | R18: =SUM(G18:Q18) -> 8465910 | S18: =F18-R18 -> 0
A19: 9 | C19: ='FR-16(7)(v)-1 Functional'!C19 -> TOTAL DEPRECIATION EXPENSE | F19: =F582 -> 33043451 | G19: =G582 -> 13906993 | H19: =H582 -> 9670939 | I19: =I582 -> 44699 | J19: =J582 -> 157435 | K19: 2298 | L19: 4578282 | M19: 3136985 | N19: 114388 | O19: 1383114 | P19: 46997 | Q19: =Q582 -> 1321 | R19: =SUM(G19:Q19) -> 33043451 | S19: 0
A20: 10 | C20: ='FR-16(7)(v)-1 Functional'!C20 -> TOTAL OTHER TAX & MISC EXPENSE | F20: =F612 -> 6905174 | G20: =G612 -> 3254735 | H20: =H612 -> 1844514 | I20: =I612 -> 8559 | J20: =J612 -> 29932 | K20: 439 | L20: 873518 | M20: 598479 | N20: 21777 | O20: 263845 | P20: 9126 | Q20: =$Q$612 -> 250 | R20: =SUM(G20:Q20) -> 6905174 | S20: 0
A21: 11 | C21: ='FR-16(7)(v)-1 Functional'!C21 -> TOTAL OP EXP EXCLUDING INC & REV TAX | F21: =SUM($F$17:F20) -> 48414535 | G21: =SUM(G17:G20) -> 25170551 | H21: =SUM(H17:H20) -> 11746447 | I21: =SUM(I17:I20) -> 54328 | J21: =SUM(J17:J20) -> 191130 | K21: 2788 | L21: 5561157 | M21: 3810392 | N21: 138896 | O21: 1680002 | P21: 57244 | Q21: =SUM(Q17:Q20) -> 1600 | R21: =SUM(R17:R20) -> 48414535 | S21: 0
A22: 12 | C22: ='FR-16(7)(v)-1 Functional'!C22 -> NET FED INCOME TAX EXP ALLOWABLE | F22: =F676 -> -9059190 | G22: =G676 -> -3054048 | H22: =H676 -> -3034847 | I22: =I676 -> -14001 | J22: =J676 -> -49278 | K22: -733 | L22: -1436704 | M22: -984524 | N22: -35800 | O22: -434081 | P22: -14748 | Q22: =$Q$676 -> -426 | R22: =SUM(G22:Q22) -> -9059190 | S22: 0
A23: 13 | C23: NET STATE INCOME TAX EXP ALLOWABLE | F23: =F722 -> 405289.691 | G23: =G722 -> 319049.691 | H23: 43576 | I23: 209 | J23: 728 | K23: 8 | L23: 20624 | M23: 14123 | N23: 523 | O23: 6229 | P23: 216 | Q23: 4 | R23: =SUM(G23:Q23) -> 405289.691 | S23: 0
A24: 14 | C24: AFUDC OFFSET | D24: ='FR-16(7)(v)-1 Functional'!D24 -> CW29 | F24: ='FR-16(7)(v)-2 PROD Classified'!G24 -> 0 | G24: =F24-SUM(H24:Q24) -> 0 | H24: =ROUND(F24*VLOOKUP(D73,ALLOCTABLE_Prod_Demand,$H$10,FALSE),0) -> 0 | I24: =ROUND(F24*VLOOKUP($D$24,ALLOCTABLE_Prod_Demand,$I$10,FALSE),0) -> 0 | J24: =ROUND(F24*VLOOKUP($D$24,ALLOCTABLE_Prod_Demand,$J$10,FALSE),0) -> 0 | K24: =ROUND(F24*VLOOKUP($D$24,ALLOCTABLE_Prod_Demand,$K$10,FALSE),0) -> 0 | L24: =ROUND(F24*VLOOKUP($D$24,ALLOCTABLE_Prod_Demand,$L$10,FALSE),0) -> 0 | M24: =ROUND(F24*VLOOKUP($D$24,ALLOCTABLE_Prod_Demand,$M$10,FALSE),0) -> 0 | N24: =ROUND(F24*VLOOKUP($D$24,ALLOCTABLE_Prod_Demand,$N$10,FALSE),0) -> 0 | O24: =ROUND(F24*VLOOKUP($D$24,ALLOCTABLE_Prod_Demand,$O$10,FALSE),0) -> 0 | P24: =ROUND(F24*VLOOKUP($D$24,ALLOCTABLE_Prod_Demand,$P$10,FALSE),0) -> 0 | Q24: =ROUND(F24*VLOOKUP(D24,ALLOCTABLE_Prod_Demand,$Q$10,FALSE),0) -> 0 | R24: =SUM(G24:Q24) -> 0 | S24: =F24-R24 -> 0
A25: 15 | C25: ='FR-16(7)(v)-1 Functional'!C25 -> REVENUE TAX | F25: =F767 -> 0 | G25: =G767 -> 0 | H25: =H767 -> 0 | I25: =I767 -> 0 | J25: =J767 -> 0 | K25: 0 | L25: 0 | M25: 0 | N25: 0 | O25: 0 | P25: 0 | Q25: =Q767 -> 0 | R25: =SUM(G25:Q25) -> 0 | S25: 0
A26: 16 | C26: ='FR-16(7)(v)-1 Functional'!C26 -> TOTAL OPERATING EXPENSE | F26: =SUM($F$21:F25) -> 39760634.69 | G26: =SUM(G21:G25) -> 22435552.69 | H26: =SUM(H21:H25) -> 8755176 | I26: =SUM(I21:I25) -> 40536 | J26: =SUM(J21:J25) -> 142580 | K26: 2063 | L26: 4145077 | M26: 2839991 | N26: 103619 | O26: 1252150 | P26: 42712 | Q26: =SUM(Q21:Q25) -> 1178 | R26: =SUM(R21:R25) -> 39760634.69 | S26: 0
A27: 17
A28: 18 | B28: RETURN ON CAPITALIZATION | F28: =F433 -> 31043712 | G28: 12790319 | H28: 9224639 | I28: 42530 | J28: 150252 | K28: 2173 | L28: 4366919 | M28: 2992303 | N28: 109274 | O28: 1319358 | P28: 44703 | Q28: 1242 | R28: =SUM(G28:Q28) -> 31043712 | S28: =F28-R28 -> 0
A29: 19 | B29: TOTAL OTHER OPERATING REVENUES | F29: =-F750 -> -7773 | G29: =-G750 -> -3075 | H29: =-H750 -> -2298 | I29: =-I750 -> -15 | J29: =-J750 -> -16 | K29: -1 | L29: -1173 | M29: -785 | N29: -24 | O29: -338 | P29: -48 | Q29: =-$Q$750 -> 0 | R29: =SUM(G29:Q29) -> -7773 | S29: 0
A30: 20 | C30: ='FR-16(7)(v)-1 Functional'!C30 -> TOTAL ELECTRIC COST OF SERVICE | F30: =SUM($F$26:F29) -> 70796573.69 | G30: =SUM(G26:G29) -> 35222796.69 | H30: =SUM(H26:H29) -> 17977517 | I30: =SUM(I26:I29) -> 83051 | J30: =SUM(J26:J29) -> 292816 | K30: 4235 | L30: 8510823 | M30: 5831509 | N30: 212869 | O30: 2571170 | P30: 87367 | Q30: =SUM(Q26:Q29) -> 2420 | R30: =SUM(R26:R29) -> 70796573.69 | S30: 0
A31: 21 | B31: ADJUSTMENT FOR INTERCLASS SUBSIDIZATION | D31: =1-'WP FR-16(7)(v) Rate Incr'!I11 -> 0.9 | F31: ='WP FR-16(7)(v) Rate Incr'!Q27 -> 0 | G31: ='WP FR-16(7)(v) Rate Incr'!Q15 -> -5655438 | H31: ='WP FR-16(7)(v) Rate Incr'!Q16 -> 5301900 | I31: ='WP FR-16(7)(v) Rate Incr'!Q17 -> 99611 | J31: ='WP FR-16(7)(v) Rate Incr'!R17 -> 8283 | K31: ='WP FR-16(7)(v) Rate Incr'!S17 -> 43282 | L31: ='WP FR-16(7)(v) Rate Incr'!T17 -> 102679 | M31: ='WP FR-16(7)(v) Rate Incr'!U17 -> 0 | N31: ='WP FR-16(7)(v) Rate Incr'!V17 -> 48497 | O31: ='WP FR-16(7)(v) Rate Incr'!W17 -> 0 | P31: ='WP FR-16(7)(v) Rate Incr'!X17 -> 0 | Q31: ='WP FR-16(7)(v) Rate Incr'!Q25 -> -93412 | R31: =SUM(G31:Q31) -> -144598 | S31: 144598
A32: 22 | B32: ='FR-16(7)(v)-1 Functional'!$B$32 -> REQUESTED REVENUES (COST OF SERVICE ADJUSTED FOR SUBSIDIES) | F32: =F31+F30 -> 70796573.69 | G32: 29567358.69 | H32: 23279417 | I32: 182662 | J32: =J31+J30 -> 301099 | K32: 47517 | L32: 8613502 | M32: 5831509 | N32: 261366 | O32: 2571170 | P32: 87367 | Q32: -90992 | R32: 70651975.69 | S32: 144598
A33: 23 | B33: PROPOSED REVENUES | F33: =F868 -> 96533814 | G33: 94908186 | H33: 821503 | I33: 3861 | J33: =J868 -> 13515 | K33: 0 | L33: 389031 | M33: 266433 | N33: 9653 | O33: 117771 | P33: 3861 | Q33: 0 | R33: 96533814 | S33: 0
A34: 24 | B34: DIFFERENCE (REQUESTED LESS PROPOSED) | F34: =F32-F33 -> -25737240.31 | G34: =G32-G33 -> -65340827.31 | H34: 22457914 | I34: 178801 | J34: =J32-J33 -> 287584 | K34: 47517 | L34: 8224471 | M34: 5565076 | N34: 251713 | O34: 2453399 | P34: 83506 | Q34: -90992 | R34: -25881838.31 | S34: 144598
A35: 25
A36: 26 | B36: TOTAL RETURN EARNED | F36: =F777+F28 -> 46876646.31 | G36: =G777+G28 -> 49510063.31 | H36: =H777+H28 -> -1330705 | I36: =I777+I28 -> -6192 | J36: =J777+J28 -> -21590 | K36: -433 | L36: -630064 | M36: -431644 | N36: -15756 | O36: -190111 | P36: -6675 | Q36: =Q777+Q28 -> -247 | R36: =R777+R28 -> 46876646.31 | S36: =F36-R36 -> 0
A37: 27 | B37: RATE OF RETURN EARNED | F37: =IF($F$431=0,0,ROUND($F$36/F431,5)) -> 0.10695 | G37: =IF(G431=0,0,ROUND(G36/G431,5)) -> 0.27418 | H37: -0.01022 | I37: -0.01031 | J37: -0.01018 | K37: -0.01411 | L37: -0.01022 | M37: -0.01022 | N37: -0.01021 | O37: -0.01021 | P37: -0.01058 | Q37: -0.01409 | R37: 0.10695 | S37: 0
A38: 28 | B38: TOTAL RATE OF RETURN ALLOWABLE | F38: =$F$811 -> 0.0709 | G38: =$F$811 -> 0.0709 | H38: 0.0709 | I38: 0.0709 | J38: 0.0709 | K38: 0.0709 | L38: 0.0709 | M38: 0.0709 | N38: 0.0709 | O38: 0.0709 | P38: 0.0709 | Q38: 0.0709 | R38: =F811 -> 0.0709 | S38: =F811 -> 0.0709
A39: 29 | B39: RETURN EARNED ON COMMON EQUITY | F39: =IF(Equity=0,0,(F37-$F$806-$F$807-$F$809)*TotalCap/Equity) -> 0.1768127691 | G39: 0.5188416805 | H39: -0.06283040218 | I39: -0.06301447562 | J39: -0.06274859176 | K39: -0.07078646547 | L39: -0.06283040218 | M39: -0.06283040218 | N39: -0.06280994957 | O39: -0.06280994957 | P39: -0.06356669595 | Q39: -0.07074556026 | R39: =IF(Equity=0,0,(R37-F806-F807-F809)*TotalCap/Equity) -> 0.1768127691 | S39: =IF(Equity=0,0,(S37-F806-F807-F809)*TotalCap/Equity) -> -0.04192783999
A40: 30 | B40: ALLOWED RETURN ON COMMON EQUITY | F40: =IF(Equity=0,0,(F38-$F$806-$F$807-$F$809)*TotalCap/Equity) -> 0.1030811286 | G40: 0.1030811286 | H40: 0.1030811286 | I40: 0.1030811286 | J40: 0.1030811286 | K40: 0.1030811286 | L40: 0.1030811286 | M40: 0.1030811286 | N40: 0.1030811286 | O40: 0.1030811286 | P40: 0.1030811286 | Q40: 0.1030811286 | R40: =IF(Equity=0,0,(R38-F806-F807-F809)*TotalCap/Equity) -> 0.1030811286 | S40: =IF(Equity=0,0,(S38-F806-F807-F809)*TotalCap/Equity) -> 0.1030811286
A41: 31
A42: 32 | B42: PRESENT REVENUES | F42: =F867 -> 61034574 | G42: 30365996 | H42: 15498633 | I42: 71599 | J42: =J867 -> 252440 | K42: 3651 | L42: 7337282 | M42: 5027414 | N42: 183517 | O42: 2216636 | P42: 75320 | Q42: 2086 | R42: 61034574 | S42: =F42-R42 -> 0
A43: 33 | B43: REVENUE INCREASE JUSTIFIED | F43: =F30-F42 -> 9761999.691 | G43: 4856800.691 | H43: 2478884 | I43: 11452 | J43: =J30-J42 -> 40376 | K43: 584 | L43: 1173541 | M43: 804095 | N43: 29352 | O43: 354534 | P43: 12047 | Q43: 334 | R43: 9761999.691 | S43: 0
A44: 34 | C44: PER UNIT PRES REV | F44: =IF($F$42=0,0,ROUND($F$43/F42,5)) -> 0.15994 | G44: =IF(G42=0,0,ROUND(G43/G42,5)) -> 0.15994 | H44: 0.15994 | I44: 0.15995 | J44: =IF(J42=0,0,ROUND(J43/J42,5)) -> 0.15994 | K44: 0.15996 | L44: 0.15994 | M44: 0.15994 | N44: 0.15994 | O44: 0.15994 | P44: 0.15994 | Q44: 0.16012 | R44: 0.15994 | S44: 0
A45: 35 | B45: REVENUE INCREASE REQUESTED | F45: =F33-F42 -> 35499240 | G45: 64542190 | H45: -14677130 | I45: -67738 | J45: =J33-J42 -> -238925 | K45: -3651 | L45: -6948251 | M45: -4760981 | N45: -173864 | O45: -2098865 | P45: -71459 | Q45: -2086 | R45: 35499240 | S45: 0
A46: 36 | C46: PER UNIT PRES REV | F46: =IF($F$42=0,0,ROUND($F$45/F42,5)) -> 0.58163 | G46: =IF(G42=0,0,ROUND(G45/G42,5)) -> 2.12548 | H46: -0.947 | I46: -0.94607 | J46: =IF(J42=0,0,ROUND(J45/J42,5)) -> -0.94646 | K46: -1 | L46: -0.94698 | M46: -0.947 | N46: -0.9474 | O46: -0.94687 | P46: -0.94874 | Q46: -1 | R46: 0.58163 | S46: 0
A48: =co_name -> DUKE ENERGY KENTUCKY, INC. | R48: =R1 -> FR-16(7)(v)-3
A49: =$A$2 -> PRODUCTION DEMAND ALLOCATED - ELECTRIC COST OF SERVICE | R49: =R2 -> WITNESS RESPONSIBLE:
A50: =case_name -> CASE NO: 2017-00321 | R50: =Witness -> JAMES E. ZIOLKOWSKI
A51: =data_filing -> DATA: 12 MONTHS ACTUAL & 0 MONTHS ESTIMATED | R51: ="PAGE "&Pages-16&" OF "&Pages -> PAGE 2 OF 18
A52: =type -> TYPE OF FILING: "X" ORIGINAL UPDATED REVISED
F54: =F$7 -> TOTAL | H54: =H$7 -> DS | I54: =I$7 -> GSFL | J54: =J$7 -> EH | K54: =K$7 -> SP | L54: DT SEC | M54: DT PRI | N54: DP | O54: TT | Q54: OTHER
A55: LINE | F55: =F$8 -> PRODUCTION | G55: =G$8 -> RS | H55: =H$8 -> SECONDARY | I55: =I$8 -> SECONDARY | J55: =J$8 -> SECONDARY | K55: =K$8 -> SECONDARY | L55: SECONDARY | M55: PRIMARY | N55: PRIMARY | O55: TRANSMISSION | P55: LT | Q55: WATER | R55: =R8 -> TOTAL | S55: ALL
A56: NO. | B56: GROSS ELECTRIC PLANT IN SERVICE | D56: ALLO | F56: =F$9 -> DEMAND | G56: =G$9 -> RESIDENTIAL | H56: =H$9 -> DISTRIBUTION | I56: =I$9 -> DISTRIBUTION | J56: =J$9 -> DISTRIBUTION | K56: =K$9 -> DISTRIBUTION | L56: DISTRIBUTION | M56: DISTRIBUTION | N56: DISTRIBUTION | O56: TIME OF DAY | P56: LIGHTING | Q56: PUMPING | R56: =R9 -> AT ISSUE | S56: OTHER
C57: Schedule 2 | G57: =G$10 -> 3 | H57: =H$10 -> 4 | I57: =I$10 -> 5 | J57: =J$10 -> 6 | K57: =K$10 -> 7 | L57: 8 | M57: 9 | N57: 10 | O57: 11 | P57: 12 | Q57: 13
A58: 1 | B58: PRODUCTION PLANT
A59: 2 | C59: PRODUCTION STEAM | D59: ='FR-16(7)(v)-1 Functional'!D59 -> K201 | F59: ='FR-16(7)(v)-2 PROD Classified'!G59 -> 799630884 | G59: =F59-SUM(H59:Q59) -> 334077787 | H59: =ROUND($F$59*VLOOKUP(D59,ALLOCTABLE_Prod_Demand,$H$10,FALSE),0) -> 235275395 | I59: =ROUND($F$59*VLOOKUP($D$59,ALLOCTABLE_Prod_Demand,$I$10,FALSE),0) -> 1087498 | J59: =ROUND($F$59*VLOOKUP($D$59,ALLOCTABLE_Prod_Demand,$J$10,FALSE),0) -> 3830232 | K59: =ROUND($F$59*VLOOKUP($D$59,ALLOCTABLE_Prod_Demand,$K$10,FALSE),0) -> 55974 | L59: =ROUND($F$59*VLOOKUP($D$59,ALLOCTABLE_Prod_Demand,$L$10,FALSE),0) -> 111380586 | M59: =ROUND($F$59*VLOOKUP($D$59,ALLOCTABLE_Prod_Demand,$M$10,FALSE),0) -> 76316772 | N59: =ROUND($F$59*VLOOKUP($D$59,ALLOCTABLE_Prod_Demand,$N$10,FALSE),0) -> 2782715 | O59: =ROUND($F$59*VLOOKUP($D$59,ALLOCTABLE_Prod_Demand,$O$10,FALSE),0) -> 33648468 | P59: =ROUND($F$59*VLOOKUP($D$59,ALLOCTABLE_Prod_Demand,$P$10,FALSE),0) -> 1143472 | Q59: =ROUND($F$59*VLOOKUP(D59,ALLOCTABLE_Prod_Demand,$Q$10,FALSE),0) -> 31985 | R59: =SUM(G59:Q59) -> 799630884 | S59: =F59-R59 -> 0
A60: 3 | C60: PRODUCTION OTHER | D60: ='FR-16(7)(v)-1 Functional'!D60 -> K201 | F60: ='FR-16(7)(v)-2 PROD Classified'!G60 -> 334147228 | G60: =F60-SUM(H60:Q60) -> 139603372 | H60: =ROUND($F$60*VLOOKUP(D60,ALLOCTABLE_Prod_Demand,$H$10,FALSE),0) -> 98316139 | I60: =ROUND($F$60*VLOOKUP($D$60,ALLOCTABLE_Prod_Demand,$I$10,FALSE),0) -> 454440 | J60: =ROUND($F$60*VLOOKUP($D$60,ALLOCTABLE_Prod_Demand,$J$10,FALSE),0) -> 1600565 | K60: =ROUND($F$60*VLOOKUP($D$60,ALLOCTABLE_Prod_Demand,$K$10,FALSE),0) -> 23390 | L60: =ROUND($F$60*VLOOKUP($D$60,ALLOCTABLE_Prod_Demand,$L$10,FALSE),0) -> 46543367 | M60: =ROUND($F$60*VLOOKUP($D$60,ALLOCTABLE_Prod_Demand,$M$10,FALSE),0) -> 31891011 | N60: =ROUND($F$60*VLOOKUP($D$60,ALLOCTABLE_Prod_Demand,$N$10,FALSE),0) -> 1162832 | O60: =ROUND($F$60*VLOOKUP($D$60,ALLOCTABLE_Prod_Demand,$O$10,FALSE),0) -> 14060915 | P60: =ROUND($F$60*VLOOKUP($D$60,ALLOCTABLE_Prod_Demand,$P$10,FALSE),0) -> 477831 | Q60: =ROUND($F$60*VLOOKUP(D60,ALLOCTABLE_Prod_Demand,$Q$10,FALSE),0) -> 13366 | R60: =SUM(G60:Q60) -> 334147228 | S60: =F60-R60 -> 0
A61: 4 | C61: ='FR-16(7)(v)-1 Functional'!C61 -> ADJUSTMENT | D61: ='FR-16(7)(v)-1 Functional'!D61 -> K201 | F61: ='FR-16(7)(v)-2 PROD Classified'!G61 -> 0 | G61: =F61-SUM(H61:Q61) -> 0 | H61: =ROUND($F$61*VLOOKUP(D61,ALLOCTABLE_Prod_Demand,$H$10,FALSE),0) -> 0 | I61: =ROUND($F$61*VLOOKUP($D$61,ALLOCTABLE_Prod_Demand,$I$10,FALSE),0) -> 0 | J61: =ROUND($F$61*VLOOKUP($D$61,ALLOCTABLE_Prod_Demand,$J$10,FALSE),0) -> 0 | K61: =ROUND($F$61*VLOOKUP($D$61,ALLOCTABLE_Prod_Demand,$K$10,FALSE),0) -> 0 | L61: =ROUND($F$61*VLOOKUP($D$61,ALLOCTABLE_Prod_Demand,$L$10,FALSE),0) -> 0 | M61: =ROUND($F$61*VLOOKUP($D$61,ALLOCTABLE_Prod_Demand,$M$10,FALSE),0) -> 0 | N61: =ROUND($F$61*VLOOKUP($D$61,ALLOCTABLE_Prod_Demand,$N$10,FALSE),0) -> 0 | O61: =ROUND($F$61*VLOOKUP($D$61,ALLOCTABLE_Prod_Demand,$O$10,FALSE),0) -> 0 | P61: =ROUND($F$61*VLOOKUP($D$61,ALLOCTABLE_Prod_Demand,$P$10,FALSE),0) -> 0 | Q61: =ROUND($F$61*VLOOKUP(D61,ALLOCTABLE_Prod_Demand,$Q$10,FALSE),0) -> 0 | R61: =SUM(G61:Q61) -> 0 | S61: =F61-R61 -> 0
A62: 5 | C62: ='FR-16(7)(v)-1 Functional'!C62 -> PRODUCTION PLANT IN SERVICE | F62: =SUM($F$59:F61) -> 1133778112 | G62: =SUM(G59:G61) -> 473681159 | H62: =SUM(H59:H61) -> 333591534 | I62: =SUM(I59:I61) -> 1541938 | J62: =SUM(J59:J61) -> 5430797 | K62: 79364 | L62: 157923953 | M62: 108207783 | N62: 3945547 | O62: 47709383 | P62: 1621303 | Q62: =SUM($Q$59:$Q$61) -> 45351 | R62: =SUM(R59:R61) -> 1133778112 | S62: =SUM(S59:S61) -> 0
A63: 6
A64: 7 | B64: TRANSMISSION PLANT
A65: 8 | C65: MAIN STEP-UP TRANSFORMERS | D65: ='FR-16(7)(v)-1 Functional'!D65 -> K202 | F65: ='FR-16(7)(v)-2 PROD Classified'!G65 -> 0 | G65: =F65-SUM(H65:Q65) -> 0 | H65: =ROUND($F$65*VLOOKUP(D65,ALLOCTABLE_Prod_Demand,$H$10,FALSE),0) -> 0 | I65: =ROUND($F$65*VLOOKUP($D$65,ALLOCTABLE_Prod_Demand,$I$10,FALSE),0) -> 0 | J65: =ROUND($F$65*VLOOKUP($D$65,ALLOCTABLE_Prod_Demand,$J$10,FALSE),0) -> 0 | K65: =ROUND($F$65*VLOOKUP($D$65,ALLOCTABLE_Prod_Demand,$K$10,FALSE),0) -> 0 | L65: =ROUND($F$65*VLOOKUP($D$65,ALLOCTABLE_Prod_Demand,$L$10,FALSE),0) -> 0 | M65: =ROUND($F$65*VLOOKUP($D$65,ALLOCTABLE_Prod_Demand,$M$10,FALSE),0) -> 0 | N65: =ROUND($F$65*VLOOKUP($D$65,ALLOCTABLE_Prod_Demand,$N$10,FALSE),0) -> 0 | O65: =ROUND($F$65*VLOOKUP($D$65,ALLOCTABLE_Prod_Demand,$O$10,FALSE),0) -> 0 | P65: =ROUND($F$65*VLOOKUP($D$65,ALLOCTABLE_Prod_Demand,$P$10,FALSE),0) -> 0 | Q65: =ROUND($F$65*VLOOKUP(D65,ALLOCTABLE_Prod_Demand,$Q$10,FALSE),0) -> 0 | R65: =SUM(G65:Q65) -> 0 | S65: =F65-R65 -> 0
A66: 9 | C66: OTHER TRANSMISSION | D66: ='FR-16(7)(v)-1 Functional'!D66 -> K202 | F66: ='FR-16(7)(v)-2 PROD Classified'!G66 -> 0 | G66: =F66-SUM(H66:Q66) -> 0 | H66: =ROUND($F$66*VLOOKUP(D66,ALLOCTABLE_Prod_Demand,$H$10,FALSE),0) -> 0 | I66: =ROUND($F$66*VLOOKUP($D$66,ALLOCTABLE_Prod_Demand,$I$10,FALSE),0) -> 0 | J66: =ROUND($F$66*VLOOKUP($D$66,ALLOCTABLE_Prod_Demand,$J$10,FALSE),0) -> 0 | K66: =ROUND($F$66*VLOOKUP($D$66,ALLOCTABLE_Prod_Demand,$K$10,FALSE),0) -> 0 | L66: =ROUND($F$66*VLOOKUP($D$66,ALLOCTABLE_Prod_Demand,$L$10,FALSE),0) -> 0 | M66: =ROUND($F$66*VLOOKUP($D$66,ALLOCTABLE_Prod_Demand,$M$10,FALSE),0) -> 0 | N66: =ROUND($F$66*VLOOKUP($D$66,ALLOCTABLE_Prod_Demand,$N$10,FALSE),0) -> 0 | O66: =ROUND($F$66*VLOOKUP($D$66,ALLOCTABLE_Prod_Demand,$O$10,FALSE),0) -> 0 | P66: =ROUND($F$66*VLOOKUP($D$66,ALLOCTABLE_Prod_Demand,$P$10,FALSE),0) -> 0 | Q66: =ROUND($F$66*VLOOKUP(D66,ALLOCTABLE_Prod_Demand,$Q$10,FALSE),0) -> 0 | R66: =SUM(G66:Q66) -> 0 | S66: =F66-R66 -> 0
A67: 10 | C67: ADJUSTMENT | D67: ='FR-16(7)(v)-1 Functional'!D67 -> K202 | F67: ='FR-16(7)(v)-2 PROD Classified'!G67 -> 0 | G67: =F67-SUM(H67:Q67) -> 0 | H67: =ROUND($F$67*VLOOKUP(D67,ALLOCTABLE_Prod_Demand,$H$10,FALSE),0) -> 0 | I67: =ROUND($F$67*VLOOKUP($D$67,ALLOCTABLE_Prod_Demand,$I$10,FALSE),0) -> 0 | J67: =ROUND($F$67*VLOOKUP($D$67,ALLOCTABLE_Prod_Demand,$J$10,FALSE),0) -> 0 | K67: =ROUND($F$67*VLOOKUP($D$67,ALLOCTABLE_Prod_Demand,$K$10,FALSE),0) -> 0 | L67: =ROUND($F$67*VLOOKUP($D$67,ALLOCTABLE_Prod_Demand,$L$10,FALSE),0) -> 0 | M67: =ROUND($F$67*VLOOKUP($D$67,ALLOCTABLE_Prod_Demand,$M$10,FALSE),0) -> 0 | N67: =ROUND($F$67*VLOOKUP($D$67,ALLOCTABLE_Prod_Demand,$N$10,FALSE),0) -> 0 | O67: =ROUND($F$67*VLOOKUP($D$67,ALLOCTABLE_Prod_Demand,$O$10,FALSE),0) -> 0 | P67: =ROUND($F$67*VLOOKUP($D$67,ALLOCTABLE_Prod_Demand,$P$10,FALSE),0) -> 0 | Q67: =ROUND($F$67*VLOOKUP(D67,ALLOCTABLE_Prod_Demand,$Q$10,FALSE),0) -> 0 | R67: =SUM(G67:Q67) -> 0 | S67: =F67-R67 -> 0
A68: 11 | C68: ='FR-16(7)(v)-1 Functional'!C68 -> TRANSMISSION PLANT IN SERVICE | F68: =SUM($F$65:F67) -> 0 | G68: =SUM(G65:G67) -> 0 | H68: 0 | I68: 0 | J68: 0 | K68: 0 | L68: 0 | M68: 0 | N68: 0 | O68: 0 | P68: 0 | Q68: 0 | R68: 0 | S68: =SUM(S65) -> 0
A69: 12
A70: 13 | B70: TOTAL PROD & TRANS PLANT | F70: =F68+F62 -> 1133778112 | G70: =G68+G62 -> 473681159 | H70: =H68+H62 -> 333591534 | I70: =I68+I62 -> 1541938 | J70: =J68+J62 -> 5430797 | K70: 79364 | L70: 157923953 | M70: 108207783 | N70: 3945547 | O70: 47709383 | P70: 1621303 | Q70: =$Q$68+$Q$62 -> 45351 | R70: =R68+R62 -> 1133778112 | S70: =S68+S62 -> 0
A71: 14
A72: 15 | B72: DISTRIBUTION PLANT
A73: 16 | C73: ='FR-16(7)(v)-1 Functional'!C73 -> SUBSTATIONS | D73: ='FR-16(7)(v)-1 Functional'!D73 -> K215 | F73: ='FR-16(7)(v)-2 PROD Classified'!G73 -> 0 | G73: =F73-SUM(H73:Q73) -> 0 | H73: =ROUND($F$73*VLOOKUP(D73,ALLOCTABLE_Prod_Demand,$H$10,FALSE),0) -> 0 | I73: =ROUND($F$73*VLOOKUP($D$73,ALLOCTABLE_Prod_Demand,$I$10,FALSE),0) -> 0 | J73: =ROUND($F$73*VLOOKUP($D$73,ALLOCTABLE_Prod_Demand,$J$10,FALSE),0) -> 0 | K73: =ROUND($F$73*VLOOKUP($D$73,ALLOCTABLE_Prod_Demand,$K$10,FALSE),0) -> 0 | L73: =ROUND($F$73*VLOOKUP($D$73,ALLOCTABLE_Prod_Demand,$L$10,FALSE),0) -> 0 | M73: =ROUND($F$73*VLOOKUP($D$73,ALLOCTABLE_Prod_Demand,$M$10,FALSE),0) -> 0 | N73: =ROUND($F$73*VLOOKUP($D$73,ALLOCTABLE_Prod_Demand,$N$10,FALSE),0) -> 0 | O73: =ROUND($F$73*VLOOKUP($D$73,ALLOCTABLE_Prod_Demand,$O$10,FALSE),0) -> 0 | P73: =ROUND($F$73*VLOOKUP($D$73,ALLOCTABLE_Prod_Demand,$P$10,FALSE),0) -> 0 | Q73: =ROUND($F$73*VLOOKUP(D73,ALLOCTABLE_Prod_Demand,$Q$10,FALSE),0) -> 0 | R73: =SUM(G73:Q73) -> 0 | S73: =F73-R73 -> 0
A74: 17 | C74: ='FR-16(7)(v)-1 Functional'!C74 -> POLES, TOWERS & FIXTURES - PRIMARY - DEMAND | D74: ='FR-16(7)(v)-1 Functional'!D74 -> K205 | F74: ='FR-16(7)(v)-2 PROD Classified'!G74 -> 0 | G74: =F74-SUM(H74:Q74) -> 0 | H74: =ROUND(F74*VLOOKUP(D74,ALLOCTABLE_Prod_Demand,$H$10,FALSE),0) -> 0 | I74: =ROUND(F74*VLOOKUP(D74,ALLOCTABLE_Prod_Demand,$I$10,FALSE),0) -> 0 | J74: =ROUND(F74*VLOOKUP(D74,ALLOCTABLE_Prod_Demand,$J$10,FALSE),0) -> 0 | K74: =ROUND(F74*VLOOKUP(D74,ALLOCTABLE_Prod_Demand,$K$10,FALSE),0) -> 0 | L74: =ROUND(F74*VLOOKUP(D74,ALLOCTABLE_Prod_Demand,$L$10,FALSE),0) -> 0 | M74: =ROUND(F74*VLOOKUP(D74,ALLOCTABLE_Prod_Demand,$M$10,FALSE),0) -> 0 | N74: =ROUND(F74*VLOOKUP(D74,ALLOCTABLE_Prod_Demand,$N$10,FALSE),0) -> 0 | O74: =ROUND(F74*VLOOKUP(D74,ALLOCTABLE_Prod_Demand,$O$10,FALSE),0) -> 0 | P74: =ROUND(F74*VLOOKUP(D74,ALLOCTABLE_Prod_Demand,$P$10,FALSE),0) -> 0 | Q74: =ROUND(F74*VLOOKUP(D74,ALLOCTABLE_Prod_Demand,$Q$10,FALSE),0) -> 0 | R74: =SUM(G74:Q74) -> 0 | S74: =F74-R74 -> 0
A75: 18 | C75: ='FR-16(7)(v)-1 Functional'!C75 -> POLES, TOWERS & FIXTURES - PRIMARY - CUSTOMER | D75: ='FR-16(7)(v)-1 Functional'!D75 -> K405 | F75: ='FR-16(7)(v)-2 PROD Classified'!G75 -> 0 | G75: =F75-SUM(H75:Q75) -> 0 | H75: 0 | I75: 0 | J75: 0 | K75: 0 | L75: 0 | M75: 0 | N75: 0 | O75: 0 | P75: =ROUND(F75*VLOOKUP(D75,ALLOCTABLE_Prod_Demand,$P$10,FALSE),0) -> 0 | Q75: =ROUND(F75*VLOOKUP(D75,ALLOCTABLE_Prod_Demand,$Q$10,FALSE),0) -> 0 | R75: =SUM(G75:Q75) -> 0 | S75: =F75-R75 -> 0
A76: 19 | C76: ='FR-16(7)(v)-1 Functional'!C76 -> POLES, TOWERS & FIXTURES - SECONDARY - DEMAND | D76: ='FR-16(7)(v)-1 Functional'!D76 -> K206 | F76: ='FR-16(7)(v)-2 PROD Classified'!G76 -> 0 | G76: 0 | H76: 0 | I76: 0 | J76: 0 | K76: 0 | L76: 0 | M76: 0 | N76: 0 | O76: 0 | P76: 0 | Q76: 0 | R76: 0 | S76: 0
A77: 20 | C77: ='FR-16(7)(v)-1 Functional'!C77 -> POLES, TOWERS & FIXTURES - SECONDARY - CUSTOMER | D77: ='FR-16(7)(v)-1 Functional'!D77 -> K405 | F77: ='FR-16(7)(v)-2 PROD Classified'!G77 -> 0 | G77: 0 | H77: 0 | I77: 0 | J77: 0 | K77: 0 | L77: 0 | M77: 0 | N77: 0 | O77: 0 | P77: 0 | Q77: 0 | R77: 0 | S77: 0
A78: 21 | C78: ='FR-16(7)(v)-1 Functional'!C78 -> CONDUCTORS - OVERHEAD / PRIMARY - DEMAND | D78: ='FR-16(7)(v)-1 Functional'!D78 -> K205 | F78: ='FR-16(7)(v)-2 PROD Classified'!G78 -> 0 | G78: 0 | H78: 0 | I78: 0 | J78: 0 | K78: 0 | L78: 0 | M78: 0 | N78: 0 | O78: 0 | P78: 0 | Q78: 0 | R78: 0 | S78: 0
A79: 22 | C79: ='FR-16(7)(v)-1 Functional'!C79 -> CONDUCTORS - OVERHEAD / PRIMARY - CUSTOMER | D79: ='FR-16(7)(v)-1 Functional'!D79 -> K405 | F79: ='FR-16(7)(v)-2 PROD Classified'!G79 -> 0 | G79: 0 | H79: 0 | I79: 0 | J79: 0 | K79: 0 | L79: 0 | M79: 0 | N79: 0 | O79: 0 | P79: 0 | Q79: 0 | R79: 0 | S79: 0
A80: 23 | C80: ='FR-16(7)(v)-1 Functional'!C80 -> CONDUCTORS - OVERHEAD / SECONDARY - DEMAND | D80: ='FR-16(7)(v)-1 Functional'!D80 -> K206 | F80: ='FR-16(7)(v)-2 PROD Classified'!G80 -> 0 | G80: 0 | H80: 0 | I80: 0 | J80: 0 | K80: 0 | L80: 0 | M80: 0 | N80: 0 | O80: 0 | P80: 0 | Q80: 0 | R80: 0 | S80: 0
A81: 24 | C81: ='FR-16(7)(v)-1 Functional'!C81 -> CONDUCTORS - OVERHEAD / SECONDARY - CUSTOMER | D81: ='FR-16(7)(v)-1 Functional'!D81 -> K405 | F81: ='FR-16(7)(v)-2 PROD Classified'!G81 -> 0 | G81: 0 | H81: 0 | I81: 0 | J81: 0 | K81: 0 | L81: 0 | M81: 0 | N81: 0 | O81: 0 | P81: 0 | Q81: 0 | R81: 0 | S81: 0
A82: 25 | C82: ='FR-16(7)(v)-1 Functional'!C82 -> CONDUCTORS - UNDERGROUND / PRIMARY - DEMAND | D82: ='FR-16(7)(v)-1 Functional'!D82 -> K205 | F82: ='FR-16(7)(v)-2 PROD Classified'!G82 -> 0 | G82: 0 | H82: 0 | I82: 0 | J82: 0 | K82: 0 | L82: 0 | M82: 0 | N82: 0 | O82: 0 | P82: 0 | Q82: 0 | R82: 0 | S82: 0
A83: 26 | C83: ='FR-16(7)(v)-1 Functional'!C83 -> CONDUCTORS - UNDERGROUND / PRIMARY - CUSTOMER | D83: ='FR-16(7)(v)-1 Functional'!D83 -> K405 | F83: ='FR-16(7)(v)-2 PROD Classified'!G83 -> 0 | G83: 0 | H83: 0 | I83: 0 | J83: 0 | K83: 0 | L83: 0 | M83: 0 | N83: 0 | O83: 0 | P83: 0 | Q83: 0 | R83: 0 | S83: 0
A84: 27 | C84: ='FR-16(7)(v)-1 Functional'!C84 -> CONDUCTORS - UNDERGROUND / SECONDARY - DEMAND | D84: ='FR-16(7)(v)-1 Functional'!D84 -> K206 | F84: ='FR-16(7)(v)-2 PROD Classified'!G84 -> 0 | G84: 0 | H84: 0 | I84: 0 | J84: 0 | K84: 0 | L84: 0 | M84: 0 | N84: 0 | O84: 0 | P84: 0 | Q84: 0 | R84: 0 | S84: 0
A85: 28 | C85: ='FR-16(7)(v)-1 Functional'!C85 -> CONDUCTORS - UNDERGROUND / SECONDARY - CUSTOMER | D85: ='FR-16(7)(v)-1 Functional'!D85 -> K405 | F85: ='FR-16(7)(v)-2 PROD Classified'!G85 -> 0 | G85: 0 | H85: 0 | I85: 0 | J85: 0 | K85: 0 | L85: 0 | M85: 0 | N85: 0 | O85: 0 | P85: 0 | Q85: 0 | R85: 0 | S85: 0
A86: 29 | C86: ='FR-16(7)(v)-1 Functional'!C86 -> TRANSFORMERS DEMAND RELATED | D86: ='FR-16(7)(v)-1 Functional'!D86 -> K215 | F86: ='FR-16(7)(v)-2 PROD Classified'!G86 -> 0 | G86: =F86-SUM(H86:Q86) -> 0 | H86: =ROUND($F$86*VLOOKUP(D86,ALLOCTABLE_Prod_Demand,$H$10,FALSE),0) -> 0 | I86: =ROUND($F$86*VLOOKUP($D$86,ALLOCTABLE_Prod_Demand,$I$10,FALSE),0) -> 0 | J86: =ROUND($F$86*VLOOKUP($D$86,ALLOCTABLE_Prod_Demand,$J$10,FALSE),0) -> 0 | K86: =ROUND($F$86*VLOOKUP($D$86,ALLOCTABLE_Prod_Demand,$K$10,FALSE),0) -> 0 | L86: =ROUND($F$86*VLOOKUP($D$86,ALLOCTABLE_Prod_Demand,$L$10,FALSE),0) -> 0 | M86: =ROUND($F$86*VLOOKUP($D$86,ALLOCTABLE_Prod_Demand,$M$10,FALSE),0) -> 0 | N86: =ROUND($F$86*VLOOKUP($D$86,ALLOCTABLE_Prod_Demand,$N$10,FALSE),0) -> 0 | O86: =ROUND($F$86*VLOOKUP($D$86,ALLOCTABLE_Prod_Demand,$O$10,FALSE),0) -> 0 | P86: =ROUND(F86*VLOOKUP(D86,ALLOCTABLE_Prod_Demand,$P$10,FALSE),0) -> 0 | Q86: =ROUND(F86*VLOOKUP(D86,ALLOCTABLE_Prod_Demand,$Q$10,FALSE),0) -> 0 | R86: =SUM(G86:Q86) -> 0 | S86: =F86-R86 -> 0
A87: 30 | C87: ='FR-16(7)(v)-1 Functional'!C87 -> TRANSFORMERS CUSTOMER RELATED | D87: ='FR-16(7)(v)-1 Functional'!D87 -> K405 | F87: ='FR-16(7)(v)-2 PROD Classified'!G87 -> 0 | G87: 0 | H87: =ROUND($F$86*VLOOKUP(D87,ALLOCTABLE_Prod_Demand,$H$10,FALSE),0) -> 0 | I87: =ROUND($F$86*VLOOKUP($D$86,ALLOCTABLE_Prod_Demand,$I$10,FALSE),0) -> 0 | J87: =ROUND($F$86*VLOOKUP($D$86,ALLOCTABLE_Prod_Demand,$J$10,FALSE),0) -> 0 | K87: =ROUND($F$86*VLOOKUP($D$86,ALLOCTABLE_Prod_Demand,$K$10,FALSE),0) -> 0 | L87: =ROUND($F$86*VLOOKUP($D$86,ALLOCTABLE_Prod_Demand,$L$10,FALSE),0) -> 0 | M87: =ROUND($F$86*VLOOKUP($D$86,ALLOCTABLE_Prod_Demand,$M$10,FALSE),0) -> 0 | N87: =ROUND($F$86*VLOOKUP($D$86,ALLOCTABLE_Prod_Demand,$N$10,FALSE),0) -> 0 | O87: =ROUND($F$86*VLOOKUP($D$86,ALLOCTABLE_Prod_Demand,$O$10,FALSE),0) -> 0 | P87: =ROUND(F87*VLOOKUP(D87,ALLOCTABLE_Prod_Demand,$P$10,FALSE),0) -> 0 | Q87: =ROUND(F87*VLOOKUP(D87,ALLOCTABLE_Prod_Demand,$Q$10,FALSE),0) -> 0 | R87: 0 | S87: 0
A88: 31 | C88: ='FR-16(7)(v)-1 Functional'!C88 -> SERVICES | D88: ='FR-16(7)(v)-1 Functional'!D88 -> K217 | F88: ='FR-16(7)(v)-2 PROD Classified'!G88 -> 0 | G88: 0 | H88: =ROUND($F$88*VLOOKUP(D88,ALLOCTABLE_Prod_Demand,$H$10,FALSE),0) -> 0 | I88: =ROUND($F$88*VLOOKUP($D$88,ALLOCTABLE_Prod_Demand,$I$10,FALSE),0) -> 0 | J88: =ROUND($F$88*VLOOKUP($D$88,ALLOCTABLE_Prod_Demand,$J$10,FALSE),0) -> 0 | K88: =ROUND($F$88*VLOOKUP($D$88,ALLOCTABLE_Prod_Demand,$K$10,FALSE),0) -> 0 | L88: =ROUND($F$88*VLOOKUP($D$88,ALLOCTABLE_Prod_Demand,$L$10,FALSE),0) -> 0 | M88: =ROUND($F$88*VLOOKUP($D$88,ALLOCTABLE_Prod_Demand,$M$10,FALSE),0) -> 0 | N88: =ROUND($F$88*VLOOKUP($D$88,ALLOCTABLE_Prod_Demand,$N$10,FALSE),0) -> 0 | O88: =ROUND($F$88*VLOOKUP($D$88,ALLOCTABLE_Prod_Demand,$O$10,FALSE),0) -> 0 | P88: =ROUND($F$88*VLOOKUP($D$88,ALLOCTABLE_Prod_Demand,$P$10,FALSE),0) -> 0 | Q88: =ROUND($F$88*VLOOKUP(D88,ALLOCTABLE_Prod_Demand,$Q$10,FALSE),0) -> 0 | R88: 0 | S88: 0
A89: 32 | C89: ='FR-16(7)(v)-1 Functional'!C89 -> METERS | D89: ='FR-16(7)(v)-1 Functional'!D89 -> K407 | F89: ='FR-16(7)(v)-2 PROD Classified'!G89 -> 0 | G89: 0 | H89: =ROUND($F$89*VLOOKUP(D89,ALLOCTABLE_Prod_Demand,$H$10,FALSE),0) -> 0 | I89: =ROUND($F$89*VLOOKUP($D$89,ALLOCTABLE_Prod_Demand,$I$10,FALSE),0) -> 0 | J89: =ROUND($F$89*VLOOKUP($D$89,ALLOCTABLE_Prod_Demand,$J$10,FALSE),0) -> 0 | K89: =ROUND($F$89*VLOOKUP($D$89,ALLOCTABLE_Prod_Demand,$K$10,FALSE),0) -> 0 | L89: =ROUND($F$89*VLOOKUP($D$89,ALLOCTABLE_Prod_Demand,$L$10,FALSE),0) -> 0 | M89: =ROUND($F$89*VLOOKUP($D$89,ALLOCTABLE_Prod_Demand,$M$10,FALSE),0) -> 0 | N89: =ROUND($F$89*VLOOKUP($D$89,ALLOCTABLE_Prod_Demand,$N$10,FALSE),0) -> 0 | O89: =ROUND($F$89*VLOOKUP($D$89,ALLOCTABLE_Prod_Demand,$O$10,FALSE),0) -> 0 | P89: =ROUND($F$89*VLOOKUP($D$89,ALLOCTABLE_Prod_Demand,$P$10,FALSE),0) -> 0 | Q89: =ROUND($F$89*VLOOKUP(D89,ALLOCTABLE_Prod_Demand,$Q$10,FALSE),0) -> 0 | R89: 0 | S89: 0
A90: 33 | C90: ='FR-16(7)(v)-1 Functional'!C90 -> STREET LIGHTS | D90: ='FR-16(7)(v)-1 Functional'!D90 -> K401 | F90: ='FR-16(7)(v)-2 PROD Classified'!G90 -> 0 | G90: 0 | H90: =ROUND($F$90*VLOOKUP(D90,ALLOCTABLE_Prod_Demand,$H$10,FALSE),0) -> 0 | I90: =ROUND($F$90*VLOOKUP($D$90,ALLOCTABLE_Prod_Demand,$I$10,FALSE),0) -> 0 | J90: =ROUND($F$90*VLOOKUP($D$90,ALLOCTABLE_Prod_Demand,$J$10,FALSE),0) -> 0 | K90: =ROUND($F$90*VLOOKUP($D$90,ALLOCTABLE_Prod_Demand,$K$10,FALSE),0) -> 0 | L90: =ROUND($F$90*VLOOKUP($D$90,ALLOCTABLE_Prod_Demand,$L$10,FALSE),0) -> 0 | M90: =ROUND($F$90*VLOOKUP($D$90,ALLOCTABLE_Prod_Demand,$M$10,FALSE),0) -> 0 | N90: =ROUND($F$90*VLOOKUP($D$90,ALLOCTABLE_Prod_Demand,$N$10,FALSE),0) -> 0 | O90: =ROUND($F$90*VLOOKUP($D$90,ALLOCTABLE_Prod_Demand,$O$10,FALSE),0) -> 0 | P90: =ROUND($F$90*VLOOKUP($D$90,ALLOCTABLE_Prod_Demand,$P$10,FALSE),0) -> 0 | Q90: =ROUND($F$90*VLOOKUP(D90,ALLOCTABLE_Prod_Demand,$Q$10,FALSE),0) -> 0 | R90: 0 | S90: 0
A91: 34 | C91: ='FR-16(7)(v)-1 Functional'!C91 -> ADJUSTMENT | D91: ='FR-16(7)(v)-1 Functional'!D91 -> K209 | F91: ='FR-16(7)(v)-2 PROD Classified'!G91 -> 0 | G91: 0 | H91: =ROUND($F$91*VLOOKUP(D91,ALLOCTABLE_Prod_Demand,$H$10,FALSE),0) -> 0 | I91: =ROUND($F$91*VLOOKUP($D$91,ALLOCTABLE_Prod_Demand,$I$10,FALSE),0) -> 0 | J91: =ROUND($F$91*VLOOKUP($D$91,ALLOCTABLE_Prod_Demand,$J$10,FALSE),0) -> 0 | K91: =ROUND($F$91*VLOOKUP($D$91,ALLOCTABLE_Prod_Demand,$K$10,FALSE),0) -> 0 | L91: =ROUND($F$91*VLOOKUP($D$91,ALLOCTABLE_Prod_Demand,$L$10,FALSE),0) -> 0 | M91: =ROUND($F$91*VLOOKUP($D$91,ALLOCTABLE_Prod_Demand,$M$10,FALSE),0) -> 0 | N91: =ROUND($F$91*VLOOKUP($D$91,ALLOCTABLE_Prod_Demand,$N$10,FALSE),0) -> 0 | O91: =ROUND($F$91*VLOOKUP($D$91,ALLOCTABLE_Prod_Demand,$O$10,FALSE),0) -> 0 | P91: =ROUND($F$91*VLOOKUP($D$91,ALLOCTABLE_Prod_Demand,$P$10,FALSE),0) -> 0 | Q91: =ROUND($F$91*VLOOKUP(D91,ALLOCTABLE_Prod_Demand,$Q$10,FALSE),0) -> 0 | R91: 0 | S91: 0
A92: 35 | C92: ='FR-16(7)(v)-1 Functional'!C92 -> CONSTRUCTION NOT CLASSIFIED | D92: ='FR-16(7)(v)-1 Functional'!D92 -> K209 | F92: ='FR-16(7)(v)-2 PROD Classified'!G92 -> 0 | G92: 0 | H92: =ROUND($F$92*VLOOKUP(D92,ALLOCTABLE_Prod_Demand,$H$10,FALSE),0) -> 0 | I92: =ROUND($F$92*VLOOKUP($D$92,ALLOCTABLE_Prod_Demand,$I$10,FALSE),0) -> 0 | J92: =ROUND($F$92*VLOOKUP($D$92,ALLOCTABLE_Prod_Demand,$J$10,FALSE),0) -> 0 | K92: =ROUND($F$92*VLOOKUP($D$92,ALLOCTABLE_Prod_Demand,$K$10,FALSE),0) -> 0 | L92: =ROUND($F$92*VLOOKUP($D$92,ALLOCTABLE_Prod_Demand,$L$10,FALSE),0) -> 0 | M92: =ROUND($F$92*VLOOKUP($D$92,ALLOCTABLE_Prod_Demand,$M$10,FALSE),0) -> 0 | N92: =ROUND($F$92*VLOOKUP($D$92,ALLOCTABLE_Prod_Demand,$N$10,FALSE),0) -> 0 | O92: =ROUND($F$92*VLOOKUP($D$92,ALLOCTABLE_Prod_Demand,$O$10,FALSE),0) -> 0 | P92: =ROUND($F$92*VLOOKUP($D$92,ALLOCTABLE_Prod_Demand,$P$10,FALSE),0) -> 0 | Q92: =ROUND($F$92*VLOOKUP(D92,ALLOCTABLE_Prod_Demand,$Q$10,FALSE),0) -> 0 | R92: 0 | S92: 0
A93: 36 | C93: ='FR-16(7)(v)-1 Functional'!C93 -> RWIP | D93: ='FR-16(7)(v)-1 Functional'!D93 -> K215 | F93: ='FR-16(7)(v)-2 PROD Classified'!G93 -> 0 | G93: =F93-SUM(H93:Q93) -> 0 | H93: =ROUND($F$92*VLOOKUP(D93,ALLOCTABLE_Prod_Demand,$H$10,FALSE),0) -> 0 | I93: =ROUND($F$92*VLOOKUP($D$92,ALLOCTABLE_Prod_Demand,$I$10,FALSE),0) -> 0 | J93: =ROUND($F$92*VLOOKUP($D$92,ALLOCTABLE_Prod_Demand,$J$10,FALSE),0) -> 0 | K93: =ROUND($F$92*VLOOKUP($D$92,ALLOCTABLE_Prod_Demand,$K$10,FALSE),0) -> 0
A94: 37 | C94: ='FR-16(7)(v)-1 Functional'!C94 -> DISTRIBUTION PLANT IN SERVICE | F94: =SUM(F73:F93) -> 0 | G94: =SUM(G73:G92) -> 0 | H94: =SUM(H73:H92) -> 0 | I94: =SUM(I73:I92) -> 0 | J94: =SUM(J73:J92) -> 0 | K94: 0 | L94: 0 | M94: 0 | N94: 0 | O94: 0 | P94: 0 | Q94: =SUM(Q73:Q92) -> 0 | R94: =SUM(R73:R92) -> 0 | S94: =SUM(S73:S92) -> 0
A95: 38
A96: 39 | B96: TOTAL TRANS & DIST PLANT | F96: =F94+F68 -> 0 | G96: =G94+G68 -> 0 | H96: =H94+H68 -> 0 | I96: =I94+I68 -> 0 | J96: =J94+J68 -> 0 | K96: 0 | L96: 0 | M96: 0 | N96: 0 | O96: 0 | P96: 0 | Q96: =Q94+$Q$68 -> 0 | R96: =R94+R68 -> 0 | S96: =S94+S68 -> 0
A97: 40 | B97: TOTAL GROSS PTD PLANT | F97: =F94+F70 -> 1133778112 | G97: =G94+G70 -> 473681159 | H97: =H94+H70 -> 333591534 | I97: =I94+I70 -> 1541938 | J97: =J94+J70 -> 5430797 | K97: 79364 | L97: 157923953 | M97: 108207783 | N97: 3945547 | O97: 47709383 | P97: 1621303 | Q97: =Q94+Q70 -> 45351 | R97: =R94+R70 -> 1133778112 | S97: =S94+S70 -> 0
A98: 41
A99: 42 | B99: GENERAL & INTANGIBLE PLANT
A100: 43 | C100: ='FR-16(7)(v)-1 Functional'!C100 -> PRODUCTION - DEMAND | D100: ='FR-16(7)(v)-1 Functional'!D100 -> K201 | F100: ='FR-16(7)(v)-2 PROD Classified'!G100 -> 8795876 | G100: =F100-SUM(H100:Q100) -> 3674829 | H100: =ROUND(F100*VLOOKUP(D100,ALLOCTABLE_Prod_Demand,$H$10,FALSE),0) -> 2588011 | I100: =ROUND(F100*VLOOKUP(D100,ALLOCTABLE_Prod_Demand,$I$10,FALSE),0) -> 11962 | J100: =ROUND(F100*VLOOKUP(D100,ALLOCTABLE_Prod_Demand,$J$10,FALSE),0) -> 42132 | K100: =ROUND(F100*VLOOKUP(D100,ALLOCTABLE_Prod_Demand,$K$10,FALSE),0) -> 616 | L100: =ROUND(F100*VLOOKUP(D100,ALLOCTABLE_Prod_Demand,$L$10,FALSE),0) -> 1225178 | M100: =ROUND(F100*VLOOKUP(D100,ALLOCTABLE_Prod_Demand,$M$10,FALSE),0) -> 839478 | N100: =ROUND(F100*VLOOKUP(D100,ALLOCTABLE_Prod_Demand,$N$10,FALSE),0) -> 30610 | O100: =ROUND(F100*VLOOKUP(D100,ALLOCTABLE_Prod_Demand,$O$10,FALSE),0) -> 370130 | P100: =ROUND(F100*VLOOKUP(D100,ALLOCTABLE_Prod_Demand,$P$10,FALSE),0) -> 12578 | Q100: =ROUND(F100*VLOOKUP(D100,ALLOCTABLE_Prod_Demand,$Q$10,FALSE),0) -> 352 | R100: =SUM(G100:Q100) -> 8795876 | S100: =F100-R100 -> 0
A101: 44 | C101: ='FR-16(7)(v)-1 Functional'!C101 -> PRODUCTION - ENERGY | D101: ='FR-16(7)(v)-1 Functional'!D101 -> K301 | F101: ='FR-16(7)(v)-2 PROD Classified'!G101 -> 0 | G101: =F101-SUM(H101:Q101) -> 0 | H101: 0 | I101: 0 | J101: 0 | K101: 0 | L101: 0 | M101: 0 | N101: 0 | O101: 0 | P101: 0 | Q101: 0 | R101: =SUM(G101:Q101) -> 0 | S101: =F101-R101 -> 0
A102: 45 | C102: ='FR-16(7)(v)-1 Functional'!C102 -> TRANSMISSION | D102: ='FR-16(7)(v)-1 Functional'!D102 -> K202 | F102: ='FR-16(7)(v)-2 PROD Classified'!G102 -> 0 | G102: 0 | H102: 0 | I102: 0 | J102: 0 | K102: 0 | L102: 0 | M102: 0 | N102: 0 | O102: 0 | P102: 0 | Q102: 0 | R102: 0 | S102: 0
A103: 46 | C103: ='FR-16(7)(v)-1 Functional'!C103 -> DISTRIBUTION - DEMAND | D103: ='FR-16(7)(v)-1 Functional'!D103 -> K201 | F103: ='FR-16(7)(v)-2 PROD Classified'!G103 -> 4997840 | G103: 2088048 | H103: 1470514 | I103: 6797 | J103: 23940 | K103: 350 | L103: 696149 | M103: 476994 | N103: 17392 | O103: 210309 | P103: 7147 | Q103: 200 | R103: 4997840 | S103: 0
A104: 47 | C104: ='FR-16(7)(v)-1 Functional'!C104 -> DISTRIBUTION - CUSTOMER | D104: ='FR-16(7)(v)-1 Functional'!D104 -> K405 | F104: ='FR-16(7)(v)-2 PROD Classified'!G104 -> 0 | G104: 0 | H104: 0 | I104: 0 | J104: 0 | K104: 0 | L104: 0 | M104: 0 | N104: 0 | O104: 0 | P104: 0 | Q104: 0 | R104: 0 | S104: 0
A105: 48 | C105: ='FR-16(7)(v)-1 Functional'!C105 -> CUSTOMER ACCOUNTING | D105: ='FR-16(7)(v)-1 Functional'!D105 -> A308 | F105: ='FR-16(7)(v)-2 PROD Classified'!G105 -> 0 | G105: 0 | H105: 0 | I105: 0 | J105: 0 | K105: 0 | L105: 0 | M105: 0 | N105: 0 | O105: 0 | P105: 0 | Q105: 0 | R105: 0 | S105: 0
A106: 49 | C106: ='FR-16(7)(v)-1 Functional'!C106 -> CUSTOMER SERVICE & INFORMATION | D106: ='FR-16(7)(v)-1 Functional'!D106 -> A310 | F106: ='FR-16(7)(v)-2 PROD Classified'!G106 -> 0 | G106: 0 | H106: 0 | I106: 0 | J106: 0 | K106: 0 | L106: 0 | M106: 0 | N106: 0 | O106: 0 | P106: 0 | Q106: 0 | R106: 0 | S106: 0
A107: 50 | C107: ='FR-16(7)(v)-1 Functional'!C107 -> SALES | D107: ='FR-16(7)(v)-1 Functional'!D107 -> A312 | F107: ='FR-16(7)(v)-2 PROD Classified'!G107 -> 0 | G107: 0 | H107: 0 | I107: 0 | J107: 0 | K107: 0 | L107: 0 | M107: 0 | N107: 0 | O107: 0 | P107: 0 | Q107: 0 | R107: 0 | S107: 0
A108: 51 | C108: ='FR-16(7)(v)-1 Functional'!C108 -> ADJUSTMENT | D108: ='FR-16(7)(v)-1 Functional'!D108 -> A315 | F108: ='FR-16(7)(v)-2 PROD Classified'!G108 -> 0 | G108: 0 | H108: 0 | I108: 0 | J108: 0 | K108: 0 | L108: 0 | M108: 0 | N108: 0 | O108: 0 | P108: 0 | Q108: 0 | R108: 0 | S108: 0
A109: 52 | C109: ='FR-16(7)(v)-1 Functional'!C109 -> GEN & INTANG PLANT IN SERVICE | F109: =SUM($F$100:F108) -> 13793716 | G109: =SUM(G100:G108) -> 5762877 | H109: =SUM(H100:H108) -> 4058525 | I109: =SUM(I100:I108) -> 18759 | J109: =SUM(J100:J108) -> 66072 | K109: 966 | L109: 1921327 | M109: 1316472 | N109: 48002 | O109: 580439 | P109: 19725 | Q109: =SUM(Q100:Q108) -> 552 | R109: =SUM(R100:R108) -> 13793716 | S109: =SUM(S100:S108) -> 0
A110: 53
A111: 54 | B111: COMMON & OTHER PLANT
A112: 55 | C112: ='FR-16(7)(v)-1 Functional'!C112 -> PRODUCTION - DEMAND | D112: ='FR-16(7)(v)-1 Functional'!D112 -> K201 | F112: ='FR-16(7)(v)-2 PROD Classified'!G112 -> 9654427 | G112: =F112-SUM(H112:Q112) -> 4033523 | H112: =ROUND(F112*VLOOKUP(D112,ALLOCTABLE_Prod_Demand,$H$10,FALSE),0) -> 2840622 | I112: =ROUND(F112*VLOOKUP(D112,ALLOCTABLE_Prod_Demand,$I$10,FALSE),0) -> 13130 | J112: =ROUND(F112*VLOOKUP(D112,ALLOCTABLE_Prod_Demand,$J$10,FALSE),0) -> 46245 | K112: =ROUND(F112*VLOOKUP(D112,ALLOCTABLE_Prod_Demand,$K$10,FALSE),0) -> 676 | L112: =ROUND(F112*VLOOKUP(D112,ALLOCTABLE_Prod_Demand,$L$10,FALSE),0) -> 1344765 | M112: =ROUND(F112*VLOOKUP(D112,ALLOCTABLE_Prod_Demand,$M$10,FALSE),0) -> 921419 | N112: =ROUND(F112*VLOOKUP(D112,ALLOCTABLE_Prod_Demand,$N$10,FALSE),0) -> 33597 | O112: =ROUND(F112*VLOOKUP(D112,ALLOCTABLE_Prod_Demand,$O$10,FALSE),0) -> 406258 | P112: =ROUND(F112*VLOOKUP(D112,ALLOCTABLE_Prod_Demand,$P$10,FALSE),0) -> 13806 | Q112: =ROUND(F112*VLOOKUP(D112,ALLOCTABLE_Prod_Demand,$Q$10,FALSE),0) -> 386 | R112: =SUM(G112:Q112) -> 9654427 | S112: =F112-R112 -> 0
A113: 56 | C113: ='FR-16(7)(v)-1 Functional'!C113 -> PRODUCTION - ENERGY | D113: ='FR-16(7)(v)-1 Functional'!D113 -> K301 | F113: ='FR-16(7)(v)-2 PROD Classified'!G113 -> 0 | G113: 0 | H113: 0 | I113: 0 | J113: 0 | K113: 0 | L113: 0 | M113: 0 | N113: 0 | O113: 0 | P113: 0 | Q113: 0 | R113: 0 | S113: 0
A114: 57 | C114: ='FR-16(7)(v)-1 Functional'!C114 -> TRANSMISSION | D114: ='FR-16(7)(v)-1 Functional'!D114 -> K202 | F114: ='FR-16(7)(v)-2 PROD Classified'!G114 -> 0 | G114: 0 | H114: 0 | I114: 0 | J114: 0 | K114: 0 | L114: 0 | M114: 0 | N114: 0 | O114: 0 | P114: 0 | Q114: 0 | R114: 0 | S114: 0
A115: 58 | C115: ='FR-16(7)(v)-1 Functional'!C115 -> DISTRIBUTION - DEMAND | D115: ='FR-16(7)(v)-1 Functional'!D115 -> K201 | F115: ='FR-16(7)(v)-2 PROD Classified'!G115 -> 5485671 | G115: 2291859 | H115: 1614049 | I115: 7461 | J115: 26276 | K115: 384 | L115: 764099 | M115: 523552 | N115: 19090 | O115: 230837 | P115: 7845 | Q115: 219 | R115: 5485671 | S115: 0
A116: 59 | C116: ='FR-16(7)(v)-1 Functional'!C116 -> DISTRIBUTION - CUSTOMER | D116: ='FR-16(7)(v)-1 Functional'!D116 -> K405 | F116: ='FR-16(7)(v)-2 PROD Classified'!G116 -> 0 | G116: 0 | H116: 0 | I116: 0 | J116: 0 | K116: 0 | L116: 0 | M116: 0 | N116: 0 | O116: 0 | P116: 0 | Q116: 0 | R116: 0 | S116: 0
A117: 60 | C117: ='FR-16(7)(v)-1 Functional'!C117 -> CUSTOMER ACCOUNTING | D117: ='FR-16(7)(v)-1 Functional'!D117 -> A308 | F117: ='FR-16(7)(v)-2 PROD Classified'!G117 -> 0 | G117: 0 | H117: 0 | I117: 0 | J117: 0 | K117: 0 | L117: 0 | M117: 0 | N117: 0 | O117: 0 | P117: 0 | Q117: 0 | R117: 0 | S117: 0
A118: 61 | C118: ='FR-16(7)(v)-1 Functional'!C118 -> CUSTOMER SERVICE & INFORMATION | D118: ='FR-16(7)(v)-1 Functional'!D118 -> A310 | F118: ='FR-16(7)(v)-2 PROD Classified'!G118 -> 0 | G118: 0 | H118: 0 | I118: 0 | J118: 0 | K118: 0 | L118: 0 | M118: 0 | N118: 0 | O118: 0 | P118: 0 | Q118: 0 | R118: 0 | S118: 0
A119: 62 | C119: ='FR-16(7)(v)-1 Functional'!C119 -> SALES | D119: ='FR-16(7)(v)-1 Functional'!D119 -> A312 | F119: ='FR-16(7)(v)-2 PROD Classified'!G119 -> 0 | G119: 0 | H119: 0 | I119: 0 | J119: 0 | K119: 0 | L119: 0 | M119: 0 | N119: 0 | O119: 0 | P119: 0 | Q119: 0 | R119: 0 | S119: 0
A120: 63 | C120: ='FR-16(7)(v)-1 Functional'!C120 -> ADJUSTMENT | D120: ='FR-16(7)(v)-1 Functional'!D120 -> A315 | F120: ='FR-16(7)(v)-2 PROD Classified'!G120 -> 0 | G120: 0 | H120: 0 | I120: 0 | J120: 0 | K120: 0 | L120: 0 | M120: 0 | N120: 0 | O120: 0 | P120: 0 | Q120: 0 | R120: 0 | S120: 0
A121: 64 | C121: ='FR-16(7)(v)-1 Functional'!C121 -> COMMON & OTHER PLANT IN SERVICE | F121: =SUM($F$112:F120) -> 15140098 | G121: =SUM(G112:G120) -> 6325382 | H121: =SUM(H112:H120) -> 4454671 | I121: =SUM(I112:I120) -> 20591 | J121: =SUM(J112:J120) -> 72521 | K121: 1060 | L121: 2108864 | M121: 1444971 | N121: 52687 | O121: 637095 | P121: 21651 | Q121: =SUM(Q112:Q120) -> 605 | R121: =SUM(R112:R120) -> 15140098 | S121: =SUM(S112:S120) -> 0
A122: 65
A123: 66 | B123: GROSS ELECTRIC PLANT IN SERVICE | F123: =F97+F109+F121 -> 1162711926 | G123: =G97+G109+G121 -> 485769418 | H123: =H97+H109+H121 -> 342104730 | I123: =I97+I109+I121 -> 1581288 | J123: =J97+J109+J121 -> 5569390 | K123: 81390 | L123: 161954144 | M123: 110969226 | N123: 4046236 | O123: 48926917 | P123: 1662679 | Q123: =Q97+Q109+Q121 -> 46508 | R123: =R97+R109+R121 -> 1162711926 | S123: =S97+S109+S121 -> 0
A125: =co_name -> DUKE ENERGY KENTUCKY, INC. | R125: =R1 -> FR-16(7)(v)-3
A126: =$A$2 -> PRODUCTION DEMAND ALLOCATED - ELECTRIC COST OF SERVICE | R126: =R2 -> WITNESS RESPONSIBLE:
A127: =case_name -> CASE NO: 2017-00321 | R127: =Witness -> JAMES E. ZIOLKOWSKI
A128: =data_filing -> DATA: 12 MONTHS ACTUAL & 0 MONTHS ESTIMATED | R128: ="PAGE "&Pages-15&" OF "&Pages -> PAGE 3 OF 18
A129: =type -> TYPE OF FILING: "X" ORIGINAL UPDATED REVISED
F131: =F$7 -> TOTAL | H131: =H$7 -> DS | I131: =I$7 -> GSFL | J131: =J$7 -> EH | K131: =K$7 -> SP | L131: DT SEC | M131: DT PRI | N131: DP | O131: TT | Q131: OTHER
A132: LINE | F132: =F$8 -> PRODUCTION | G132: =G$8 -> RS | H132: =H$8 -> SECONDARY | I132: =I$8 -> SECONDARY | J132: =J$8 -> SECONDARY | K132: =K$8 -> SECONDARY | L132: SECONDARY | M132: PRIMARY | N132: PRIMARY | O132: TRANSMISSION | P132: LT | Q132: WATER | R132: =R8 -> TOTAL | S132: ALL
A133: NO. | B133: DEPRECIATION RESERVE | D133: ALLO | F133: =F$9 -> DEMAND | G133: =G$9 -> RESIDENTIAL | H133: =H$9 -> DISTRIBUTION | I133: =I$9 -> DISTRIBUTION | J133: =J$9 -> DISTRIBUTION | K133: =K$9 -> DISTRIBUTION | L133: DISTRIBUTION | M133: DISTRIBUTION | N133: DISTRIBUTION | O133: TIME OF DAY | P133: LIGHTING | Q133: PUMPING | R133: =R9 -> AT ISSUE | S133: OTHER
C134: Schedule 3 | G134: =G$10 -> 3 | H134: =H$10 -> 4 | I134: =I$10 -> 5 | J134: =J$10 -> 6 | K134: =K$10 -> 7 | L134: 8 | M134: 9 | N134: 10 | O134: 11 | P134: 12 | Q134: 13
A135: 1 | B135: PRODUCTION PLANT
A136: 2 | C136: PRODUCTION STEAM | D136: ='FR-16(7)(v)-1 Functional'!D136 -> K201 | F136: ='FR-16(7)(v)-2 PROD Classified'!G136 -> 451443084 | G136: =F136-SUM(H136:Q136) -> 188608405 | H136: =ROUND(F136*VLOOKUP(D136,ALLOCTABLE_Prod_Demand,$H$10,FALSE),0) -> 132828099 | I136: =ROUND(F136*VLOOKUP(D136,ALLOCTABLE_Prod_Demand,$I$10,FALSE),0) -> 613963 | J136: =ROUND(F136*VLOOKUP(D136,ALLOCTABLE_Prod_Demand,$J$10,FALSE),0) -> 2162412 | K136: =ROUND(F136*VLOOKUP(D136,ALLOCTABLE_Prod_Demand,$K$10,FALSE),0) -> 31601 | L136: =ROUND(F136*VLOOKUP(D136,ALLOCTABLE_Prod_Demand,$L$10,FALSE),0) -> 62881507 | M136: =ROUND(F136*VLOOKUP(D136,ALLOCTABLE_Prod_Demand,$M$10,FALSE),0) -> 43085728 | N136: =ROUND(F136*VLOOKUP(D136,ALLOCTABLE_Prod_Demand,$N$10,FALSE),0) -> 1571022 | O136: =ROUND(F136*VLOOKUP(D136,ALLOCTABLE_Prod_Demand,$O$10,FALSE),0) -> 18996725 | P136: =ROUND(F136*VLOOKUP(D136,ALLOCTABLE_Prod_Demand,$P$10,FALSE),0) -> 645564 | Q136: =ROUND(F136*VLOOKUP(D136,ALLOCTABLE_Prod_Demand,$Q$10,FALSE),0) -> 18058 | R136: =SUM(G136:Q136) -> 451443084 | S136: =F136-R136 -> 0
A137: 3 | C137: PRODUCTION OTHER | D137: ='FR-16(7)(v)-1 Functional'!D137 -> K201 | F137: ='FR-16(7)(v)-2 PROD Classified'!G137 -> 169211512 | G137: =F137-SUM(H137:Q137) -> 70694878 | H137: =ROUND(F137*VLOOKUP(D137,ALLOCTABLE_Prod_Demand,$H$10,FALSE),0) -> 49787103 | I137: =ROUND(F137*VLOOKUP(D137,ALLOCTABLE_Prod_Demand,$I$10,FALSE),0) -> 230128 | J137: =ROUND(F137*VLOOKUP(D137,ALLOCTABLE_Prod_Demand,$J$10,FALSE),0) -> 810523 | K137: =ROUND(F137*VLOOKUP(D137,ALLOCTABLE_Prod_Demand,$K$10,FALSE),0) -> 11845 | L137: =ROUND(F137*VLOOKUP(D137,ALLOCTABLE_Prod_Demand,$L$10,FALSE),0) -> 23569472 | M137: =ROUND(F137*VLOOKUP(D137,ALLOCTABLE_Prod_Demand,$M$10,FALSE),0) -> 16149547 | N137: =ROUND(F137*VLOOKUP(D137,ALLOCTABLE_Prod_Demand,$N$10,FALSE),0) -> 588856 | O137: =ROUND(F137*VLOOKUP(D137,ALLOCTABLE_Prod_Demand,$O$10,FALSE),0) -> 7120420 | P137: =ROUND(F137*VLOOKUP(D137,ALLOCTABLE_Prod_Demand,$P$10,FALSE),0) -> 241972 | Q137: =ROUND(F137*VLOOKUP(D137,ALLOCTABLE_Prod_Demand,$Q$10,FALSE),0) -> 6768 | R137: =SUM(G137:Q137) -> 169211512 | S137: =F137-R137 -> 0
A138: 4 | C138: ='FR-16(7)(v)-1 Functional'!C138 -> ADJUSTMENT | D138: ='FR-16(7)(v)-1 Functional'!D138 -> K201 | F138: ='FR-16(7)(v)-2 PROD Classified'!G138 -> 5973380 | G138: =F138-SUM(H138:Q138) -> 2495619 | H138: =ROUND(F138*VLOOKUP(D138,ALLOCTABLE_Prod_Demand,$H$10,FALSE),0) -> 1757548 | I138: =ROUND(F138*VLOOKUP(D138,ALLOCTABLE_Prod_Demand,$I$10,FALSE),0) -> 8124 | J138: =ROUND(F138*VLOOKUP(D138,ALLOCTABLE_Prod_Demand,$J$10,FALSE),0) -> 28612 | K138: =ROUND(F138*VLOOKUP(D138,ALLOCTABLE_Prod_Demand,$K$10,FALSE),0) -> 418 | L138: =ROUND(F138*VLOOKUP(D138,ALLOCTABLE_Prod_Demand,$L$10,FALSE),0) -> 832032 | M138: =ROUND(F138*VLOOKUP(D138,ALLOCTABLE_Prod_Demand,$M$10,FALSE),0) -> 570099 | N138: =ROUND(F138*VLOOKUP(D138,ALLOCTABLE_Prod_Demand,$N$10,FALSE),0) -> 20787 | O138: =ROUND(F138*VLOOKUP(D138,ALLOCTABLE_Prod_Demand,$O$10,FALSE),0) -> 251360 | P138: =ROUND(F138*VLOOKUP(D138,ALLOCTABLE_Prod_Demand,$P$10,FALSE),0) -> 8542 | Q138: =ROUND(F138*VLOOKUP(D138,ALLOCTABLE_Prod_Demand,$Q$10,FALSE),0) -> 239 | R138: =SUM(G138:Q138) -> 5973380 | S138: =F138-R138 -> 0
A139: 5 | C139: ='FR-16(7)(v)-1 Functional'!C139 -> TOTAL PROD DEPREC RESERVE | F139: =SUM($F$136:F138) -> 626627976 | G139: =SUM(G136:G138) -> 261798902 | H139: 184372750 | I139: 852215 | J139: 3001547 | K139: 43864 | L139: 87283011 | M139: 59805374 | N139: 2180665 | O139: 26368505 | P139: 896078 | Q139: 25065 | R139: 626627976 | S139: =SUM(S136:S136) -> 0
A140: 6
A141: 7 | B141: TRANSMISSION PLANT
A142: 8 | C142: MAIN STEP-UP TRANSFORMERS | D142: ='FR-16(7)(v)-1 Functional'!D142 -> K202 | F142: ='FR-16(7)(v)-2 PROD Classified'!G142 -> 0 | G142: =F142-SUM(H142:Q142) -> 0 | H142: =ROUND(F142*VLOOKUP(D142,ALLOCTABLE_Prod_Demand,$H$10,FALSE),0) -> 0 | I142: =ROUND(F142*VLOOKUP(D142,ALLOCTABLE_Prod_Demand,$I$10,FALSE),0) -> 0 | J142: =ROUND(F142*VLOOKUP(D142,ALLOCTABLE_Prod_Demand,$J$10,FALSE),0) -> 0 | K142: =ROUND(F142*VLOOKUP(D142,ALLOCTABLE_Prod_Demand,$K$10,FALSE),0) -> 0 | L142: =ROUND(F142*VLOOKUP(D142,ALLOCTABLE_Prod_Demand,$L$10,FALSE),0) -> 0 | M142: =ROUND(F142*VLOOKUP(D142,ALLOCTABLE_Prod_Demand,$M$10,FALSE),0) -> 0 | N142: =ROUND(F142*VLOOKUP(D142,ALLOCTABLE_Prod_Demand,$N$10,FALSE),0) -> 0 | O142: =ROUND(F142*VLOOKUP(D142,ALLOCTABLE_Prod_Demand,$O$10,FALSE),0) -> 0 | P142: =ROUND(F142*VLOOKUP(D142,ALLOCTABLE_Prod_Demand,$P$10,FALSE),0) -> 0 | Q142: =ROUND(F142*VLOOKUP(D142,ALLOCTABLE_Prod_Demand,$Q$10,FALSE),0) -> 0 | R142: =SUM(G142:Q142) -> 0 | S142: =F142-R142 -> 0
A143: 9 | C143: OTHER TRANSMISSION | D143: ='FR-16(7)(v)-1 Functional'!D143 -> K202 | F143: ='FR-16(7)(v)-2 PROD Classified'!G143 -> 0 | G143: =F143-SUM(H143:Q143) -> 0 | H143: =ROUND(F143*VLOOKUP(D143,ALLOCTABLE_Prod_Demand,$H$10,FALSE),0) -> 0 | I143: =ROUND(F143*VLOOKUP(D143,ALLOCTABLE_Prod_Demand,$I$10,FALSE),0) -> 0 | J143: =ROUND(F143*VLOOKUP(D143,ALLOCTABLE_Prod_Demand,$J$10,FALSE),0) -> 0 | K143: =ROUND(F143*VLOOKUP(D143,ALLOCTABLE_Prod_Demand,$K$10,FALSE),0) -> 0 | L143: =ROUND(F143*VLOOKUP(D143,ALLOCTABLE_Prod_Demand,$L$10,FALSE),0) -> 0 | M143: =ROUND(F143*VLOOKUP(D143,ALLOCTABLE_Prod_Demand,$M$10,FALSE),0) -> 0 | N143: =ROUND(F143*VLOOKUP(D143,ALLOCTABLE_Prod_Demand,$N$10,FALSE),0) -> 0 | O143: =ROUND(F143*VLOOKUP(D143,ALLOCTABLE_Prod_Demand,$O$10,FALSE),0) -> 0 | P143: =ROUND(F143*VLOOKUP(D143,ALLOCTABLE_Prod_Demand,$P$10,FALSE),0) -> 0 | Q143: =ROUND(F143*VLOOKUP(D143,ALLOCTABLE_Prod_Demand,$Q$10,FALSE),0) -> 0 | R143: =SUM(G143:Q143) -> 0 | S143: =F143-R143 -> 0
A144: 10 | C144: ADJUSTMENT | D144: ='FR-16(7)(v)-1 Functional'!D144 -> K202 | F144: ='FR-16(7)(v)-2 PROD Classified'!G144 -> 0 | G144: =F144-SUM(H144:Q144) -> 0 | H144: =ROUND(F144*VLOOKUP(D144,ALLOCTABLE_Prod_Demand,$H$10,FALSE),0) -> 0 | I144: =ROUND(F144*VLOOKUP(D144,ALLOCTABLE_Prod_Demand,$I$10,FALSE),0) -> 0 | J144: =ROUND(F144*VLOOKUP(D144,ALLOCTABLE_Prod_Demand,$J$10,FALSE),0) -> 0 | K144: =ROUND(F144*VLOOKUP(D144,ALLOCTABLE_Prod_Demand,$K$10,FALSE),0) -> 0 | L144: =ROUND(F144*VLOOKUP(D144,ALLOCTABLE_Prod_Demand,$L$10,FALSE),0) -> 0 | M144: =ROUND(F144*VLOOKUP(D144,ALLOCTABLE_Prod_Demand,$M$10,FALSE),0) -> 0 | N144: =ROUND(F144*VLOOKUP(D144,ALLOCTABLE_Prod_Demand,$N$10,FALSE),0) -> 0 | O144: =ROUND(F144*VLOOKUP(D144,ALLOCTABLE_Prod_Demand,$O$10,FALSE),0) -> 0 | P144: =ROUND(F144*VLOOKUP(D144,ALLOCTABLE_Prod_Demand,$P$10,FALSE),0) -> 0 | Q144: =ROUND(F144*VLOOKUP(D144,ALLOCTABLE_Prod_Demand,$Q$10,FALSE),0) -> 0 | R144: =SUM(G144:Q144) -> 0 | S144: =F144-R144 -> 0
A145: 11 | C145: TOTAL TRANS DEPREC RESERVE | F145: =SUM($F$142:F144) -> 0 | G145: =SUM(G142:G144) -> 0 | H145: 0 | I145: 0 | J145: 0 | K145: 0 | L145: 0 | M145: 0 | N145: 0 | O145: 0 | P145: 0 | Q145: 0 | R145: =SUM(R142:R144) -> 0 | S145: =SUM(S142:S142) -> 0
A146: 12
A147: 13 | C147: TOTAL PROD & TRANS DEPREC RESERVE | F147: =F145+F139 -> 626627976 | G147: =G145+G139 -> 261798902 | H147: =$H$114+H139 -> 184372750 | I147: =$I$114+I139 -> 852215 | J147: =$J$114+J139 -> 3001547 | K147: =$K$114+K139 -> 43864 | L147: =$L$114+L139 -> 87283011 | M147: =$M$114+M139 -> 59805374 | N147: =$N$114+N139 -> 2180665 | O147: =$O$114+O139 -> 26368505 | P147: =$P$114+P139 -> 896078 | Q147: =$Q$114+Q139 -> 25065 | R147: =SUM(G147:Q147) -> 626627976 | S147: =F147-R147 -> 0
A148: 14
A149: 15 | B149: DISTRIBUTION PLANT
A150: 16 | C150: ='FR-16(7)(v)-1 Functional'!C150 -> SUBSTATIONS | D150: ='FR-16(7)(v)-1 Functional'!D150 -> K215 | F150: ='FR-16(7)(v)-2 PROD Classified'!G150 -> 0 | G150: =F150-SUM(H150:Q150) -> 0 | H150: =ROUND($F$150*VLOOKUP(D150,ALLOCTABLE_Prod_Demand,$H$10,FALSE),0) -> 0 | I150: =ROUND($F$150*VLOOKUP($D$150,ALLOCTABLE_Prod_Demand,$I$10,FALSE),0) -> 0 | J150: =ROUND($F$150*VLOOKUP($D$150,ALLOCTABLE_Prod_Demand,$J$10,FALSE),0) -> 0 | K150: =ROUND($F$150*VLOOKUP($D$150,ALLOCTABLE_Prod_Demand,$K$10,FALSE),0) -> 0 | L150: =ROUND($F$150*VLOOKUP($D$150,ALLOCTABLE_Prod_Demand,$L$10,FALSE),0) -> 0 | M150: =ROUND($F$150*VLOOKUP($D$150,ALLOCTABLE_Prod_Demand,$M$10,FALSE),0) -> 0 | N150: =ROUND($F$150*VLOOKUP($D$150,ALLOCTABLE_Prod_Demand,$N$10,FALSE),0) -> 0 | O150: =ROUND($F$150*VLOOKUP($D$150,ALLOCTABLE_Prod_Demand,$O$10,FALSE),0) -> 0 | P150: =ROUND($F$150*VLOOKUP($D$150,ALLOCTABLE_Prod_Demand,$P$10,FALSE),0) -> 0 | Q150: =ROUND($F$150*VLOOKUP(D150,ALLOCTABLE_Prod_Demand,$Q$10,FALSE),0) -> 0 | R150: =SUM(G150:Q150) -> 0 | S150: =F150-R150 -> 0
A151: 17 | C151: ='FR-16(7)(v)-1 Functional'!C151 -> POLES, TOWERS & FIXTURES - PRIMARY - DEMAND | D151: ='FR-16(7)(v)-1 Functional'!D151 -> K205 | F151: ='FR-16(7)(v)-2 PROD Classified'!G151 -> 0 | G151: =F151-SUM(H151:Q151) -> 0 | H151: =ROUND(F151*VLOOKUP(D151,ALLOCTABLE_Prod_Demand,$H$10,FALSE),0) -> 0 | I151: =ROUND(F151*VLOOKUP(D151,ALLOCTABLE_Prod_Demand,$I$10,FALSE),0) -> 0 | J151: =ROUND(F151*VLOOKUP(D151,ALLOCTABLE_Prod_Demand,$J$10,FALSE),0) -> 0 | K151: =ROUND(F151*VLOOKUP(D151,ALLOCTABLE_Prod_Demand,$K$10,FALSE),0) -> 0 | L151: =ROUND(F151*VLOOKUP(D151,ALLOCTABLE_Prod_Demand,$L$10,FALSE),0) -> 0 | M151: =ROUND(F151*VLOOKUP(D151,ALLOCTABLE_Prod_Demand,$M$10,FALSE),0) -> 0 | N151: =ROUND(F151*VLOOKUP(D151,ALLOCTABLE_Prod_Demand,$N$10,FALSE),0) -> 0 | O151: =ROUND(F151*VLOOKUP(D151,ALLOCTABLE_Prod_Demand,$O$10,FALSE),0) -> 0 | P151: =ROUND(F151*VLOOKUP(D151,ALLOCTABLE_Prod_Demand,$P$10,FALSE),0) -> 0 | Q151: =ROUND(F151*VLOOKUP(D151,ALLOCTABLE_Prod_Demand,$Q$10,FALSE),0) -> 0 | R151: =SUM(G151:Q151) -> 0 | S151: =F151-R151 -> 0
A152: 18 | C152: ='FR-16(7)(v)-1 Functional'!C152 -> POLES, TOWERS & FIXTURES - PRIMARY - CUSTOMER | D152: ='FR-16(7)(v)-1 Functional'!D152 -> K405 | F152: ='FR-16(7)(v)-2 PROD Classified'!G152 -> 0 | G152: =F152-SUM(H152:Q152) -> 0 | H152: 0 | I152: 0 | J152: 0 | K152: 0 | L152: 0 | M152: 0 | N152: 0 | O152: 0 | P152: =ROUND(F152*VLOOKUP(D152,ALLOCTABLE_Prod_Demand,$P$10,FALSE),0) -> 0 | Q152: =ROUND(F152*VLOOKUP(D152,ALLOCTABLE_Prod_Demand,$Q$10,FALSE),0) -> 0 | R152: =SUM(G152:Q152) -> 0 | S152: =F152-R152 -> 0
A153: 19 | C153: ='FR-16(7)(v)-1 Functional'!C153 -> POLES, TOWERS & FIXTURES - SECONDARY - DEMAND | D153: ='FR-16(7)(v)-1 Functional'!D153 -> K206 | F153: ='FR-16(7)(v)-2 PROD Classified'!G153 -> 0 | G153: 0 | H153: 0 | I153: 0 | J153: 0 | K153: 0 | L153: 0 | M153: 0 | N153: 0 | O153: 0 | P153: 0 | Q153: 0 | R153: 0 | S153: 0
A154: 20 | C154: ='FR-16(7)(v)-1 Functional'!C154 -> POLES, TOWERS & FIXTURES - SECONDARY - CUSTOMER | D154: ='FR-16(7)(v)-1 Functional'!D154 -> K405 | F154: ='FR-16(7)(v)-2 PROD Classified'!G154 -> 0 | G154: 0 | H154: 0 | I154: 0 | J154: 0 | K154: 0 | L154: 0 | M154: 0 | N154: 0 | O154: 0 | P154: 0 | Q154: 0 | R154: 0 | S154: 0
A155: 21 | C155: ='FR-16(7)(v)-1 Functional'!C155 -> CONDUCTORS - OVERHEAD / PRIMARY - DEMAND | D155: ='FR-16(7)(v)-1 Functional'!D155 -> K205 | F155: ='FR-16(7)(v)-2 PROD Classified'!G155 -> 0 | G155: 0 | H155: 0 | I155: 0 | J155: 0 | K155: 0 | L155: 0 | M155: 0 | N155: 0 | O155: 0 | P155: 0 | Q155: 0 | R155: 0 | S155: 0
A156: 22 | C156: ='FR-16(7)(v)-1 Functional'!C156 -> CONDUCTORS - OVERHEAD / PRIMARY - CUSTOMER | D156: ='FR-16(7)(v)-1 Functional'!D156 -> K405 | F156: ='FR-16(7)(v)-2 PROD Classified'!G156 -> 0 | G156: 0 | H156: 0 | I156: 0 | J156: 0 | K156: 0 | L156: 0 | M156: 0 | N156: 0 | O156: 0 | P156: 0 | Q156: 0 | R156: 0 | S156: 0
A157: 23 | C157: ='FR-16(7)(v)-1 Functional'!C157 -> CONDUCTORS - OVERHEAD / SECONDARY - DEMAND | D157: ='FR-16(7)(v)-1 Functional'!D157 -> K206 | F157: ='FR-16(7)(v)-2 PROD Classified'!G157 -> 0 | G157: 0 | H157: 0 | I157: 0 | J157: 0 | K157: 0 | L157: 0 | M157: 0 | N157: 0 | O157: 0 | P157: 0 | Q157: 0 | R157: 0 | S157: 0
A158: 24 | C158: ='FR-16(7)(v)-1 Functional'!C158 -> CONDUCTORS - OVERHEAD / SECONDARY - CUSTOMER | D158: ='FR-16(7)(v)-1 Functional'!D158 -> K405 | F158: ='FR-16(7)(v)-2 PROD Classified'!G158 -> 0 | G158: 0 | H158: 0 | I158: 0 | J158: 0 | K158: 0 | L158: 0 | M158: 0 | N158: 0 | O158: 0 | P158: 0 | Q158: 0 | R158: 0 | S158: 0
A159: 25 | C159: ='FR-16(7)(v)-1 Functional'!C159 -> CONDUCTORS - UNDERGROUND / PRIMARY - DEMAND | D159: ='FR-16(7)(v)-1 Functional'!D159 -> K205 | F159: ='FR-16(7)(v)-2 PROD Classified'!G159 -> 0 | G159: 0 | H159: 0 | I159: 0 | J159: 0 | K159: 0 | L159: 0 | M159: 0 | N159: 0 | O159: 0 | P159: 0 | Q159: 0 | R159: 0 | S159: 0
A160: 26 | C160: ='FR-16(7)(v)-1 Functional'!C160 -> CONDUCTORS - UNDERGROUND / PRIMARY - CUSTOMER | D160: ='FR-16(7)(v)-1 Functional'!D160 -> K405 | F160: ='FR-16(7)(v)-2 PROD Classified'!G160 -> 0 | G160: 0 | H160: 0 | I160: 0 | J160: 0 | K160: 0 | L160: 0 | M160: 0 | N160: 0 | O160: 0 | P160: 0 | Q160: 0 | R160: 0 | S160: 0
A161: 27 | C161: ='FR-16(7)(v)-1 Functional'!C161 -> CONDUCTORS - UNDERGROUND / SECONDARY - DEMAND | D161: ='FR-16(7)(v)-1 Functional'!D161 -> K206 | F161: ='FR-16(7)(v)-2 PROD Classified'!G161 -> 0 | G161: 0 | H161: 0 | I161: 0 | J161: 0 | K161: 0 | L161: 0 | M161: 0 | N161: 0 | O161: 0 | P161: 0 | Q161: 0 | R161: 0 | S161: 0
A162: 28 | C162: ='FR-16(7)(v)-1 Functional'!C162 -> CONDUCTORS - UNDERGROUND / SECONDARY - CUSTOMER | D162: ='FR-16(7)(v)-1 Functional'!D162 -> K405 | F162: ='FR-16(7)(v)-2 PROD Classified'!G162 -> 0 | G162: 0 | H162: 0 | I162: 0 | J162: 0 | K162: 0 | L162: 0 | M162: 0 | N162: 0 | O162: 0 | P162: 0 | Q162: 0 | R162: 0 | S162: 0
A163: 29 | C163: ='FR-16(7)(v)-1 Functional'!C163 -> TRANSFORMERS DEMAND RELATED | D163: ='FR-16(7)(v)-1 Functional'!D163 -> K215 | F163: ='FR-16(7)(v)-2 PROD Classified'!G163 -> 0 | G163: =F163-SUM(H163:Q163) -> 0 | H163: =ROUND($F$163*VLOOKUP(D163,ALLOCTABLE_Prod_Demand,$H$10,FALSE),0) -> 0 | I163: =ROUND($F$163*VLOOKUP($D$163,ALLOCTABLE_Prod_Demand,$I$10,FALSE),0) -> 0 | J163: =ROUND($F$163*VLOOKUP($D$163,ALLOCTABLE_Prod_Demand,$J$10,FALSE),0) -> 0 | K163: =ROUND($F$163*VLOOKUP($D$163,ALLOCTABLE_Prod_Demand,$K$10,FALSE),0) -> 0 | L163: =ROUND($F$163*VLOOKUP($D$163,ALLOCTABLE_Prod_Demand,$L$10,FALSE),0) -> 0 | M163: =ROUND($F$163*VLOOKUP($D$163,ALLOCTABLE_Prod_Demand,$M$10,FALSE),0) -> 0 | N163: =ROUND($F$163*VLOOKUP($D$163,ALLOCTABLE_Prod_Demand,$N$10,FALSE),0) -> 0 | O163: =ROUND($F$163*VLOOKUP($D$163,ALLOCTABLE_Prod_Demand,$O$10,FALSE),0) -> 0 | P163: =ROUND(F163*VLOOKUP(D163,ALLOCTABLE_Prod_Demand,$P$10,FALSE),0) -> 0 | Q163: =ROUND(F163*VLOOKUP(D163,ALLOCTABLE_Prod_Demand,$Q$10,FALSE),0) -> 0 | R163: =SUM(G163:Q163) -> 0 | S163: =F163-R163 -> 0
A164: 30 | C164: ='FR-16(7)(v)-1 Functional'!C164 -> TRANSFORMERS CUSTOMER RELATED | D164: ='FR-16(7)(v)-1 Functional'!D164 -> K405 | F164: ='FR-16(7)(v)-2 PROD Classified'!G164 -> 0 | G164: 0 | H164: =ROUND($F$163*VLOOKUP(D164,ALLOCTABLE_Prod_Demand,$H$10,FALSE),0) -> 0 | I164: =ROUND($F$163*VLOOKUP($D$163,ALLOCTABLE_Prod_Demand,$I$10,FALSE),0) -> 0 | J164: =ROUND($F$163*VLOOKUP($D$163,ALLOCTABLE_Prod_Demand,$J$10,FALSE),0) -> 0 | K164: =ROUND($F$163*VLOOKUP($D$163,ALLOCTABLE_Prod_Demand,$K$10,FALSE),0) -> 0 | L164: =ROUND($F$163*VLOOKUP($D$163,ALLOCTABLE_Prod_Demand,$L$10,FALSE),0) -> 0 | M164: =ROUND($F$163*VLOOKUP($D$163,ALLOCTABLE_Prod_Demand,$M$10,FALSE),0) -> 0 | N164: =ROUND($F$163*VLOOKUP($D$163,ALLOCTABLE_Prod_Demand,$N$10,FALSE),0) -> 0 | O164: =ROUND($F$163*VLOOKUP($D$163,ALLOCTABLE_Prod_Demand,$O$10,FALSE),0) -> 0 | P164: =ROUND(F164*VLOOKUP(D164,ALLOCTABLE_Prod_Demand,$P$10,FALSE),0) -> 0 | Q164: =ROUND(F164*VLOOKUP(D164,ALLOCTABLE_Prod_Demand,$Q$10,FALSE),0) -> 0 | R164: 0 | S164: 0
A165: 31 | C165: ='FR-16(7)(v)-1 Functional'!C165 -> SERVICES | D165: ='FR-16(7)(v)-1 Functional'!D165 -> K217 | F165: ='FR-16(7)(v)-2 PROD Classified'!G165 -> 0 | G165: 0 | H165: =ROUND($F$165*VLOOKUP(D165,ALLOCTABLE_Prod_Demand,$H$10,FALSE),0) -> 0 | I165: =ROUND($F$165*VLOOKUP($D$165,ALLOCTABLE_Prod_Demand,$I$10,FALSE),0) -> 0 | J165: =ROUND($F$165*VLOOKUP($D$165,ALLOCTABLE_Prod_Demand,$J$10,FALSE),0) -> 0 | K165: =ROUND($F$165*VLOOKUP($D$165,ALLOCTABLE_Prod_Demand,$K$10,FALSE),0) -> 0 | L165: =ROUND($F$165*VLOOKUP($D$165,ALLOCTABLE_Prod_Demand,$L$10,FALSE),0) -> 0 | M165: =ROUND($F$165*VLOOKUP($D$165,ALLOCTABLE_Prod_Demand,$M$10,FALSE),0) -> 0 | N165: =ROUND($F$165*VLOOKUP($D$165,ALLOCTABLE_Prod_Demand,$N$10,FALSE),0) -> 0 | O165: =ROUND($F$165*VLOOKUP($D$165,ALLOCTABLE_Prod_Demand,$O$10,FALSE),0) -> 0 | P165: =ROUND($F$165*VLOOKUP($D$165,ALLOCTABLE_Prod_Demand,$P$10,FALSE),0) -> 0 | Q165: =ROUND($F$165*VLOOKUP(D165,ALLOCTABLE_Prod_Demand,$Q$10,FALSE),0) -> 0 | R165: 0 | S165: 0
A166: 32 | C166: ='FR-16(7)(v)-1 Functional'!C166 -> METERS | D166: ='FR-16(7)(v)-1 Functional'!D166 -> K407 | F166: ='FR-16(7)(v)-2 PROD Classified'!G166 -> 0 | G166: 0 | H166: =ROUND($F$166*VLOOKUP(D166,ALLOCTABLE_Prod_Demand,$H$10,FALSE),0) -> 0 | I166: =ROUND($F$166*VLOOKUP($D$166,ALLOCTABLE_Prod_Demand,$I$10,FALSE),0) -> 0 | J166: =ROUND($F$166*VLOOKUP($D$166,ALLOCTABLE_Prod_Demand,$J$10,FALSE),0) -> 0 | K166: =ROUND($F$166*VLOOKUP($D$166,ALLOCTABLE_Prod_Demand,$K$10,FALSE),0) -> 0 | L166: =ROUND($F$166*VLOOKUP($D$166,ALLOCTABLE_Prod_Demand,$L$10,FALSE),0) -> 0 | M166: =ROUND($F$166*VLOOKUP($D$166,ALLOCTABLE_Prod_Demand,$M$10,FALSE),0) -> 0 | N166: =ROUND($F$166*VLOOKUP($D$166,ALLOCTABLE_Prod_Demand,$N$10,FALSE),0) -> 0 | O166: =ROUND($F$166*VLOOKUP($D$166,ALLOCTABLE_Prod_Demand,$O$10,FALSE),0) -> 0 | P166: =ROUND($F$166*VLOOKUP($D$166,ALLOCTABLE_Prod_Demand,$P$10,FALSE),0) -> 0 | Q166: =ROUND($F$166*VLOOKUP(D166,ALLOCTABLE_Prod_Demand,$Q$10,FALSE),0) -> 0 | R166: 0 | S166: 0
A167: 33 | C167: ='FR-16(7)(v)-1 Functional'!C167 -> STREET LIGHTS | D167: ='FR-16(7)(v)-1 Functional'!D167 -> K401 | F167: ='FR-16(7)(v)-2 PROD Classified'!G167 -> 0 | G167: 0 | H167: =ROUND($F$167*VLOOKUP(D167,ALLOCTABLE_Prod_Demand,$H$10,FALSE),0) -> 0 | I167: =ROUND($F$167*VLOOKUP($D$167,ALLOCTABLE_Prod_Demand,$I$10,FALSE),0) -> 0 | J167: =ROUND($F$167*VLOOKUP($D$167,ALLOCTABLE_Prod_Demand,$J$10,FALSE),0) -> 0 | K167: =ROUND($F$167*VLOOKUP($D$167,ALLOCTABLE_Prod_Demand,$K$10,FALSE),0) -> 0 | L167: =ROUND($F$167*VLOOKUP($D$167,ALLOCTABLE_Prod_Demand,$L$10,FALSE),0) -> 0 | M167: =ROUND($F$167*VLOOKUP($D$167,ALLOCTABLE_Prod_Demand,$M$10,FALSE),0) -> 0 | N167: =ROUND($F$167*VLOOKUP($D$167,ALLOCTABLE_Prod_Demand,$N$10,FALSE),0) -> 0 | O167: =ROUND($F$167*VLOOKUP($D$167,ALLOCTABLE_Prod_Demand,$O$10,FALSE),0) -> 0 | P167: =ROUND($F$167*VLOOKUP($D$167,ALLOCTABLE_Prod_Demand,$P$10,FALSE),0) -> 0 | Q167: =ROUND($F$167*VLOOKUP(D167,ALLOCTABLE_Prod_Demand,$Q$10,FALSE),0) -> 0 | R167: 0 | S167: 0
A168: 34 | C168: ='FR-16(7)(v)-1 Functional'!C168 -> ADJUSTMENT | D168: ='FR-16(7)(v)-1 Functional'!D168 -> K209 | F168: ='FR-16(7)(v)-2 PROD Classified'!G168 -> 0 | G168: 0 | H168: =ROUND($F$168*VLOOKUP(D168,ALLOCTABLE_Prod_Demand,$H$10,FALSE),0) -> 0 | I168: =ROUND($F$168*VLOOKUP($D$168,ALLOCTABLE_Prod_Demand,$I$10,FALSE),0) -> 0 | J168: =ROUND($F$168*VLOOKUP($D$168,ALLOCTABLE_Prod_Demand,$J$10,FALSE),0) -> 0 | K168: =ROUND($F$168*VLOOKUP($D$168,ALLOCTABLE_Prod_Demand,$K$10,FALSE),0) -> 0 | L168: =ROUND($F$168*VLOOKUP($D$168,ALLOCTABLE_Prod_Demand,$L$10,FALSE),0) -> 0 | M168: =ROUND($F$168*VLOOKUP($D$168,ALLOCTABLE_Prod_Demand,$M$10,FALSE),0) -> 0 | N168: =ROUND($F$168*VLOOKUP($D$168,ALLOCTABLE_Prod_Demand,$N$10,FALSE),0) -> 0 | O168: =ROUND($F$168*VLOOKUP($D$168,ALLOCTABLE_Prod_Demand,$O$10,FALSE),0) -> 0 | P168: =ROUND($F$168*VLOOKUP($D$168,ALLOCTABLE_Prod_Demand,$P$10,FALSE),0) -> 0 | Q168: =ROUND($F$168*VLOOKUP(D168,ALLOCTABLE_Prod_Demand,$Q$10,FALSE),0) -> 0 | R168: 0 | S168: 0
A169: 35 | C169: ='FR-16(7)(v)-1 Functional'!C169 -> CONSTRUCTION NOT CLASSIFIED | D169: ='FR-16(7)(v)-1 Functional'!D169 -> K209 | F169: ='FR-16(7)(v)-2 PROD Classified'!G169 -> 0 | G169: 0 | H169: =ROUND($F$169*VLOOKUP(D169,ALLOCTABLE_Prod_Demand,$H$10,FALSE),0) -> 0 | I169: =ROUND($F$169*VLOOKUP($D$169,ALLOCTABLE_Prod_Demand,$I$10,FALSE),0) -> 0 | J169: =ROUND($F$169*VLOOKUP($D$169,ALLOCTABLE_Prod_Demand,$J$10,FALSE),0) -> 0 | K169: =ROUND($F$169*VLOOKUP($D$169,ALLOCTABLE_Prod_Demand,$K$10,FALSE),0) -> 0 | L169: =ROUND($F$169*VLOOKUP($D$169,ALLOCTABLE_Prod_Demand,$L$10,FALSE),0) -> 0 | M169: =ROUND($F$169*VLOOKUP($D$169,ALLOCTABLE_Prod_Demand,$M$10,FALSE),0) -> 0 | N169: =ROUND($F$169*VLOOKUP($D$169,ALLOCTABLE_Prod_Demand,$N$10,FALSE),0) -> 0 | O169: =ROUND($F$169*VLOOKUP($D$169,ALLOCTABLE_Prod_Demand,$O$10,FALSE),0) -> 0 | P169: =ROUND($F$169*VLOOKUP($D$169,ALLOCTABLE_Prod_Demand,$P$10,FALSE),0) -> 0 | Q169: =ROUND($F$169*VLOOKUP(D169,ALLOCTABLE_Prod_Demand,$Q$10,FALSE),0) -> 0 | R169: 0 | S169: 0
A170: 36 | C170: ='FR-16(7)(v)-1 Functional'!C170 -> RWIP | D170: ='FR-16(7)(v)-1 Functional'!D170 -> K215 | F170: ='FR-16(7)(v)-2 PROD Classified'!G170 -> 0 | G170: =F170-SUM(H170:Q170) -> 0 | H170: =ROUND($F$169*VLOOKUP(D170,ALLOCTABLE_Prod_Demand,$H$10,FALSE),0) -> 0 | I170: =ROUND($F$169*VLOOKUP($D$169,ALLOCTABLE_Prod_Demand,$I$10,FALSE),0) -> 0 | J170: =ROUND($F$169*VLOOKUP($D$169,ALLOCTABLE_Prod_Demand,$J$10,FALSE),0) -> 0 | K170: =ROUND($F$169*VLOOKUP($D$169,ALLOCTABLE_Prod_Demand,$K$10,FALSE),0) -> 0
A171: 37 | C171: ='FR-16(7)(v)-1 Functional'!C171 -> TOTAL DIST DEPREC RESERVE | F171: =SUM(F149:F170) -> 0 | G171: =SUM(G149:G169) -> 0 | H171: =SUM(H149:H169) -> 0 | I171: =SUM(I149:I169) -> 0 | J171: 0 | K171: 0 | L171: 0 | M171: 0 | N171: 0 | O171: 0 | P171: 0 | Q171: 0 | R171: =SUM(R149:R169) -> 0 | S171: =SUM(S149:S169) -> 0
A172: 38
A173: 39 | C173: TOTAL TRANS & DIST DEPREC RESERVE | F173: =F171+F145 -> 0 | G173: =G171+G145 -> 0 | H173: =H171+$H$114 -> 0 | I173: =I171+$I$114 -> 0 | J173: =J171+$J$114 -> 0 | K173: =K171+$K$114 -> 0 | L173: =L171+$L$114 -> 0 | M173: =M171+$M$114 -> 0 | N173: =N171+$N$114 -> 0 | O173: =O171+$O$114 -> 0 | P173: =P171+$P$114 -> 0 | Q173: =Q171+$Q$114 -> 0 | R173: =SUM(G173:Q173) -> 0 | S173: =F173-R173 -> 0
A174: 40 | C174: TOTAL GROSS PTD PLANT DEPREC RESERVE | F174: =F147+F171 -> 626627976 | G174: =G147+G171 -> 261798902 | H174: 184372750 | I174: 852215 | J174: 3001547 | K174: 43864 | L174: 87283011 | M174: 59805374 | N174: 2180665 | O174: 26368505 | P174: 896078 | Q174: 25065 | R174: =SUM(G174:Q174) -> 626627976 | S174: =F174-R174 -> 0
A175: 41
A176: 42 | B176: GENERAL & INTANGIBLE PLANT
A177: 43 | C177: ='FR-16(7)(v)-1 Functional'!C177 -> PRODUCTION - DEMAND | D177: ='FR-16(7)(v)-1 Functional'!D177 -> K201 | F177: ='FR-16(7)(v)-2 PROD Classified'!G177 -> 4910013 | G177: =F177-SUM(H177:Q177) -> 2051354 | H177: =ROUND(F177*VLOOKUP(D177,ALLOCTABLE_Prod_Demand,$H$10,FALSE),0) -> 1444673 | I177: =ROUND(F177*VLOOKUP(D177,ALLOCTABLE_Prod_Demand,$I$10,FALSE),0) -> 6678 | J177: =ROUND(F177*VLOOKUP(D177,ALLOCTABLE_Prod_Demand,$J$10,FALSE),0) -> 23519 | K177: =ROUND(F177*VLOOKUP(D177,ALLOCTABLE_Prod_Demand,$K$10,FALSE),0) -> 344 | L177: =ROUND(F177*VLOOKUP(D177,ALLOCTABLE_Prod_Demand,$L$10,FALSE),0) -> 683916 | M177: =ROUND(F177*VLOOKUP(D177,ALLOCTABLE_Prod_Demand,$M$10,FALSE),0) -> 468612 | N177: =ROUND(F177*VLOOKUP(D177,ALLOCTABLE_Prod_Demand,$N$10,FALSE),0) -> 17087 | O177: =ROUND(F177*VLOOKUP(D177,ALLOCTABLE_Prod_Demand,$O$10,FALSE),0) -> 206613 | P177: =ROUND(F177*VLOOKUP(D177,ALLOCTABLE_Prod_Demand,$P$10,FALSE),0) -> 7021 | Q177: =ROUND(F177*VLOOKUP(D177,ALLOCTABLE_Prod_Demand,$Q$10,FALSE),0) -> 196 | R177: =SUM(G177:Q177) -> 4910013 | S177: =F177-R177 -> 0
A178: 44 | C178: ='FR-16(7)(v)-1 Functional'!C178 -> PRODUCTION - ENERGY | D178: ='FR-16(7)(v)-1 Functional'!D178 -> K301 | F178: ='FR-16(7)(v)-2 PROD Classified'!G178 -> 0 | G178: 0 | H178: 0 | I178: 0 | J178: 0 | K178: 0 | L178: 0 | M178: 0 | N178: 0 | O178: 0 | P178: 0 | Q178: 0 | R178: 0 | S178: 0
A179: 45 | C179: ='FR-16(7)(v)-1 Functional'!C179 -> TRANSMISSION | D179: ='FR-16(7)(v)-1 Functional'!D179 -> K202 | F179: ='FR-16(7)(v)-2 PROD Classified'!G179 -> 0 | G179: 0 | H179: 0 | I179: 0 | J179: 0 | K179: 0 | L179: 0 | M179: 0 | N179: 0 | O179: 0 | P179: 0 | Q179: 0 | R179: 0 | S179: 0
A180: 46 | C180: ='FR-16(7)(v)-1 Functional'!C180 -> DISTRIBUTION - DEMAND | D180: ='FR-16(7)(v)-1 Functional'!D180 -> K201 | F180: ='FR-16(7)(v)-2 PROD Classified'!G180 -> 2789882 | G180: 1165584 | H180: 820867 | I180: 3794 | J180: 13364 | K180: 195 | L180: 388603 | M180: 266266 | N180: 9709 | O180: 117398 | P180: 3990 | Q180: 112 | R180: 2789882 | S180: 0
A181: 47 | C181: ='FR-16(7)(v)-1 Functional'!C181 -> DISTRIBUTION - CUSTOMER | D181: ='FR-16(7)(v)-1 Functional'!D181 -> K405 | F181: ='FR-16(7)(v)-2 PROD Classified'!G181 -> 0 | G181: 0 | H181: 0 | I181: 0 | J181: 0 | K181: 0 | L181: 0 | M181: 0 | N181: 0 | O181: 0 | P181: 0 | Q181: 0 | R181: 0 | S181: 0
A182: 48 | C182: ='FR-16(7)(v)-1 Functional'!C182 -> CUSTOMER ACCOUNTING | D182: ='FR-16(7)(v)-1 Functional'!D182 -> A308 | F182: ='FR-16(7)(v)-2 PROD Classified'!G182 -> 0 | G182: 0 | H182: 0 | I182: 0 | J182: 0 | K182: 0 | L182: 0 | M182: 0 | N182: 0 | O182: 0 | P182: 0 | Q182: 0 | R182: 0 | S182: 0
A183: 49 | C183: ='FR-16(7)(v)-1 Functional'!C183 -> CUSTOMER SERVICE & INFORMATION | D183: ='FR-16(7)(v)-1 Functional'!D183 -> A310 | F183: ='FR-16(7)(v)-2 PROD Classified'!G183 -> 0 | G183: 0 | H183: 0 | I183: 0 | J183: 0 | K183: 0 | L183: 0 | M183: 0 | N183: 0 | O183: 0 | P183: 0 | Q183: 0 | R183: 0 | S183: 0
A184: 50 | C184: ='FR-16(7)(v)-1 Functional'!C184 -> SALES | D184: ='FR-16(7)(v)-1 Functional'!D184 -> A312 | F184: ='FR-16(7)(v)-2 PROD Classified'!G184 -> 0 | G184: 0 | H184: 0 | I184: 0 | J184: 0 | K184: 0 | L184: 0 | M184: 0 | N184: 0 | O184: 0 | P184: 0 | Q184: 0 | R184: 0 | S184: 0
A185: 51 | C185: ='FR-16(7)(v)-1 Functional'!C185 -> ADJUSTMENT | D185: ='FR-16(7)(v)-1 Functional'!D185 -> A315 | F185: ='FR-16(7)(v)-2 PROD Classified'!G185 -> -826542 | G185: -812623 | H185: -7034 | I185: -33 | J185: -116 | K185: 0 | L185: -3331 | M185: -2281 | N185: -83 | O185: -1008 | P185: -33 | Q185: 0 | R185: -826542 | S185: 0
A186: 52 | C186: GENERAL & INTANG PLANT | F186: =SUM($F$176:F185) -> 6873353 | G186: =SUM(G176:G185) -> 2404315 | H186: =SUM(H176:H185) -> 2258506 | I186: =SUM(I176:I185) -> 10439 | J186: =SUM(J176:J185) -> 36767 | K186: 539 | L186: 1069188 | M186: 732597 | N186: 26713 | O186: 323003 | P186: 10978 | Q186: =SUM(Q176:Q185) -> 308 | R186: =SUM(R176:R185) -> 6873353 | S186: =SUM(S176:S185) -> 0
A187: 53
A188: 54 | B188: COMMON & OTHER PLANT
A189: 55 | C189: ='FR-16(7)(v)-1 Functional'!C189 -> PRODUCTION - DEMAND | D189: ='FR-16(7)(v)-1 Functional'!D189 -> K201 | F189: ='FR-16(7)(v)-2 PROD Classified'!G189 -> 9493775.461 | G189: =F189-SUM(H189:Q189) -> 3966403.461 | H189: =ROUND(F189*VLOOKUP(D189,ALLOCTABLE_Prod_Demand,$H$10,FALSE),0) -> 2793354 | I189: =ROUND(F189*VLOOKUP(D189,ALLOCTABLE_Prod_Demand,$I$10,FALSE),0) -> 12912 | J189: =ROUND(F189*VLOOKUP(D189,ALLOCTABLE_Prod_Demand,$J$10,FALSE),0) -> 45475 | K189: =ROUND(F189*VLOOKUP(D189,ALLOCTABLE_Prod_Demand,$K$10,FALSE),0) -> 665 | L189: =ROUND(F189*VLOOKUP(D189,ALLOCTABLE_Prod_Demand,$L$10,FALSE),0) -> 1322388 | M189: =ROUND(F189*VLOOKUP(D189,ALLOCTABLE_Prod_Demand,$M$10,FALSE),0) -> 906086 | N189: =ROUND(F189*VLOOKUP(D189,ALLOCTABLE_Prod_Demand,$N$10,FALSE),0) -> 33038 | O189: =ROUND(F189*VLOOKUP(D189,ALLOCTABLE_Prod_Demand,$O$10,FALSE),0) -> 399498 | P189: =ROUND(F189*VLOOKUP(D189,ALLOCTABLE_Prod_Demand,$P$10,FALSE),0) -> 13576 | Q189: =ROUND(F189*VLOOKUP(D189,ALLOCTABLE_Prod_Demand,$Q$10,FALSE),0) -> 380 | R189: =SUM(G189:Q189) -> 9493775.461 | S189: =F189-R189 -> 0
A190: 56 | C190: ='FR-16(7)(v)-1 Functional'!C190 -> PRODUCTION - ENERGY | D190: ='FR-16(7)(v)-1 Functional'!D190 -> K301 | F190: ='FR-16(7)(v)-2 PROD Classified'!G190 -> 0 | G190: 0 | H190: 0 | I190: 0 | J190: 0 | K190: 0 | L190: 0 | M190: 0 | N190: 0 | O190: 0 | P190: 0 | Q190: 0 | R190: 0 | S190: 0
A191: 57 | C191: ='FR-16(7)(v)-1 Functional'!C191 -> TRANSMISSION | D191: ='FR-16(7)(v)-1 Functional'!D191 -> K202 | F191: ='FR-16(7)(v)-2 PROD Classified'!G191 -> 0 | G191: 0 | H191: 0 | I191: 0 | J191: 0 | K191: 0 | L191: 0 | M191: 0 | N191: 0 | O191: 0 | P191: 0 | Q191: 0 | R191: 0 | S191: 0
A192: 58 | C192: ='FR-16(7)(v)-1 Functional'!C192 -> DISTRIBUTION - DEMAND | D192: ='FR-16(7)(v)-1 Functional'!D192 -> K201 | F192: ='FR-16(7)(v)-2 PROD Classified'!G192 -> 5394388 | G192: 2253722 | H192: 1587191 | I192: 7336 | J192: 25839 | K192: 378 | L192: 751384 | M192: 514840 | N192: 18772 | O192: 226996 | P192: 7714 | Q192: 216 | R192: 5394388 | S192: 0
A193: 59 | C193: ='FR-16(7)(v)-1 Functional'!C193 -> DISTRIBUTION - CUSTOMER | D193: ='FR-16(7)(v)-1 Functional'!D193 -> K405 | F193: ='FR-16(7)(v)-2 PROD Classified'!G193 -> 0 | G193: 0 | H193: 0 | I193: 0 | J193: 0 | K193: 0 | L193: 0 | M193: 0 | N193: 0 | O193: 0 | P193: 0 | Q193: 0 | R193: 0 | S193: 0
A194: 60 | C194: ='FR-16(7)(v)-1 Functional'!C194 -> CUSTOMER ACCOUNTING | D194: ='FR-16(7)(v)-1 Functional'!D194 -> A308 | F194: ='FR-16(7)(v)-2 PROD Classified'!G194 -> 0 | G194: 0 | H194: 0 | I194: 0 | J194: 0 | K194: 0 | L194: 0 | M194: 0 | N194: 0 | O194: 0 | P194: 0 | Q194: 0 | R194: 0 | S194: 0
A195: 61 | C195: ='FR-16(7)(v)-1 Functional'!C195 -> CUSTOMER SERVICE & INFORMATION | D195: ='FR-16(7)(v)-1 Functional'!D195 -> A310 | F195: ='FR-16(7)(v)-2 PROD Classified'!G195 -> 0 | G195: 0 | H195: 0 | I195: 0 | J195: 0 | K195: 0 | L195: 0 | M195: 0 | N195: 0 | O195: 0 | P195: 0 | Q195: 0 | R195: 0 | S195: 0
A196: 62 | C196: ='FR-16(7)(v)-1 Functional'!C196 -> SALES | D196: ='FR-16(7)(v)-1 Functional'!D196 -> A312 | F196: ='FR-16(7)(v)-2 PROD Classified'!G196 -> 0 | G196: 0 | H196: 0 | I196: 0 | J196: 0 | K196: 0 | L196: 0 | M196: 0 | N196: 0 | O196: 0 | P196: 0 | Q196: 0 | R196: 0 | S196: 0
A197: 63 | C197: ='FR-16(7)(v)-1 Functional'!C197 -> ADJUSTMENT | D197: ='FR-16(7)(v)-1 Functional'!D197 -> A315 | F197: ='FR-16(7)(v)-2 PROD Classified'!G197 -> -69302 | G197: -68134 | H197: -590 | I197: -3 | J197: -10 | K197: 0 | L197: -279 | M197: -191 | N197: -7 | O197: -85 | P197: -3 | Q197: 0 | R197: -69302 | S197: 0
A198: 64 | C198: ='FR-16(7)(v)-1 Functional'!C198 -> COMMON & OTHER PLANT IN SERVICE | F198: =SUM($F$189:F197) -> 14818861.46 | G198: =SUM(G188:G197) -> 6151991.461 | H198: 4379955 | I198: 20245 | J198: =SUM(J188:J197) -> 71304 | K198: 1043 | L198: 2073493 | M198: 1420735 | N198: 51803 | O198: 626409 | P198: 21287 | Q198: 596 | R198: 14818861.46 | S198: 0
A199: 65
A200: 66 | B200: TOTAL DEPRECIATION RESERVE | F200: =F198+F186+F171+F145+F139 -> 648320190.5 | G200: =G198+G186+G171+G145+G139 -> 270355208.5 | H200: =H198+H186+H171+$H$114+H139 -> 191011211 | I200: =I198+I186+I171+$I$114+I139 -> 882899 | J200: =J198+J186+J171+$J$114+J139 -> 3109618 | K200: =K198+K186+K171+$K$114+K139 -> 45446 | L200: =L198+L186+L171+$L$114+L139 -> 90425692 | M200: =M198+M186+M171+$M$114+M139 -> 61958706 | N200: =N198+N186+N171+$N$114+N139 -> 2259181 | O200: =O198+O186+O171+$O$114+O139 -> 27317917 | P200: =P198+P186+P171+$P$114+P139 -> 928343 | Q200: =Q198+Q186+Q171+$Q$114+Q139 -> 25969 | R200: =R198+R186+R171+R145+R139 -> 648320190.5 | S200: =S198+S186+S171+S145+S139 -> 0
A202: =co_name -> DUKE ENERGY KENTUCKY, INC. | R202: =R1 -> FR-16(7)(v)-3
A203: =$A$2 -> PRODUCTION DEMAND ALLOCATED - ELECTRIC COST OF SERVICE | R203: =R2 -> WITNESS RESPONSIBLE:
A204: =case_name -> CASE NO: 2017-00321 | R204: =Witness -> JAMES E. ZIOLKOWSKI
A205: =data_filing -> DATA: 12 MONTHS ACTUAL & 0 MONTHS ESTIMATED | R205: ="PAGE "&Pages-14&" OF "&Pages -> PAGE 4 OF 18
A206: =type -> TYPE OF FILING: "X" ORIGINAL UPDATED REVISED
... 743 more rows

Sheet FR-16(7)(v)-4 PROD Energy
A1: =co_name -> DUKE ENERGY KENTUCKY, INC. | R1: FR-16(7)(v)-4
A2: =F8&" "&F9&" ALLOCATED - ELECTRIC COST OF SERVICE" -> PRODUCTION ENERGY ALLOCATED - ELECTRIC COST OF SERVICE | R2: WITNESS RESPONSIBLE:
A3: =case_name -> CASE NO: 2017-00321 | R3: =Witness -> JAMES E. ZIOLKOWSKI
A4: =data_filing -> DATA: 12 MONTHS ACTUAL & 0 MONTHS ESTIMATED | R4: ="PAGE "&Pages-17&" OF "&Pages -> PAGE 1 OF 18
A5: =type -> TYPE OF FILING: "X" ORIGINAL UPDATED REVISED
F7: ='FR-16(7)(v)-3 PROD Demand'!F7 -> TOTAL | H7: ='FR-16(7)(v)-3 PROD Demand'!H7 -> DS | I7: ='FR-16(7)(v)-3 PROD Demand'!I7 -> GSFL | J7: ='FR-16(7)(v)-3 PROD Demand'!J7 -> EH | K7: ='FR-16(7)(v)-3 PROD Demand'!K7 -> SP | L7: ='FR-16(7)(v)-3 PROD Demand'!L7 -> DT SEC | M7: ='FR-16(7)(v)-3 PROD Demand'!M7 -> DT PRI | N7: ='FR-16(7)(v)-3 PROD Demand'!N7 -> DP | O7: ='FR-16(7)(v)-3 PROD Demand'!O7 -> TT | Q7: ='FR-16(7)(v)-3 PROD Demand'!Q7 -> OTHER
A8: LINE | F8: ='FR-16(7)(v)-3 PROD Demand'!F8 -> PRODUCTION | G8: ='FR-16(7)(v)-3 PROD Demand'!G8 -> RS | H8: ='FR-16(7)(v)-3 PROD Demand'!H8 -> SECONDARY | I8: ='FR-16(7)(v)-3 PROD Demand'!I8 -> SECONDARY | J8: ='FR-16(7)(v)-3 PROD Demand'!J8 -> SECONDARY | K8: ='FR-16(7)(v)-3 PROD Demand'!K8 -> SECONDARY | L8: ='FR-16(7)(v)-3 PROD Demand'!L8 -> SECONDARY | M8: ='FR-16(7)(v)-3 PROD Demand'!M8 -> PRIMARY | N8: ='FR-16(7)(v)-3 PROD Demand'!N8 -> PRIMARY | O8: ='FR-16(7)(v)-3 PROD Demand'!O8 -> TRANSMISSION | P8: ='FR-16(7)(v)-3 PROD Demand'!P8 -> LT | Q8: ='FR-16(7)(v)-3 PROD Demand'!Q8 -> WATER | R8: ='FR-16(7)(v)-3 PROD Demand'!R8 -> TOTAL | S8: ='FR-16(7)(v)-3 PROD Demand'!S8 -> ALL
A9: NO. | B9: SUMMARY OF RESULTS | D9: ALLO | F9: ENERGY | G9: ='FR-16(7)(v)-3 PROD Demand'!G9 -> RESIDENTIAL | H9: ='FR-16(7)(v)-3 PROD Demand'!H9 -> DISTRIBUTION | I9: ='FR-16(7)(v)-3 PROD Demand'!I9 -> DISTRIBUTION | J9: ='FR-16(7)(v)-3 PROD Demand'!J9 -> DISTRIBUTION | K9: ='FR-16(7)(v)-3 PROD Demand'!K9 -> DISTRIBUTION | L9: ='FR-16(7)(v)-3 PROD Demand'!L9 -> DISTRIBUTION | M9: ='FR-16(7)(v)-3 PROD Demand'!M9 -> DISTRIBUTION | N9: ='FR-16(7)(v)-3 PROD Demand'!N9 -> DISTRIBUTION | O9: ='FR-16(7)(v)-3 PROD Demand'!O9 -> TIME OF DAY | P9: ='FR-16(7)(v)-3 PROD Demand'!P9 -> LIGHTING | Q9: ='FR-16(7)(v)-3 PROD Demand'!Q9 -> PUMPING | R9: ='FR-16(7)(v)-3 PROD Demand'!R9 -> AT ISSUE | S9: ='FR-16(7)(v)-3 PROD Demand'!S9 -> OTHER
C10: Schedule 1 | G10: 3 | H10: 4 | I10: 5 | J10: 6 | K10: 7 | L10: 8 | M10: 9 | N10: 10 | O10: 11 | P10: 12 | Q10: 13
A11: 1 | B11: NET INCOME COMPUTATION
A12: 2 | C12: ='FR-16(7)(v)-1 Functional'!C12 -> GROSS ELECTRIC PLANT IN SERVICE | F12: =F123 -> 16168004 | G12: =G123 -> 5812397 | H12: =H123 -> 4508933 | I12: =I123 -> 24899 | J12: =J123 -> 76313 | K12: 1132 | L12: 2728189 | M12: 1982359 | N12: 62570 | O12: 894576 | P12: 75990 | Q12: =Q123 -> 646 | R12: =SUM(G12:Q12) -> 16168004 | S12: =F12-R12 -> 0
A13: 3 | C13: ='FR-16(7)(v)-1 Functional'!C13 -> TOTAL DEPRECIATION RESERVE | F13: =-F200 -> -11859714 | G13: =-G200 -> -4262769 | H13: =-H200 -> -3306835 | I13: =-I200 -> -18257 | J13: =-J200 -> -55970 | K13: -830 | L13: -2001383 | M13: -1453837 | N13: -45889 | O13: -657737 | P13: -55732 | Q13: =-Q200 -> -475 | R13: =SUM(G13:Q13) -> -11859714 | S13: =F13-R13 -> 0
A14: 4 | C14: ='FR-16(7)(v)-1 Functional'!C14 -> TOTAL RATE BASE ADJUSTMENTS | F14: =F421 -> 20247465 | G14: =G421 -> 7274391 | H14: =H421 -> 5643172 | I14: =I421 -> 31138 | J14: =J421 -> 95529 | K14: 1418 | L14: 3417558 | M14: 2480925 | N14: 78315 | O14: 1129089 | P14: 95120 | Q14: =Q421 -> 810 | R14: =SUM(G14:Q14) -> 20247465 | S14: =F14-R14 -> 0
A15: 5 | C15: ='FR-16(7)(v)-1 Functional'!C15 -> TOTAL RATE BASE | F15: =SUM(F12:F14) -> 24555755 | G15: =SUM(G12:G14) -> 8824019 | H15: =SUM(H12:H14) -> 6845270 | I15: =SUM(I12:I14) -> 37780 | J15: =SUM(J12:J14) -> 115872 | K15: 1720 | L15: 4144364 | M15: 3009447 | N15: 94996 | O15: 1365928 | P15: 115378 | Q15: =SUM(Q12:Q14) -> 981 | R15: =SUM(R12:R14) -> 24555755 | S15: =F15-R15 -> 0
A16: 6
A17: 7 | B17: OPERATING EXPENSES
A18: 8 | C18: ='FR-16(7)(v)-1 Functional'!C18 -> TOTAL O&M EXPENSE | F18: =F549 -> 161870971 | G18: =G549 -> 58362162 | H18: =H549 -> 45269750 | I18: =I549 -> 250417 | J18: =J549 -> 766236 | K18: 11330 | L18: 27277284 | M18: 19906142 | N18: 628647 | O18: 8629531 | P18: 762998 | Q18: =Q549 -> 6474 | R18: =SUM(G18:Q18) -> 161870971 | S18: =F18-R18 -> 0
A19: 9 | C19: ='FR-16(7)(v)-1 Functional'!C19 -> TOTAL DEPRECIATION EXPENSE | F19: =F582 -> 841497 | G19: =G582 -> 302686 | H19: =H582 -> 234802 | I19: =I582 -> 1296 | J19: =J582 -> 3972 | K19: 59 | L19: 141958 | M19: 103231 | N19: 3256 | O19: 46247 | P19: 3956 | Q19: =Q582 -> 34 | R19: =SUM(G19:Q19) -> 841497 | S19: 0
A20: 10 | C20: ='FR-16(7)(v)-1 Functional'!C20 -> TOTAL OTHER TAX & MISC EXPENSE | F20: =F612 -> 626790 | G20: =G612 -> 226867 | H20: =H612 -> 175679 | I20: =I612 -> 980 | J20: =J612 -> 2894 | K20: 44 | L20: 105167 | M20: 76490 | N20: 2410 | O20: 33243 | P20: 2991 | Q20: =$Q$612 -> 25 | R20: =SUM(G20:Q20) -> 626790 | S20: 0
A21: 11 | C21: ='FR-16(7)(v)-1 Functional'!C21 -> TOTAL OP EXP EXCLUDING INC & REV TAX | F21: =SUM(F17:F20) -> 163339258 | G21: 58891715 | H21: 45680231 | I21: 252693 | J21: =SUM(J17:J20) -> 773102 | K21: 11433 | L21: 27524409 | M21: 20085863 | N21: 634313 | O21: 8709021 | P21: 769945 | Q21: 6533 | R21: 163339258 | S21: 0
A22: 12 | C22: ='FR-16(7)(v)-1 Functional'!C22 -> NET FED INCOME TAX EXP ALLOWABLE | F22: =F676 -> 25788892 | G22: =G676 -> 9297817 | H22: =H676 -> 7212101 | I22: =I676 -> 39971 | J22: =J676 -> 121980 | K22: 1805 | L22: 4345762 | M22: 3171392 | N22: 100060 | O22: 1375509 | P22: 121465 | Q22: =$Q$676 -> 1030 | R22: =SUM(G22:Q22) -> 25788892 | S22: 0
A23: 13 | C23: NET STATE INCOME TAX EXP ALLOWABLE | F23: =F722 -> 1668355 | G23: =G722 -> 601453 | H23: 466534 | I23: 2586 | J23: 7890 | K23: 117 | L23: 281150 | M23: 205150 | N23: 6473 | O23: 89079 | P23: 7857 | Q23: 66 | R23: =SUM(G23:Q23) -> 1668355 | S23: 0
A24: 14 | C24: AFUDC OFFSET | D24: ='FR-16(7)(v)-1 Functional'!D24 -> CW29 | F24: ='FR-16(7)(v)-2 PROD Classified'!H24 -> 0 | G24: =F24-SUM(H24:Q24) -> 0 | H24: =ROUND(F24*VLOOKUP(D73,ALLOCTABLE_Prod_Energy,$H$10,FALSE),0) -> 0 | I24: =ROUND(F24*VLOOKUP(D24,ALLOCTABLE_Prod_Energy,$I$10,FALSE),0) -> 0 | J24: =ROUND(F24*VLOOKUP(D24,ALLOCTABLE_Prod_Energy,$J$10,FALSE),0) -> 0 | K24: =ROUND(F24*VLOOKUP(D24,ALLOCTABLE_Prod_Energy,$K$10,FALSE),0) -> 0 | L24: =ROUND(F24*VLOOKUP(D24,ALLOCTABLE_Prod_Energy,$L$10,FALSE),0) -> 0 | M24: =ROUND(F24*VLOOKUP(D24,ALLOCTABLE_Prod_Energy,$M$10,FALSE),0) -> 0 | N24: =ROUND(F24*VLOOKUP(D24,ALLOCTABLE_Prod_Energy,$N$10,FALSE),0) -> 0 | O24: =ROUND(F24*VLOOKUP(D24,ALLOCTABLE_Prod_Energy,$O$10,FALSE),0) -> 0 | P24: =ROUND(F24*VLOOKUP(D24,ALLOCTABLE_Prod_Energy,$P$10,FALSE),0) -> 0 | Q24: =ROUND(F24*VLOOKUP(D24,ALLOCTABLE_Prod_Energy,$Q$10,FALSE),0) -> 0 | R24: =SUM(G24:Q24) -> 0 | S24: =F24-R24 -> 0
A25: 15 | C25: ='FR-16(7)(v)-1 Functional'!C25 -> REVENUE TAX | F25: =F767 -> 0 | G25: =G767 -> 0 | H25: =H767 -> 0 | I25: =I767 -> 0 | J25: =J767 -> 0 | K25: 0 | L25: 0 | M25: 0 | N25: 0 | O25: 0 | P25: 0 | Q25: =Q767 -> 0 | R25: =SUM(G25:Q25) -> 0 | S25: 0
A26: 16 | C26: ='FR-16(7)(v)-1 Functional'!C26 -> TOTAL OPERATING EXPENSE | F26: =SUM(F21:F25) -> 190796505 | G26: 68790985 | H26: 53358866 | I26: 295250 | J26: =SUM(J21:J25) -> 902972 | K26: 13355 | L26: 32151321 | M26: 23462405 | N26: 740846 | O26: 10173609 | P26: 899267 | Q26: 7629 | R26: 190796505 | S26: 0
A27: 17
A28: 18 | B28: RETURN ON CAPITALIZATION | F28: =F433 -> 1861445 | G28: 668892 | H28: 518896 | I28: 2867 | J28: 8786 | K28: 130 | L28: 314156 | M28: 228139 | N28: 7204 | O28: 103552 | P28: 8749 | Q28: 74 | R28: =SUM(G28:Q28) -> 1861445 | S28: =F28-R28 -> 0
A29: 19 | B29: TOTAL OTHER OPERATING REVENUES | F29: =-F750 -> -6615 | G29: =-G750 -> -2617 | H29: =-H750 -> -1956 | I29: =-I750 -> -13 | J29: =-J750 -> -14 | K29: -1 | L29: -998 | M29: -668 | N29: -20 | O29: -287 | P29: -41 | Q29: =-$Q$750 -> 0 | R29: =SUM(G29:Q29) -> -6615 | S29: 0
A30: 20 | C30: ='FR-16(7)(v)-1 Functional'!C30 -> TOTAL ELECTRIC COST OF SERVICE | F30: =SUM(F26:F29) -> 192651335 | G30: 69457260 | H30: 53875806 | I30: 298104 | J30: =SUM(J26:J29) -> 911744 | K30: 13484 | L30: 32464479 | M30: 23689876 | N30: 748030 | O30: 10276874 | P30: 907975 | Q30: 7703 | R30: 192651335 | S30: 0
A31: 21 | B31: ADJUSTMENT FOR INTERCLASS SUBSIDIZATION | D31: =1-'WP FR-16(7)(v) Rate Incr'!I11 -> 0.9 | F31: ='WP FR-16(7)(v) Rate Incr'!Q27 -> 0 | G31: ='WP FR-16(7)(v) Rate Incr'!Q15 -> -5655438 | H31: ='WP FR-16(7)(v) Rate Incr'!Q16 -> 5301900 | I31: ='WP FR-16(7)(v) Rate Incr'!Q17 -> 99611 | J31: ='WP FR-16(7)(v) Rate Incr'!R17 -> 8283 | K31: ='WP FR-16(7)(v) Rate Incr'!S17 -> 43282 | L31: ='WP FR-16(7)(v) Rate Incr'!T17 -> 102679 | M31: ='WP FR-16(7)(v) Rate Incr'!U17 -> 0 | N31: ='WP FR-16(7)(v) Rate Incr'!V17 -> 48497 | O31: ='WP FR-16(7)(v) Rate Incr'!W17 -> 0 | P31: ='WP FR-16(7)(v) Rate Incr'!X17 -> 0 | Q31: ='WP FR-16(7)(v) Rate Incr'!Q25 -> -93412 | R31: =SUM(G31:Q31) -> -144598 | S31: 144598
A32: 22 | B32: ='FR-16(7)(v)-1 Functional'!$B$32 -> REQUESTED REVENUES (COST OF SERVICE ADJUSTED FOR SUBSIDIES) | F32: =F31+F30 -> 192651335 | G32: 63801822 | H32: 59177706 | I32: 397715 | J32: =J31+J30 -> 920027 | K32: 56766 | L32: 32567158 | M32: 23689876 | N32: 796527 | O32: 10276874 | P32: 907975 | Q32: -85709 | R32: 192506737 | S32: 144598
A33: 23 | B33: PROPOSED REVENUES | F33: =F868 -> 82146477 | G33: 29617912 | H33: 22973905 | I33: 127327 | J33: =J868 -> 388553 | K33: 5750 | L33: 13842503 | M33: 10102374 | N33: 318728 | O33: 4379229 | P33: 386910 | Q33: 3286 | R33: 82146477 | S33: 0
A34: 24 | B34: DIFFERENCE (REQUESTED LESS PROPOSED) | F34: =F32-F33 -> 110504858 | G34: =G32-G33 -> 34183910 | H34: 36203801 | I34: 270388 | J34: =J32-J33 -> 531474 | K34: 51016 | L34: 18724655 | M34: 13587502 | N34: 477799 | O34: 5897645 | P34: 521065 | Q34: -88995 | R34: 110360260 | S34: 144598
A35: 25
A36: 26 | B36: TOTAL RETURN EARNED | F36: =F777+F28 -> -66129105 | G36: =G777+G28 -> -23844265 | H36: =H777+H28 -> -18493690 | I36: =I777+I28 -> -102205 | J36: =J777+J28 -> -313110 | K36: -4628 | L36: -11143130 | M36: -8131656 | N36: -256927 | O36: -3525011 | P36: -311839 | Q36: =Q777+Q28 -> -2644 | R36: =R777+R28 -> -66129105 | S36: =F36-R36 -> 0
A37: 27 | B37: RATE OF RETURN EARNED | F37: =IF(F431=0,0,ROUND(F36/F431,5)) -> -2.51628 | G37: -2.52491 | H37: -2.52441 | I37: -2.52533 | J37: -2.52418 | K37: -2.51522 | L37: =IF(F431=0,0,ROUND(F36/L431,5)) -> -14.90955 | M37: =IF(F431=0,0,ROUND(F36/M431,5)) -> -20.53104 | N37: =IF(N431=0,0,ROUND(N36/N431,5)) -> -2.5262 | O37: -2.41112 | P37: -2.52464 | Q37: -2.5157 | R37: -2.51628 | S37: 0
A38: 28 | B38: TOTAL RATE OF RETURN ALLOWABLE | F38: =$F$811 -> 0.0709 | G38: =$F$811 -> 0.0709 | H38: 0.0709 | I38: 0.0709 | J38: 0.0709 | K38: 0.0709 | L38: 0.0709 | M38: 0.0709 | N38: 0.0709 | O38: 0.0709 | P38: 0.0709 | Q38: 0.0709 | R38: =F811 -> 0.0709 | S38: =F811 -> 0.0709
A39: 29 | B39: RETURN EARNED ON COMMON EQUITY | F39: =IF(Equity=0,0,(F37-$F$806-$F$807-$F$809)*TotalCap/Equity) -> -5.1883759 | G39: -5.206026498 | H39: -5.205003867 | I39: -5.206885507 | J39: -5.204533457 | K39: -5.186207923 | L39: -30.53584134 | M39: -42.03325272 | N39: -5.208664884 | O39: -4.973296307 | P39: -5.205474277 | Q39: -5.187189648 | R39: =IF(Equity=0,0,(R37-F806-F807-F809)*TotalCap/Equity) -> -5.1883759 | S39: =IF(Equity=0,0,(S37-F806-F807-F809)*TotalCap/Equity) -> -0.04192783999
A40: 30 | B40: ALLOWED RETURN ON COMMON EQUITY | F40: =IF(Equity=0,0,(F38-$F$806-$F$807-$F$809)*TotalCap/Equity) -> 0.1030811286 | G40: 0.1030811286 | H40: 0.1030811286 | I40: 0.1030811286 | J40: 0.1030811286 | K40: 0.1030811286 | L40: 0.1030811286 | M40: 0.1030811286 | N40: 0.1030811286 | O40: 0.1030811286 | P40: 0.1030811286 | Q40: 0.1030811286 | R40: =IF(Equity=0,0,(R38-F806-F807-F809)*TotalCap/Equity) -> 0.1030811286 | S40: =IF(Equity=0,0,(S38-F806-F807-F809)*TotalCap/Equity) -> 0.1030811286
A41: 31
A42: 32 | B42: PRESENT REVENUES | F42: =F867 -> 166095660 | G42: 59883050 | H42: 46449393 | I42: 257012 | J42: =J867 -> 786066 | K42: 11625 | L42: 27989472 | M42: 20424388 | N42: 644919 | O42: 8860277 | P42: 782817 | Q42: 6641 | R42: 166095660 | S42: =F42-R42 -> 0
A43: 33 | B43: REVENUE INCREASE JUSTIFIED | F43: =F30-F42 -> 26555675 | G43: 9574210 | H43: 7426413 | I43: 41092 | J43: =J30-J42 -> 125678 | K43: 1859 | L43: 4475007 | M43: 3265488 | N43: 103111 | O43: 1416597 | P43: 125158 | Q43: 1062 | R43: 26555675 | S43: 0
A44: 34 | C44: PER UNIT PRES REV | F44: =IF(F42=0,0,ROUND(F43/F42,5)) -> 0.15988 | G44: 0.15988 | H44: 0.15988 | I44: 0.15988 | J44: =IF(J42=0,0,ROUND(J43/J42,5)) -> 0.15988 | K44: 0.15991 | L44: =IF(F42=0,0,ROUND(F43/L42,5)) -> 0.94877 | M44: =IF(F42=0,0,ROUND(F43/M42,5)) -> 1.30019 | N44: 0.15988 | O44: 0.15988 | P44: 0.15988 | Q44: 0.15992 | R44: 0.15988 | S44: 0
A45: 35 | B45: REVENUE INCREASE REQUESTED | F45: =F33-F42 -> -83949183 | G45: -30265138 | H45: -23475488 | I45: -129685 | J45: =J33-J42 -> -397513 | K45: -5875 | L45: -14146969 | M45: -10322014 | N45: -326191 | O45: -4481048 | P45: -395907 | Q45: -3355 | R45: -83949183 | S45: 0
A46: 36 | C46: PER UNIT PRES REV | F46: =IF(F42=0,0,ROUND(F45/F42,5)) -> -0.50543 | G46: -0.5054 | H46: -0.5054 | I46: -0.50459 | J46: =IF(J42=0,0,ROUND(J45/J42,5)) -> -0.5057 | K46: -0.50538 | L46: =IF(F42=0,0,ROUND(F45/L42,5)) -> -2.99931 | M46: =IF(F42=0,0,ROUND(F45/M42,5)) -> -4.11024 | N46: -0.50579 | O46: -0.50575 | P46: -0.50575 | Q46: -0.5052 | R46: -0.50543 | S46: 0
A48: =co_name -> DUKE ENERGY KENTUCKY, INC. | R48: =R1 -> FR-16(7)(v)-4
A49: =$A$2 -> PRODUCTION ENERGY ALLOCATED - ELECTRIC COST OF SERVICE | R49: =R2 -> WITNESS RESPONSIBLE:
A50: =case_name -> CASE NO: 2017-00321 | R50: =Witness -> JAMES E. ZIOLKOWSKI
A51: =data_filing -> DATA: 12 MONTHS ACTUAL & 0 MONTHS ESTIMATED | R51: ="PAGE "&Pages-16&" OF "&Pages -> PAGE 2 OF 18
A52: =type -> TYPE OF FILING: "X" ORIGINAL UPDATED REVISED
F54: =F$7 -> TOTAL | H54: =H$7 -> DS | I54: =I$7 -> GSFL | J54: =J$7 -> EH | K54: =K$7 -> SP | L54: DT SEC | M54: DT PRI | N54: DP | O54: TT | Q54: OTHER
A55: LINE | F55: =F$8 -> PRODUCTION | G55: =G$8 -> RS | H55: =H$8 -> SECONDARY | I55: =I$8 -> SECONDARY | J55: =J$8 -> SECONDARY | K55: =K$8 -> SECONDARY | L55: SECONDARY | M55: PRIMARY | N55: PRIMARY | O55: TRANSMISSION | P55: LT | Q55: WATER | R55: =R8 -> TOTAL | S55: ALL
A56: NO. | B56: GROSS ELECTRIC PLANT IN SERVICE | D56: ALLO | F56: =F$9 -> ENERGY | G56: =G$9 -> RESIDENTIAL | H56: =H$9 -> DISTRIBUTION | I56: =I$9 -> DISTRIBUTION | J56: =J$9 -> DISTRIBUTION | K56: =K$9 -> DISTRIBUTION | L56: DISTRIBUTION | M56: DISTRIBUTION | N56: DISTRIBUTION | O56: TIME OF DAY | P56: LIGHTING | Q56: PUMPING | R56: =R9 -> AT ISSUE | S56: OTHER
C57: Schedule 2 | G57: =G$10 -> 3 | H57: =H$10 -> 4 | I57: =I$10 -> 5 | J57: =J$10 -> 6 | K57: =K$10 -> 7 | L57: 8 | M57: 9 | N57: 10 | O57: 11 | P57: 12 | Q57: 13
A58: 1 | B58: PRODUCTION PLANT
A59: 2 | C59: PRODUCTION STEAM | D59: ='FR-16(7)(v)-1 Functional'!D59 -> K201 | F59: ='FR-16(7)(v)-2 PROD Classified'!H59 -> 0 | G59: =F59-SUM(H59:Q59) -> 0 | H59: =ROUND(F59*VLOOKUP(D59,ALLOCTABLE_Prod_Energy,$H$10,FALSE),0) -> 0 | I59: =ROUND(F59*VLOOKUP(D59,ALLOCTABLE_Prod_Energy,$I$10,FALSE),0) -> 0 | J59: =ROUND(F59*VLOOKUP(D59,ALLOCTABLE_Prod_Energy,$J$10,FALSE),0) -> 0 | K59: =ROUND(F59*VLOOKUP(D59,ALLOCTABLE_Prod_Energy,$K$10,FALSE),0) -> 0 | L59: =ROUND(F59*VLOOKUP(D59,ALLOCTABLE_Prod_Energy,$L$10,FALSE),0) -> 0 | M59: =ROUND(F59*VLOOKUP(D59,ALLOCTABLE_Prod_Energy,$M$10,FALSE),0) -> 0 | N59: =ROUND(F59*VLOOKUP(D59,ALLOCTABLE_Prod_Energy,$N$10,FALSE),0) -> 0 | O59: =ROUND(F59*VLOOKUP(D59,ALLOCTABLE_Prod_Energy,$O$10,FALSE),0) -> 0 | P59: =ROUND(F59*VLOOKUP(D59,ALLOCTABLE_Prod_Energy,$P$10,FALSE),0) -> 0 | Q59: =ROUND(F59*VLOOKUP(D59,ALLOCTABLE_Prod_Energy,$Q$10,FALSE),0) -> 0 | R59: =SUM(G59:Q59) -> 0 | S59: =F59-R59 -> 0
A60: 3 | C60: PRODUCTION OTHER | D60: ='FR-16(7)(v)-1 Functional'!D60 -> K201 | F60: ='FR-16(7)(v)-2 PROD Classified'!H60 -> 0 | G60: =F60-SUM(H60:Q60) -> 0 | H60: =ROUND(F60*VLOOKUP(D60,ALLOCTABLE_Prod_Energy,$H$10,FALSE),0) -> 0 | I60: =ROUND(F60*VLOOKUP(D60,ALLOCTABLE_Prod_Energy,$I$10,FALSE),0) -> 0 | J60: =ROUND(F60*VLOOKUP(D60,ALLOCTABLE_Prod_Energy,$J$10,FALSE),0) -> 0 | K60: =ROUND(F60*VLOOKUP(D60,ALLOCTABLE_Prod_Energy,$K$10,FALSE),0) -> 0 | L60: =ROUND(F60*VLOOKUP(D60,ALLOCTABLE_Prod_Energy,$L$10,FALSE),0) -> 0 | M60: =ROUND(F60*VLOOKUP(D60,ALLOCTABLE_Prod_Energy,$M$10,FALSE),0) -> 0 | N60: =ROUND(F60*VLOOKUP(D60,ALLOCTABLE_Prod_Energy,$N$10,FALSE),0) -> 0 | O60: =ROUND(F60*VLOOKUP(D60,ALLOCTABLE_Prod_Energy,$O$10,FALSE),0) -> 0 | P60: =ROUND(F60*VLOOKUP(D60,ALLOCTABLE_Prod_Energy,$P$10,FALSE),0) -> 0 | Q60: =ROUND(F60*VLOOKUP(D60,ALLOCTABLE_Prod_Energy,$Q$10,FALSE),0) -> 0 | R60: =SUM(G60:Q60) -> 0 | S60: =F60-R60 -> 0
A61: 4 | C61: ='FR-16(7)(v)-1 Functional'!C61 -> ADJUSTMENT | D61: ='FR-16(7)(v)-1 Functional'!D61 -> K201 | F61: ='FR-16(7)(v)-2 PROD Classified'!H61 -> 0 | G61: =F61-SUM(H61:Q61) -> 0 | H61: =ROUND(F61*VLOOKUP(D61,ALLOCTABLE_Prod_Energy,$H$10,FALSE),0) -> 0 | I61: =ROUND(F61*VLOOKUP(D61,ALLOCTABLE_Prod_Energy,$I$10,FALSE),0) -> 0 | J61: =ROUND(F61*VLOOKUP(D61,ALLOCTABLE_Prod_Energy,$J$10,FALSE),0) -> 0 | K61: =ROUND(F61*VLOOKUP(D61,ALLOCTABLE_Prod_Energy,$K$10,FALSE),0) -> 0 | L61: =ROUND(F61*VLOOKUP(D61,ALLOCTABLE_Prod_Energy,$L$10,FALSE),0) -> 0 | M61: =ROUND(F61*VLOOKUP(D61,ALLOCTABLE_Prod_Energy,$M$10,FALSE),0) -> 0 | N61: =ROUND(F61*VLOOKUP(D61,ALLOCTABLE_Prod_Energy,$N$10,FALSE),0) -> 0 | O61: =ROUND(F61*VLOOKUP(D61,ALLOCTABLE_Prod_Energy,$O$10,FALSE),0) -> 0 | P61: =ROUND(F61*VLOOKUP(D61,ALLOCTABLE_Prod_Energy,$P$10,FALSE),0) -> 0 | Q61: =ROUND(F61*VLOOKUP(D61,ALLOCTABLE_Prod_Energy,$Q$10,FALSE),0) -> 0 | R61: =SUM(G61:Q61) -> 0 | S61: =F61-R61 -> 0
A62: 5 | C62: ='FR-16(7)(v)-1 Functional'!C62 -> PRODUCTION PLANT IN SERVICE | F62: =SUM(F59:F61) -> 0 | G62: =SUM(G59:G61) -> 0 | H62: =SUM(H59:H61) -> 0 | I62: =SUM(I59:I61) -> 0 | J62: =SUM(J59:J61) -> 0 | K62: 0 | L62: 0 | M62: 0 | N62: 0 | O62: 0 | P62: 0 | Q62: =SUM($Q$59:$Q$61) -> 0 | R62: =SUM(R59:R61) -> 0 | S62: =SUM(S59:S61) -> 0
A63: 6
A64: 7 | B64: TRANSMISSION PLANT
A65: 8 | C65: MAIN STEP-UP TRANSFORMERS | D65: ='FR-16(7)(v)-1 Functional'!D65 -> K202 | F65: ='FR-16(7)(v)-2 PROD Classified'!H65 -> 0 | G65: =F65-SUM(H65:Q65) -> 0 | H65: =ROUND(F65*VLOOKUP(D65,ALLOCTABLE_Prod_Energy,$H$10,FALSE),0) -> 0 | I65: =ROUND(F65*VLOOKUP(D65,ALLOCTABLE_Prod_Energy,$I$10,FALSE),0) -> 0 | J65: =ROUND(F65*VLOOKUP(D65,ALLOCTABLE_Prod_Energy,$J$10,FALSE),0) -> 0 | K65: =ROUND(F65*VLOOKUP(D65,ALLOCTABLE_Prod_Energy,$K$10,FALSE),0) -> 0 | L65: =ROUND(F65*VLOOKUP(D65,ALLOCTABLE_Prod_Energy,$L$10,FALSE),0) -> 0 | M65: =ROUND(F65*VLOOKUP(D65,ALLOCTABLE_Prod_Energy,$M$10,FALSE),0) -> 0 | N65: =ROUND(F65*VLOOKUP(D65,ALLOCTABLE_Prod_Energy,$N$10,FALSE),0) -> 0 | O65: =ROUND(F65*VLOOKUP(D65,ALLOCTABLE_Prod_Energy,$O$10,FALSE),0) -> 0 | P65: =ROUND(F65*VLOOKUP(D65,ALLOCTABLE_Prod_Energy,$P$10,FALSE),0) -> 0 | Q65: =ROUND(F65*VLOOKUP(D65,ALLOCTABLE_Prod_Energy,$Q$10,FALSE),0) -> 0 | R65: =SUM(G65:Q65) -> 0 | S65: =F65-R65 -> 0
A66: 9 | C66: OTHER TRANSMISSION | D66: ='FR-16(7)(v)-1 Functional'!D66 -> K202 | F66: ='FR-16(7)(v)-2 PROD Classified'!H66 -> 0 | G66: =F66-SUM(H66:Q66) -> 0 | H66: =ROUND(F66*VLOOKUP(D66,ALLOCTABLE_Prod_Energy,$H$10,FALSE),0) -> 0 | I66: =ROUND(F66*VLOOKUP(D66,ALLOCTABLE_Prod_Energy,$I$10,FALSE),0) -> 0 | J66: =ROUND(F66*VLOOKUP(D66,ALLOCTABLE_Prod_Energy,$J$10,FALSE),0) -> 0 | K66: =ROUND(F66*VLOOKUP(D66,ALLOCTABLE_Prod_Energy,$K$10,FALSE),0) -> 0 | L66: =ROUND(F66*VLOOKUP(D66,ALLOCTABLE_Prod_Energy,$L$10,FALSE),0) -> 0 | M66: =ROUND(F66*VLOOKUP(D66,ALLOCTABLE_Prod_Energy,$M$10,FALSE),0) -> 0 | N66: =ROUND(F66*VLOOKUP(D66,ALLOCTABLE_Prod_Energy,$N$10,FALSE),0) -> 0 | O66: =ROUND(F66*VLOOKUP(D66,ALLOCTABLE_Prod_Energy,$O$10,FALSE),0) -> 0 | P66: =ROUND(F66*VLOOKUP(D66,ALLOCTABLE_Prod_Energy,$P$10,FALSE),0) -> 0 | Q66: =ROUND(F66*VLOOKUP(D66,ALLOCTABLE_Prod_Energy,$Q$10,FALSE),0) -> 0 | R66: =SUM(G66:Q66) -> 0 | S66: =F66-R66 -> 0
A67: 10 | C67: ADJUSTMENT | D67: ='FR-16(7)(v)-1 Functional'!D67 -> K202 | F67: ='FR-16(7)(v)-2 PROD Classified'!H67 -> 0 | G67: =F67-SUM(H67:Q67) -> 0 | H67: =ROUND(F67*VLOOKUP(D67,ALLOCTABLE_Prod_Energy,$H$10,FALSE),0) -> 0 | I67: =ROUND(F67*VLOOKUP(D67,ALLOCTABLE_Prod_Energy,$I$10,FALSE),0) -> 0 | J67: =ROUND(F67*VLOOKUP(D67,ALLOCTABLE_Prod_Energy,$J$10,FALSE),0) -> 0 | K67: =ROUND(F67*VLOOKUP(D67,ALLOCTABLE_Prod_Energy,$K$10,FALSE),0) -> 0 | L67: =ROUND(F67*VLOOKUP(D67,ALLOCTABLE_Prod_Energy,$L$10,FALSE),0) -> 0 | M67: =ROUND(F67*VLOOKUP(D67,ALLOCTABLE_Prod_Energy,$M$10,FALSE),0) -> 0 | N67: =ROUND(F67*VLOOKUP(D67,ALLOCTABLE_Prod_Energy,$N$10,FALSE),0) -> 0 | O67: =ROUND(F67*VLOOKUP(D67,ALLOCTABLE_Prod_Energy,$O$10,FALSE),0) -> 0 | P67: =ROUND(F67*VLOOKUP(D67,ALLOCTABLE_Prod_Energy,$P$10,FALSE),0) -> 0 | Q67: =ROUND(F67*VLOOKUP(D67,ALLOCTABLE_Prod_Energy,$Q$10,FALSE),0) -> 0 | R67: =SUM(G67:Q67) -> 0 | S67: =F67-R67 -> 0
A68: 11 | C68: ='FR-16(7)(v)-1 Functional'!C68 -> TRANSMISSION PLANT IN SERVICE | F68: =SUM(F65:F67) -> 0 | G68: 0 | H68: 0 | I68: 0 | J68: 0 | K68: 0 | L68: 0 | M68: 0 | N68: 0 | O68: 0 | P68: 0 | Q68: 0 | R68: 0 | S68: =SUM(S65) -> 0
A69: 12
A70: 13 | B70: TOTAL PROD & TRANS PLANT | F70: =F68+F62 -> 0 | G70: =G68+G62 -> 0 | H70: =H68+H62 -> 0 | I70: =I68+I62 -> 0 | J70: =J68+J62 -> 0 | K70: 0 | L70: 0 | M70: 0 | N70: 0 | O70: 0 | P70: 0 | Q70: =$Q$68+$Q$62 -> 0 | R70: =R68+R62 -> 0 | S70: =S68+S62 -> 0
A71: 14
A72: 15 | B72: DISTRIBUTION PLANT
A73: 16 | C73: ='FR-16(7)(v)-1 Functional'!C73 -> SUBSTATIONS | D73: ='FR-16(7)(v)-1 Functional'!D73 -> K215 | F73: ='FR-16(7)(v)-2 PROD Classified'!H73 -> 0 | G73: =F73-SUM(H73:Q73) -> 0 | H73: =ROUND(F73*VLOOKUP(D73,ALLOCTABLE_Prod_Energy,$H$10,FALSE),0) -> 0 | I73: =ROUND(F73*VLOOKUP(D73,ALLOCTABLE_Prod_Energy,$I$10,FALSE),0) -> 0 | J73: =ROUND(F73*VLOOKUP(D73,ALLOCTABLE_Prod_Energy,$J$10,FALSE),0) -> 0 | K73: =ROUND(F73*VLOOKUP(D73,ALLOCTABLE_Prod_Energy,$K$10,FALSE),0) -> 0 | L73: =ROUND(F73*VLOOKUP(D73,ALLOCTABLE_Prod_Energy,$L$10,FALSE),0) -> 0 | M73: =ROUND(F73*VLOOKUP(D73,ALLOCTABLE_Prod_Energy,$M$10,FALSE),0) -> 0 | N73: =ROUND(F73*VLOOKUP(D73,ALLOCTABLE_Prod_Energy,$N$10,FALSE),0) -> 0 | O73: =ROUND(F73*VLOOKUP(D73,ALLOCTABLE_Prod_Energy,$O$10,FALSE),0) -> 0 | P73: =ROUND(F73*VLOOKUP(D73,ALLOCTABLE_Prod_Energy,$P$10,FALSE),0) -> 0 | Q73: =ROUND(F73*VLOOKUP(D73,ALLOCTABLE_Prod_Energy,$Q$10,FALSE),0) -> 0 | R73: =SUM(G73:Q73) -> 0 | S73: =F73-R73 -> 0
A74: 17 | C74: ='FR-16(7)(v)-1 Functional'!C74 -> POLES, TOWERS & FIXTURES - PRIMARY - DEMAND | D74: ='FR-16(7)(v)-1 Functional'!D74 -> K205 | F74: ='FR-16(7)(v)-2 PROD Classified'!H74 -> 0 | G74: =F74-SUM(H74:Q74) -> 0 | H74: =ROUND(F74*VLOOKUP(D74,ALLOCTABLE_Prod_Energy,$H$10,FALSE),0) -> 0 | I74: 0 | J74: 0 | K74: 0 | L74: 0 | M74: 0 | N74: 0 | O74: 0 | P74: 0 | Q74: =ROUND(F74*VLOOKUP(D74,ALLOCTABLE_Prod_Energy,$Q$10,FALSE),0) -> 0 | R74: =SUM(G74:Q74) -> 0 | S74: =F74-R74 -> 0
A75: 18 | C75: ='FR-16(7)(v)-1 Functional'!C75 -> POLES, TOWERS & FIXTURES - PRIMARY - CUSTOMER | D75: ='FR-16(7)(v)-1 Functional'!D75 -> K405 | F75: ='FR-16(7)(v)-2 PROD Classified'!H75 -> 0 | G75: =F75-SUM(H75:Q75) -> 0 | H75: =ROUND(F75*VLOOKUP(D75,ALLOCTABLE_Prod_Energy,$H$10,FALSE),0) -> 0 | I75: 0 | J75: 0 | K75: 0 | L75: 0 | M75: 0 | N75: 0 | O75: 0 | P75: 0 | Q75: =ROUND(F75*VLOOKUP(D75,ALLOCTABLE_Prod_Energy,$Q$10,FALSE),0) -> 0 | R75: =SUM(G75:Q75) -> 0 | S75: =F75-R75 -> 0
A76: 19 | C76: ='FR-16(7)(v)-1 Functional'!C76 -> POLES, TOWERS & FIXTURES - SECONDARY - DEMAND | D76: ='FR-16(7)(v)-1 Functional'!D76 -> K206 | F76: ='FR-16(7)(v)-2 PROD Classified'!H76 -> 0 | G76: 0 | H76: 0 | I76: 0 | J76: 0 | K76: 0 | L76: 0 | M76: 0 | N76: 0 | O76: 0 | P76: 0 | Q76: 0 | R76: 0 | S76: 0
A77: 20 | C77: ='FR-16(7)(v)-1 Functional'!C77 -> POLES, TOWERS & FIXTURES - SECONDARY - CUSTOMER | D77: ='FR-16(7)(v)-1 Functional'!D77 -> K405 | F77: ='FR-16(7)(v)-2 PROD Classified'!H77 -> 0 | G77: 0 | H77: 0 | I77: 0 | J77: 0 | K77: 0 | L77: 0 | M77: 0 | N77: 0 | O77: 0 | P77: 0 | Q77: 0 | R77: 0 | S77: 0
A78: 21 | C78: ='FR-16(7)(v)-1 Functional'!C78 -> CONDUCTORS - OVERHEAD / PRIMARY - DEMAND | D78: ='FR-16(7)(v)-1 Functional'!D78 -> K205 | F78: ='FR-16(7)(v)-2 PROD Classified'!H78 -> 0 | G78: 0 | H78: 0 | I78: 0 | J78: 0 | K78: 0 | L78: 0 | M78: 0 | N78: 0 | O78: 0 | P78: 0 | Q78: 0 | R78: 0 | S78: 0
A79: 22 | C79: ='FR-16(7)(v)-1 Functional'!C79 -> CONDUCTORS - OVERHEAD / PRIMARY - CUSTOMER | D79: ='FR-16(7)(v)-1 Functional'!D79 -> K405 | F79: ='FR-16(7)(v)-2 PROD Classified'!H79 -> 0 | G79: 0 | H79: 0 | I79: 0 | J79: 0 | K79: 0 | L79: 0 | M79: 0 | N79: 0 | O79: 0 | P79: 0 | Q79: 0 | R79: 0 | S79: 0
A80: 23 | C80: ='FR-16(7)(v)-1 Functional'!C80 -> CONDUCTORS - OVERHEAD / SECONDARY - DEMAND | D80: ='FR-16(7)(v)-1 Functional'!D80 -> K206 | F80: ='FR-16(7)(v)-2 PROD Classified'!H80 -> 0 | G80: 0 | H80: 0 | I80: 0 | J80: 0 | K80: 0 | L80: 0 | M80: 0 | N80: 0 | O80: 0 | P80: 0 | Q80: 0 | R80: 0 | S80: 0
A81: 24 | C81: ='FR-16(7)(v)-1 Functional'!C81 -> CONDUCTORS - OVERHEAD / SECONDARY - CUSTOMER | D81: ='FR-16(7)(v)-1 Functional'!D81 -> K405 | F81: ='FR-16(7)(v)-2 PROD Classified'!H81 -> 0 | G81: 0 | H81: 0 | I81: 0 | J81: 0 | K81: 0 | L81: 0 | M81: 0 | N81: 0 | O81: 0 | P81: 0 | Q81: 0 | R81: 0 | S81: 0
A82: 25 | C82: ='FR-16(7)(v)-1 Functional'!C82 -> CONDUCTORS - UNDERGROUND / PRIMARY - DEMAND | D82: ='FR-16(7)(v)-1 Functional'!D82 -> K205 | F82: ='FR-16(7)(v)-2 PROD Classified'!H82 -> 0 | G82: 0 | H82: 0 | I82: 0 | J82: 0 | K82: 0 | L82: 0 | M82: 0 | N82: 0 | O82: 0 | P82: 0 | Q82: 0 | R82: 0 | S82: 0
A83: 26 | C83: ='FR-16(7)(v)-1 Functional'!C83 -> CONDUCTORS - UNDERGROUND / PRIMARY - CUSTOMER | D83: ='FR-16(7)(v)-1 Functional'!D83 -> K405 | F83: ='FR-16(7)(v)-2 PROD Classified'!H83 -> 0 | G83: 0 | H83: 0 | I83: 0 | J83: 0 | K83: 0 | L83: 0 | M83: 0 | N83: 0 | O83: 0 | P83: 0 | Q83: 0 | R83: 0 | S83: 0
A84: 27 | C84: ='FR-16(7)(v)-1 Functional'!C84 -> CONDUCTORS - UNDERGROUND / SECONDARY - DEMAND | D84: ='FR-16(7)(v)-1 Functional'!D84 -> K206 | F84: ='FR-16(7)(v)-2 PROD Classified'!H84 -> 0 | G84: 0 | H84: 0 | I84: 0 | J84: 0 | K84: 0 | L84: 0 | M84: 0 | N84: 0 | O84: 0 | P84: 0 | Q84: 0 | R84: 0 | S84: 0
A85: 28 | C85: ='FR-16(7)(v)-1 Functional'!C85 -> CONDUCTORS - UNDERGROUND / SECONDARY - CUSTOMER | D85: ='FR-16(7)(v)-1 Functional'!D85 -> K405 | F85: ='FR-16(7)(v)-2 PROD Classified'!H85 -> 0 | G85: 0 | H85: 0 | I85: 0 | J85: 0 | K85: 0 | L85: 0 | M85: 0 | N85: 0 | O85: 0 | P85: 0 | Q85: =ROUND(F85*VLOOKUP(D85,ALLOCTABLE_Prod_Energy,$Q$10,FALSE),0) -> 0 | R85: =SUM(G85:Q85) -> 0 | S85: 0
A86: 29 | C86: ='FR-16(7)(v)-1 Functional'!C86 -> TRANSFORMERS DEMAND RELATED | D86: ='FR-16(7)(v)-1 Functional'!D86 -> K215 | F86: ='FR-16(7)(v)-2 PROD Classified'!H86 -> 0 | G86: =F86-SUM(H86:Q86) -> 0 | H86: =ROUND(F86*VLOOKUP(D86,ALLOCTABLE_Prod_Energy,$H$10,FALSE),0) -> 0 | I86: 0 | J86: 0 | K86: 0 | L86: 0 | M86: 0 | N86: 0 | O86: 0 | P86: 0 | Q86: 0 | R86: 0 | S86: =F86-R86 -> 0
A87: 30 | C87: ='FR-16(7)(v)-1 Functional'!C87 -> TRANSFORMERS CUSTOMER RELATED | D87: ='FR-16(7)(v)-1 Functional'!D87 -> K405 | F87: ='FR-16(7)(v)-2 PROD Classified'!H87 -> 0 | G87: 0 | H87: 0 | I87: =ROUND(F87*VLOOKUP(D86,ALLOCTABLE_Prod_Energy,$I$10,FALSE),0) -> 0 | J87: =ROUND(F87*VLOOKUP(D86,ALLOCTABLE_Prod_Energy,$J$10,FALSE),0) -> 0 | K87: =ROUND(F87*VLOOKUP(D86,ALLOCTABLE_Prod_Energy,$K$10,FALSE),0) -> 0 | L87: =ROUND(F87*VLOOKUP(D86,ALLOCTABLE_Prod_Energy,$L$10,FALSE),0) -> 0 | M87: =ROUND(F87*VLOOKUP(D86,ALLOCTABLE_Prod_Energy,$M$10,FALSE),0) -> 0 | N87: =ROUND(F87*VLOOKUP(D86,ALLOCTABLE_Prod_Energy,$N$10,FALSE),0) -> 0 | O87: =ROUND(F87*VLOOKUP(D86,ALLOCTABLE_Prod_Energy,$O$10,FALSE),0) -> 0 | P87: 0 | Q87: 0 | R87: 0 | S87: 0
A88: 31 | C88: ='FR-16(7)(v)-1 Functional'!C88 -> SERVICES | D88: ='FR-16(7)(v)-1 Functional'!D88 -> K217 | F88: ='FR-16(7)(v)-2 PROD Classified'!H88 -> 0 | G88: 0 | H88: 0 | I88: =ROUND(F88*VLOOKUP(D88,ALLOCTABLE_Prod_Energy,$I$10,FALSE),0) -> 0 | J88: =ROUND(F88*VLOOKUP(D88,ALLOCTABLE_Prod_Energy,$J$10,FALSE),0) -> 0 | K88: =ROUND(F88*VLOOKUP(D88,ALLOCTABLE_Prod_Energy,$K$10,FALSE),0) -> 0 | L88: =ROUND(F88*VLOOKUP(D88,ALLOCTABLE_Prod_Energy,$L$10,FALSE),0) -> 0 | M88: =ROUND(F88*VLOOKUP(D88,ALLOCTABLE_Prod_Energy,$M$10,FALSE),0) -> 0 | N88: =ROUND(F88*VLOOKUP(D88,ALLOCTABLE_Prod_Energy,$N$10,FALSE),0) -> 0 | O88: =ROUND(F88*VLOOKUP(D88,ALLOCTABLE_Prod_Energy,$O$10,FALSE),0) -> 0 | P88: 0 | Q88: 0 | R88: 0 | S88: 0
A89: 32 | C89: ='FR-16(7)(v)-1 Functional'!C89 -> METERS | D89: ='FR-16(7)(v)-1 Functional'!D89 -> K407 | F89: ='FR-16(7)(v)-2 PROD Classified'!H89 -> 0 | G89: 0 | H89: 0 | I89: 0 | J89: 0 | K89: 0 | L89: =ROUND(F89*VLOOKUP(D89,ALLOCTABLE_Prod_Energy,$L$10,FALSE),0) -> 0 | M89: =ROUND(F89*VLOOKUP(D89,ALLOCTABLE_Prod_Energy,$M$10,FALSE),0) -> 0 | N89: =ROUND(F89*VLOOKUP(D89,ALLOCTABLE_Prod_Energy,$N$10,FALSE),0) -> 0 | O89: =ROUND(F89*VLOOKUP(D89,ALLOCTABLE_Prod_Energy,$O$10,FALSE),0) -> 0 | P89: 0 | Q89: 0 | R89: 0 | S89: 0
A90: 33 | C90: ='FR-16(7)(v)-1 Functional'!C90 -> STREET LIGHTS | D90: ='FR-16(7)(v)-1 Functional'!D90 -> K401 | F90: ='FR-16(7)(v)-2 PROD Classified'!H90 -> 0 | G90: 0 | H90: 0 | I90: 0 | J90: 0 | K90: 0 | L90: =ROUND(F90*VLOOKUP(D90,ALLOCTABLE_Prod_Energy,$L$10,FALSE),0) -> 0 | M90: =ROUND(F90*VLOOKUP(D90,ALLOCTABLE_Prod_Energy,$M$10,FALSE),0) -> 0 | N90: =ROUND(F90*VLOOKUP(D90,ALLOCTABLE_Prod_Energy,$N$10,FALSE),0) -> 0 | O90: =ROUND(F90*VLOOKUP(D90,ALLOCTABLE_Prod_Energy,$O$10,FALSE),0) -> 0 | P90: 0 | Q90: 0 | R90: 0 | S90: 0
A91: 34 | C91: ='FR-16(7)(v)-1 Functional'!C91 -> ADJUSTMENT | D91: ='FR-16(7)(v)-1 Functional'!D91 -> K209 | F91: ='FR-16(7)(v)-2 PROD Classified'!H91 -> 0 | G91: 0 | H91: 0 | I91: 0 | J91: 0 | K91: 0 | L91: =ROUND(F91*VLOOKUP(D91,ALLOCTABLE_Prod_Energy,$L$10,FALSE),0) -> 0 | M91: =ROUND(F91*VLOOKUP(D91,ALLOCTABLE_Prod_Energy,$M$10,FALSE),0) -> 0 | N91: =ROUND(F91*VLOOKUP(D91,ALLOCTABLE_Prod_Energy,$N$10,FALSE),0) -> 0 | O91: =ROUND(F91*VLOOKUP(D91,ALLOCTABLE_Prod_Energy,$O$10,FALSE),0) -> 0 | P91: 0 | Q91: 0 | R91: 0 | S91: 0
A92: 35 | C92: ='FR-16(7)(v)-1 Functional'!C92 -> CONSTRUCTION NOT CLASSIFIED | D92: ='FR-16(7)(v)-1 Functional'!D92 -> K209 | F92: ='FR-16(7)(v)-2 PROD Classified'!H92 -> 0 | G92: 0 | H92: 0 | I92: 0 | J92: 0 | K92: 0 | L92: =ROUND(F92*VLOOKUP(D92,ALLOCTABLE_Prod_Energy,$L$10,FALSE),0) -> 0 | M92: =ROUND(F92*VLOOKUP(D92,ALLOCTABLE_Prod_Energy,$M$10,FALSE),0) -> 0 | N92: =ROUND(F92*VLOOKUP(D92,ALLOCTABLE_Prod_Energy,$N$10,FALSE),0) -> 0 | O92: =ROUND(F92*VLOOKUP(D92,ALLOCTABLE_Prod_Energy,$O$10,FALSE),0) -> 0 | P92: 0 | Q92: 0 | R92: 0 | S92: 0
A93: 36 | C93: ='FR-16(7)(v)-1 Functional'!C93 -> RWIP | D93: ='FR-16(7)(v)-1 Functional'!D93 -> K215 | F93: ='FR-16(7)(v)-2 PROD Classified'!H93 -> 0 | G93: =F93-SUM(H93:Q93) -> 0 | H93: =ROUND(F93*VLOOKUP(D93,ALLOCTABLE_Prod_Energy,$H$10,FALSE),0) -> 0 | I93: 0 | J93: 0 | K93: 0
A94: 37 | C94: ='FR-16(7)(v)-1 Functional'!C94 -> DISTRIBUTION PLANT IN SERVICE | F94: =SUM(F73:F93) -> 0 | G94: =SUM(G73:G92) -> 0 | H94: =SUM(H73:H92) -> 0 | I94: =SUM(I73:I92) -> 0 | J94: =SUM(J73:J92) -> 0 | K94: 0 | L94: 0 | M94: 0 | N94: 0 | O94: 0 | P94: 0 | Q94: =SUM(Q73:Q92) -> 0 | R94: =SUM(R73:R92) -> 0 | S94: =SUM(S73:S92) -> 0
A95: 38
A96: 39 | B96: TOTAL TRANS & DIST PLANT | F96: =F94+F68 -> 0 | G96: =G94+G68 -> 0 | H96: =H94+H68 -> 0 | I96: =I94+I68 -> 0 | J96: =J94+J68 -> 0 | K96: 0 | L96: 0 | M96: 0 | N96: 0 | O96: 0 | P96: 0 | Q96: =Q94+$Q$68 -> 0 | R96: =R94+R68 -> 0 | S96: =S94+S68 -> 0
A97: 40 | B97: TOTAL GROSS PTD PLANT | F97: =F94+F70 -> 0 | G97: =G94+G70 -> 0 | H97: =H94+H70 -> 0 | I97: =I94+I70 -> 0 | J97: =J94+J70 -> 0 | K97: 0 | L97: 0 | M97: 0 | N97: 0 | O97: 0 | P97: 0 | Q97: =Q94+Q70 -> 0 | R97: =R94+R70 -> 0 | S97: =S94+S70 -> 0
A98: 41
A99: 42 | B99: GENERAL & INTANGIBLE PLANT
A100: 43 | C100: ='FR-16(7)(v)-1 Functional'!C100 -> PRODUCTION - DEMAND | D100: ='FR-16(7)(v)-1 Functional'!D100 -> K201 | F100: ='FR-16(7)(v)-2 PROD Classified'!H100 -> 0 | G100: =F100-SUM(H100:Q100) -> 0 | H100: =ROUND(F100*VLOOKUP(D100,ALLOCTABLE_Prod_Energy,$H$10,FALSE),0) -> 0 | I100: =ROUND(F100*VLOOKUP(D100,ALLOCTABLE_Prod_Energy,$I$10,FALSE),0) -> 0 | J100: =ROUND(F100*VLOOKUP(D100,ALLOCTABLE_Prod_Energy,$J$10,FALSE),0) -> 0 | K100: =ROUND(F100*VLOOKUP(D100,ALLOCTABLE_Prod_Energy,$K$10,FALSE),0) -> 0 | L100: =ROUND(F100*VLOOKUP(D100,ALLOCTABLE_Prod_Energy,$L$10,FALSE),0) -> 0 | M100: =ROUND(F100*VLOOKUP(D100,ALLOCTABLE_Prod_Energy,$M$10,FALSE),0) -> 0 | N100: =ROUND(F100*VLOOKUP(D100,ALLOCTABLE_Prod_Energy,$N$10,FALSE),0) -> 0 | O100: =ROUND(F100*VLOOKUP(D100,ALLOCTABLE_Prod_Energy,$O$10,FALSE),0) -> 0 | P100: =ROUND(F100*VLOOKUP(D100,ALLOCTABLE_Prod_Energy,$P$10,FALSE),0) -> 0 | Q100: =ROUND(F100*VLOOKUP(D100,ALLOCTABLE_Prod_Energy,$Q$10,FALSE),0) -> 0 | R100: =SUM(G100:Q100) -> 0 | S100: =F100-R100 -> 0
A101: 44 | C101: ='FR-16(7)(v)-1 Functional'!C101 -> PRODUCTION - ENERGY | D101: ='FR-16(7)(v)-1 Functional'!D101 -> K301 | F101: ='FR-16(7)(v)-2 PROD Classified'!H101 -> 7707827 | G101: 2770963 | H101: 2149559 | I101: 11870 | J101: 36381 | K101: 540 | L101: 1300619 | M101: 945057 | N101: 29829 | O101: 426474 | P101: 36227 | Q101: 308 | R101: 7707827 | S101: 0
A102: 45 | C102: ='FR-16(7)(v)-1 Functional'!C102 -> TRANSMISSION | D102: ='FR-16(7)(v)-1 Functional'!D102 -> K202 | F102: ='FR-16(7)(v)-2 PROD Classified'!H102 -> 0 | G102: 0 | H102: 0 | I102: 0 | J102: 0 | K102: 0 | L102: 0 | M102: 0 | N102: 0 | O102: 0 | P102: 0 | Q102: 0 | R102: 0 | S102: 0
A103: 46 | C103: ='FR-16(7)(v)-1 Functional'!C103 -> DISTRIBUTION - DEMAND | D103: ='FR-16(7)(v)-1 Functional'!D103 -> K201 | F103: ='FR-16(7)(v)-2 PROD Classified'!H103 -> 0 | G103: 0 | H103: 0 | I103: 0 | J103: 0 | K103: 0 | L103: 0 | M103: 0 | N103: 0 | O103: 0 | P103: 0 | Q103: 0 | R103: 0 | S103: 0
A104: 47 | C104: ='FR-16(7)(v)-1 Functional'!C104 -> DISTRIBUTION - CUSTOMER | D104: ='FR-16(7)(v)-1 Functional'!D104 -> K405 | F104: ='FR-16(7)(v)-2 PROD Classified'!H104 -> 0 | G104: 0 | H104: 0 | I104: 0 | J104: 0 | K104: 0 | L104: 0 | M104: 0 | N104: 0 | O104: 0 | P104: 0 | Q104: 0 | R104: 0 | S104: 0
A105: 48 | C105: ='FR-16(7)(v)-1 Functional'!C105 -> CUSTOMER ACCOUNTING | D105: ='FR-16(7)(v)-1 Functional'!D105 -> A308 | F105: ='FR-16(7)(v)-2 PROD Classified'!H105 -> 0 | G105: 0 | H105: 0 | I105: 0 | J105: 0 | K105: 0 | L105: 0 | M105: 0 | N105: 0 | O105: 0 | P105: 0 | Q105: 0 | R105: 0 | S105: 0
A106: 49 | C106: ='FR-16(7)(v)-1 Functional'!C106 -> CUSTOMER SERVICE & INFORMATION | D106: ='FR-16(7)(v)-1 Functional'!D106 -> A310 | F106: ='FR-16(7)(v)-2 PROD Classified'!H106 -> 0 | G106: 0 | H106: 0 | I106: 0 | J106: 0 | K106: 0 | L106: 0 | M106: 0 | N106: 0 | O106: 0 | P106: 0 | Q106: 0 | R106: 0 | S106: 0
A107: 50 | C107: ='FR-16(7)(v)-1 Functional'!C107 -> SALES | D107: ='FR-16(7)(v)-1 Functional'!D107 -> A312 | F107: ='FR-16(7)(v)-2 PROD Classified'!H107 -> 0 | G107: 0 | H107: 0 | I107: 0 | J107: 0 | K107: 0 | L107: 0 | M107: 0 | N107: 0 | O107: 0 | P107: 0 | Q107: 0 | R107: 0 | S107: 0
A108: 51 | C108: ='FR-16(7)(v)-1 Functional'!C108 -> ADJUSTMENT | D108: ='FR-16(7)(v)-1 Functional'!D108 -> A315 | F108: ='FR-16(7)(v)-2 PROD Classified'!H108 -> 0 | G108: 0 | H108: 0 | I108: 0 | J108: 0 | K108: 0 | L108: 0 | M108: 0 | N108: 0 | O108: 0 | P108: 0 | Q108: 0 | R108: 0 | S108: 0
A109: 52 | C109: ='FR-16(7)(v)-1 Functional'!C109 -> GEN & INTANG PLANT IN SERVICE | F109: =SUM(F100:F108) -> 7707827 | G109: =SUM(G100:G108) -> 2770963 | H109: =SUM(H100:H108) -> 2149559 | I109: =SUM(I100:I108) -> 11870 | J109: =SUM(J100:J108) -> 36381 | K109: 540 | L109: 1300619 | M109: 945057 | N109: 29829 | O109: 426474 | P109: 36227 | Q109: =SUM(Q100:Q108) -> 308 | R109: =SUM(R100:R108) -> 7707827 | S109: =SUM(S100:S108) -> 0
A110: 53
A111: 54 | B111: COMMON & OTHER PLANT
A112: 55 | C112: ='FR-16(7)(v)-1 Functional'!C112 -> PRODUCTION - DEMAND | D112: ='FR-16(7)(v)-1 Functional'!D112 -> K201 | F112: ='FR-16(7)(v)-2 PROD Classified'!H112 -> 0 | G112: =F112-SUM(H112:Q112) -> 0 | H112: =ROUND(F112*VLOOKUP(D112,ALLOCTABLE_Prod_Energy,$H$10,FALSE),0) -> 0 | I112: =ROUND(F112*VLOOKUP(D112,ALLOCTABLE_Prod_Energy,$I$10,FALSE),0) -> 0 | J112: =ROUND(F112*VLOOKUP(D112,ALLOCTABLE_Prod_Energy,$J$10,FALSE),0) -> 0 | K112: =ROUND(F112*VLOOKUP(D112,ALLOCTABLE_Prod_Energy,$K$10,FALSE),0) -> 0 | L112: =ROUND(F112*VLOOKUP(D112,ALLOCTABLE_Prod_Energy,$L$10,FALSE),0) -> 0 | M112: =ROUND(F112*VLOOKUP(D112,ALLOCTABLE_Prod_Energy,$M$10,FALSE),0) -> 0 | N112: =ROUND(F112*VLOOKUP(D112,ALLOCTABLE_Prod_Energy,$N$10,FALSE),0) -> 0 | O112: =ROUND(F112*VLOOKUP(D112,ALLOCTABLE_Prod_Energy,$O$10,FALSE),0) -> 0 | P112: =ROUND(F112*VLOOKUP(D112,ALLOCTABLE_Prod_Energy,$P$10,FALSE),0) -> 0 | Q112: =ROUND(F112*VLOOKUP(D112,ALLOCTABLE_Prod_Energy,$Q$10,FALSE),0) -> 0 | R112: =SUM(G112:Q112) -> 0 | S112: =F112-R112 -> 0
A113: 56 | C113: ='FR-16(7)(v)-1 Functional'!C113 -> PRODUCTION - ENERGY | D113: ='FR-16(7)(v)-1 Functional'!D113 -> K301 | F113: ='FR-16(7)(v)-2 PROD Classified'!H113 -> 8460177 | G113: 3041434 | H113: 2359374 | I113: 13029 | J113: 39932 | K113: 592 | L113: 1427570 | M113: 1037302 | N113: 32741 | O113: 468102 | P113: 39763 | Q113: 338 | R113: 8460177 | S113: 0
A114: 57 | C114: ='FR-16(7)(v)-1 Functional'!C114 -> TRANSMISSION | D114: ='FR-16(7)(v)-1 Functional'!D114 -> K202 | F114: ='FR-16(7)(v)-2 PROD Classified'!H114 -> 0 | G114: 0 | H114: 0 | I114: 0 | J114: 0 | K114: 0 | L114: 0 | M114: 0 | N114: 0 | O114: 0 | P114: 0 | Q114: 0 | R114: 0 | S114: 0
A115: 58 | C115: ='FR-16(7)(v)-1 Functional'!C115 -> DISTRIBUTION - DEMAND | D115: ='FR-16(7)(v)-1 Functional'!D115 -> K201 | F115: ='FR-16(7)(v)-2 PROD Classified'!H115 -> 0 | G115: 0 | H115: 0 | I115: 0 | J115: 0 | K115: 0 | L115: 0 | M115: 0 | N115: 0 | O115: 0 | P115: 0 | Q115: 0 | R115: 0 | S115: 0
A116: 59 | C116: ='FR-16(7)(v)-1 Functional'!C116 -> DISTRIBUTION - CUSTOMER | D116: ='FR-16(7)(v)-1 Functional'!D116 -> K405 | F116: ='FR-16(7)(v)-2 PROD Classified'!H116 -> 0 | G116: 0 | H116: 0 | I116: 0 | J116: 0 | K116: 0 | L116: 0 | M116: 0 | N116: 0 | O116: 0 | P116: 0 | Q116: 0 | R116: 0 | S116: 0
A117: 60 | C117: ='FR-16(7)(v)-1 Functional'!C117 -> CUSTOMER ACCOUNTING | D117: ='FR-16(7)(v)-1 Functional'!D117 -> A308 | F117: ='FR-16(7)(v)-2 PROD Classified'!H117 -> 0 | G117: 0 | H117: 0 | I117: 0 | J117: 0 | K117: 0 | L117: 0 | M117: 0 | N117: 0 | O117: 0 | P117: 0 | Q117: 0 | R117: 0 | S117: 0
A118: 61 | C118: ='FR-16(7)(v)-1 Functional'!C118 -> CUSTOMER SERVICE & INFORMATION | D118: ='FR-16(7)(v)-1 Functional'!D118 -> A310 | F118: ='FR-16(7)(v)-2 PROD Classified'!H118 -> 0 | G118: 0 | H118: 0 | I118: 0 | J118: 0 | K118: 0 | L118: 0 | M118: 0 | N118: 0 | O118: 0 | P118: 0 | Q118: 0 | R118: 0 | S118: 0
A119: 62 | C119: ='FR-16(7)(v)-1 Functional'!C119 -> SALES | D119: ='FR-16(7)(v)-1 Functional'!D119 -> A312 | F119: ='FR-16(7)(v)-2 PROD Classified'!H119 -> 0 | G119: 0 | H119: 0 | I119: 0 | J119: 0 | K119: 0 | L119: 0 | M119: 0 | N119: 0 | O119: 0 | P119: 0 | Q119: 0 | R119: 0 | S119: 0
A120: 63 | C120: ='FR-16(7)(v)-1 Functional'!C120 -> ADJUSTMENT | D120: ='FR-16(7)(v)-1 Functional'!D120 -> A315 | F120: ='FR-16(7)(v)-2 PROD Classified'!H120 -> 0 | G120: 0 | H120: 0 | I120: 0 | J120: 0 | K120: 0 | L120: 0 | M120: 0 | N120: 0 | O120: 0 | P120: 0 | Q120: 0 | R120: 0 | S120: 0
A121: 64 | C121: ='FR-16(7)(v)-1 Functional'!C121 -> COMMON & OTHER PLANT IN SERVICE | F121: =SUM(F112:F120) -> 8460177 | G121: =SUM(G112:G120) -> 3041434 | H121: =SUM(H112:H120) -> 2359374 | I121: =SUM(I112:I120) -> 13029 | J121: =SUM(J112:J120) -> 39932 | K121: 592 | L121: 1427570 | M121: 1037302 | N121: 32741 | O121: 468102 | P121: 39763 | Q121: =SUM(Q112:Q120) -> 338 | R121: =SUM(R112:R120) -> 8460177 | S121: =SUM(S112:S120) -> 0
A122: 65
A123: 66 | B123: GROSS ELECTRIC PLANT IN SERVICE | F123: =F97+F109+F121 -> 16168004 | G123: =G97+G109+G121 -> 5812397 | H123: =H97+H109+H121 -> 4508933 | I123: =I97+I109+I121 -> 24899 | J123: =J97+J109+J121 -> 76313 | K123: 1132 | L123: 2728189 | M123: 1982359 | N123: 62570 | O123: 894576 | P123: 75990 | Q123: =Q97+Q109+Q121 -> 646 | R123: =R97+R109+R121 -> 16168004 | S123: =S97+S109+S121 -> 0
A125: =co_name -> DUKE ENERGY KENTUCKY, INC. | R125: =R1 -> FR-16(7)(v)-4
A126: =$A$2 -> PRODUCTION ENERGY ALLOCATED - ELECTRIC COST OF SERVICE | R126: =R2 -> WITNESS RESPONSIBLE:
A127: =case_name -> CASE NO: 2017-00321 | R127: =Witness -> JAMES E. ZIOLKOWSKI
A128: =data_filing -> DATA: 12 MONTHS ACTUAL & 0 MONTHS ESTIMATED | R128: ="PAGE "&Pages-15&" OF "&Pages -> PAGE 3 OF 18
A129: =type -> TYPE OF FILING: "X" ORIGINAL UPDATED REVISED
F131: =F$7 -> TOTAL | H131: =H$7 -> DS | I131: =I$7 -> GSFL | J131: =J$7 -> EH | K131: =K$7 -> SP | L131: DT SEC | M131: DT PRI | N131: DP | O131: TT | Q131: OTHER
A132: LINE | F132: =F$8 -> PRODUCTION | G132: =G$8 -> RS | H132: =H$8 -> SECONDARY | I132: =I$8 -> SECONDARY | J132: =J$8 -> SECONDARY | K132: =K$8 -> SECONDARY | L132: SECONDARY | M132: PRIMARY | N132: PRIMARY | O132: TRANSMISSION | P132: LT | Q132: WATER | R132: =R8 -> TOTAL | S132: ALL
A133: NO. | B133: DEPRECIATION RESERVE | D133: ALLO | F133: =F$9 -> ENERGY | G133: =G$9 -> RESIDENTIAL | H133: =H$9 -> DISTRIBUTION | I133: =I$9 -> DISTRIBUTION | J133: =J$9 -> DISTRIBUTION | K133: =K$9 -> DISTRIBUTION | L133: DISTRIBUTION | M133: DISTRIBUTION | N133: DISTRIBUTION | O133: TIME OF DAY | P133: LIGHTING | Q133: PUMPING | R133: =R9 -> AT ISSUE | S133: OTHER
C134: Schedule 3 | G134: =G$10 -> 3 | H134: =H$10 -> 4 | I134: =I$10 -> 5 | J134: =J$10 -> 6 | K134: =K$10 -> 7 | L134: 8 | M134: 9 | N134: 10 | O134: 11 | P134: 12 | Q134: 13
A135: 1 | B135: PRODUCTION PLANT
A136: 2 | C136: PRODUCTION STEAM | D136: ='FR-16(7)(v)-1 Functional'!D136 -> K201 | F136: ='FR-16(7)(v)-2 PROD Classified'!H136 -> 0 | G136: =F136-SUM(H136:Q136) -> 0 | H136: =ROUND(F136*VLOOKUP(D136,ALLOCTABLE_Prod_Energy,$H$10,FALSE),0) -> 0 | I136: =ROUND(F136*VLOOKUP(D136,ALLOCTABLE_Prod_Energy,$I$10,FALSE),0) -> 0 | J136: =ROUND(F136*VLOOKUP(D136,ALLOCTABLE_Prod_Energy,$J$10,FALSE),0) -> 0 | K136: =ROUND(F136*VLOOKUP(D136,ALLOCTABLE_Prod_Energy,$K$10,FALSE),0) -> 0 | L136: =ROUND(F136*VLOOKUP(D136,ALLOCTABLE_Prod_Energy,$L$10,FALSE),0) -> 0 | M136: =ROUND(F136*VLOOKUP(D136,ALLOCTABLE_Prod_Energy,$M$10,FALSE),0) -> 0 | N136: =ROUND(F136*VLOOKUP(D136,ALLOCTABLE_Prod_Energy,$N$10,FALSE),0) -> 0 | O136: =ROUND(F136*VLOOKUP(D136,ALLOCTABLE_Prod_Energy,$O$10,FALSE),0) -> 0 | P136: =ROUND(F136*VLOOKUP(D136,ALLOCTABLE_Prod_Energy,$P$10,FALSE),0) -> 0 | Q136: =ROUND(F136*VLOOKUP(D136,ALLOCTABLE_Prod_Energy,$Q$10,FALSE),0) -> 0 | R136: =SUM(G136:Q136) -> 0 | S136: =F136-R136 -> 0
A137: 3 | C137: PRODUCTION OTHER | D137: ='FR-16(7)(v)-1 Functional'!D137 -> K201 | F137: ='FR-16(7)(v)-2 PROD Classified'!H137 -> 0 | G137: =F137-SUM(H137:Q137) -> 0 | H137: =ROUND(F136*VLOOKUP(D136,ALLOCTABLE_Prod_Energy,$H$10,FALSE),0) -> 0 | I137: =ROUND(F137*VLOOKUP(D137,ALLOCTABLE_Prod_Energy,$I$10,FALSE),0) -> 0 | J137: =ROUND(F137*VLOOKUP(D137,ALLOCTABLE_Prod_Energy,$J$10,FALSE),0) -> 0 | K137: =ROUND(F137*VLOOKUP(D137,ALLOCTABLE_Prod_Energy,$K$10,FALSE),0) -> 0 | L137: =ROUND(F137*VLOOKUP(D137,ALLOCTABLE_Prod_Energy,$L$10,FALSE),0) -> 0 | M137: =ROUND(F137*VLOOKUP(D137,ALLOCTABLE_Prod_Energy,$M$10,FALSE),0) -> 0 | N137: =ROUND(F137*VLOOKUP(D137,ALLOCTABLE_Prod_Energy,$N$10,FALSE),0) -> 0 | O137: =ROUND(F137*VLOOKUP(D137,ALLOCTABLE_Prod_Energy,$O$10,FALSE),0) -> 0 | P137: =ROUND(F137*VLOOKUP(D137,ALLOCTABLE_Prod_Energy,$P$10,FALSE),0) -> 0 | Q137: =ROUND(F137*VLOOKUP(D137,ALLOCTABLE_Prod_Energy,$Q$10,FALSE),0) -> 0 | R137: =SUM(G137:Q137) -> 0 | S137: =F137-R137 -> 0
A138: 4 | C138: ='FR-16(7)(v)-1 Functional'!C138 -> ADJUSTMENT | D138: ='FR-16(7)(v)-1 Functional'!D138 -> K201 | F138: ='FR-16(7)(v)-2 PROD Classified'!H138 -> 0 | G138: =F138-SUM(H138:Q138) -> 0 | H138: =ROUND(F136*VLOOKUP(D136,ALLOCTABLE_Prod_Energy,$H$10,FALSE),0) -> 0 | I138: =ROUND(F138*VLOOKUP(D138,ALLOCTABLE_Prod_Energy,$I$10,FALSE),0) -> 0 | J138: =ROUND(F138*VLOOKUP(D138,ALLOCTABLE_Prod_Energy,$J$10,FALSE),0) -> 0 | K138: =ROUND(F138*VLOOKUP(D138,ALLOCTABLE_Prod_Energy,$K$10,FALSE),0) -> 0 | L138: =ROUND(F138*VLOOKUP(D138,ALLOCTABLE_Prod_Energy,$L$10,FALSE),0) -> 0 | M138: =ROUND(F138*VLOOKUP(D138,ALLOCTABLE_Prod_Energy,$M$10,FALSE),0) -> 0 | N138: =ROUND(F138*VLOOKUP(D138,ALLOCTABLE_Prod_Energy,$N$10,FALSE),0) -> 0 | O138: =ROUND(F138*VLOOKUP(D138,ALLOCTABLE_Prod_Energy,$O$10,FALSE),0) -> 0 | P138: =ROUND(F138*VLOOKUP(D138,ALLOCTABLE_Prod_Energy,$P$10,FALSE),0) -> 0 | Q138: =ROUND(F138*VLOOKUP(D138,ALLOCTABLE_Prod_Energy,$Q$10,FALSE),0) -> 0 | R138: =SUM(G138:Q138) -> 0 | S138: =F138-R138 -> 0
A139: 5 | C139: ='FR-16(7)(v)-1 Functional'!C139 -> TOTAL PROD DEPREC RESERVE | F139: =SUM(F136:F138) -> 0 | G139: =SUM(G136:G138) -> 0 | H139: 0 | I139: 0 | J139: 0 | K139: 0 | L139: 0 | M139: 0 | N139: 0 | O139: 0 | P139: 0 | Q139: 0 | R139: 0 | S139: =SUM(S136:S136) -> 0
A140: 6
A141: 7 | B141: TRANSMISSION PLANT
A142: 8 | C142: MAIN STEP-UP TRANSFORMERS | D142: ='FR-16(7)(v)-1 Functional'!D142 -> K202 | F142: ='FR-16(7)(v)-2 PROD Classified'!H142 -> 0 | G142: =F142-SUM(H142:Q142) -> 0 | H142: =ROUND(F136*VLOOKUP(D136,ALLOCTABLE_Prod_Energy,$H$10,FALSE),0) -> 0 | I142: =ROUND(F142*VLOOKUP(D142,ALLOCTABLE_Prod_Energy,$I$10,FALSE),0) -> 0 | J142: =ROUND(F142*VLOOKUP(D142,ALLOCTABLE_Prod_Energy,$J$10,FALSE),0) -> 0 | K142: =ROUND(F142*VLOOKUP(D142,ALLOCTABLE_Prod_Energy,$K$10,FALSE),0) -> 0 | L142: =ROUND(F142*VLOOKUP(D142,ALLOCTABLE_Prod_Energy,$L$10,FALSE),0) -> 0 | M142: =ROUND(F142*VLOOKUP(D142,ALLOCTABLE_Prod_Energy,$M$10,FALSE),0) -> 0 | N142: =ROUND(F142*VLOOKUP(D142,ALLOCTABLE_Prod_Energy,$N$10,FALSE),0) -> 0 | O142: =ROUND(F142*VLOOKUP(D142,ALLOCTABLE_Prod_Energy,$O$10,FALSE),0) -> 0 | P142: =ROUND(F142*VLOOKUP(D142,ALLOCTABLE_Prod_Energy,$P$10,FALSE),0) -> 0 | Q142: =ROUND(F142*VLOOKUP(D142,ALLOCTABLE_Prod_Energy,$Q$10,FALSE),0) -> 0 | R142: =SUM(G142:Q142) -> 0 | S142: =F142-R142 -> 0
A143: 9 | C143: OTHER TRANSMISSION | D143: ='FR-16(7)(v)-1 Functional'!D143 -> K202 | F143: ='FR-16(7)(v)-2 PROD Classified'!H143 -> 0 | G143: =F143-SUM(H143:Q143) -> 0 | H143: =ROUND(F136*VLOOKUP(D136,ALLOCTABLE_Prod_Energy,$H$10,FALSE),0) -> 0 | I143: =ROUND(F143*VLOOKUP(D143,ALLOCTABLE_Prod_Energy,$I$10,FALSE),0) -> 0 | J143: =ROUND(F143*VLOOKUP(D143,ALLOCTABLE_Prod_Energy,$J$10,FALSE),0) -> 0 | K143: =ROUND(F143*VLOOKUP(D143,ALLOCTABLE_Prod_Energy,$K$10,FALSE),0) -> 0 | L143: =ROUND(F143*VLOOKUP(D143,ALLOCTABLE_Prod_Energy,$L$10,FALSE),0) -> 0 | M143: =ROUND(F143*VLOOKUP(D143,ALLOCTABLE_Prod_Energy,$M$10,FALSE),0) -> 0 | N143: =ROUND(F143*VLOOKUP(D143,ALLOCTABLE_Prod_Energy,$N$10,FALSE),0) -> 0 | O143: =ROUND(F143*VLOOKUP(D143,ALLOCTABLE_Prod_Energy,$O$10,FALSE),0) -> 0 | P143: =ROUND(F143*VLOOKUP(D143,ALLOCTABLE_Prod_Energy,$P$10,FALSE),0) -> 0 | Q143: =ROUND(F143*VLOOKUP(D143,ALLOCTABLE_Prod_Energy,$Q$10,FALSE),0) -> 0 | R143: =SUM(G143:Q143) -> 0 | S143: =F143-R143 -> 0
A144: 10 | C144: ADJUSTMENT | D144: ='FR-16(7)(v)-1 Functional'!D144 -> K202 | F144: ='FR-16(7)(v)-2 PROD Classified'!H144 -> 0 | G144: =F144-SUM(H144:Q144) -> 0 | H144: =ROUND(F136*VLOOKUP(D136,ALLOCTABLE_Prod_Energy,$H$10,FALSE),0) -> 0 | I144: =ROUND(F144*VLOOKUP(D144,ALLOCTABLE_Prod_Energy,$I$10,FALSE),0) -> 0 | J144: =ROUND(F144*VLOOKUP(D144,ALLOCTABLE_Prod_Energy,$J$10,FALSE),0) -> 0 | K144: =ROUND(F144*VLOOKUP(D144,ALLOCTABLE_Prod_Energy,$K$10,FALSE),0) -> 0 | L144: =ROUND(F144*VLOOKUP(D144,ALLOCTABLE_Prod_Energy,$L$10,FALSE),0) -> 0 | M144: =ROUND(F144*VLOOKUP(D144,ALLOCTABLE_Prod_Energy,$M$10,FALSE),0) -> 0 | N144: =ROUND(F144*VLOOKUP(D144,ALLOCTABLE_Prod_Energy,$N$10,FALSE),0) -> 0 | O144: =ROUND(F144*VLOOKUP(D144,ALLOCTABLE_Prod_Energy,$O$10,FALSE),0) -> 0 | P144: =ROUND(F144*VLOOKUP(D144,ALLOCTABLE_Prod_Energy,$P$10,FALSE),0) -> 0 | Q144: =ROUND(F144*VLOOKUP(D144,ALLOCTABLE_Prod_Energy,$Q$10,FALSE),0) -> 0 | R144: =SUM(G144:Q144) -> 0 | S144: =F144-R144 -> 0
A145: 11 | C145: TOTAL TRANS DEPREC RESERVE | F145: =SUM(F142:F144) -> 0 | G145: =SUM(G142:G144) -> 0 | H145: 0 | I145: 0 | J145: 0 | K145: 0 | L145: 0 | M145: 0 | N145: 0 | O145: 0 | P145: 0 | Q145: 0 | R145: =SUM(R142:R144) -> 0 | S145: =SUM(S142:S142) -> 0
A146: 12
A147: 13 | C147: TOTAL PROD & TRANS DEPREC RESERVE | F147: =F145+F139 -> 0 | G147: =G145+G139 -> 0 | H147: =$H$114+H139 -> 0 | I147: =$I$114+I139 -> 0 | J147: =$J$114+J139 -> 0 | K147: =$K$114+K139 -> 0 | L147: =$L$114+L139 -> 0 | M147: =$M$114+M139 -> 0 | N147: =$N$114+N139 -> 0 | O147: =$O$114+O139 -> 0 | P147: =$P$114+P139 -> 0 | Q147: =$Q$114+Q139 -> 0 | R147: =SUM(G147:Q147) -> 0 | S147: =F147-R147 -> 0
A148: 14
A149: 15 | B149: DISTRIBUTION PLANT
A150: 16 | C150: ='FR-16(7)(v)-1 Functional'!C150 -> SUBSTATIONS | D150: ='FR-16(7)(v)-1 Functional'!D150 -> K215 | F150: ='FR-16(7)(v)-2 PROD Classified'!H150 -> 0 | G150: =F150-SUM(H150:Q150) -> 0 | H150: =ROUND(F150*VLOOKUP(D150,ALLOCTABLE_Prod_Energy,$H$10,FALSE),0) -> 0 | I150: =ROUND(F150*VLOOKUP(D150,ALLOCTABLE_Prod_Energy,$I$10,FALSE),0) -> 0 | J150: =ROUND(F150*VLOOKUP(D150,ALLOCTABLE_Prod_Energy,$J$10,FALSE),0) -> 0 | K150: =ROUND(F150*VLOOKUP(D150,ALLOCTABLE_Prod_Energy,$K$10,FALSE),0) -> 0 | L150: =ROUND(F150*VLOOKUP(D150,ALLOCTABLE_Prod_Energy,$L$10,FALSE),0) -> 0 | M150: =ROUND(F150*VLOOKUP(D150,ALLOCTABLE_Prod_Energy,$M$10,FALSE),0) -> 0 | N150: =ROUND(F150*VLOOKUP(D150,ALLOCTABLE_Prod_Energy,$N$10,FALSE),0) -> 0 | O150: =ROUND(F150*VLOOKUP(D150,ALLOCTABLE_Prod_Energy,$O$10,FALSE),0) -> 0 | P150: =ROUND(F150*VLOOKUP(D150,ALLOCTABLE_Prod_Energy,$P$10,FALSE),0) -> 0 | Q150: =ROUND(F150*VLOOKUP(D150,ALLOCTABLE_Prod_Energy,$Q$10,FALSE),0) -> 0 | R150: =SUM(G150:Q150) -> 0 | S150: =F150-R150 -> 0
A151: 17 | C151: ='FR-16(7)(v)-1 Functional'!C151 -> POLES, TOWERS & FIXTURES - PRIMARY - DEMAND | D151: ='FR-16(7)(v)-1 Functional'!D151 -> K205 | F151: ='FR-16(7)(v)-2 PROD Classified'!H151 -> 0 | G151: =F151-SUM(H151:Q151) -> 0 | H151: =ROUND(F151*VLOOKUP(D151,ALLOCTABLE_Prod_Energy,$H$10,FALSE),0) -> 0 | I151: 0 | J151: 0 | K151: 0 | L151: 0 | M151: 0 | N151: 0 | O151: 0 | P151: 0 | Q151: =ROUND(F151*VLOOKUP(D151,ALLOCTABLE_Prod_Energy,$Q$10,FALSE),0) -> 0 | R151: =SUM(G151:Q151) -> 0 | S151: =F151-R151 -> 0
A152: 18 | C152: ='FR-16(7)(v)-1 Functional'!C152 -> POLES, TOWERS & FIXTURES - PRIMARY - CUSTOMER | D152: ='FR-16(7)(v)-1 Functional'!D152 -> K405 | F152: ='FR-16(7)(v)-2 PROD Classified'!H152 -> 0 | G152: =F152-SUM(H152:Q152) -> 0 | H152: =ROUND(F152*VLOOKUP(D152,ALLOCTABLE_Prod_Energy,$H$10,FALSE),0) -> 0 | I152: 0 | J152: 0 | K152: 0 | L152: 0 | M152: 0 | N152: 0 | O152: 0 | P152: 0 | Q152: =ROUND(F152*VLOOKUP(D152,ALLOCTABLE_Prod_Energy,$Q$10,FALSE),0) -> 0 | R152: =SUM(G152:Q152) -> 0 | S152: =F152-R152 -> 0
A153: 19 | C153: ='FR-16(7)(v)-1 Functional'!C153 -> POLES, TOWERS & FIXTURES - SECONDARY - DEMAND | D153: ='FR-16(7)(v)-1 Functional'!D153 -> K206 | F153: ='FR-16(7)(v)-2 PROD Classified'!H153 -> 0 | G153: 0 | H153: 0 | I153: 0 | J153: 0 | K153: 0 | L153: 0 | M153: 0 | N153: 0 | O153: 0 | P153: 0 | Q153: 0 | R153: 0 | S153: 0
A154: 20 | C154: ='FR-16(7)(v)-1 Functional'!C154 -> POLES, TOWERS & FIXTURES - SECONDARY - CUSTOMER | D154: ='FR-16(7)(v)-1 Functional'!D154 -> K405 | F154: ='FR-16(7)(v)-2 PROD Classified'!H154 -> 0 | G154: 0 | H154: 0 | I154: 0 | J154: 0 | K154: 0 | L154: 0 | M154: 0 | N154: 0 | O154: 0 | P154: 0 | Q154: 0 | R154: 0 | S154: 0
A155: 21 | C155: ='FR-16(7)(v)-1 Functional'!C155 -> CONDUCTORS - OVERHEAD / PRIMARY - DEMAND | D155: ='FR-16(7)(v)-1 Functional'!D155 -> K205 | F155: ='FR-16(7)(v)-2 PROD Classified'!H155 -> 0 | G155: 0 | H155: 0 | I155: 0 | J155: 0 | K155: 0 | L155: 0 | M155: 0 | N155: 0 | O155: 0 | P155: 0 | Q155: 0 | R155: 0 | S155: 0
A156: 22 | C156: ='FR-16(7)(v)-1 Functional'!C156 -> CONDUCTORS - OVERHEAD / PRIMARY - CUSTOMER | D156: ='FR-16(7)(v)-1 Functional'!D156 -> K405 | F156: ='FR-16(7)(v)-2 PROD Classified'!H156 -> 0 | G156: 0 | H156: 0 | I156: 0 | J156: 0 | K156: 0 | L156: 0 | M156: 0 | N156: 0 | O156: 0 | P156: 0 | Q156: 0 | R156: 0 | S156: 0
A157: 23 | C157: ='FR-16(7)(v)-1 Functional'!C157 -> CONDUCTORS - OVERHEAD / SECONDARY - DEMAND | D157: ='FR-16(7)(v)-1 Functional'!D157 -> K206 | F157: ='FR-16(7)(v)-2 PROD Classified'!H157 -> 0 | G157: 0 | H157: 0 | I157: 0 | J157: 0 | K157: 0 | L157: 0 | M157: 0 | N157: 0 | O157: 0 | P157: 0 | Q157: 0 | R157: 0 | S157: 0
A158: 24 | C158: ='FR-16(7)(v)-1 Functional'!C158 -> CONDUCTORS - OVERHEAD / SECONDARY - CUSTOMER | D158: ='FR-16(7)(v)-1 Functional'!D158 -> K405 | F158: ='FR-16(7)(v)-2 PROD Classified'!H158 -> 0 | G158: 0 | H158: 0 | I158: 0 | J158: 0 | K158: 0 | L158: 0 | M158: 0 | N158: 0 | O158: 0 | P158: 0 | Q158: 0 | R158: 0 | S158: 0
A159: 25 | C159: ='FR-16(7)(v)-1 Functional'!C159 -> CONDUCTORS - UNDERGROUND / PRIMARY - DEMAND | D159: ='FR-16(7)(v)-1 Functional'!D159 -> K205 | F159: ='FR-16(7)(v)-2 PROD Classified'!H159 -> 0 | G159: 0 | H159: 0 | I159: 0 | J159: 0 | K159: 0 | L159: 0 | M159: 0 | N159: 0 | O159: 0 | P159: 0 | Q159: 0 | R159: 0 | S159: 0
A160: 26 | C160: ='FR-16(7)(v)-1 Functional'!C160 -> CONDUCTORS - UNDERGROUND / PRIMARY - CUSTOMER | D160: ='FR-16(7)(v)-1 Functional'!D160 -> K405 | F160: ='FR-16(7)(v)-2 PROD Classified'!H160 -> 0 | G160: 0 | H160: 0 | I160: 0 | J160: 0 | K160: 0 | L160: 0 | M160: 0 | N160: 0 | O160: 0 | P160: 0 | Q160: 0 | R160: 0 | S160: 0
A161: 27 | C161: ='FR-16(7)(v)-1 Functional'!C161 -> CONDUCTORS - UNDERGROUND / SECONDARY - DEMAND | D161: ='FR-16(7)(v)-1 Functional'!D161 -> K206 | F161: ='FR-16(7)(v)-2 PROD Classified'!H161 -> 0 | G161: 0 | H161: 0 | I161: 0 | J161: 0 | K161: 0 | L161: 0 | M161: 0 | N161: 0 | O161: 0 | P161: 0 | Q161: 0 | R161: 0 | S161: 0
A162: 28 | C162: ='FR-16(7)(v)-1 Functional'!C162 -> CONDUCTORS - UNDERGROUND / SECONDARY - CUSTOMER | D162: ='FR-16(7)(v)-1 Functional'!D162 -> K405 | F162: ='FR-16(7)(v)-2 PROD Classified'!H162 -> 0 | G162: 0 | H162: 0 | I162: 0 | J162: 0 | K162: 0 | L162: 0 | M162: 0 | N162: 0 | O162: 0 | P162: 0 | Q162: 0 | R162: 0 | S162: 0
A163: 29 | C163: ='FR-16(7)(v)-1 Functional'!C163 -> TRANSFORMERS DEMAND RELATED | D163: ='FR-16(7)(v)-1 Functional'!D163 -> K215 | F163: ='FR-16(7)(v)-2 PROD Classified'!H163 -> 0 | G163: =F163-SUM(H163:Q163) -> 0 | H163: =ROUND(F163*VLOOKUP(D163,ALLOCTABLE_Prod_Energy,$H$10,FALSE),0) -> 0 | I163: 0 | J163: 0 | K163: 0 | L163: 0 | M163: 0 | N163: 0 | O163: 0 | P163: 0 | Q163: =ROUND(F163*VLOOKUP(D163,ALLOCTABLE_Prod_Energy,$Q$10,FALSE),0) -> 0 | R163: =SUM(G163:Q163) -> 0 | S163: =F163-R163 -> 0
A164: 30 | C164: ='FR-16(7)(v)-1 Functional'!C164 -> TRANSFORMERS CUSTOMER RELATED | D164: ='FR-16(7)(v)-1 Functional'!D164 -> K405 | F164: ='FR-16(7)(v)-2 PROD Classified'!H164 -> 0 | G164: 0 | H164: 0 | I164: =ROUND(F164*VLOOKUP(D163,ALLOCTABLE_Prod_Energy,$I$10,FALSE),0) -> 0 | J164: =ROUND(F164*VLOOKUP(D163,ALLOCTABLE_Prod_Energy,$J$10,FALSE),0) -> 0 | K164: =ROUND(F164*VLOOKUP(D163,ALLOCTABLE_Prod_Energy,$K$10,FALSE),0) -> 0 | L164: =ROUND(F164*VLOOKUP(D163,ALLOCTABLE_Prod_Energy,$L$10,FALSE),0) -> 0 | M164: =ROUND(F164*VLOOKUP(D163,ALLOCTABLE_Prod_Energy,$M$10,FALSE),0) -> 0 | N164: =ROUND(F164*VLOOKUP(D163,ALLOCTABLE_Prod_Energy,$N$10,FALSE),0) -> 0 | O164: =ROUND(F164*VLOOKUP(D163,ALLOCTABLE_Prod_Energy,$O$10,FALSE),0) -> 0 | P164: 0 | Q164: 0 | R164: 0 | S164: 0
A165: 31 | C165: ='FR-16(7)(v)-1 Functional'!C165 -> SERVICES | D165: ='FR-16(7)(v)-1 Functional'!D165 -> K217 | F165: ='FR-16(7)(v)-2 PROD Classified'!H165 -> 0 | G165: 0 | H165: 0 | I165: =ROUND(F165*VLOOKUP(D165,ALLOCTABLE_Prod_Energy,$I$10,FALSE),0) -> 0 | J165: =ROUND(F165*VLOOKUP(D165,ALLOCTABLE_Prod_Energy,$J$10,FALSE),0) -> 0 | K165: =ROUND(F165*VLOOKUP(D165,ALLOCTABLE_Prod_Energy,$K$10,FALSE),0) -> 0 | L165: =ROUND(F165*VLOOKUP(D165,ALLOCTABLE_Prod_Energy,$L$10,FALSE),0) -> 0 | M165: =ROUND(F165*VLOOKUP(D165,ALLOCTABLE_Prod_Energy,$M$10,FALSE),0) -> 0 | N165: =ROUND(F165*VLOOKUP(D165,ALLOCTABLE_Prod_Energy,$N$10,FALSE),0) -> 0 | O165: =ROUND(F165*VLOOKUP(D165,ALLOCTABLE_Prod_Energy,$O$10,FALSE),0) -> 0 | P165: 0 | Q165: 0 | R165: 0 | S165: 0
A166: 32 | C166: ='FR-16(7)(v)-1 Functional'!C166 -> METERS | D166: ='FR-16(7)(v)-1 Functional'!D166 -> K407 | F166: ='FR-16(7)(v)-2 PROD Classified'!H166 -> 0 | G166: 0 | H166: 0 | I166: 0 | J166: 0 | K166: 0 | L166: =ROUND(F166*VLOOKUP(D166,ALLOCTABLE_Prod_Energy,$L$10,FALSE),0) -> 0 | M166: =ROUND(F166*VLOOKUP(D166,ALLOCTABLE_Prod_Energy,$M$10,FALSE),0) -> 0 | N166: =ROUND(F166*VLOOKUP(D166,ALLOCTABLE_Prod_Energy,$N$10,FALSE),0) -> 0 | O166: =ROUND(F166*VLOOKUP(D166,ALLOCTABLE_Prod_Energy,$O$10,FALSE),0) -> 0 | P166: 0 | Q166: 0 | R166: 0 | S166: 0
A167: 33 | C167: ='FR-16(7)(v)-1 Functional'!C167 -> STREET LIGHTS | D167: ='FR-16(7)(v)-1 Functional'!D167 -> K401 | F167: ='FR-16(7)(v)-2 PROD Classified'!H167 -> 0 | G167: 0 | H167: 0 | I167: 0 | J167: 0 | K167: 0 | L167: =ROUND(F167*VLOOKUP(D167,ALLOCTABLE_Prod_Energy,$L$10,FALSE),0) -> 0 | M167: =ROUND(F167*VLOOKUP(D167,ALLOCTABLE_Prod_Energy,$M$10,FALSE),0) -> 0 | N167: =ROUND(F167*VLOOKUP(D167,ALLOCTABLE_Prod_Energy,$N$10,FALSE),0) -> 0 | O167: =ROUND(F167*VLOOKUP(D167,ALLOCTABLE_Prod_Energy,$O$10,FALSE),0) -> 0 | P167: 0 | Q167: 0 | R167: 0 | S167: 0
A168: 34 | C168: ='FR-16(7)(v)-1 Functional'!C168 -> ADJUSTMENT | D168: ='FR-16(7)(v)-1 Functional'!D168 -> K209 | F168: ='FR-16(7)(v)-2 PROD Classified'!H168 -> 0 | G168: 0 | H168: 0 | I168: 0 | J168: 0 | K168: 0 | L168: =ROUND(F168*VLOOKUP(D168,ALLOCTABLE_Prod_Energy,$L$10,FALSE),0) -> 0 | M168: =ROUND(F168*VLOOKUP(D168,ALLOCTABLE_Prod_Energy,$M$10,FALSE),0) -> 0 | N168: =ROUND(F168*VLOOKUP(D168,ALLOCTABLE_Prod_Energy,$N$10,FALSE),0) -> 0 | O168: =ROUND(F168*VLOOKUP(D168,ALLOCTABLE_Prod_Energy,$O$10,FALSE),0) -> 0 | P168: 0 | Q168: 0 | R168: 0 | S168: 0
A169: 35 | C169: ='FR-16(7)(v)-1 Functional'!C169 -> CONSTRUCTION NOT CLASSIFIED | D169: ='FR-16(7)(v)-1 Functional'!D169 -> K209 | F169: ='FR-16(7)(v)-2 PROD Classified'!H169 -> 0 | G169: 0 | H169: 0 | I169: 0 | J169: 0 | K169: 0 | L169: =ROUND(F169*VLOOKUP(D169,ALLOCTABLE_Prod_Energy,$L$10,FALSE),0) -> 0 | M169: =ROUND(F169*VLOOKUP(D169,ALLOCTABLE_Prod_Energy,$M$10,FALSE),0) -> 0 | N169: =ROUND(F169*VLOOKUP(D169,ALLOCTABLE_Prod_Energy,$N$10,FALSE),0) -> 0 | O169: =ROUND(F169*VLOOKUP(D169,ALLOCTABLE_Prod_Energy,$O$10,FALSE),0) -> 0 | P169: 0 | Q169: 0 | R169: 0 | S169: 0
A170: 36 | C170: ='FR-16(7)(v)-1 Functional'!C170 -> RWIP | D170: ='FR-16(7)(v)-1 Functional'!D170 -> K215 | F170: ='FR-16(7)(v)-2 PROD Classified'!H170 -> 0 | G170: =F170-SUM(H170:Q170) -> 0 | H170: =ROUND(F170*VLOOKUP(D170,ALLOCTABLE_Prod_Energy,$H$10,FALSE),0) -> 0 | I170: 0 | J170: 0 | K170: 0
A171: 37 | C171: ='FR-16(7)(v)-1 Functional'!C171 -> TOTAL DIST DEPREC RESERVE | F171: =SUM(F149:F170) -> 0 | G171: =SUM(G149:G169) -> 0 | H171: =SUM(H149:H169) -> 0 | I171: 0 | J171: 0 | K171: 0 | L171: =SUM(L149:L169) -> 0 | M171: =SUM(M149:M169) -> 0 | N171: =SUM(N149:N169) -> 0 | O171: 0 | P171: 0 | Q171: 0 | R171: =SUM(R149:R169) -> 0 | S171: =SUM(S149:S169) -> 0
A172: 38
A173: 39 | C173: TOTAL TRANS & DIST DEPREC RESERVE | F173: =F171+F145 -> 0 | G173: =G171+G145 -> 0 | H173: =H171+$H$114 -> 0 | I173: =I171+$I$114 -> 0 | J173: =J171+$J$114 -> 0 | K173: =K171+$K$114 -> 0 | L173: =L171+$L$114 -> 0 | M173: =M171+$M$114 -> 0 | N173: =N171+$N$114 -> 0 | O173: =O171+$O$114 -> 0 | P173: =P171+$P$114 -> 0 | Q173: =Q171+$Q$114 -> 0 | R173: =SUM(G173:Q173) -> 0 | S173: =F173-R173 -> 0
A174: 40 | C174: TOTAL GROSS PTD PLANT DEPREC RESERVE | F174: =F147+F171 -> 0 | G174: =G147+G171 -> 0 | H174: =$H$117+H171 -> 0 | I174: =$I$117+I171 -> 0 | J174: =$J$117+J171 -> 0 | K174: =$K$117+K171 -> 0 | L174: =$L$117+L171 -> 0 | M174: =$M$117+M171 -> 0 | N174: =$N$117+N171 -> 0 | O174: =$O$117+O171 -> 0 | P174: =$P$117+P171 -> 0 | Q174: =$Q$117+Q171 -> 0 | R174: =SUM(G174:Q174) -> 0 | S174: =F174-R174 -> 0
A175: 41
A176: 42 | B176: GENERAL & INTANGIBLE PLANT
A177: 43 | C177: ='FR-16(7)(v)-1 Functional'!C177 -> PRODUCTION - DEMAND | D177: ='FR-16(7)(v)-1 Functional'!D177 -> K201 | F177: ='FR-16(7)(v)-2 PROD Classified'!H177 -> 0 | G177: =F177-SUM(H177:Q177) -> 0 | H177: =ROUND(F177*VLOOKUP(D177,ALLOCTABLE_Prod_Energy,$H$10,FALSE),0) -> 0 | I177: =ROUND(F177*VLOOKUP(D177,ALLOCTABLE_Prod_Energy,$I$10,FALSE),0) -> 0 | J177: =ROUND(F177*VLOOKUP(D177,ALLOCTABLE_Prod_Energy,$J$10,FALSE),0) -> 0 | K177: =ROUND(F177*VLOOKUP(D177,ALLOCTABLE_Prod_Energy,$K$10,FALSE),0) -> 0 | L177: =ROUND(F177*VLOOKUP(D177,ALLOCTABLE_Prod_Energy,$L$10,FALSE),0) -> 0 | M177: =ROUND(F177*VLOOKUP(D177,ALLOCTABLE_Prod_Energy,$M$10,FALSE),0) -> 0 | N177: =ROUND(F177*VLOOKUP(D177,ALLOCTABLE_Prod_Energy,$N$10,FALSE),0) -> 0 | O177: =ROUND(F177*VLOOKUP(D177,ALLOCTABLE_Prod_Energy,$O$10,FALSE),0) -> 0 | P177: =ROUND(F177*VLOOKUP(D177,ALLOCTABLE_Prod_Energy,$P$10,FALSE),0) -> 0 | Q177: =ROUND(F177*VLOOKUP(D177,ALLOCTABLE_Prod_Energy,$Q$10,FALSE),0) -> 0 | R177: =SUM(G177:Q177) -> 0 | S177: =F177-R177 -> 0
A178: 44 | C178: ='FR-16(7)(v)-1 Functional'!C178 -> PRODUCTION - ENERGY | D178: ='FR-16(7)(v)-1 Functional'!D178 -> K301 | F178: ='FR-16(7)(v)-2 PROD Classified'!H178 -> 4302645 | G178: 1546803 | H178: 1199922 | I178: 6626 | J178: 20308 | K178: 301 | L178: 726028 | M178: 527547 | N178: 16651 | O178: 238065 | P178: 20222 | Q178: 172 | R178: 4302645 | S178: 0
A179: 45 | C179: ='FR-16(7)(v)-1 Functional'!C179 -> TRANSMISSION | D179: ='FR-16(7)(v)-1 Functional'!D179 -> K202 | F179: ='FR-16(7)(v)-2 PROD Classified'!H179 -> 0 | G179: 0 | H179: 0 | I179: 0 | J179: 0 | K179: 0 | L179: 0 | M179: 0 | N179: 0 | O179: 0 | P179: 0 | Q179: 0 | R179: 0 | S179: 0
A180: 46 | C180: ='FR-16(7)(v)-1 Functional'!C180 -> DISTRIBUTION - DEMAND | D180: ='FR-16(7)(v)-1 Functional'!D180 -> K201 | F180: ='FR-16(7)(v)-2 PROD Classified'!H180 -> 0 | G180: 0 | H180: 0 | I180: 0 | J180: 0 | K180: 0 | L180: 0 | M180: 0 | N180: 0 | O180: 0 | P180: 0 | Q180: 0 | R180: 0 | S180: 0
A181: 47 | C181: ='FR-16(7)(v)-1 Functional'!C181 -> DISTRIBUTION - CUSTOMER | D181: ='FR-16(7)(v)-1 Functional'!D181 -> K405 | F181: ='FR-16(7)(v)-2 PROD Classified'!H181 -> 0 | G181: 0 | H181: 0 | I181: 0 | J181: 0 | K181: 0 | L181: 0 | M181: 0 | N181: 0 | O181: 0 | P181: 0 | Q181: 0 | R181: 0 | S181: 0
A182: 48 | C182: ='FR-16(7)(v)-1 Functional'!C182 -> CUSTOMER ACCOUNTING | D182: ='FR-16(7)(v)-1 Functional'!D182 -> A308 | F182: ='FR-16(7)(v)-2 PROD Classified'!H182 -> 0 | G182: 0 | H182: 0 | I182: 0 | J182: 0 | K182: 0 | L182: 0 | M182: 0 | N182: 0 | O182: 0 | P182: 0 | Q182: 0 | R182: 0 | S182: 0
A183: 49 | C183: ='FR-16(7)(v)-1 Functional'!C183 -> CUSTOMER SERVICE & INFORMATION | D183: ='FR-16(7)(v)-1 Functional'!D183 -> A310 | F183: ='FR-16(7)(v)-2 PROD Classified'!H183 -> 0 | G183: 0 | H183: 0 | I183: 0 | J183: 0 | K183: 0 | L183: 0 | M183: 0 | N183: 0 | O183: 0 | P183: 0 | Q183: 0 | R183: 0 | S183: 0
A184: 50 | C184: ='FR-16(7)(v)-1 Functional'!C184 -> SALES | D184: ='FR-16(7)(v)-1 Functional'!D184 -> A312 | F184: ='FR-16(7)(v)-2 PROD Classified'!H184 -> 0 | G184: 0 | H184: 0 | I184: 0 | J184: 0 | K184: 0 | L184: 0 | M184: 0 | N184: 0 | O184: 0 | P184: 0 | Q184: 0 | R184: 0 | S184: 0
A185: 51 | C185: ='FR-16(7)(v)-1 Functional'!C185 -> ADJUSTMENT | D185: ='FR-16(7)(v)-1 Functional'!D185 -> A315 | F185: ='FR-16(7)(v)-2 PROD Classified'!H185 -> -703355 | G185: -253595 | H185: -196707 | I185: -1090 | J185: -3327 | K185: -49 | L185: -118522 | M185: -86499 | N185: -2729 | O185: -37496 | P185: -3313 | Q185: -28 | R185: -703355 | S185: 0
A186: 52 | C186: GENERAL & INTANG PLANT | F186: =SUM(F176:F185) -> 3599290 | G186: =SUM(G176:G185) -> 1293208 | H186: =SUM(H176:H185) -> 1003215 | I186: 5536 | J186: 16981 | K186: 252 | L186: =SUM(L176:L185) -> 607506 | M186: =SUM(M176:M185) -> 441048 | N186: 13922 | O186: 200569 | P186: 16909 | Q186: 144 | R186: =SUM(R176:R185) -> 3599290 | S186: =SUM(S176:S185) -> 0
A187: 53
A188: 54 | B188: COMMON & OTHER PLANT
A189: 55 | C189: ='FR-16(7)(v)-1 Functional'!C189 -> PRODUCTION - DEMAND | D189: ='FR-16(7)(v)-1 Functional'!D189 -> K201 | F189: ='FR-16(7)(v)-2 PROD Classified'!H189 -> 0 | G189: =F189-SUM(H189:Q189) -> 0 | H189: =ROUND(F189*VLOOKUP(D189,ALLOCTABLE_Prod_Energy,$H$10,FALSE),0) -> 0 | I189: =ROUND(F189*VLOOKUP(D189,ALLOCTABLE_Prod_Energy,$I$10,FALSE),0) -> 0 | J189: =ROUND(F189*VLOOKUP(D189,ALLOCTABLE_Prod_Energy,$J$10,FALSE),0) -> 0 | K189: =ROUND(F189*VLOOKUP(D189,ALLOCTABLE_Prod_Energy,$K$10,FALSE),0) -> 0 | L189: =ROUND(F189*VLOOKUP(D189,ALLOCTABLE_Prod_Energy,$L$10,FALSE),0) -> 0 | M189: =ROUND(F189*VLOOKUP(D189,ALLOCTABLE_Prod_Energy,$M$10,FALSE),0) -> 0 | N189: =ROUND(F189*VLOOKUP(D189,ALLOCTABLE_Prod_Energy,$N$10,FALSE),0) -> 0 | O189: =ROUND(F189*VLOOKUP(D189,ALLOCTABLE_Prod_Energy,$O$10,FALSE),0) -> 0 | P189: =ROUND(F189*VLOOKUP(D189,ALLOCTABLE_Prod_Energy,$P$10,FALSE),0) -> 0 | Q189: =ROUND(F189*VLOOKUP(D189,ALLOCTABLE_Prod_Energy,$Q$10,FALSE),0) -> 0 | R189: =SUM(G189:Q189) -> 0 | S189: =F189-R189 -> 0
A190: 56 | C190: ='FR-16(7)(v)-1 Functional'!C190 -> PRODUCTION - ENERGY | D190: ='FR-16(7)(v)-1 Functional'!D190 -> K301 | F190: ='FR-16(7)(v)-2 PROD Classified'!H190 -> 8319397 | G190: 2990824 | H190: 2320113 | I190: 12812 | J190: 39268 | K190: 582 | L190: 1403815 | M190: 1020041 | N190: 32196 | O190: 460312 | P190: 39101 | Q190: 333 | R190: 8319397 | S190: 0
A191: 57 | C191: ='FR-16(7)(v)-1 Functional'!C191 -> TRANSMISSION | D191: ='FR-16(7)(v)-1 Functional'!D191 -> K202 | F191: ='FR-16(7)(v)-2 PROD Classified'!H191 -> 0 | G191: 0 | H191: 0 | I191: 0 | J191: 0 | K191: 0 | L191: 0 | M191: 0 | N191: 0 | O191: 0 | P191: 0 | Q191: 0 | R191: 0 | S191: 0
A192: 58 | C192: ='FR-16(7)(v)-1 Functional'!C192 -> DISTRIBUTION - DEMAND | D192: ='FR-16(7)(v)-1 Functional'!D192 -> K201 | F192: ='FR-16(7)(v)-2 PROD Classified'!H192 -> 0 | G192: 0 | H192: 0 | I192: 0 | J192: 0 | K192: 0 | L192: 0 | M192: 0 | N192: 0 | O192: 0 | P192: 0 | Q192: 0 | R192: 0 | S192: 0
A193: 59 | C193: ='FR-16(7)(v)-1 Functional'!C193 -> DISTRIBUTION - CUSTOMER | D193: ='FR-16(7)(v)-1 Functional'!D193 -> K405 | F193: ='FR-16(7)(v)-2 PROD Classified'!H193 -> 0 | G193: 0 | H193: 0 | I193: 0 | J193: 0 | K193: 0 | L193: 0 | M193: 0 | N193: 0 | O193: 0 | P193: 0 | Q193: 0 | R193: 0 | S193: 0
A194: 60 | C194: ='FR-16(7)(v)-1 Functional'!C194 -> CUSTOMER ACCOUNTING | D194: ='FR-16(7)(v)-1 Functional'!D194 -> A308 | F194: ='FR-16(7)(v)-2 PROD Classified'!H194 -> 0 | G194: 0 | H194: 0 | I194: 0 | J194: 0 | K194: 0 | L194: 0 | M194: 0 | N194: 0 | O194: 0 | P194: 0 | Q194: 0 | R194: 0 | S194: 0
A195: 61 | C195: ='FR-16(7)(v)-1 Functional'!C195 -> CUSTOMER SERVICE & INFORMATION | D195: ='FR-16(7)(v)-1 Functional'!D195 -> A310 | F195: ='FR-16(7)(v)-2 PROD Classified'!H195 -> 0 | G195: 0 | H195: 0 | I195: 0 | J195: 0 | K195: 0 | L195: 0 | M195: 0 | N195: 0 | O195: 0 | P195: 0 | Q195: 0 | R195: 0 | S195: 0
A196: 62 | C196: ='FR-16(7)(v)-1 Functional'!C196 -> SALES | D196: ='FR-16(7)(v)-1 Functional'!D196 -> A312 | F196: ='FR-16(7)(v)-2 PROD Classified'!H196 -> 0 | G196: 0 | H196: 0 | I196: 0 | J196: 0 | K196: 0 | L196: 0 | M196: 0 | N196: 0 | O196: 0 | P196: 0 | Q196: 0 | R196: 0 | S196: 0
A197: 63 | C197: ='FR-16(7)(v)-1 Functional'!C197 -> ADJUSTMENT | D197: ='FR-16(7)(v)-1 Functional'!D197 -> A315 | F197: ='FR-16(7)(v)-2 PROD Classified'!H197 -> -58973 | G197: -21263 | H197: -16493 | I197: -91 | J197: -279 | K197: -4 | L197: -9938 | M197: -7252 | N197: -229 | O197: -3144 | P197: -278 | Q197: -2 | R197: -58973 | S197: 0
A198: 64 | C198: ='FR-16(7)(v)-1 Functional'!C198 -> COMMON & OTHER PLANT IN SERVICE | F198: =SUM(F189:F197) -> 8260424 | G198: =SUM(G189:G197) -> 2969561 | H198: 2303620 | I198: 12721 | J198: 38989 | K198: 578 | L198: =SUM(L189:L197) -> 1393877 | M198: =SUM(M189:M197) -> 1012789 | N198: 31967 | O198: 457168 | P198: 38823 | Q198: 331 | R198: =SUM(R188:R197) -> 8260424 | S198: =SUM(S188:S197) -> 0
A199: 65
A200: 66 | B200: TOTAL DEPRECIATION RESERVE | F200: =F198+F186+F171+F145+F139 -> 11859714 | G200: =G198+G186+G171+G145+G139 -> 4262769 | H200: =H198+H186+H171+H145+H139 -> 3306835 | I200: 18257 | J200: 55970 | K200: 830 | L200: 2001383 | M200: 1453837 | N200: 45889 | O200: 657737 | P200: 55732 | Q200: 475 | R200: =R198+R186+R171+R145+R139 -> 11859714 | S200: =S198+S186+S171+S145+S139 -> 0
A202: =co_name -> DUKE ENERGY KENTUCKY, INC. | R202: =R1 -> FR-16(7)(v)-4
A203: =$A$2 -> PRODUCTION ENERGY ALLOCATED - ELECTRIC COST OF SERVICE | R203: =R2 -> WITNESS RESPONSIBLE:
A204: =case_name -> CASE NO: 2017-00321 | R204: =Witness -> JAMES E. ZIOLKOWSKI
A205: =data_filing -> DATA: 12 MONTHS ACTUAL & 0 MONTHS ESTIMATED | R205: ="PAGE "&Pages-14&" OF "&Pages -> PAGE 4 OF 18
A206: =type -> TYPE OF FILING: "X" ORIGINAL UPDATED REVISED
... 743 more rows

Sheet FR-16(7)(v)-5 PROD Cust
A1: =co_name -> DUKE ENERGY KENTUCKY, INC. | R1: FR-16(7)(v)-5
A2: =F8&" "&F9&" ALLOCATED - ELECTRIC COST OF SERVICE" -> PRODUCTION CUSTOMER ALLOCATED - ELECTRIC COST OF SERVICE | R2: WITNESS RESPONSIBLE:
A3: =case_name -> CASE NO: 2017-00321 | R3: =Witness -> JAMES E. ZIOLKOWSKI
A4: =data_filing -> DATA: 12 MONTHS ACTUAL & 0 MONTHS ESTIMATED | R4: ="PAGE "&Pages-17&" OF "&Pages -> PAGE 1 OF 18
A5: =type -> TYPE OF FILING: "X" ORIGINAL UPDATED REVISED
F7: ='FR-16(7)(v)-3 PROD Demand'!F7 -> TOTAL | H7: ='FR-16(7)(v)-3 PROD Demand'!H7 -> DS | I7: ='FR-16(7)(v)-3 PROD Demand'!I7 -> GSFL | J7: ='FR-16(7)(v)-3 PROD Demand'!J7 -> EH | K7: ='FR-16(7)(v)-3 PROD Demand'!K7 -> SP | L7: ='FR-16(7)(v)-3 PROD Demand'!L7 -> DT SEC | M7: ='FR-16(7)(v)-3 PROD Demand'!M7 -> DT PRI | N7: ='FR-16(7)(v)-3 PROD Demand'!N7 -> DP | O7: ='FR-16(7)(v)-3 PROD Demand'!O7 -> TT | Q7: ='FR-16(7)(v)-3 PROD Demand'!Q7 -> OTHER
A8: LINE | F8: ='FR-16(7)(v)-3 PROD Demand'!F8 -> PRODUCTION | G8: ='FR-16(7)(v)-3 PROD Demand'!G8 -> RS | H8: ='FR-16(7)(v)-3 PROD Demand'!H8 -> SECONDARY | I8: ='FR-16(7)(v)-3 PROD Demand'!I8 -> SECONDARY | J8: ='FR-16(7)(v)-3 PROD Demand'!J8 -> SECONDARY | K8: ='FR-16(7)(v)-3 PROD Demand'!K8 -> SECONDARY | L8: ='FR-16(7)(v)-3 PROD Demand'!L8 -> SECONDARY | M8: ='FR-16(7)(v)-3 PROD Demand'!M8 -> PRIMARY | N8: ='FR-16(7)(v)-3 PROD Demand'!N8 -> PRIMARY | O8: ='FR-16(7)(v)-3 PROD Demand'!O8 -> TRANSMISSION | P8: ='FR-16(7)(v)-3 PROD Demand'!P8 -> LT | Q8: ='FR-16(7)(v)-3 PROD Demand'!Q8 -> WATER | R8: ='FR-16(7)(v)-3 PROD Demand'!R8 -> TOTAL | S8: ='FR-16(7)(v)-3 PROD Demand'!S8 -> ALL
A9: NO. | B9: SUMMARY OF RESULTS | D9: ALLO | F9: CUSTOMER | G9: ='FR-16(7)(v)-3 PROD Demand'!G9 -> RESIDENTIAL | H9: ='FR-16(7)(v)-3 PROD Demand'!H9 -> DISTRIBUTION | I9: ='FR-16(7)(v)-3 PROD Demand'!I9 -> DISTRIBUTION | J9: ='FR-16(7)(v)-3 PROD Demand'!J9 -> DISTRIBUTION | K9: ='FR-16(7)(v)-3 PROD Demand'!K9 -> DISTRIBUTION | L9: ='FR-16(7)(v)-3 PROD Demand'!L9 -> DISTRIBUTION | M9: ='FR-16(7)(v)-3 PROD Demand'!M9 -> DISTRIBUTION | N9: ='FR-16(7)(v)-3 PROD Demand'!N9 -> DISTRIBUTION | O9: ='FR-16(7)(v)-3 PROD Demand'!O9 -> TIME OF DAY | P9: ='FR-16(7)(v)-3 PROD Demand'!P9 -> LIGHTING | Q9: ='FR-16(7)(v)-3 PROD Demand'!Q9 -> PUMPING | R9: ='FR-16(7)(v)-3 PROD Demand'!R9 -> AT ISSUE | S9: ='FR-16(7)(v)-3 PROD Demand'!S9 -> OTHER
C10: Schedule 1 | G10: 3 | H10: 4 | I10: 5 | J10: 6 | K10: 7 | L10: 8 | M10: 9 | N10: 10 | O10: 11 | P10: 12 | Q10: 13
A11: 1 | B11: NET INCOME COMPUTATION
A12: 2 | C12: ='FR-16(7)(v)-1 Functional'!C12 -> GROSS ELECTRIC PLANT IN SERVICE | F12: =F123 -> 0 | G12: =G123 -> 0 | H12: =H123 -> 0 | I12: =I123 -> 0 | J12: =J123 -> 0 | K12: 0 | L12: 0 | M12: 0 | N12: 0 | O12: 0 | P12: 0 | Q12: =Q123 -> 0 | R12: =SUM(G12:Q12) -> 0 | S12: =F12-R12 -> 0
A13: 3 | C13: ='FR-16(7)(v)-1 Functional'!C13 -> TOTAL DEPRECIATION RESERVE | F13: =-F200 -> 0 | G13: =-G200 -> 0 | H13: =-H200 -> 0 | I13: =-I200 -> 0 | J13: =-J200 -> 0 | K13: 0 | L13: 0 | M13: 0 | N13: 0 | O13: 0 | P13: 0 | Q13: =-Q200 -> 0 | R13: =SUM(G13:Q13) -> 0 | S13: =F13-R13 -> 0
A14: 4 | C14: ='FR-16(7)(v)-1 Functional'!C14 -> TOTAL RATE BASE ADJUSTMENTS | F14: =F421 -> 0 | G14: =G421 -> 0 | H14: =H421 -> 0 | I14: =I421 -> 0 | J14: =J421 -> 0 | K14: 0 | L14: 0 | M14: 0 | N14: 0 | O14: 0 | P14: 0 | Q14: =Q421 -> 0 | R14: =SUM(G14:Q14) -> 0 | S14: =F14-R14 -> 0
A15: 5 | C15: ='FR-16(7)(v)-1 Functional'!C15 -> TOTAL RATE BASE | F15: =SUM(F12:F14) -> 0 | G15: =SUM(G12:G14) -> 0 | H15: =SUM(H12:H14) -> 0 | I15: =SUM(I12:I14) -> 0 | J15: =SUM(J12:J14) -> 0 | K15: 0 | L15: 0 | M15: 0 | N15: 0 | O15: 0 | P15: 0 | Q15: =SUM(Q12:Q14) -> 0 | R15: =SUM(R12:R14) -> 0 | S15: =F15-R15 -> 0
A16: 6
A17: 7 | B17: OPERATING EXPENSES
A18: 8 | C18: ='FR-16(7)(v)-1 Functional'!C18 -> TOTAL O&M EXPENSE | F18: =F549 -> 0 | G18: =G549 -> 0 | H18: =H549 -> 0 | I18: =I549 -> 0 | J18: =J549 -> 0 | K18: 0 | L18: 0 | M18: 0 | N18: 0 | O18: 0 | P18: 0 | Q18: =Q549 -> 0 | R18: =SUM(G18:Q18) -> 0 | S18: =F18-R18 -> 0
A19: 9 | C19: ='FR-16(7)(v)-1 Functional'!C19 -> TOTAL DEPRECIATION EXPENSE | F19: =F582 -> 0 | G19: =G582 -> 0 | H19: =H582 -> 0 | I19: =I582 -> 0 | J19: =J582 -> 0 | K19: 0 | L19: 0 | M19: 0 | N19: 0 | O19: 0 | P19: 0 | Q19: =Q582 -> 0 | R19: =SUM(G19:Q19) -> 0 | S19: 0
A20: 10 | C20: ='FR-16(7)(v)-1 Functional'!C20 -> TOTAL OTHER TAX & MISC EXPENSE | F20: =F612 -> 0 | G20: =G612 -> 0 | H20: =H612 -> 0 | I20: =I612 -> 0 | J20: =J612 -> 0 | K20: 0 | L20: 0 | M20: 0 | N20: 0 | O20: 0 | P20: 0 | Q20: =$Q$612 -> 0 | R20: =SUM(G20:Q20) -> 0 | S20: 0
A21: 11 | C21: ='FR-16(7)(v)-1 Functional'!C21 -> TOTAL OP EXP EXCLUDING INC & REV TAX | F21: =SUM(F17:F20) -> 0 | G21: 0 | H21: 0 | I21: 0 | J21: =SUM(J17:J20) -> 0 | K21: 0 | L21: 0 | M21: 0 | N21: 0 | O21: 0 | P21: 0 | Q21: 0 | R21: 0 | S21: 0
A22: 12 | C22: ='FR-16(7)(v)-1 Functional'!C22 -> NET FED INCOME TAX EXP ALLOWABLE | F22: =F676 -> 0 | G22: =G676 -> 0 | H22: =H676 -> 0 | I22: =I676 -> 0 | J22: =J676 -> 0 | K22: 0 | L22: 0 | M22: 0 | N22: 0 | O22: 0 | P22: 0 | Q22: =$Q$676 -> 0 | R22: =SUM(G22:Q22) -> 0 | S22: 0
A23: 13 | C23: NET STATE INCOME TAX EXP ALLOWABLE | F23: =F722 -> 0 | G23: =G722 -> 0 | H23: 0 | I23: 0 | J23: 0 | K23: 0 | L23: 0 | M23: 0 | N23: 0 | O23: 0 | P23: 0 | Q23: 0 | R23: =SUM(G23:Q23) -> 0 | S23: 0
A24: 14 | C24: AFUDC OFFSET | D24: ='FR-16(7)(v)-1 Functional'!D24 -> CW29 | F24: ='FR-16(7)(v)-2 PROD Classified'!I24 -> 0 | G24: =F24-SUM(H24:Q24) -> 0 | H24: =ROUND(F24*VLOOKUP(D73,ALLOCTABLE_Prod_Customer,$H$10,FALSE),0) -> 0 | I24: =ROUND(F24*VLOOKUP($D$24,ALLOCTABLE_Prod_Customer,$I$10,FALSE),0) -> 0 | J24: =ROUND(F24*VLOOKUP($D$24,ALLOCTABLE_Prod_Customer,$J$10,FALSE),0) -> 0 | K24: =ROUND(F24*VLOOKUP($D$24,ALLOCTABLE_Prod_Customer,$K$10,FALSE),0) -> 0 | L24: =ROUND(F24*VLOOKUP($D$24,ALLOCTABLE_Prod_Customer,$L$10,FALSE),0) -> 0 | M24: =ROUND(F24*VLOOKUP($D$24,ALLOCTABLE_Prod_Customer,$M$10,FALSE),0) -> 0 | N24: =ROUND(F24*VLOOKUP($D$24,ALLOCTABLE_Prod_Customer,$N$10,FALSE),0) -> 0 | O24: =ROUND(F24*VLOOKUP($D$24,ALLOCTABLE_Prod_Customer,$O$10,FALSE),0) -> 0 | P24: =ROUND(F24*VLOOKUP($D$24,ALLOCTABLE_Prod_Customer,$P$10,FALSE),0) -> 0 | Q24: =ROUND(F24*VLOOKUP(D24,ALLOCTABLE_Prod_Customer,$Q$10,FALSE),0) -> 0 | R24: =SUM(G24:Q24) -> 0 | S24: =F24-R24 -> 0
A25: 15 | C25: ='FR-16(7)(v)-1 Functional'!C25 -> REVENUE TAX | F25: =F767 -> 0 | G25: =G767 -> 0 | H25: =H767 -> 0 | I25: =I767 -> 0 | J25: =J767 -> 0 | K25: 0 | L25: 0 | M25: 0 | N25: 0 | O25: 0 | P25: 0 | Q25: =Q767 -> 0 | R25: =SUM(G25:Q25) -> 0 | S25: 0
A26: 16 | C26: ='FR-16(7)(v)-1 Functional'!C26 -> TOTAL OPERATING EXPENSE | F26: =SUM(F21:F25) -> 0 | G26: 0 | H26: 0 | I26: 0 | J26: =SUM(J21:J25) -> 0 | K26: 0 | L26: 0 | M26: 0 | N26: 0 | O26: 0 | P26: 0 | Q26: 0 | R26: 0 | S26: 0
A27: 17
A28: 18 | B28: RETURN ON CAPITALIZATION | F28: =F433 -> 0 | G28: 0 | H28: 0 | I28: 0 | J28: 0 | K28: 0 | L28: 0 | M28: 0 | N28: 0 | O28: 0 | P28: 0 | Q28: 0 | R28: =SUM(G28:Q28) -> 0 | S28: =F28-R28 -> 0
A29: 19 | B29: TOTAL OTHER OPERATING REVENUES | F29: =-F750 -> 0 | G29: =-G750 -> 0 | H29: =-H750 -> 0 | I29: =-I750 -> 0 | J29: =-J750 -> 0 | K29: 0 | L29: 0 | M29: 0 | N29: 0 | O29: 0 | P29: 0 | Q29: =-$Q$750 -> 0 | R29: =SUM(G29:Q29) -> 0 | S29: 0
A30: 20 | C30: ='FR-16(7)(v)-1 Functional'!C30 -> TOTAL ELECTRIC COST OF SERVICE | F30: =SUM(F26:F29) -> 0 | G30: 0 | H30: 0 | I30: 0 | J30: =SUM(J26:J29) -> 0 | K30: 0 | L30: 0 | M30: 0 | N30: 0 | O30: 0 | P30: 0 | Q30: 0 | R30: 0 | S30: 0
A31: 21 | B31: ADJUSTMENT FOR INTERCLASS SUBSIDIZATION | D31: =1-'WP FR-16(7)(v) Rate Incr'!I11 -> 0.9 | F31: ='WP FR-16(7)(v) Rate Incr'!Q27 -> 0 | G31: ='WP FR-16(7)(v) Rate Incr'!Q15 -> -5655438 | H31: ='WP FR-16(7)(v) Rate Incr'!Q16 -> 5301900 | I31: ='WP FR-16(7)(v) Rate Incr'!Q17 -> 99611 | J31: ='WP FR-16(7)(v) Rate Incr'!R17 -> 8283 | K31: ='WP FR-16(7)(v) Rate Incr'!S17 -> 43282 | L31: ='WP FR-16(7)(v) Rate Incr'!T17 -> 102679 | M31: ='WP FR-16(7)(v) Rate Incr'!U17 -> 0 | N31: ='WP FR-16(7)(v) Rate Incr'!V17 -> 48497 | O31: ='WP FR-16(7)(v) Rate Incr'!W17 -> 0 | P31: ='WP FR-16(7)(v) Rate Incr'!X17 -> 0 | Q31: ='WP FR-16(7)(v) Rate Incr'!Q25 -> -93412 | R31: =SUM(G31:Q31) -> -144598 | S31: 144598
A32: 22 | B32: ='FR-16(7)(v)-1 Functional'!$B$32 -> REQUESTED REVENUES (COST OF SERVICE ADJUSTED FOR SUBSIDIES) | F32: =F31+F30 -> 0 | G32: -5655438 | H32: 5301900 | I32: 99611 | J32: =J31+J30 -> 8283 | K32: 43282 | L32: 102679 | M32: 0 | N32: 48497 | O32: 0 | P32: 0 | Q32: -93412 | R32: -144598 | S32: 144598
A33: 23 | B33: PROPOSED REVENUES | F33: =F868 -> 0 | G33: 0 | H33: 0 | I33: 0 | J33: =J868 -> 0 | K33: 0 | L33: 0 | M33: 0 | N33: 0 | O33: 0 | P33: 0 | Q33: 0 | R33: 0 | S33: 0
A34: 24 | B34: DIFFERENCE (REQUESTED LESS PROPOSED) | F34: =F32-F33 -> 0 | G34: =G32-G33 -> -5655438 | H34: 5301900 | I34: 99611 | J34: =J32-J33 -> 8283 | K34: 43282 | L34: 102679 | M34: 0 | N34: 48497 | O34: 0 | P34: 0 | Q34: -93412 | R34: -144598 | S34: 144598
A35: 25
A36: 26 | B36: TOTAL RETURN EARNED | F36: =F777+F28 -> 0 | G36: =G777+G28 -> 0 | H36: =H777+H28 -> 0 | I36: =I777+I28 -> 0 | J36: =J777+J28 -> 0 | K36: 0 | L36: 0 | M36: 0 | N36: 0 | O36: 0 | P36: 0 | Q36: =Q777+Q28 -> 0 | R36: =R777+R28 -> 0 | S36: =F36-R36 -> 0
A37: 27 | B37: RATE OF RETURN EARNED | F37: =IF(F431=0,0,ROUND(F36/F431,5)) -> 0 | G37: 0 | H37: 0 | I37: 0 | J37: 0 | K37: 0 | L37: 0 | M37: 0 | N37: 0 | O37: 0 | P37: 0 | Q37: 0 | R37: 0 | S37: 0
A38: 28 | B38: TOTAL RATE OF RETURN ALLOWABLE | F38: =$F$811 -> 0.0709 | G38: =$F$811 -> 0.0709 | H38: 0.0709 | I38: 0.0709 | J38: 0.0709 | K38: 0.0709 | L38: 0.0709 | M38: 0.0709 | N38: 0.0709 | O38: 0.0709 | P38: 0.0709 | Q38: 0.0709 | R38: =F811 -> 0.0709 | S38: =F811 -> 0.0709
A39: 29 | B39: RETURN EARNED ON COMMON EQUITY | F39: =IF(Equity=0,0,(F37-$F$806-$F$807-$F$809)*TotalCap/Equity) -> -0.04192783999 | G39: -0.04192783999 | H39: -0.04192783999 | I39: -0.04192783999 | J39: -0.04192783999 | K39: -0.04192783999 | L39: -0.04192783999 | M39: -0.04192783999 | N39: -0.04192783999 | O39: -0.04192783999 | P39: -0.04192783999 | Q39: -0.04192783999 | R39: =IF(Equity=0,0,(R37-F806-F807-F809)*TotalCap/Equity) -> -0.04192783999 | S39: =IF(Equity=0,0,(S37-F806-F807-F809)*TotalCap/Equity) -> -0.04192783999
A40: 30 | B40: ALLOWED RETURN ON COMMON EQUITY | F40: =IF(Equity=0,0,(F38-$F$806-$F$807-$F$809)*TotalCap/Equity) -> 0.1030811286 | G40: 0.1030811286 | H40: 0.1030811286 | I40: 0.1030811286 | J40: 0.1030811286 | K40: 0.1030811286 | L40: 0.1030811286 | M40: 0.1030811286 | N40: 0.1030811286 | O40: 0.1030811286 | P40: 0.1030811286 | Q40: 0.1030811286 | R40: =IF(Equity=0,0,(R38-F806-F807-F809)*TotalCap/Equity) -> 0.1030811286 | S40: =IF(Equity=0,0,(S38-F806-F807-F809)*TotalCap/Equity) -> 0.1030811286
A41: 31
A42: 32 | B42: PRESENT REVENUES | F42: =F867 -> -1 | G42: -1 | H42: 0 | I42: 0 | J42: =J867 -> 0 | K42: 0 | L42: 0 | M42: 0 | N42: 0 | O42: 0 | P42: 0 | Q42: 0 | R42: -1 | S42: =F42-R42 -> 0
A43: 33 | B43: REVENUE INCREASE JUSTIFIED | F43: =F30-F42 -> 1 | G43: 1 | H43: 0 | I43: 0 | J43: =J30-J42 -> 0 | K43: 0 | L43: 0 | M43: 0 | N43: 0 | O43: 0 | P43: 0 | Q43: 0 | R43: 1 | S43: 0
A44: 34 | C44: PER UNIT PRES REV | F44: =IF(F42=0,0,ROUND(F43/F42,5)) -> -1 | G44: -1 | H44: 0 | I44: 0 | J44: =IF(J42=0,0,ROUND(J43/J42,5)) -> 0 | K44: 0 | L44: 0 | M44: 0 | N44: 0 | O44: 0 | P44: 0 | Q44: 0 | R44: -1 | S44: 0
A45: 35 | B45: REVENUE INCREASE REQUESTED | F45: =F33-F42 -> 1 | G45: 1 | H45: 0 | I45: 0 | J45: =J33-J42 -> 0 | K45: 0 | L45: 0 | M45: 0 | N45: 0 | O45: 0 | P45: 0 | Q45: 0 | R45: 1 | S45: 0
A46: 36 | C46: PER UNIT PRES REV | F46: =IF(F42=0,0,ROUND(F45/F42,5)) -> -1 | G46: -1 | H46: 0 | I46: 0 | J46: =IF(J42=0,0,ROUND(J45/J42,5)) -> 0 | K46: 0 | L46: 0 | M46: 0 | N46: 0 | O46: 0 | P46: 0 | Q46: 0 | R46: -1 | S46: 0
A48: =co_name -> DUKE ENERGY KENTUCKY, INC. | R48: =R1 -> FR-16(7)(v)-5
A49: =$A$2 -> PRODUCTION CUSTOMER ALLOCATED - ELECTRIC COST OF SERVICE | R49: =R2 -> WITNESS RESPONSIBLE:
A50: =case_name -> CASE NO: 2017-00321 | R50: =Witness -> JAMES E. ZIOLKOWSKI
A51: =data_filing -> DATA: 12 MONTHS ACTUAL & 0 MONTHS ESTIMATED | R51: ="PAGE "&Pages-16&" OF "&Pages -> PAGE 2 OF 18
A52: =type -> TYPE OF FILING: "X" ORIGINAL UPDATED REVISED
F54: =F$7 -> TOTAL | H54: =H$7 -> DS | I54: =I$7 -> GSFL | J54: =J$7 -> EH | K54: =K$7 -> SP | L54: DT SEC | M54: DT PRI | N54: DP | O54: TT | Q54: OTHER
A55: LINE | F55: =F$8 -> PRODUCTION | G55: =G$8 -> RS | H55: =H$8 -> SECONDARY | I55: =I$8 -> SECONDARY | J55: =J$8 -> SECONDARY | K55: =K$8 -> SECONDARY | L55: SECONDARY | M55: PRIMARY | N55: PRIMARY | O55: TRANSMISSION | P55: LT | Q55: WATER | R55: =R8 -> TOTAL | S55: ALL
A56: NO. | B56: GROSS ELECTRIC PLANT IN SERVICE | D56: ALLO | F56: =F$9 -> CUSTOMER | G56: =G$9 -> RESIDENTIAL | H56: =H$9 -> DISTRIBUTION | I56: =I$9 -> DISTRIBUTION | J56: =J$9 -> DISTRIBUTION | K56: =K$9 -> DISTRIBUTION | L56: DISTRIBUTION | M56: DISTRIBUTION | N56: DISTRIBUTION | O56: TIME OF DAY | P56: LIGHTING | Q56: PUMPING | R56: =R9 -> AT ISSUE | S56: OTHER
C57: Schedule 2 | G57: =G$10 -> 3 | H57: =H$10 -> 4 | I57: =I$10 -> 5 | J57: =J$10 -> 6 | K57: =K$10 -> 7 | L57: 8 | M57: 9 | N57: 10 | O57: 11 | P57: 12 | Q57: 13
A58: 1 | B58: PRODUCTION PLANT
A59: 2 | C59: PRODUCTION STEAM | D59: ='FR-16(7)(v)-1 Functional'!D59 -> K201 | F59: ='FR-16(7)(v)-2 PROD Classified'!I59 -> 0 | G59: =F59-SUM(H59:Q59) -> 0 | H59: =ROUND(F59*VLOOKUP(D59,ALLOCTABLE_Prod_Customer,$H$10,FALSE),0) -> 0 | I59: =ROUND(F59*VLOOKUP($D$59,ALLOCTABLE_Prod_Customer,$I$10,FALSE),0) -> 0 | J59: =ROUND(F59*VLOOKUP($D$59,ALLOCTABLE_Prod_Customer,$J$10,FALSE),0) -> 0 | K59: =ROUND(F59*VLOOKUP($D$59,ALLOCTABLE_Prod_Customer,$K$10,FALSE),0) -> 0 | L59: =ROUND(F59*VLOOKUP($D$59,ALLOCTABLE_Prod_Customer,$L$10,FALSE),0) -> 0 | M59: =ROUND(F59*VLOOKUP($D$59,ALLOCTABLE_Prod_Customer,$M$10,FALSE),0) -> 0 | N59: =ROUND(F59*VLOOKUP($D$59,ALLOCTABLE_Prod_Customer,$N$10,FALSE),0) -> 0 | O59: =ROUND(F59*VLOOKUP($D$59,ALLOCTABLE_Prod_Customer,$O$10,FALSE),0) -> 0 | P59: =ROUND(F59*VLOOKUP($D$59,ALLOCTABLE_Prod_Customer,$P$10,FALSE),0) -> 0 | Q59: =ROUND(F59*VLOOKUP(D59,ALLOCTABLE_Prod_Customer,$Q$10,FALSE),0) -> 0 | R59: =SUM(G59:Q59) -> 0 | S59: =F59-R59 -> 0
A60: 3 | C60: PRODUCTION OTHER | D60: ='FR-16(7)(v)-1 Functional'!D60 -> K201 | F60: ='FR-16(7)(v)-2 PROD Classified'!I60 -> 0 | G60: =F60-SUM(H60:Q60) -> 0 | H60: =ROUND(F60*VLOOKUP(D60,ALLOCTABLE_Prod_Customer,$H$10,FALSE),0) -> 0 | I60: =ROUND(F60*VLOOKUP($D$60,ALLOCTABLE_Prod_Customer,$I$10,FALSE),0) -> 0 | J60: =ROUND(F60*VLOOKUP($D$60,ALLOCTABLE_Prod_Customer,$J$10,FALSE),0) -> 0 | K60: =ROUND(F60*VLOOKUP($D$60,ALLOCTABLE_Prod_Customer,$K$10,FALSE),0) -> 0 | L60: =ROUND(F60*VLOOKUP($D$60,ALLOCTABLE_Prod_Customer,$L$10,FALSE),0) -> 0 | M60: =ROUND(F60*VLOOKUP($D$60,ALLOCTABLE_Prod_Customer,$M$10,FALSE),0) -> 0 | N60: =ROUND(F60*VLOOKUP($D$60,ALLOCTABLE_Prod_Customer,$N$10,FALSE),0) -> 0 | O60: =ROUND(F60*VLOOKUP($D$60,ALLOCTABLE_Prod_Customer,$O$10,FALSE),0) -> 0 | P60: =ROUND(F60*VLOOKUP($D$60,ALLOCTABLE_Prod_Customer,$P$10,FALSE),0) -> 0 | Q60: =ROUND(F60*VLOOKUP(D60,ALLOCTABLE_Prod_Customer,$Q$10,FALSE),0) -> 0 | R60: =SUM(G60:Q60) -> 0 | S60: =F60-R60 -> 0
A61: 4 | C61: ='FR-16(7)(v)-1 Functional'!C61 -> ADJUSTMENT | D61: ='FR-16(7)(v)-1 Functional'!D61 -> K201 | F61: ='FR-16(7)(v)-2 PROD Classified'!I61 -> 0 | G61: =F61-SUM(H61:Q61) -> 0 | H61: =ROUND(F61*VLOOKUP(D61,ALLOCTABLE_Prod_Customer,$H$10,FALSE),0) -> 0 | I61: =ROUND(F61*VLOOKUP($D$61,ALLOCTABLE_Prod_Customer,$I$10,FALSE),0) -> 0 | J61: =ROUND(F61*VLOOKUP($D$61,ALLOCTABLE_Prod_Customer,$J$10,FALSE),0) -> 0 | K61: =ROUND(F61*VLOOKUP($D$61,ALLOCTABLE_Prod_Customer,$K$10,FALSE),0) -> 0 | L61: =ROUND(F61*VLOOKUP($D$61,ALLOCTABLE_Prod_Customer,$L$10,FALSE),0) -> 0 | M61: =ROUND(F61*VLOOKUP($D$61,ALLOCTABLE_Prod_Customer,$M$10,FALSE),0) -> 0 | N61: =ROUND(F61*VLOOKUP($D$61,ALLOCTABLE_Prod_Customer,$N$10,FALSE),0) -> 0 | O61: =ROUND(F61*VLOOKUP($D$61,ALLOCTABLE_Prod_Customer,$O$10,FALSE),0) -> 0 | P61: =ROUND(F61*VLOOKUP($D$61,ALLOCTABLE_Prod_Customer,$P$10,FALSE),0) -> 0 | Q61: =ROUND(F61*VLOOKUP(D61,ALLOCTABLE_Prod_Customer,$Q$10,FALSE),0) -> 0 | R61: =SUM(G61:Q61) -> 0 | S61: =F61-R61 -> 0
A62: 5 | C62: ='FR-16(7)(v)-1 Functional'!C62 -> PRODUCTION PLANT IN SERVICE | F62: =SUM(F59:F61) -> 0 | G62: =SUM(G59:G61) -> 0 | H62: =SUM(H59:H61) -> 0 | I62: =SUM(I59:I61) -> 0 | J62: =SUM(J59:J61) -> 0 | K62: 0 | L62: 0 | M62: 0 | N62: 0 | O62: 0 | P62: 0 | Q62: =SUM($Q$59:$Q$61) -> 0 | R62: =SUM(R59:R61) -> 0 | S62: =SUM(S59:S61) -> 0
A63: 6
A64: 7 | B64: TRANSMISSION PLANT
A65: 8 | C65: MAIN STEP-UP TRANSFORMERS | D65: ='FR-16(7)(v)-1 Functional'!D65 -> K202 | F65: ='FR-16(7)(v)-2 PROD Classified'!I65 -> 0 | G65: =F65-SUM(H65:Q65) -> 0 | H65: =ROUND(F65*VLOOKUP(D65,ALLOCTABLE_Prod_Customer,$H$10,FALSE),0) -> 0 | I65: =ROUND(F65*VLOOKUP($D$65,ALLOCTABLE_Prod_Customer,$I$10,FALSE),0) -> 0 | J65: =ROUND(F65*VLOOKUP($D$65,ALLOCTABLE_Prod_Customer,$J$10,FALSE),0) -> 0 | K65: =ROUND(F65*VLOOKUP($D$65,ALLOCTABLE_Prod_Customer,$K$10,FALSE),0) -> 0 | L65: =ROUND(F65*VLOOKUP($D$65,ALLOCTABLE_Prod_Customer,$L$10,FALSE),0) -> 0 | M65: =ROUND(F65*VLOOKUP($D$65,ALLOCTABLE_Prod_Customer,$M$10,FALSE),0) -> 0 | N65: =ROUND(F65*VLOOKUP($D$65,ALLOCTABLE_Prod_Customer,$N$10,FALSE),0) -> 0 | O65: =ROUND(F65*VLOOKUP($D$65,ALLOCTABLE_Prod_Customer,$O$10,FALSE),0) -> 0 | P65: =ROUND(F65*VLOOKUP($D$65,ALLOCTABLE_Prod_Customer,$P$10,FALSE),0) -> 0 | Q65: =ROUND(F65*VLOOKUP(D65,ALLOCTABLE_Prod_Customer,$Q$10,FALSE),0) -> 0 | R65: =SUM(G65:Q65) -> 0 | S65: =F65-R65 -> 0
A66: 9 | C66: OTHER TRANSMISSION | D66: ='FR-16(7)(v)-1 Functional'!D66 -> K202 | F66: ='FR-16(7)(v)-2 PROD Classified'!I66 -> 0 | G66: =F66-SUM(H66:Q66) -> 0 | H66: =ROUND(F66*VLOOKUP(D66,ALLOCTABLE_Prod_Customer,$H$10,FALSE),0) -> 0 | I66: =ROUND(F66*VLOOKUP($D$66,ALLOCTABLE_Prod_Customer,$I$10,FALSE),0) -> 0 | J66: =ROUND(F66*VLOOKUP($D$66,ALLOCTABLE_Prod_Customer,$J$10,FALSE),0) -> 0 | K66: =ROUND(F66*VLOOKUP($D$66,ALLOCTABLE_Prod_Customer,$K$10,FALSE),0) -> 0 | L66: =ROUND(F66*VLOOKUP($D$66,ALLOCTABLE_Prod_Customer,$L$10,FALSE),0) -> 0 | M66: =ROUND(F66*VLOOKUP($D$66,ALLOCTABLE_Prod_Customer,$M$10,FALSE),0) -> 0 | N66: =ROUND(F66*VLOOKUP($D$66,ALLOCTABLE_Prod_Customer,$N$10,FALSE),0) -> 0 | O66: =ROUND(F66*VLOOKUP($D$66,ALLOCTABLE_Prod_Customer,$O$10,FALSE),0) -> 0 | P66: =ROUND(F66*VLOOKUP($D$66,ALLOCTABLE_Prod_Customer,$P$10,FALSE),0) -> 0 | Q66: =ROUND(F66*VLOOKUP(D66,ALLOCTABLE_Prod_Customer,$Q$10,FALSE),0) -> 0 | R66: =SUM(G66:Q66) -> 0 | S66: =F66-R66 -> 0
A67: 10 | C67: ADJUSTMENT | D67: ='FR-16(7)(v)-1 Functional'!D67 -> K202 | F67: ='FR-16(7)(v)-2 PROD Classified'!I67 -> 0 | G67: =F67-SUM(H67:Q67) -> 0 | H67: =ROUND(F67*VLOOKUP(D67,ALLOCTABLE_Prod_Customer,$H$10,FALSE),0) -> 0 | I67: =ROUND(F67*VLOOKUP($D$67,ALLOCTABLE_Prod_Customer,$I$10,FALSE),0) -> 0 | J67: =ROUND(F67*VLOOKUP($D$67,ALLOCTABLE_Prod_Customer,$J$10,FALSE),0) -> 0 | K67: =ROUND(F67*VLOOKUP($D$67,ALLOCTABLE_Prod_Customer,$K$10,FALSE),0) -> 0 | L67: =ROUND(F67*VLOOKUP($D$67,ALLOCTABLE_Prod_Customer,$L$10,FALSE),0) -> 0 | M67: =ROUND(F67*VLOOKUP($D$67,ALLOCTABLE_Prod_Customer,$M$10,FALSE),0) -> 0 | N67: =ROUND(F67*VLOOKUP($D$67,ALLOCTABLE_Prod_Customer,$N$10,FALSE),0) -> 0 | O67: =ROUND(F67*VLOOKUP($D$67,ALLOCTABLE_Prod_Customer,$O$10,FALSE),0) -> 0 | P67: =ROUND(F67*VLOOKUP($D$67,ALLOCTABLE_Prod_Customer,$P$10,FALSE),0) -> 0 | Q67: =ROUND(F67*VLOOKUP(D67,ALLOCTABLE_Prod_Customer,$Q$10,FALSE),0) -> 0 | R67: =SUM(G67:Q67) -> 0 | S67: =F67-R67 -> 0
A68: 11 | C68: ='FR-16(7)(v)-1 Functional'!C68 -> TRANSMISSION PLANT IN SERVICE | F68: =SUM(F65:F67) -> 0 | G68: 0 | H68: 0 | I68: 0 | J68: 0 | K68: 0 | L68: 0 | M68: 0 | N68: 0 | O68: 0 | P68: 0 | Q68: 0 | R68: 0 | S68: =SUM(S65) -> 0
A69: 12
A70: 13 | B70: TOTAL PROD & TRANS PLANT | F70: =F68+F62 -> 0 | G70: =G68+G62 -> 0 | H70: =H68+H62 -> 0 | I70: =I68+I62 -> 0 | J70: =J68+J62 -> 0 | K70: 0 | L70: 0 | M70: 0 | N70: 0 | O70: 0 | P70: 0 | Q70: =$Q$68+$Q$62 -> 0 | R70: =R68+R62 -> 0 | S70: =S68+S62 -> 0
A71: 14
A72: 15 | B72: DISTRIBUTION PLANT
A73: 16 | C73: ='FR-16(7)(v)-1 Functional'!C73 -> SUBSTATIONS | D73: ='FR-16(7)(v)-1 Functional'!D73 -> K215 | F73: ='FR-16(7)(v)-2 PROD Classified'!I73 -> 0 | G73: =F73-SUM(H73:Q73) -> 0 | H73: =ROUND(F73*VLOOKUP(D73,ALLOCTABLE_Prod_Customer,$H$10,FALSE),0) -> 0 | I73: =ROUND(F73*VLOOKUP($D$73,ALLOCTABLE_Prod_Customer,$I$10,FALSE),0) -> 0 | J73: =ROUND(F73*VLOOKUP($D$73,ALLOCTABLE_Prod_Customer,$J$10,FALSE),0) -> 0 | K73: =ROUND(F73*VLOOKUP($D$73,ALLOCTABLE_Prod_Customer,$K$10,FALSE),0) -> 0 | L73: =ROUND(F73*VLOOKUP($D$73,ALLOCTABLE_Prod_Customer,$L$10,FALSE),0) -> 0 | M73: =ROUND(F73*VLOOKUP($D$73,ALLOCTABLE_Prod_Customer,$M$10,FALSE),0) -> 0 | N73: =ROUND(F73*VLOOKUP($D$73,ALLOCTABLE_Prod_Customer,$N$10,FALSE),0) -> 0 | O73: =ROUND(F73*VLOOKUP($D$73,ALLOCTABLE_Prod_Customer,$O$10,FALSE),0) -> 0 | P73: =ROUND(F73*VLOOKUP($D$73,ALLOCTABLE_Prod_Customer,$P$10,FALSE),0) -> 0 | Q73: =ROUND(F73*VLOOKUP(D73,ALLOCTABLE_Prod_Customer,$Q$10,FALSE),0) -> 0 | R73: =SUM(G73:Q73) -> 0 | S73: =F73-R73 -> 0
A74: 17 | C74: ='FR-16(7)(v)-1 Functional'!C74 -> POLES, TOWERS & FIXTURES - PRIMARY - DEMAND | D74: ='FR-16(7)(v)-1 Functional'!D74 -> K205 | F74: ='FR-16(7)(v)-2 PROD Classified'!I74 -> 0 | G74: =F74-SUM(H74:Q74) -> 0 | H74: =ROUND(F74*VLOOKUP(D74,ALLOCTABLE_Prod_Customer,$H$10,FALSE),0) -> 0 | I74: =ROUND(F74*VLOOKUP(D74,ALLOCTABLE_Prod_Customer,$I$10,FALSE),0) -> 0 | J74: =ROUND(F74*VLOOKUP(D74,ALLOCTABLE_Prod_Customer,$J$10,FALSE),0) -> 0 | K74: =ROUND(F74*VLOOKUP(D74,ALLOCTABLE_Prod_Customer,$K$10,FALSE),0) -> 0 | L74: =ROUND(F74*VLOOKUP(D74,ALLOCTABLE_Prod_Customer,$L$10,FALSE),0) -> 0 | M74: =ROUND(F74*VLOOKUP(D74,ALLOCTABLE_Prod_Customer,$M$10,FALSE),0) -> 0 | N74: =ROUND(F74*VLOOKUP(D74,ALLOCTABLE_Prod_Customer,$N$10,FALSE),0) -> 0 | O74: =ROUND(F74*VLOOKUP(D74,ALLOCTABLE_Prod_Customer,$O$10,FALSE),0) -> 0 | P74: =ROUND(F74*VLOOKUP(D74,ALLOCTABLE_Prod_Customer,$P$10,FALSE),0) -> 0 | Q74: =ROUND(F74*VLOOKUP(D74,ALLOCTABLE_Prod_Customer,$Q$10,FALSE),0) -> 0 | R74: =SUM(G74:Q74) -> 0 | S74: =F74-R74 -> 0
A75: 18 | C75: ='FR-16(7)(v)-1 Functional'!C75 -> POLES, TOWERS & FIXTURES - PRIMARY - CUSTOMER | D75: ='FR-16(7)(v)-1 Functional'!D75 -> K405 | F75: ='FR-16(7)(v)-2 PROD Classified'!I75 -> 0 | G75: =F75-SUM(H75:Q75) -> 0 | H75: =ROUND(F75*VLOOKUP(D75,ALLOCTABLE_Prod_Customer,$H$10,FALSE),0) -> 0 | I75: 0 | J75: 0 | K75: 0 | L75: 0 | M75: 0 | N75: 0 | O75: 0 | P75: 0 | Q75: =ROUND(F75*VLOOKUP(D75,ALLOCTABLE_Prod_Customer,$Q$10,FALSE),0) -> 0 | R75: =SUM(G75:Q75) -> 0 | S75: =F75-R75 -> 0
A76: 19 | C76: ='FR-16(7)(v)-1 Functional'!C76 -> POLES, TOWERS & FIXTURES - SECONDARY - DEMAND | D76: ='FR-16(7)(v)-1 Functional'!D76 -> K206 | F76: ='FR-16(7)(v)-2 PROD Classified'!I76 -> 0 | G76: 0 | H76: 0 | I76: 0 | J76: 0 | K76: 0 | L76: 0 | M76: 0 | N76: 0 | O76: 0 | P76: 0 | Q76: 0 | R76: 0 | S76: 0
A77: 20 | C77: ='FR-16(7)(v)-1 Functional'!C77 -> POLES, TOWERS & FIXTURES - SECONDARY - CUSTOMER | D77: ='FR-16(7)(v)-1 Functional'!D77 -> K405 | F77: ='FR-16(7)(v)-2 PROD Classified'!I77 -> 0 | G77: 0 | H77: 0 | I77: 0 | J77: 0 | K77: 0 | L77: 0 | M77: 0 | N77: 0 | O77: 0 | P77: 0 | Q77: 0 | R77: 0 | S77: 0
A78: 21 | C78: ='FR-16(7)(v)-1 Functional'!C78 -> CONDUCTORS - OVERHEAD / PRIMARY - DEMAND | D78: ='FR-16(7)(v)-1 Functional'!D78 -> K205 | F78: ='FR-16(7)(v)-2 PROD Classified'!I78 -> 0 | G78: 0 | H78: 0 | I78: 0 | J78: 0 | K78: 0 | L78: 0 | M78: 0 | N78: 0 | O78: 0 | P78: 0 | Q78: 0 | R78: 0 | S78: 0
A79: 22 | C79: ='FR-16(7)(v)-1 Functional'!C79 -> CONDUCTORS - OVERHEAD / PRIMARY - CUSTOMER | D79: ='FR-16(7)(v)-1 Functional'!D79 -> K405 | F79: ='FR-16(7)(v)-2 PROD Classified'!I79 -> 0 | G79: 0 | H79: 0 | I79: 0 | J79: 0 | K79: 0 | L79: 0 | M79: 0 | N79: 0 | O79: 0 | P79: 0 | Q79: 0 | R79: 0 | S79: 0
A80: 23 | C80: ='FR-16(7)(v)-1 Functional'!C80 -> CONDUCTORS - OVERHEAD / SECONDARY - DEMAND | D80: ='FR-16(7)(v)-1 Functional'!D80 -> K206 | F80: ='FR-16(7)(v)-2 PROD Classified'!I80 -> 0 | G80: 0 | H80: 0 | I80: 0 | J80: 0 | K80: 0 | L80: 0 | M80: 0 | N80: 0 | O80: 0 | P80: 0 | Q80: 0 | R80: 0 | S80: 0
A81: 24 | C81: ='FR-16(7)(v)-1 Functional'!C81 -> CONDUCTORS - OVERHEAD / SECONDARY - CUSTOMER | D81: ='FR-16(7)(v)-1 Functional'!D81 -> K405 | F81: ='FR-16(7)(v)-2 PROD Classified'!I81 -> 0 | G81: 0 | H81: 0 | I81: 0 | J81: 0 | K81: 0 | L81: 0 | M81: 0 | N81: 0 | O81: 0 | P81: 0 | Q81: 0 | R81: 0 | S81: 0
A82: 25 | C82: ='FR-16(7)(v)-1 Functional'!C82 -> CONDUCTORS - UNDERGROUND / PRIMARY - DEMAND | D82: ='FR-16(7)(v)-1 Functional'!D82 -> K205 | F82: ='FR-16(7)(v)-2 PROD Classified'!I82 -> 0 | G82: 0 | H82: 0 | I82: 0 | J82: 0 | K82: 0 | L82: 0 | M82: 0 | N82: 0 | O82: 0 | P82: 0 | Q82: 0 | R82: 0 | S82: 0
A83: 26 | C83: ='FR-16(7)(v)-1 Functional'!C83 -> CONDUCTORS - UNDERGROUND / PRIMARY - CUSTOMER | D83: ='FR-16(7)(v)-1 Functional'!D83 -> K405 | F83: ='FR-16(7)(v)-2 PROD Classified'!I83 -> 0 | G83: 0 | H83: 0 | I83: 0 | J83: 0 | K83: 0 | L83: 0 | M83: 0 | N83: 0 | O83: 0 | P83: 0 | Q83: 0 | R83: 0 | S83: 0
A84: 27 | C84: ='FR-16(7)(v)-1 Functional'!C84 -> CONDUCTORS - UNDERGROUND / SECONDARY - DEMAND | D84: ='FR-16(7)(v)-1 Functional'!D84 -> K206 | F84: ='FR-16(7)(v)-2 PROD Classified'!I84 -> 0 | G84: 0 | H84: 0 | I84: 0 | J84: 0 | K84: 0 | L84: 0 | M84: 0 | N84: 0 | O84: 0 | P84: 0 | Q84: =ROUND(F84*VLOOKUP(D84,ALLOCTABLE_Prod_Customer,$Q$10,FALSE),0) -> 0 | R84: =SUM(G84:Q84) -> 0 | S84: 0
A85: 28 | C85: ='FR-16(7)(v)-1 Functional'!C85 -> CONDUCTORS - UNDERGROUND / SECONDARY - CUSTOMER | D85: ='FR-16(7)(v)-1 Functional'!D85 -> K405 | F85: ='FR-16(7)(v)-2 PROD Classified'!I85 -> 0 | G85: 0 | H85: 0 | I85: 0 | J85: 0 | K85: 0 | L85: 0 | M85: 0 | N85: 0 | O85: 0 | P85: 0 | Q85: 0 | R85: 0 | S85: 0
A86: 29 | C86: ='FR-16(7)(v)-1 Functional'!C86 -> TRANSFORMERS DEMAND RELATED | D86: ='FR-16(7)(v)-1 Functional'!D86 -> K215 | F86: ='FR-16(7)(v)-2 PROD Classified'!I86 -> 0 | G86: =F86-SUM(H86:Q86) -> 0 | H86: =ROUND(F86*VLOOKUP(D86,ALLOCTABLE_Prod_Customer,$H$10,FALSE),0) -> 0 | I86: =ROUND(F86*VLOOKUP($D$86,ALLOCTABLE_Prod_Customer,$I$10,FALSE),0) -> 0 | J86: =ROUND(F86*VLOOKUP($D$86,ALLOCTABLE_Prod_Customer,$J$10,FALSE),0) -> 0 | K86: =ROUND(F86*VLOOKUP($D$86,ALLOCTABLE_Prod_Customer,$K$10,FALSE),0) -> 0 | L86: =ROUND(F86*VLOOKUP($D$86,ALLOCTABLE_Prod_Customer,$L$10,FALSE),0) -> 0 | M86: =ROUND(F86*VLOOKUP($D$86,ALLOCTABLE_Prod_Customer,$M$10,FALSE),0) -> 0 | N86: =ROUND(F86*VLOOKUP($D$86,ALLOCTABLE_Prod_Customer,$N$10,FALSE),0) -> 0 | O86: =ROUND(F86*VLOOKUP($D$86,ALLOCTABLE_Prod_Customer,$O$10,FALSE),0) -> 0 | P86: 0 | Q86: 0 | R86: 0 | S86: =F86-R86 -> 0
A87: 30 | C87: ='FR-16(7)(v)-1 Functional'!C87 -> TRANSFORMERS CUSTOMER RELATED | D87: ='FR-16(7)(v)-1 Functional'!D87 -> K405 | F87: ='FR-16(7)(v)-2 PROD Classified'!I87 -> 0 | G87: 0 | H87: 0 | I87: =ROUND(F87*VLOOKUP($D$86,ALLOCTABLE_Prod_Customer,$I$10,FALSE),0) -> 0 | J87: =ROUND(F87*VLOOKUP($D$86,ALLOCTABLE_Prod_Customer,$J$10,FALSE),0) -> 0 | K87: =ROUND(F87*VLOOKUP($D$86,ALLOCTABLE_Prod_Customer,$K$10,FALSE),0) -> 0 | L87: =ROUND(F87*VLOOKUP($D$86,ALLOCTABLE_Prod_Customer,$L$10,FALSE),0) -> 0 | M87: =ROUND(F87*VLOOKUP($D$86,ALLOCTABLE_Prod_Customer,$M$10,FALSE),0) -> 0 | N87: =ROUND(F87*VLOOKUP($D$86,ALLOCTABLE_Prod_Customer,$N$10,FALSE),0) -> 0 | O87: =ROUND(F87*VLOOKUP($D$86,ALLOCTABLE_Prod_Customer,$O$10,FALSE),0) -> 0 | P87: 0 | Q87: 0 | R87: 0 | S87: 0
A88: 31 | C88: ='FR-16(7)(v)-1 Functional'!C88 -> SERVICES | D88: ='FR-16(7)(v)-1 Functional'!D88 -> K217 | F88: ='FR-16(7)(v)-2 PROD Classified'!I88 -> 0 | G88: 0 | H88: 0 | I88: =ROUND(F88*VLOOKUP($D$88,ALLOCTABLE_Prod_Customer,$I$10,FALSE),0) -> 0 | J88: =ROUND(F88*VLOOKUP($D$88,ALLOCTABLE_Prod_Customer,$J$10,FALSE),0) -> 0 | K88: =ROUND(F88*VLOOKUP($D$88,ALLOCTABLE_Prod_Customer,$K$10,FALSE),0) -> 0 | L88: =ROUND(F88*VLOOKUP($D$88,ALLOCTABLE_Prod_Customer,$L$10,FALSE),0) -> 0 | M88: =ROUND(F88*VLOOKUP($D$88,ALLOCTABLE_Prod_Customer,$M$10,FALSE),0) -> 0 | N88: =ROUND(F88*VLOOKUP($D$88,ALLOCTABLE_Prod_Customer,$N$10,FALSE),0) -> 0 | O88: =ROUND(F88*VLOOKUP($D$88,ALLOCTABLE_Prod_Customer,$O$10,FALSE),0) -> 0 | P88: 0 | Q88: 0 | R88: 0 | S88: 0
A89: 32 | C89: ='FR-16(7)(v)-1 Functional'!C89 -> METERS | D89: ='FR-16(7)(v)-1 Functional'!D89 -> K407 | F89: ='FR-16(7)(v)-2 PROD Classified'!I89 -> 0 | G89: 0 | H89: 0 | I89: =ROUND(F89*VLOOKUP($D$89,ALLOCTABLE_Prod_Customer,$I$10,FALSE),0) -> 0 | J89: =ROUND(F89*VLOOKUP($D$89,ALLOCTABLE_Prod_Customer,$J$10,FALSE),0) -> 0 | K89: =ROUND(F89*VLOOKUP($D$89,ALLOCTABLE_Prod_Customer,$K$10,FALSE),0) -> 0 | L89: =ROUND(F89*VLOOKUP($D$89,ALLOCTABLE_Prod_Customer,$L$10,FALSE),0) -> 0 | M89: =ROUND(F89*VLOOKUP($D$89,ALLOCTABLE_Prod_Customer,$M$10,FALSE),0) -> 0 | N89: =ROUND(F89*VLOOKUP($D$89,ALLOCTABLE_Prod_Customer,$N$10,FALSE),0) -> 0 | O89: =ROUND(F89*VLOOKUP($D$89,ALLOCTABLE_Prod_Customer,$O$10,FALSE),0) -> 0 | P89: 0 | Q89: 0 | R89: 0 | S89: 0
A90: 33 | C90: ='FR-16(7)(v)-1 Functional'!C90 -> STREET LIGHTS | D90: ='FR-16(7)(v)-1 Functional'!D90 -> K401 | F90: ='FR-16(7)(v)-2 PROD Classified'!I90 -> 0 | G90: 0 | H90: 0 | I90: =ROUND(F90*VLOOKUP($D$90,ALLOCTABLE_Prod_Customer,$I$10,FALSE),0) -> 0 | J90: =ROUND(F90*VLOOKUP($D$90,ALLOCTABLE_Prod_Customer,$J$10,FALSE),0) -> 0 | K90: =ROUND(F90*VLOOKUP($D$90,ALLOCTABLE_Prod_Customer,$K$10,FALSE),0) -> 0 | L90: =ROUND(F90*VLOOKUP($D$90,ALLOCTABLE_Prod_Customer,$L$10,FALSE),0) -> 0 | M90: =ROUND(F90*VLOOKUP($D$90,ALLOCTABLE_Prod_Customer,$M$10,FALSE),0) -> 0 | N90: =ROUND(F90*VLOOKUP($D$90,ALLOCTABLE_Prod_Customer,$N$10,FALSE),0) -> 0 | O90: =ROUND(F90*VLOOKUP($D$90,ALLOCTABLE_Prod_Customer,$O$10,FALSE),0) -> 0 | P90: 0 | Q90: 0 | R90: 0 | S90: 0
A91: 34 | C91: ='FR-16(7)(v)-1 Functional'!C91 -> ADJUSTMENT | D91: ='FR-16(7)(v)-1 Functional'!D91 -> K209 | F91: ='FR-16(7)(v)-2 PROD Classified'!I91 -> 0 | G91: 0 | H91: 0 | I91: =ROUND(F91*VLOOKUP($D$91,ALLOCTABLE_Prod_Customer,$I$10,FALSE),0) -> 0 | J91: =ROUND(F91*VLOOKUP($D$91,ALLOCTABLE_Prod_Customer,$J$10,FALSE),0) -> 0 | K91: =ROUND(F91*VLOOKUP($D$91,ALLOCTABLE_Prod_Customer,$K$10,FALSE),0) -> 0 | L91: =ROUND(F91*VLOOKUP($D$91,ALLOCTABLE_Prod_Customer,$L$10,FALSE),0) -> 0 | M91: =ROUND(F91*VLOOKUP($D$91,ALLOCTABLE_Prod_Customer,$M$10,FALSE),0) -> 0 | N91: =ROUND(F91*VLOOKUP($D$91,ALLOCTABLE_Prod_Customer,$N$10,FALSE),0) -> 0 | O91: =ROUND(F91*VLOOKUP($D$91,ALLOCTABLE_Prod_Customer,$O$10,FALSE),0) -> 0 | P91: 0 | Q91: 0 | R91: 0 | S91: 0
A92: 35 | C92: ='FR-16(7)(v)-1 Functional'!C92 -> CONSTRUCTION NOT CLASSIFIED | D92: ='FR-16(7)(v)-1 Functional'!D92 -> K209 | F92: ='FR-16(7)(v)-2 PROD Classified'!I92 -> 0 | G92: 0 | H92: 0 | I92: =ROUND(F92*VLOOKUP($D$92,ALLOCTABLE_Prod_Customer,$I$10,FALSE),0) -> 0 | J92: =ROUND(F92*VLOOKUP($D$92,ALLOCTABLE_Prod_Customer,$J$10,FALSE),0) -> 0 | K92: =ROUND(F92*VLOOKUP($D$92,ALLOCTABLE_Prod_Customer,$K$10,FALSE),0) -> 0 | L92: =ROUND(F92*VLOOKUP($D$92,ALLOCTABLE_Prod_Customer,$L$10,FALSE),0) -> 0 | M92: =ROUND(F92*VLOOKUP($D$92,ALLOCTABLE_Prod_Customer,$M$10,FALSE),0) -> 0 | N92: =ROUND(F92*VLOOKUP($D$92,ALLOCTABLE_Prod_Customer,$N$10,FALSE),0) -> 0 | O92: =ROUND(F92*VLOOKUP($D$92,ALLOCTABLE_Prod_Customer,$O$10,FALSE),0) -> 0 | P92: 0 | Q92: 0 | R92: 0 | S92: 0
A93: 36 | C93: ='FR-16(7)(v)-1 Functional'!C93 -> RWIP | D93: ='FR-16(7)(v)-1 Functional'!D93 -> K215 | F93: ='FR-16(7)(v)-2 PROD Classified'!I93 -> 0 | G93: =F93-SUM(H93:Q93) -> 0 | H93: =ROUND(F93*VLOOKUP(D93,ALLOCTABLE_Prod_Customer,$H$10,FALSE),0) -> 0 | I93: =ROUND(F93*VLOOKUP($D$92,ALLOCTABLE_Prod_Customer,$I$10,FALSE),0) -> 0 | J93: =ROUND(F93*VLOOKUP($D$92,ALLOCTABLE_Prod_Customer,$J$10,FALSE),0) -> 0 | K93: =ROUND(F93*VLOOKUP($D$92,ALLOCTABLE_Prod_Customer,$K$10,FALSE),0) -> 0
A94: 37 | C94: ='FR-16(7)(v)-1 Functional'!C94 -> DISTRIBUTION PLANT IN SERVICE | F94: =SUM(F73:F93) -> 0 | G94: =SUM(G73:G92) -> 0 | H94: =SUM(H73:H92) -> 0 | I94: =SUM(I73:I92) -> 0 | J94: =SUM(J73:J92) -> 0 | K94: 0 | L94: 0 | M94: 0 | N94: 0 | O94: 0 | P94: 0 | Q94: =SUM(Q73:Q92) -> 0 | R94: =SUM(R73:R92) -> 0 | S94: =SUM(S73:S92) -> 0
A95: 38
A96: 39 | B96: TOTAL TRANS & DIST PLANT | F96: =F94+F68 -> 0 | G96: =G94+G68 -> 0 | H96: =H94+H68 -> 0 | I96: =I94+I68 -> 0 | J96: =J94+J68 -> 0 | K96: 0 | L96: 0 | M96: 0 | N96: 0 | O96: 0 | P96: 0 | Q96: =Q94+$Q$68 -> 0 | R96: =R94+R68 -> 0 | S96: =S94+S68 -> 0
A97: 40 | B97: TOTAL GROSS PTD PLANT | F97: =F94+F70 -> 0 | G97: =G94+G70 -> 0 | H97: =H94+H70 -> 0 | I97: =I94+I70 -> 0 | J97: =J94+J70 -> 0 | K97: 0 | L97: 0 | M97: 0 | N97: 0 | O97: 0 | P97: 0 | Q97: =Q94+Q70 -> 0 | R97: =R94+R70 -> 0 | S97: =S94+S70 -> 0
A98: 41
A99: 42 | B99: GENERAL & INTANGIBLE PLANT
A100: 43 | C100: ='FR-16(7)(v)-1 Functional'!C100 -> PRODUCTION - DEMAND | D100: ='FR-16(7)(v)-1 Functional'!D100 -> K201 | F100: ='FR-16(7)(v)-2 PROD Classified'!I100 -> 0 | G100: =F100-SUM(H100:Q100) -> 0 | H100: =ROUND(F100*VLOOKUP(D100,ALLOCTABLE_Prod_Customer,$H$10,FALSE),0) -> 0 | I100: =ROUND(F100*VLOOKUP(D100,ALLOCTABLE_Prod_Customer,$I$10,FALSE),0) -> 0 | J100: =ROUND(F100*VLOOKUP(D100,ALLOCTABLE_Prod_Customer,$J$10,FALSE),0) -> 0 | K100: =ROUND(F100*VLOOKUP(D100,ALLOCTABLE_Prod_Customer,$K$10,FALSE),0) -> 0 | L100: =ROUND(F100*VLOOKUP(D100,ALLOCTABLE_Prod_Customer,$L$10,FALSE),0) -> 0 | M100: =ROUND(F100*VLOOKUP(D100,ALLOCTABLE_Prod_Customer,$M$10,FALSE),0) -> 0 | N100: =ROUND(F100*VLOOKUP(D100,ALLOCTABLE_Prod_Customer,$N$10,FALSE),0) -> 0 | O100: =ROUND(F100*VLOOKUP(D100,ALLOCTABLE_Prod_Customer,$O$10,FALSE),0) -> 0 | P100: =ROUND(F100*VLOOKUP(D100,ALLOCTABLE_Prod_Customer,$P$10,FALSE),0) -> 0 | Q100: =ROUND(F100*VLOOKUP(D100,ALLOCTABLE_Prod_Customer,$Q$10,FALSE),0) -> 0 | R100: =SUM(G100:Q100) -> 0 | S100: =F100-R100 -> 0
A101: 44 | C101: ='FR-16(7)(v)-1 Functional'!C101 -> PRODUCTION - ENERGY | D101: ='FR-16(7)(v)-1 Functional'!D101 -> K301 | F101: ='FR-16(7)(v)-2 PROD Classified'!I101 -> 0 | G101: 0 | H101: 0 | I101: 0 | J101: 0 | K101: 0 | L101: 0 | M101: 0 | N101: 0 | O101: 0 | P101: 0 | Q101: 0 | R101: 0 | S101: 0
A102: 45 | C102: ='FR-16(7)(v)-1 Functional'!C102 -> TRANSMISSION | D102: ='FR-16(7)(v)-1 Functional'!D102 -> K202 | F102: ='FR-16(7)(v)-2 PROD Classified'!I102 -> 0 | G102: 0 | H102: 0 | I102: 0 | J102: 0 | K102: 0 | L102: 0 | M102: 0 | N102: 0 | O102: 0 | P102: 0 | Q102: 0 | R102: 0 | S102: 0
A103: 46 | C103: ='FR-16(7)(v)-1 Functional'!C103 -> DISTRIBUTION - DEMAND | D103: ='FR-16(7)(v)-1 Functional'!D103 -> K201 | F103: ='FR-16(7)(v)-2 PROD Classified'!I103 -> 0 | G103: 0 | H103: 0 | I103: 0 | J103: 0 | K103: 0 | L103: 0 | M103: 0 | N103: 0 | O103: 0 | P103: 0 | Q103: 0 | R103: 0 | S103: 0
A104: 47 | C104: ='FR-16(7)(v)-1 Functional'!C104 -> DISTRIBUTION - CUSTOMER | D104: ='FR-16(7)(v)-1 Functional'!D104 -> K405 | F104: ='FR-16(7)(v)-2 PROD Classified'!I104 -> 0 | G104: 0 | H104: 0 | I104: 0 | J104: 0 | K104: 0 | L104: 0 | M104: 0 | N104: 0 | O104: 0 | P104: 0 | Q104: 0 | R104: 0 | S104: 0
A105: 48 | C105: ='FR-16(7)(v)-1 Functional'!C105 -> CUSTOMER ACCOUNTING | D105: ='FR-16(7)(v)-1 Functional'!D105 -> A308 | F105: ='FR-16(7)(v)-2 PROD Classified'!I105 -> 0 | G105: 0 | H105: 0 | I105: 0 | J105: 0 | K105: 0 | L105: 0 | M105: 0 | N105: 0 | O105: 0 | P105: 0 | Q105: 0 | R105: 0 | S105: 0
A106: 49 | C106: ='FR-16(7)(v)-1 Functional'!C106 -> CUSTOMER SERVICE & INFORMATION | D106: ='FR-16(7)(v)-1 Functional'!D106 -> A310 | F106: ='FR-16(7)(v)-2 PROD Classified'!I106 -> 0 | G106: 0 | H106: 0 | I106: 0 | J106: 0 | K106: 0 | L106: 0 | M106: 0 | N106: 0 | O106: 0 | P106: 0 | Q106: 0 | R106: 0 | S106: 0
A107: 50 | C107: ='FR-16(7)(v)-1 Functional'!C107 -> SALES | D107: ='FR-16(7)(v)-1 Functional'!D107 -> A312 | F107: ='FR-16(7)(v)-2 PROD Classified'!I107 -> 0 | G107: 0 | H107: 0 | I107: 0 | J107: 0 | K107: 0 | L107: 0 | M107: 0 | N107: 0 | O107: 0 | P107: 0 | Q107: 0 | R107: 0 | S107: 0
A108: 51 | C108: ='FR-16(7)(v)-1 Functional'!C108 -> ADJUSTMENT | D108: ='FR-16(7)(v)-1 Functional'!D108 -> A315 | F108: ='FR-16(7)(v)-2 PROD Classified'!I108 -> 0 | G108: 0 | H108: 0 | I108: 0 | J108: 0 | K108: 0 | L108: 0 | M108: 0 | N108: 0 | O108: 0 | P108: 0 | Q108: 0 | R108: 0 | S108: 0
A109: 52 | C109: ='FR-16(7)(v)-1 Functional'!C109 -> GEN & INTANG PLANT IN SERVICE | F109: =SUM(F100:F108) -> 0 | G109: =SUM(G100:G108) -> 0 | H109: =SUM(H100:H108) -> 0 | I109: =SUM(I100:I108) -> 0 | J109: =SUM(J100:J108) -> 0 | K109: 0 | L109: 0 | M109: 0 | N109: 0 | O109: 0 | P109: 0 | Q109: =SUM(Q100:Q108) -> 0 | R109: =SUM(R100:R108) -> 0 | S109: =SUM(S100:S108) -> 0
A110: 53
A111: 54 | B111: COMMON & OTHER PLANT
A112: 55 | C112: ='FR-16(7)(v)-1 Functional'!C112 -> PRODUCTION - DEMAND | D112: ='FR-16(7)(v)-1 Functional'!D112 -> K201 | F112: ='FR-16(7)(v)-2 PROD Classified'!I112 -> 0 | G112: =F112-SUM(H112:Q112) -> 0 | H112: =ROUND(F112*VLOOKUP(D112,ALLOCTABLE_Prod_Customer,$H$10,FALSE),0) -> 0 | I112: =ROUND(F112*VLOOKUP(D112,ALLOCTABLE_Prod_Customer,$I$10,FALSE),0) -> 0 | J112: =ROUND(F112*VLOOKUP(D112,ALLOCTABLE_Prod_Customer,$J$10,FALSE),0) -> 0 | K112: =ROUND(F112*VLOOKUP(D112,ALLOCTABLE_Prod_Customer,$K$10,FALSE),0) -> 0 | L112: =ROUND(F112*VLOOKUP(D112,ALLOCTABLE_Prod_Customer,$L$10,FALSE),0) -> 0 | M112: =ROUND(F112*VLOOKUP(D112,ALLOCTABLE_Prod_Customer,$M$10,FALSE),0) -> 0 | N112: =ROUND(F112*VLOOKUP(D112,ALLOCTABLE_Prod_Customer,$N$10,FALSE),0) -> 0 | O112: =ROUND(F112*VLOOKUP(D112,ALLOCTABLE_Prod_Customer,$O$10,FALSE),0) -> 0 | P112: =ROUND(F112*VLOOKUP(D112,ALLOCTABLE_Prod_Customer,$P$10,FALSE),0) -> 0 | Q112: =ROUND(F112*VLOOKUP(D112,ALLOCTABLE_Prod_Customer,$Q$10,FALSE),0) -> 0 | R112: =SUM(G112:Q112) -> 0 | S112: =F112-R112 -> 0
A113: 56 | C113: ='FR-16(7)(v)-1 Functional'!C113 -> PRODUCTION - ENERGY | D113: ='FR-16(7)(v)-1 Functional'!D113 -> K301 | F113: ='FR-16(7)(v)-2 PROD Classified'!I113 -> 0 | G113: 0 | H113: 0 | I113: 0 | J113: 0 | K113: 0 | L113: 0 | M113: 0 | N113: 0 | O113: 0 | P113: 0 | Q113: 0 | R113: 0 | S113: 0
A114: 57 | C114: ='FR-16(7)(v)-1 Functional'!C114 -> TRANSMISSION | D114: ='FR-16(7)(v)-1 Functional'!D114 -> K202 | F114: ='FR-16(7)(v)-2 PROD Classified'!I114 -> 0 | G114: 0 | H114: 0 | I114: 0 | J114: 0 | K114: 0 | L114: 0 | M114: 0 | N114: 0 | O114: 0 | P114: 0 | Q114: 0 | R114: 0 | S114: 0
A115: 58 | C115: ='FR-16(7)(v)-1 Functional'!C115 -> DISTRIBUTION - DEMAND | D115: ='FR-16(7)(v)-1 Functional'!D115 -> K201 | F115: ='FR-16(7)(v)-2 PROD Classified'!I115 -> 0 | G115: 0 | H115: 0 | I115: 0 | J115: 0 | K115: 0 | L115: 0 | M115: 0 | N115: 0 | O115: 0 | P115: 0 | Q115: 0 | R115: 0 | S115: 0
A116: 59 | C116: ='FR-16(7)(v)-1 Functional'!C116 -> DISTRIBUTION - CUSTOMER | D116: ='FR-16(7)(v)-1 Functional'!D116 -> K405 | F116: ='FR-16(7)(v)-2 PROD Classified'!I116 -> 0 | G116: 0 | H116: 0 | I116: 0 | J116: 0 | K116: 0 | L116: 0 | M116: 0 | N116: 0 | O116: 0 | P116: 0 | Q116: 0 | R116: 0 | S116: 0
A117: 60 | C117: ='FR-16(7)(v)-1 Functional'!C117 -> CUSTOMER ACCOUNTING | D117: ='FR-16(7)(v)-1 Functional'!D117 -> A308 | F117: ='FR-16(7)(v)-2 PROD Classified'!I117 -> 0 | G117: 0 | H117: 0 | I117: 0 | J117: 0 | K117: 0 | L117: 0 | M117: 0 | N117: 0 | O117: 0 | P117: 0 | Q117: 0 | R117: 0 | S117: 0
A118: 61 | C118: ='FR-16(7)(v)-1 Functional'!C118 -> CUSTOMER SERVICE & INFORMATION | D118: ='FR-16(7)(v)-1 Functional'!D118 -> A310 | F118: ='FR-16(7)(v)-2 PROD Classified'!I118 -> 0 | G118: 0 | H118: 0 | I118: 0 | J118: 0 | K118: 0 | L118: 0 | M118: 0 | N118: 0 | O118: 0 | P118: 0 | Q118: 0 | R118: 0 | S118: 0
A119: 62 | C119: ='FR-16(7)(v)-1 Functional'!C119 -> SALES | D119: ='FR-16(7)(v)-1 Functional'!D119 -> A312 | F119: ='FR-16(7)(v)-2 PROD Classified'!I119 -> 0 | G119: 0 | H119: 0 | I119: 0 | J119: 0 | K119: 0 | L119: 0 | M119: 0 | N119: 0 | O119: 0 | P119: 0 | Q119: 0 | R119: 0 | S119: 0
A120: 63 | C120: ='FR-16(7)(v)-1 Functional'!C120 -> ADJUSTMENT | D120: ='FR-16(7)(v)-1 Functional'!D120 -> A315 | F120: ='FR-16(7)(v)-2 PROD Classified'!I120 -> 0 | G120: 0 | H120: 0 | I120: 0 | J120: 0 | K120: 0 | L120: 0 | M120: 0 | N120: 0 | O120: 0 | P120: 0 | Q120: 0 | R120: 0 | S120: 0
A121: 64 | C121: ='FR-16(7)(v)-1 Functional'!C121 -> COMMON & OTHER PLANT IN SERVICE | F121: =SUM(F112:F120) -> 0 | G121: =SUM(G112:G120) -> 0 | H121: =SUM(H112:H120) -> 0 | I121: =SUM(I112:I120) -> 0 | J121: =SUM(J112:J120) -> 0 | K121: 0 | L121: 0 | M121: 0 | N121: 0 | O121: 0 | P121: 0 | Q121: =SUM(Q112:Q120) -> 0 | R121: =SUM(R112:R120) -> 0 | S121: =SUM(S112:S120) -> 0
A122: 65
A123: 66 | B123: GROSS ELECTRIC PLANT IN SERVICE | F123: =F97+F109+F121 -> 0 | G123: =G97+G109+G121 -> 0 | H123: =H97+H109+H121 -> 0 | I123: =I97+I109+I121 -> 0 | J123: =J97+J109+J121 -> 0 | K123: 0 | L123: 0 | M123: 0 | N123: 0 | O123: 0 | P123: 0 | Q123: =Q97+Q109+Q121 -> 0 | R123: =R97+R109+R121 -> 0 | S123: =S97+S109+S121 -> 0
A125: =co_name -> DUKE ENERGY KENTUCKY, INC. | R125: =R1 -> FR-16(7)(v)-5
A126: =$A$2 -> PRODUCTION CUSTOMER ALLOCATED - ELECTRIC COST OF SERVICE | R126: =R2 -> WITNESS RESPONSIBLE:
A127: =case_name -> CASE NO: 2017-00321 | R127: =Witness -> JAMES E. ZIOLKOWSKI
A128: =data_filing -> DATA: 12 MONTHS ACTUAL & 0 MONTHS ESTIMATED | R128: ="PAGE "&Pages-15&" OF "&Pages -> PAGE 3 OF 18
A129: =type -> TYPE OF FILING: "X" ORIGINAL UPDATED REVISED
F131: =F$7 -> TOTAL | H131: =H$7 -> DS | I131: =I$7 -> GSFL | J131: =J$7 -> EH | K131: =K$7 -> SP | L131: DT SEC | M131: DT PRI | N131: DP | O131: TT | Q131: OTHER
A132: LINE | F132: =F$8 -> PRODUCTION | G132: =G$8 -> RS | H132: =H$8 -> SECONDARY | I132: =I$8 -> SECONDARY | J132: =J$8 -> SECONDARY | K132: =K$8 -> SECONDARY | L132: SECONDARY | M132: PRIMARY | N132: PRIMARY | O132: TRANSMISSION | P132: LT | Q132: WATER | R132: =R8 -> TOTAL | S132: ALL
A133: NO. | B133: DEPRECIATION RESERVE | D133: ALLO | F133: =F$9 -> CUSTOMER | G133: =G$9 -> RESIDENTIAL | H133: =H$9 -> DISTRIBUTION | I133: =I$9 -> DISTRIBUTION | J133: =J$9 -> DISTRIBUTION | K133: =K$9 -> DISTRIBUTION | L133: DISTRIBUTION | M133: DISTRIBUTION | N133: DISTRIBUTION | O133: TIME OF DAY | P133: LIGHTING | Q133: PUMPING | R133: =R9 -> AT ISSUE | S133: OTHER
C134: Schedule 3 | G134: =G$10 -> 3 | H134: =H$10 -> 4 | I134: =I$10 -> 5 | J134: =J$10 -> 6 | K134: =K$10 -> 7 | L134: 8 | M134: 9 | N134: 10 | O134: 11 | P134: 12 | Q134: 13
A135: 1 | B135: PRODUCTION PLANT
A136: 2 | C136: PRODUCTION STEAM | D136: ='FR-16(7)(v)-1 Functional'!D136 -> K201 | F136: ='FR-16(7)(v)-2 PROD Classified'!I136 -> 0 | G136: =F136-SUM(H136:Q136) -> 0 | H136: =ROUND(F136*VLOOKUP(D136,ALLOCTABLE_Prod_Customer,$H$10,FALSE),0) -> 0 | I136: =ROUND(F136*VLOOKUP($D$136,ALLOCTABLE_Prod_Customer,$I$10,FALSE),0) -> 0 | J136: =ROUND(F136*VLOOKUP($D$136,ALLOCTABLE_Prod_Customer,$J$10,FALSE),0) -> 0 | K136: =ROUND(F136*VLOOKUP($D$136,ALLOCTABLE_Prod_Customer,$K$10,FALSE),0) -> 0 | L136: =ROUND(F136*VLOOKUP($D$136,ALLOCTABLE_Prod_Customer,$L$10,FALSE),0) -> 0 | M136: =ROUND(F136*VLOOKUP($D$136,ALLOCTABLE_Prod_Customer,$M$10,FALSE),0) -> 0 | N136: =ROUND(F136*VLOOKUP($D$136,ALLOCTABLE_Prod_Customer,$N$10,FALSE),0) -> 0 | O136: =ROUND(F136*VLOOKUP($D$136,ALLOCTABLE_Prod_Customer,$O$10,FALSE),0) -> 0 | P136: =ROUND(F136*VLOOKUP($D$136,ALLOCTABLE_Prod_Customer,$P$10,FALSE),0) -> 0 | Q136: =ROUND(F136*VLOOKUP(D136,ALLOCTABLE_Prod_Customer,$Q$10,FALSE),0) -> 0 | R136: =SUM(G136:Q136) -> 0 | S136: =F136-R136 -> 0
A137: 3 | C137: PRODUCTION OTHER | D137: ='FR-16(7)(v)-1 Functional'!D137 -> K201 | F137: ='FR-16(7)(v)-2 PROD Classified'!I137 -> 0 | G137: =F137-SUM(H137:Q137) -> 0 | H137: =ROUND(F136*VLOOKUP(D136,ALLOCTABLE_Prod_Customer,$H$10,FALSE),0) -> 0 | I137: =ROUND(F137*VLOOKUP($D$137,ALLOCTABLE_Prod_Customer,$I$10,FALSE),0) -> 0 | J137: =ROUND(F137*VLOOKUP($D$137,ALLOCTABLE_Prod_Customer,$J$10,FALSE),0) -> 0 | K137: =ROUND(F137*VLOOKUP($D$137,ALLOCTABLE_Prod_Customer,$K$10,FALSE),0) -> 0 | L137: =ROUND(F137*VLOOKUP($D$137,ALLOCTABLE_Prod_Customer,$L$10,FALSE),0) -> 0 | M137: =ROUND(F137*VLOOKUP($D$137,ALLOCTABLE_Prod_Customer,$M$10,FALSE),0) -> 0 | N137: =ROUND(F137*VLOOKUP($D$137,ALLOCTABLE_Prod_Customer,$N$10,FALSE),0) -> 0 | O137: =ROUND(F137*VLOOKUP($D$137,ALLOCTABLE_Prod_Customer,$O$10,FALSE),0) -> 0 | P137: =ROUND(F137*VLOOKUP($D$137,ALLOCTABLE_Prod_Customer,$P$10,FALSE),0) -> 0 | Q137: =ROUND(F137*VLOOKUP(D137,ALLOCTABLE_Prod_Customer,$Q$10,FALSE),0) -> 0 | R137: =SUM(G137:Q137) -> 0 | S137: =F137-R137 -> 0
A138: 4 | C138: ='FR-16(7)(v)-1 Functional'!C138 -> ADJUSTMENT | D138: ='FR-16(7)(v)-1 Functional'!D138 -> K201 | F138: ='FR-16(7)(v)-2 PROD Classified'!I138 -> 0 | G138: =F138-SUM(H138:Q138) -> 0 | H138: =ROUND(F136*VLOOKUP(D136,ALLOCTABLE_Prod_Customer,$H$10,FALSE),0) -> 0 | I138: =ROUND(F138*VLOOKUP($D$138,ALLOCTABLE_Prod_Customer,$I$10,FALSE),0) -> 0 | J138: =ROUND(F138*VLOOKUP($D$138,ALLOCTABLE_Prod_Customer,$J$10,FALSE),0) -> 0 | K138: =ROUND(F138*VLOOKUP($D$138,ALLOCTABLE_Prod_Customer,$K$10,FALSE),0) -> 0 | L138: =ROUND(F138*VLOOKUP($D$138,ALLOCTABLE_Prod_Customer,$L$10,FALSE),0) -> 0 | M138: =ROUND(F138*VLOOKUP($D$138,ALLOCTABLE_Prod_Customer,$M$10,FALSE),0) -> 0 | N138: =ROUND(F138*VLOOKUP($D$138,ALLOCTABLE_Prod_Customer,$N$10,FALSE),0) -> 0 | O138: =ROUND(F138*VLOOKUP($D$138,ALLOCTABLE_Prod_Customer,$O$10,FALSE),0) -> 0 | P138: =ROUND(F138*VLOOKUP($D$138,ALLOCTABLE_Prod_Customer,$P$10,FALSE),0) -> 0 | Q138: =ROUND(F138*VLOOKUP(D138,ALLOCTABLE_Prod_Customer,$Q$10,FALSE),0) -> 0 | R138: =SUM(G138:Q138) -> 0 | S138: =F138-R138 -> 0
A139: 5 | C139: ='FR-16(7)(v)-1 Functional'!C139 -> TOTAL PROD DEPREC RESERVE | F139: =SUM(F136:F138) -> 0 | G139: 0 | H139: 0 | I139: 0 | J139: 0 | K139: 0 | L139: 0 | M139: 0 | N139: 0 | O139: 0 | P139: 0 | Q139: 0 | R139: 0 | S139: =SUM(S136:S136) -> 0
A140: 6
A141: 7 | B141: TRANSMISSION PLANT
A142: 8 | C142: MAIN STEP-UP TRANSFORMERS | D142: ='FR-16(7)(v)-1 Functional'!D142 -> K202 | F142: ='FR-16(7)(v)-2 PROD Classified'!I142 -> 0 | G142: =F142-SUM(H142:Q142) -> 0 | H142: =ROUND(F136*VLOOKUP(D136,ALLOCTABLE_Prod_Customer,$H$10,FALSE),0) -> 0 | I142: =ROUND(F142*VLOOKUP($D$142,ALLOCTABLE_Prod_Customer,$I$10,FALSE),0) -> 0 | J142: =ROUND(F142*VLOOKUP($D$142,ALLOCTABLE_Prod_Customer,$J$10,FALSE),0) -> 0 | K142: =ROUND(F142*VLOOKUP($D$142,ALLOCTABLE_Prod_Customer,$K$10,FALSE),0) -> 0 | L142: =ROUND(F142*VLOOKUP($D$142,ALLOCTABLE_Prod_Customer,$L$10,FALSE),0) -> 0 | M142: =ROUND(F142*VLOOKUP($D$142,ALLOCTABLE_Prod_Customer,$M$10,FALSE),0) -> 0 | N142: =ROUND(F142*VLOOKUP($D$142,ALLOCTABLE_Prod_Customer,$N$10,FALSE),0) -> 0 | O142: =ROUND(F142*VLOOKUP($D$142,ALLOCTABLE_Prod_Customer,$O$10,FALSE),0) -> 0 | P142: =ROUND(F142*VLOOKUP($D$142,ALLOCTABLE_Prod_Customer,$P$10,FALSE),0) -> 0 | Q142: =ROUND(F142*VLOOKUP(D142,ALLOCTABLE_Prod_Customer,$Q$10,FALSE),0) -> 0 | R142: =SUM(G142:Q142) -> 0 | S142: =F142-R142 -> 0
A143: 9 | C143: OTHER TRANSMISSION | D143: ='FR-16(7)(v)-1 Functional'!D143 -> K202 | F143: ='FR-16(7)(v)-2 PROD Classified'!I143 -> 0 | G143: =F143-SUM(H143:Q143) -> 0 | H143: =ROUND(F136*VLOOKUP(D136,ALLOCTABLE_Prod_Customer,$H$10,FALSE),0) -> 0 | I143: =ROUND(F143*VLOOKUP($D$143,ALLOCTABLE_Prod_Customer,$I$10,FALSE),0) -> 0 | J143: =ROUND(F143*VLOOKUP($D$143,ALLOCTABLE_Prod_Customer,$J$10,FALSE),0) -> 0 | K143: =ROUND(F143*VLOOKUP($D$143,ALLOCTABLE_Prod_Customer,$K$10,FALSE),0) -> 0 | L143: =ROUND(F143*VLOOKUP($D$143,ALLOCTABLE_Prod_Customer,$L$10,FALSE),0) -> 0 | M143: =ROUND(F143*VLOOKUP($D$143,ALLOCTABLE_Prod_Customer,$M$10,FALSE),0) -> 0 | N143: =ROUND(F143*VLOOKUP($D$143,ALLOCTABLE_Prod_Customer,$N$10,FALSE),0) -> 0 | O143: =ROUND(F143*VLOOKUP($D$143,ALLOCTABLE_Prod_Customer,$O$10,FALSE),0) -> 0 | P143: =ROUND(F143*VLOOKUP($D$143,ALLOCTABLE_Prod_Customer,$P$10,FALSE),0) -> 0 | Q143: =ROUND(F143*VLOOKUP(D143,ALLOCTABLE_Prod_Customer,$Q$10,FALSE),0) -> 0 | R143: =SUM(G143:Q143) -> 0 | S143: =F143-R143 -> 0
A144: 10 | C144: ADJUSTMENT | D144: ='FR-16(7)(v)-1 Functional'!D144 -> K202 | F144: ='FR-16(7)(v)-2 PROD Classified'!I144 -> 0 | G144: =F144-SUM(H144:Q144) -> 0 | H144: =ROUND(F136*VLOOKUP(D136,ALLOCTABLE_Prod_Customer,$H$10,FALSE),0) -> 0 | I144: =ROUND(F144*VLOOKUP($D$144,ALLOCTABLE_Prod_Customer,$I$10,FALSE),0) -> 0 | J144: =ROUND(F144*VLOOKUP($D$144,ALLOCTABLE_Prod_Customer,$J$10,FALSE),0) -> 0 | K144: =ROUND(F144*VLOOKUP($D$144,ALLOCTABLE_Prod_Customer,$K$10,FALSE),0) -> 0 | L144: =ROUND(F144*VLOOKUP($D$144,ALLOCTABLE_Prod_Customer,$L$10,FALSE),0) -> 0 | M144: =ROUND(F144*VLOOKUP($D$144,ALLOCTABLE_Prod_Customer,$M$10,FALSE),0) -> 0 | N144: =ROUND(F144*VLOOKUP($D$144,ALLOCTABLE_Prod_Customer,$N$10,FALSE),0) -> 0 | O144: =ROUND(F144*VLOOKUP($D$144,ALLOCTABLE_Prod_Customer,$O$10,FALSE),0) -> 0 | P144: =ROUND(F144*VLOOKUP($D$144,ALLOCTABLE_Prod_Customer,$P$10,FALSE),0) -> 0 | Q144: =ROUND(F144*VLOOKUP(D144,ALLOCTABLE_Prod_Customer,$Q$10,FALSE),0) -> 0 | R144: =SUM(G144:Q144) -> 0 | S144: =F144-R144 -> 0
A145: 11 | C145: TOTAL TRANS DEPREC RESERVE | F145: =SUM(F142:F144) -> 0 | G145: =SUM(G142:G144) -> 0 | H145: 0 | I145: 0 | J145: 0 | K145: 0 | L145: 0 | M145: 0 | N145: 0 | O145: 0 | P145: 0 | Q145: 0 | R145: =SUM(R142:R144) -> 0 | S145: =SUM(S142:S142) -> 0
A146: 12
A147: 13 | C147: TOTAL PROD & TRANS DEPREC RESERVE | F147: =F145+F139 -> 0 | G147: =G145+G139 -> 0 | H147: =$H$114+H139 -> 0 | I147: =$I$114+I139 -> 0 | J147: =$J$114+J139 -> 0 | K147: =$K$114+K139 -> 0 | L147: =$L$114+L139 -> 0 | M147: =$M$114+M139 -> 0 | N147: =$N$114+N139 -> 0 | O147: =$O$114+O139 -> 0 | P147: =$P$114+P139 -> 0 | Q147: =$Q$114+Q139 -> 0 | R147: =SUM(G147:Q147) -> 0 | S147: =F147-R147 -> 0
A148: 14
A149: 15 | B149: DISTRIBUTION PLANT
A150: 16 | C150: ='FR-16(7)(v)-1 Functional'!C150 -> SUBSTATIONS | D150: ='FR-16(7)(v)-1 Functional'!D150 -> K215 | F150: ='FR-16(7)(v)-2 PROD Classified'!I150 -> 0 | G150: =F150-SUM(H150:Q150) -> 0 | H150: =ROUND(F150*VLOOKUP(D150,ALLOCTABLE_Prod_Customer,$H$10,FALSE),0) -> 0 | I150: =ROUND(F150*VLOOKUP($D$150,ALLOCTABLE_Prod_Customer,$I$10,FALSE),0) -> 0 | J150: =ROUND(F150*VLOOKUP($D$150,ALLOCTABLE_Prod_Customer,$J$10,FALSE),0) -> 0 | K150: =ROUND(F150*VLOOKUP($D$150,ALLOCTABLE_Prod_Customer,$K$10,FALSE),0) -> 0 | L150: =ROUND(F150*VLOOKUP($D$150,ALLOCTABLE_Prod_Customer,$L$10,FALSE),0) -> 0 | M150: =ROUND(F150*VLOOKUP($D$150,ALLOCTABLE_Prod_Customer,$M$10,FALSE),0) -> 0 | N150: =ROUND(F150*VLOOKUP($D$150,ALLOCTABLE_Prod_Customer,$N$10,FALSE),0) -> 0 | O150: =ROUND(F150*VLOOKUP($D$150,ALLOCTABLE_Prod_Customer,$O$10,FALSE),0) -> 0 | P150: =ROUND(F150*VLOOKUP($D$150,ALLOCTABLE_Prod_Customer,$P$10,FALSE),0) -> 0 | Q150: =ROUND(F150*VLOOKUP(D150,ALLOCTABLE_Prod_Customer,$Q$10,FALSE),0) -> 0 | R150: =SUM(G150:Q150) -> 0 | S150: =F150-R150 -> 0
A151: 17 | C151: ='FR-16(7)(v)-1 Functional'!C151 -> POLES, TOWERS & FIXTURES - PRIMARY - DEMAND | D151: ='FR-16(7)(v)-1 Functional'!D151 -> K205 | F151: ='FR-16(7)(v)-2 PROD Classified'!I151 -> 0 | G151: =F151-SUM(H151:Q151) -> 0 | H151: =ROUND(F151*VLOOKUP(D151,ALLOCTABLE_Prod_Customer,$H$10,FALSE),0) -> 0 | I151: =ROUND(F151*VLOOKUP(D151,ALLOCTABLE_Prod_Customer,$I$10,FALSE),0) -> 0 | J151: =ROUND(F151*VLOOKUP(D151,ALLOCTABLE_Prod_Customer,$J$10,FALSE),0) -> 0 | K151: =ROUND(F151*VLOOKUP(D151,ALLOCTABLE_Prod_Customer,$K$10,FALSE),0) -> 0 | L151: =ROUND(F151*VLOOKUP(D151,ALLOCTABLE_Prod_Customer,$L$10,FALSE),0) -> 0 | M151: =ROUND(F151*VLOOKUP(D151,ALLOCTABLE_Prod_Customer,$M$10,FALSE),0) -> 0 | N151: =ROUND(F151*VLOOKUP(D151,ALLOCTABLE_Prod_Customer,$N$10,FALSE),0) -> 0 | O151: =ROUND(F151*VLOOKUP(D151,ALLOCTABLE_Prod_Customer,$O$10,FALSE),0) -> 0 | P151: =ROUND(F151*VLOOKUP(D151,ALLOCTABLE_Prod_Customer,$P$10,FALSE),0) -> 0 | Q151: =ROUND(F151*VLOOKUP(D151,ALLOCTABLE_Prod_Customer,$Q$10,FALSE),0) -> 0 | R151: =SUM(G151:Q151) -> 0 | S151: =F151-R151 -> 0
A152: 18 | C152: ='FR-16(7)(v)-1 Functional'!C152 -> POLES, TOWERS & FIXTURES - PRIMARY - CUSTOMER | D152: ='FR-16(7)(v)-1 Functional'!D152 -> K405 | F152: ='FR-16(7)(v)-2 PROD Classified'!I152 -> 0 | G152: =F152-SUM(H152:Q152) -> 0 | H152: =ROUND(F152*VLOOKUP(D152,ALLOCTABLE_Prod_Customer,$H$10,FALSE),0) -> 0 | I152: 0 | J152: 0 | K152: 0 | L152: 0 | M152: 0 | N152: 0 | O152: 0 | P152: 0 | Q152: =ROUND(F152*VLOOKUP(D152,ALLOCTABLE_Prod_Customer,$Q$10,FALSE),0) -> 0 | R152: =SUM(G152:Q152) -> 0 | S152: =F152-R152 -> 0
A153: 19 | C153: ='FR-16(7)(v)-1 Functional'!C153 -> POLES, TOWERS & FIXTURES - SECONDARY - DEMAND | D153: ='FR-16(7)(v)-1 Functional'!D153 -> K206 | F153: ='FR-16(7)(v)-2 PROD Classified'!I153 -> 0 | G153: 0 | H153: 0 | I153: 0 | J153: 0 | K153: 0 | L153: 0 | M153: 0 | N153: 0 | O153: 0 | P153: 0 | Q153: 0 | R153: 0 | S153: 0
A154: 20 | C154: ='FR-16(7)(v)-1 Functional'!C154 -> POLES, TOWERS & FIXTURES - SECONDARY - CUSTOMER | D154: ='FR-16(7)(v)-1 Functional'!D154 -> K405 | F154: ='FR-16(7)(v)-2 PROD Classified'!I154 -> 0 | G154: 0 | H154: 0 | I154: 0 | J154: 0 | K154: 0 | L154: 0 | M154: 0 | N154: 0 | O154: 0 | P154: 0 | Q154: 0 | R154: 0 | S154: 0
A155: 21 | C155: ='FR-16(7)(v)-1 Functional'!C155 -> CONDUCTORS - OVERHEAD / PRIMARY - DEMAND | D155: ='FR-16(7)(v)-1 Functional'!D155 -> K205 | F155: ='FR-16(7)(v)-2 PROD Classified'!I155 -> 0 | G155: 0 | H155: 0 | I155: 0 | J155: 0 | K155: 0 | L155: 0 | M155: 0 | N155: 0 | O155: 0 | P155: 0 | Q155: 0 | R155: 0 | S155: 0
A156: 22 | C156: ='FR-16(7)(v)-1 Functional'!C156 -> CONDUCTORS - OVERHEAD / PRIMARY - CUSTOMER | D156: ='FR-16(7)(v)-1 Functional'!D156 -> K405 | F156: ='FR-16(7)(v)-2 PROD Classified'!I156 -> 0 | G156: 0 | H156: 0 | I156: 0 | J156: 0 | K156: 0 | L156: 0 | M156: 0 | N156: 0 | O156: 0 | P156: 0 | Q156: 0 | R156: 0 | S156: 0
A157: 23 | C157: ='FR-16(7)(v)-1 Functional'!C157 -> CONDUCTORS - OVERHEAD / SECONDARY - DEMAND | D157: ='FR-16(7)(v)-1 Functional'!D157 -> K206 | F157: ='FR-16(7)(v)-2 PROD Classified'!I157 -> 0 | G157: 0 | H157: 0 | I157: 0 | J157: 0 | K157: 0 | L157: 0 | M157: 0 | N157: 0 | O157: 0 | P157: 0 | Q157: 0 | R157: 0 | S157: 0
A158: 24 | C158: ='FR-16(7)(v)-1 Functional'!C158 -> CONDUCTORS - OVERHEAD / SECONDARY - CUSTOMER | D158: ='FR-16(7)(v)-1 Functional'!D158 -> K405 | F158: ='FR-16(7)(v)-2 PROD Classified'!I158 -> 0 | G158: 0 | H158: 0 | I158: 0 | J158: 0 | K158: 0 | L158: 0 | M158: 0 | N158: 0 | O158: 0 | P158: 0 | Q158: 0 | R158: 0 | S158: 0
A159: 25 | C159: ='FR-16(7)(v)-1 Functional'!C159 -> CONDUCTORS - UNDERGROUND / PRIMARY - DEMAND | D159: ='FR-16(7)(v)-1 Functional'!D159 -> K205 | F159: ='FR-16(7)(v)-2 PROD Classified'!I159 -> 0 | G159: 0 | H159: 0 | I159: 0 | J159: 0 | K159: 0 | L159: 0 | M159: 0 | N159: 0 | O159: 0 | P159: 0 | Q159: 0 | R159: 0 | S159: 0
A160: 26 | C160: ='FR-16(7)(v)-1 Functional'!C160 -> CONDUCTORS - UNDERGROUND / PRIMARY - CUSTOMER | D160: ='FR-16(7)(v)-1 Functional'!D160 -> K405 | F160: ='FR-16(7)(v)-2 PROD Classified'!I160 -> 0 | G160: 0 | H160: 0 | I160: 0 | J160: 0 | K160: 0 | L160: 0 | M160: 0 | N160: 0 | O160: 0 | P160: 0 | Q160: 0 | R160: 0 | S160: 0
A161: 27 | C161: ='FR-16(7)(v)-1 Functional'!C161 -> CONDUCTORS - UNDERGROUND / SECONDARY - DEMAND | D161: ='FR-16(7)(v)-1 Functional'!D161 -> K206 | F161: ='FR-16(7)(v)-2 PROD Classified'!I161 -> 0 | G161: 0 | H161: 0 | I161: 0 | J161: 0 | K161: 0 | L161: 0 | M161: 0 | N161: 0 | O161: 0 | P161: 0 | Q161: =ROUND(F161*VLOOKUP(D161,ALLOCTABLE_Prod_Customer,$Q$10,FALSE),0) -> 0 | R161: =SUM(G161:Q161) -> 0 | S161: 0
A162: 28 | C162: ='FR-16(7)(v)-1 Functional'!C162 -> CONDUCTORS - UNDERGROUND / SECONDARY - CUSTOMER | D162: ='FR-16(7)(v)-1 Functional'!D162 -> K405 | F162: ='FR-16(7)(v)-2 PROD Classified'!I162 -> 0 | G162: 0 | H162: 0 | I162: 0 | J162: 0 | K162: 0 | L162: 0 | M162: 0 | N162: 0 | O162: 0 | P162: 0 | Q162: 0 | R162: 0 | S162: 0
A163: 29 | C163: ='FR-16(7)(v)-1 Functional'!C163 -> TRANSFORMERS DEMAND RELATED | D163: ='FR-16(7)(v)-1 Functional'!D163 -> K215 | F163: ='FR-16(7)(v)-2 PROD Classified'!I163 -> 0 | G163: =F163-SUM(H163:Q163) -> 0 | H163: =ROUND(F163*VLOOKUP(D163,ALLOCTABLE_Prod_Customer,$H$10,FALSE),0) -> 0 | I163: =ROUND(F163*VLOOKUP($D$163,ALLOCTABLE_Prod_Customer,$I$10,FALSE),0) -> 0 | J163: =ROUND(F163*VLOOKUP($D$163,ALLOCTABLE_Prod_Customer,$J$10,FALSE),0) -> 0 | K163: =ROUND(F163*VLOOKUP($D$163,ALLOCTABLE_Prod_Customer,$K$10,FALSE),0) -> 0 | L163: =ROUND(F163*VLOOKUP($D$163,ALLOCTABLE_Prod_Customer,$L$10,FALSE),0) -> 0 | M163: =ROUND(F163*VLOOKUP($D$163,ALLOCTABLE_Prod_Customer,$M$10,FALSE),0) -> 0 | N163: =ROUND(F163*VLOOKUP($D$163,ALLOCTABLE_Prod_Customer,$N$10,FALSE),0) -> 0 | O163: =ROUND(F163*VLOOKUP($D$163,ALLOCTABLE_Prod_Customer,$O$10,FALSE),0) -> 0 | P163: 0 | Q163: 0 | R163: 0 | S163: =F163-R163 -> 0
A164: 30 | C164: ='FR-16(7)(v)-1 Functional'!C164 -> TRANSFORMERS CUSTOMER RELATED | D164: ='FR-16(7)(v)-1 Functional'!D164 -> K405 | F164: ='FR-16(7)(v)-2 PROD Classified'!I164 -> 0 | G164: 0 | H164: 0 | I164: =ROUND(F164*VLOOKUP($D$163,ALLOCTABLE_Prod_Customer,$I$10,FALSE),0) -> 0 | J164: =ROUND(F164*VLOOKUP($D$163,ALLOCTABLE_Prod_Customer,$J$10,FALSE),0) -> 0 | K164: =ROUND(F164*VLOOKUP($D$163,ALLOCTABLE_Prod_Customer,$K$10,FALSE),0) -> 0 | L164: =ROUND(F164*VLOOKUP($D$163,ALLOCTABLE_Prod_Customer,$L$10,FALSE),0) -> 0 | M164: =ROUND(F164*VLOOKUP($D$163,ALLOCTABLE_Prod_Customer,$M$10,FALSE),0) -> 0 | N164: =ROUND(F164*VLOOKUP($D$163,ALLOCTABLE_Prod_Customer,$N$10,FALSE),0) -> 0 | O164: =ROUND(F164*VLOOKUP($D$163,ALLOCTABLE_Prod_Customer,$O$10,FALSE),0) -> 0 | P164: 0 | Q164: 0 | R164: 0 | S164: 0
A165: 31 | C165: ='FR-16(7)(v)-1 Functional'!C165 -> SERVICES | D165: ='FR-16(7)(v)-1 Functional'!D165 -> K217 | F165: ='FR-16(7)(v)-2 PROD Classified'!I165 -> 0 | G165: 0 | H165: 0 | I165: =ROUND(F165*VLOOKUP($D$165,ALLOCTABLE_Prod_Customer,$I$10,FALSE),0) -> 0 | J165: =ROUND(F165*VLOOKUP($D$165,ALLOCTABLE_Prod_Customer,$J$10,FALSE),0) -> 0 | K165: =ROUND(F165*VLOOKUP($D$165,ALLOCTABLE_Prod_Customer,$K$10,FALSE),0) -> 0 | L165: =ROUND(F165*VLOOKUP($D$165,ALLOCTABLE_Prod_Customer,$L$10,FALSE),0) -> 0 | M165: =ROUND(F165*VLOOKUP($D$165,ALLOCTABLE_Prod_Customer,$M$10,FALSE),0) -> 0 | N165: =ROUND(F165*VLOOKUP($D$165,ALLOCTABLE_Prod_Customer,$N$10,FALSE),0) -> 0 | O165: =ROUND(F165*VLOOKUP($D$165,ALLOCTABLE_Prod_Customer,$O$10,FALSE),0) -> 0 | P165: 0 | Q165: 0 | R165: 0 | S165: 0
A166: 32 | C166: ='FR-16(7)(v)-1 Functional'!C166 -> METERS | D166: ='FR-16(7)(v)-1 Functional'!D166 -> K407 | F166: ='FR-16(7)(v)-2 PROD Classified'!I166 -> 0 | G166: 0 | H166: 0 | I166: =ROUND(F166*VLOOKUP($D$166,ALLOCTABLE_Prod_Customer,$I$10,FALSE),0) -> 0 | J166: =ROUND(F166*VLOOKUP($D$166,ALLOCTABLE_Prod_Customer,$J$10,FALSE),0) -> 0 | K166: =ROUND(F166*VLOOKUP($D$166,ALLOCTABLE_Prod_Customer,$K$10,FALSE),0) -> 0 | L166: =ROUND(F166*VLOOKUP($D$166,ALLOCTABLE_Prod_Customer,$L$10,FALSE),0) -> 0 | M166: =ROUND(F166*VLOOKUP($D$166,ALLOCTABLE_Prod_Customer,$M$10,FALSE),0) -> 0 | N166: =ROUND(F166*VLOOKUP($D$166,ALLOCTABLE_Prod_Customer,$N$10,FALSE),0) -> 0 | O166: =ROUND(F166*VLOOKUP($D$166,ALLOCTABLE_Prod_Customer,$O$10,FALSE),0) -> 0 | P166: 0 | Q166: 0 | R166: 0 | S166: 0
A167: 33 | C167: ='FR-16(7)(v)-1 Functional'!C167 -> STREET LIGHTS | D167: ='FR-16(7)(v)-1 Functional'!D167 -> K401 | F167: ='FR-16(7)(v)-2 PROD Classified'!I167 -> 0 | G167: 0 | H167: 0 | I167: =ROUND(F167*VLOOKUP($D$167,ALLOCTABLE_Prod_Customer,$I$10,FALSE),0) -> 0 | J167: =ROUND(F167*VLOOKUP($D$167,ALLOCTABLE_Prod_Customer,$J$10,FALSE),0) -> 0 | K167: =ROUND(F167*VLOOKUP($D$167,ALLOCTABLE_Prod_Customer,$K$10,FALSE),0) -> 0 | L167: =ROUND(F167*VLOOKUP($D$167,ALLOCTABLE_Prod_Customer,$L$10,FALSE),0) -> 0 | M167: =ROUND(F167*VLOOKUP($D$167,ALLOCTABLE_Prod_Customer,$M$10,FALSE),0) -> 0 | N167: =ROUND(F167*VLOOKUP($D$167,ALLOCTABLE_Prod_Customer,$N$10,FALSE),0) -> 0 | O167: =ROUND(F167*VLOOKUP($D$167,ALLOCTABLE_Prod_Customer,$O$10,FALSE),0) -> 0 | P167: 0 | Q167: 0 | R167: 0 | S167: 0
A168: 34 | C168: ='FR-16(7)(v)-1 Functional'!C168 -> ADJUSTMENT | D168: ='FR-16(7)(v)-1 Functional'!D168 -> K209 | F168: ='FR-16(7)(v)-2 PROD Classified'!I168 -> 0 | G168: 0 | H168: 0 | I168: =ROUND(F168*VLOOKUP($D$168,ALLOCTABLE_Prod_Customer,$I$10,FALSE),0) -> 0 | J168: =ROUND(F168*VLOOKUP($D$168,ALLOCTABLE_Prod_Customer,$J$10,FALSE),0) -> 0 | K168: =ROUND(F168*VLOOKUP($D$168,ALLOCTABLE_Prod_Customer,$K$10,FALSE),0) -> 0 | L168: =ROUND(F168*VLOOKUP($D$168,ALLOCTABLE_Prod_Customer,$L$10,FALSE),0) -> 0 | M168: =ROUND(F168*VLOOKUP($D$168,ALLOCTABLE_Prod_Customer,$M$10,FALSE),0) -> 0 | N168: =ROUND(F168*VLOOKUP($D$168,ALLOCTABLE_Prod_Customer,$N$10,FALSE),0) -> 0 | O168: =ROUND(F168*VLOOKUP($D$168,ALLOCTABLE_Prod_Customer,$O$10,FALSE),0) -> 0 | P168: 0 | Q168: 0 | R168: 0 | S168: 0
A169: 35 | C169: ='FR-16(7)(v)-1 Functional'!C169 -> CONSTRUCTION NOT CLASSIFIED | D169: ='FR-16(7)(v)-1 Functional'!D169 -> K209 | F169: ='FR-16(7)(v)-2 PROD Classified'!I169 -> 0 | G169: 0 | H169: 0 | I169: =ROUND(F169*VLOOKUP($D$169,ALLOCTABLE_Prod_Customer,$I$10,FALSE),0) -> 0 | J169: =ROUND(F169*VLOOKUP($D$169,ALLOCTABLE_Prod_Customer,$J$10,FALSE),0) -> 0 | K169: =ROUND(F169*VLOOKUP($D$169,ALLOCTABLE_Prod_Customer,$K$10,FALSE),0) -> 0 | L169: =ROUND(F169*VLOOKUP($D$169,ALLOCTABLE_Prod_Customer,$L$10,FALSE),0) -> 0 | M169: =ROUND(F169*VLOOKUP($D$169,ALLOCTABLE_Prod_Customer,$M$10,FALSE),0) -> 0 | N169: =ROUND(F169*VLOOKUP($D$169,ALLOCTABLE_Prod_Customer,$N$10,FALSE),0) -> 0 | O169: =ROUND(F169*VLOOKUP($D$169,ALLOCTABLE_Prod_Customer,$O$10,FALSE),0) -> 0 | P169: 0 | Q169: 0 | R169: 0 | S169: 0
A170: 36 | C170: ='FR-16(7)(v)-1 Functional'!C170 -> RWIP | D170: ='FR-16(7)(v)-1 Functional'!D170 -> K215 | F170: ='FR-16(7)(v)-2 PROD Classified'!I170 -> 0 | G170: =F170-SUM(H170:Q170) -> 0 | H170: =ROUND(F170*VLOOKUP(D170,ALLOCTABLE_Prod_Customer,$H$10,FALSE),0) -> 0 | I170: =ROUND(F170*VLOOKUP($D$169,ALLOCTABLE_Prod_Customer,$I$10,FALSE),0) -> 0 | J170: =ROUND(F170*VLOOKUP($D$169,ALLOCTABLE_Prod_Customer,$J$10,FALSE),0) -> 0 | K170: =ROUND(F170*VLOOKUP($D$169,ALLOCTABLE_Prod_Customer,$K$10,FALSE),0) -> 0
A171: 37 | C171: ='FR-16(7)(v)-1 Functional'!C171 -> TOTAL DIST DEPREC RESERVE | F171: =SUM(F149:F170) -> 0 | G171: =SUM(G149:G169) -> 0 | H171: =SUM(H149:H169) -> 0 | I171: =SUM(I149:I169) -> 0 | J171: 0 | K171: 0 | L171: 0 | M171: 0 | N171: 0 | O171: 0 | P171: 0 | Q171: 0 | R171: =SUM(R149:R169) -> 0 | S171: =SUM(S149:S169) -> 0
A172: 38
